{"text_format":"1","workbook":"xlsx","n_sheets":7,"sheets":["Instructions","Multi-Year Total","MediaLog","Summary","LookupData","PicklistData","Embedded WORD"],"not_rendered":{"charts":0,"images":1,"macros":1,"external_links":2,"defined_names":76,"comments":0,"pivot_tables":0},"unopened":[],"bounds":{"document_bytes":16777216,"sheet_cells":100000,"rows_first":2000,"rows_last":500,"rows_between":2000,"halvings":0,"cell_chars":16384,"cell_head_chars":4096},"cells_cut":0,"cells_raw":0,"read":"whole","date_system":"1900"}

{"sheet":"Instructions","index":0,"n_rows":19,"n_cols":24,"rows_kept":19,"cut":false,"hidden":false,"merged":[]}
[]
[null,"Media Impressions Worksheet"]
[null,"Capture and report earned media news stories, paid or in-kind media, and social/digital media efforts."]
[]
[null,"1. Click “Enable Content” above the formula bar."]
[null,"2. Enter your organization name."]
[null,"3. Select the starting dates."]
[null,"4. Enter a contact person’s name and email address."]
[null,"5. Select the ending dates."]
[null,"6. Click “Open Guidance Document” to review guidance on using the worksheet."]
[null,"7. Click “Create” button to create MediaLog and Summary tab.  "]
[null,"8. Click “Delete” button to delete MediaLog and Summary tab not needed. (Optional)"]
[null,"9. Save this file. Put your organization name and date in the file name."]
[null,null,null,null,null,"Time Period of Placements",null,null,null,null,null,null,null,null,null,null,null,null,null,null,null,null,null,"Boston Public Health Commission"]
[null,"Organization Name",null,null,null,"From :-","Month","Year"]
[null,"Contact Name"]
[null,"Contact Email",null,null,null,"To :-","Month","Year"]
[]
[null,null,null,null,null,"Create a Tab"]

{"sheet":"Multi-Year Total","index":1,"n_rows":207,"n_cols":18,"rows_kept":207,"cut":false,"hidden":true,"merged":[]}
["Topic","Type","Media Channel/Type","Time Period of Placements","Circulation Viewers Listeners","Social Media Shares","Media Impressions","Cost","Total Added Value","Value of coverage",null,{"$f":"LookupData!S1","v":" to "},{"$f":"TRIM(MID(CELL(\"filename\",A1),SEARCH(\"]\",CELL(\"filename\",A1),1)+1,LEN(CELL(\"filename\",A1))-(SEARCH(\"]\",CELL(\"filename\",A1),1)+LEN(\" Summary\"))))","v":"Multi-Ye"},"Awardee","Partner","Sub-Recipients","Public-Earned","Public-Paid"]
["Nutrition","Public-Earned","Television",{"$f":"$L$1","v":" to "},{"$f":"SUM(0)","v":0},0,0,0,0,0,null,{"$f":"IF(OR(A1=\"Strategic Direction\", A1=\"Type\", A1=\"Media Channel/Type\", A1=0), IF(A2=0, L1, A2), A1)","v":"Topic"},{"$f":"IF(OR(B1=\"Strategic Direction\", B1=\"Type\", B1=\"Media Channel/Type\", B1=0, B1=\"TOTAL\"), IF(B2=0, M1, IF(B2=$O$1, \"Partner\",IF(B2=$P$1, \"Sub-Recipients\", IF(B2=$Q$1, \"Public-Earned\", IF(B2=$R$1, \"Public-Paid\", B2))))), IF(B1=$O$1, \"Partner\",IF(B1=$P$1, \"Sub-Recipients\", IF(B1=$Q$1, \"Public-Earned\", IF(B1=$R$1, \"Public-Paid\", M1)))))","v":"Public-Earned"},{"$f":"C2","v":"Television"}]
["Nutrition","Public-Earned","Radio",{"$f":"$L$1","v":" to "},{"$f":"SUM(0)","v":0},0,0,0,0,0,null,{"$f":"IF(OR(A2=\"Strategic Direction\", A2=\"Type\", A2=\"Media Channel/Type\", A2=0), IF(A3=0, L2, A3), A2)","v":"Nutrition"},{"$f":"IF(OR(B2=\"Strategic Direction\", B2=\"Type\", B2=\"Media Channel/Type\", B2=0, B2=\"TOTAL\"), IF(B3=0, M2, IF(B3=$O$1, \"Partner\",IF(B3=$P$1, \"Sub-Recipients\", IF(B3=$Q$1, \"Public-Earned\", IF(B3=$R$1, \"Public-Paid\", B3))))), IF(B2=$O$1, \"Partner\",IF(B2=$P$1, \"Sub-Recipients\", IF(B2=$Q$1, \"Public-Earned\", IF(B2=$R$1, \"Public-Paid\", M2)))))","v":"Public-Earned"},{"$f":"C3","v":"Radio"}]
["Nutrition","Public-Earned","Print"," to ",0,0,0,0,0,0,null,"Nutrition","Public-Earned","Print"]
["Nutrition","Public-Earned","Social/Digital Media"," to ",0,0,0,0,0,0,null,"Nutrition","Public-Earned","Social/Digital Media"]
["Nutrition","Public-Earned","Outdoor"," to ",0,0,0,0,0,0,null,"Nutrition","Public-Earned","Outdoor"]
["Nutrition","Public-Earned","Email/Print Newsletter"," to ",0,0,0,0,0,0,null,{"$f":"IF(OR(A5=\"Strategic Direction\", A5=\"Type\", A5=\"Media Channel/Type\", A5=0), IF(A7=0, L5, A7), A5)","v":"Nutrition"},{"$f":"IF(OR(B5=\"Strategic Direction\", B5=\"Type\", B5=\"Media Channel/Type\", B5=0, B5=\"TOTAL\"), IF(B7=0, M5, IF(B7=$O$1, \"Partner\",IF(B7=$P$1, \"Sub-Recipients\", IF(B7=$Q$1, \"Public-Earned\", IF(B7=$R$1, \"Public-Paid\", B7))))), IF(B5=$O$1, \"Partner\",IF(B5=$P$1, \"Sub-Recipients\", IF(B5=$Q$1, \"Public-Earned\", IF(B5=$R$1, \"Public-Paid\", M5)))))","v":"Public-Earned"},{"$f":"C7","v":"Email/Print Newsletter"}]
["Nutrition","Public-Earned","Other"," to ",0,0,0,0,0,0,null,{"$f":"IF(OR(A6=\"Strategic Direction\", A6=\"Type\", A6=\"Media Channel/Type\", A6=0), IF(A8=0, L6, A8), A6)","v":"Nutrition"},{"$f":"IF(OR(B6=\"Strategic Direction\", B6=\"Type\", B6=\"Media Channel/Type\", B6=0, B6=\"TOTAL\"), IF(B8=0, M6, IF(B8=$O$1, \"Partner\",IF(B8=$P$1, \"Sub-Recipients\", IF(B8=$Q$1, \"Public-Earned\", IF(B8=$R$1, \"Public-Paid\", B8))))), IF(B6=$O$1, \"Partner\",IF(B6=$P$1, \"Sub-Recipients\", IF(B6=$Q$1, \"Public-Earned\", IF(B6=$R$1, \"Public-Paid\", M6)))))","v":"Public-Earned"},"Other"]
["Nutrition","Public-Earned","Subtotal",null,0,0,0,0,0,0,null,"Nutrition","Public-Earned","Subtotal"]
["Nutrition","Public-Paid","Television",{"$f":"$L$1","v":" to "},0,0,0,0,0,0,null,"Nutrition","Public-Earned","Television"]
["Nutrition","Public-Paid","Radio"," to ",0,0,0,0,0,0,null,"Nutrition","Public-Paid","Radio"]
["Nutrition","Public-Paid","Print"," to ",0,0,0,0,0,0,null,"Nutrition","Public-Paid","Print"]
["Nutrition","Public-Paid","Social/Digital Media"," to ",0,0,0,0,0,0,null,"Nutrition","Public-Paid","Social/Digital Media"]
["Nutrition","Public-Paid","Outdoor"," to ",0,0,0,0,0,0,null,"Nutrition","Public-Paid","Outdoor"]
["Nutrition","Public-Paid","Email/Print Newsletter"," to ",0,0,0,0,0,0,null,{"$f":"IF(OR(A13=\"Strategic Direction\", A13=\"Type\", A13=\"Media Channel/Type\", A13=0), IF(A15=0, L13, A15), A13)","v":"Nutrition"},{"$f":"IF(OR(B13=\"Strategic Direction\", B13=\"Type\", B13=\"Media Channel/Type\", B13=0, B13=\"TOTAL\"), IF(B15=0, M13, IF(B15=$O$1, \"Partner\",IF(B15=$P$1, \"Sub-Recipients\", IF(B15=$Q$1, \"Public-Earned\", IF(B15=$R$1, \"Public-Paid\", B15))))), IF(B13=$O$1, \"Partner\",IF(B13=$P$1, \"Sub-Recipients\", IF(B13=$Q$1, \"Public-Earned\", IF(B13=$R$1, \"Public-Paid\", M13)))))","v":"Public-Paid"},"Email/Print Newsletter"]
["Nutrition","Public-Paid","Other"," to ",0,0,0,0,0,0,null,{"$f":"IF(OR(A14=\"Strategic Direction\", A14=\"Type\", A14=\"Media Channel/Type\", A14=0), IF(A16=0, L14, A16), A14)","v":"Nutrition"},{"$f":"IF(OR(B14=\"Strategic Direction\", B14=\"Type\", B14=\"Media Channel/Type\", B14=0, B14=\"TOTAL\"), IF(B16=0, M14, IF(B16=$O$1, \"Partner\",IF(B16=$P$1, \"Sub-Recipients\", IF(B16=$Q$1, \"Public-Earned\", IF(B16=$R$1, \"Public-Paid\", B16))))), IF(B14=$O$1, \"Partner\",IF(B14=$P$1, \"Sub-Recipients\", IF(B14=$Q$1, \"Public-Earned\", IF(B14=$R$1, \"Public-Paid\", M14)))))","v":"Public-Paid"},"Other"]
["Nutrition","Public-Paid","Subtotal",null,0,0,0,0,0,0,null,"Nutrition","Public-Paid","Subtotal"]
["Nutrition","Partner","Television",{"$f":"$L$1","v":" to "},0,0,0,0,0,0,null,"Nutrition","Public-Paid","Television"]
["Nutrition","Partner","Radio"," to ",0,0,0,0,0,0,null,"Nutrition","Partner","Radio"]
["Nutrition","Partner","Print"," to ",0,0,0,0,0,0,null,"Nutrition","Partner","Print"]
["Nutrition","Partner","Social/Digital Media"," to ",0,0,0,0,0,0,null,"Nutrition","Partner","Social/Digital Media"]
["Nutrition","Partner","Outdoor"," to ",0,0,0,0,0,0,null,"Nutrition","Partner","Outdoor"]
["Nutrition","Partner","Email/Print Newsletter"," to ",0,0,0,0,0,0,null,{"$f":"IF(OR(A21=\"Strategic Direction\", A21=\"Type\", A21=\"Media Channel/Type\", A21=0), IF(A23=0, L21, A23), A21)","v":"Nutrition"},{"$f":"IF(OR(B21=\"Strategic Direction\", B21=\"Type\", B21=\"Media Channel/Type\", B21=0, B21=\"TOTAL\"), IF(B23=0, M21, IF(B23=$O$1, \"Partner\",IF(B23=$P$1, \"Sub-Recipients\", IF(B23=$Q$1, \"Public-Earned\", IF(B23=$R$1, \"Public-Paid\", B23))))), IF(B21=$O$1, \"Partner\",IF(B21=$P$1, \"Sub-Recipients\", IF(B21=$Q$1, \"Public-Earned\", IF(B21=$R$1, \"Public-Paid\", M21)))))","v":"Partner"},{"$f":"C23","v":"Email/Print Newsletter"}]
["Nutrition","Partner","Other"," to ",0,0,0,0,0,0,null,{"$f":"IF(OR(A22=\"Strategic Direction\", A22=\"Type\", A22=\"Media Channel/Type\", A22=0), IF(A24=0, L22, A24), A22)","v":"Nutrition"},{"$f":"IF(OR(B22=\"Strategic Direction\", B22=\"Type\", B22=\"Media Channel/Type\", B22=0, B22=\"TOTAL\"), IF(B24=0, M22, IF(B24=$O$1, \"Partner\",IF(B24=$P$1, \"Sub-Recipients\", IF(B24=$Q$1, \"Public-Earned\", IF(B24=$R$1, \"Public-Paid\", B24))))), IF(B22=$O$1, \"Partner\",IF(B22=$P$1, \"Sub-Recipients\", IF(B22=$Q$1, \"Public-Earned\", IF(B22=$R$1, \"Public-Paid\", M22)))))","v":"Partner"},"Other"]
["Nutrition","Partner","Subtotal",null,0,0,0,0,0,0,null,"Nutrition","Partner","Subtotal"]
["Nutrition",{"$f":"$P$1","v":"Sub-Recipients"},"Television",0,0,0,0,0,0,0,null,"Nutrition","Partner","Television"]
["Nutrition",null,"Radio",0,0,0,0,0,0,0,null,"Nutrition","Sub-Recipients","Radio"]
["Nutrition",null,"Print",0,0,0,0,0,0,0,null,"Nutrition","Sub-Recipients","Print"]
["Nutrition",null,"Social/New Media",0,0,0,0,0,0,0,null,"Nutrition","Sub-Recipients","Social/New Media"]
["Nutrition",null,"Outdoor",0,0,0,0,0,0,0,null,"Nutrition","Sub-Recipients","Outdoor"]
["Nutrition",null,"Other",0,0,0,0,0,0,0,null,"Nutrition","Sub-Recipients","Other"]
["Nutrition",null,"Subtotal",null,0,0,0,0,0,0,null,"Nutrition","Sub-Recipients","Subtotal"]
["Nutrition","TOTAL",null,null,0,0,0,0,0,0,null,"Nutrition","TOTAL",0]
["Physical Activity","Public-Earned","Television",{"$f":"$L$1","v":" to "},0,0,0,0,0,0,null,"Nutrition","Public-Earned","Television"]
["Physical Activity","Public-Earned","Radio"," to ",{"$f":"SUM(0)","v":0},0,0,0,0,0,null,"Physical Activity","Public-Earned","Radio"]
["Physical Activity","Public-Earned","Print"," to ",0,0,0,0,0,0,null,"Physical Activity","Public-Earned","Print"]
["Physical Activity","Public-Earned","Social/Digital Media"," to ",0,0,0,0,0,0,null,"Physical Activity","Public-Earned","Social/Digital Media"]
["Physical Activity","Public-Earned","Outdoor"," to ",0,0,0,0,0,0,null,"Physical Activity","Public-Earned","Outdoor"]
["Physical Activity","Public-Earned","Email/Print Newsletter"," to ",0,0,0,0,0,0,null,{"$f":"IF(OR(A37=\"Strategic Direction\", A37=\"Type\", A37=\"Media Channel/Type\", A37=0), IF(A39=0, L37, A39), A37)","v":"Physical Activity"},{"$f":"IF(OR(B37=\"Strategic Direction\", B37=\"Type\", B37=\"Media Channel/Type\", B37=0, B37=\"TOTAL\"), IF(B39=0, M37, IF(B39=$O$1, \"Partner\",IF(B39=$P$1, \"Sub-Recipients\", IF(B39=$Q$1, \"Public-Earned\", IF(B39=$R$1, \"Public-Paid\", B39))))), IF(B37=$O$1, \"Partner\",IF(B37=$P$1, \"Sub-Recipients\", IF(B37=$Q$1, \"Public-Earned\", IF(B37=$R$1, \"Public-Paid\", M37)))))","v":"Public-Earned"},"Email/Print Newsletter"]
["Physical Activity","Public-Earned","Other"," to ",0,0,0,0,0,0,null,{"$f":"IF(OR(A38=\"Strategic Direction\", A38=\"Type\", A38=\"Media Channel/Type\", A38=0), IF(A40=0, L38, A40), A38)","v":"Physical Activity"},{"$f":"IF(OR(B38=\"Strategic Direction\", B38=\"Type\", B38=\"Media Channel/Type\", B38=0, B38=\"TOTAL\"), IF(B40=0, M38, IF(B40=$O$1, \"Partner\",IF(B40=$P$1, \"Sub-Recipients\", IF(B40=$Q$1, \"Public-Earned\", IF(B40=$R$1, \"Public-Paid\", B40))))), IF(B38=$O$1, \"Partner\",IF(B38=$P$1, \"Sub-Recipients\", IF(B38=$Q$1, \"Public-Earned\", IF(B38=$R$1, \"Public-Paid\", M38)))))","v":"Public-Earned"},"Other"]
["Physical Activity","Public-Earned","Subtotal",null,0,0,0,0,0,0,null,"Physical Activity","Public-Earned","Subtotal"]
["Physical Activity","Public-Paid","Television",{"$f":"$L$1","v":" to "},0,0,0,0,0,0,null,"Physical Activity","Public-Earned","Television"]
["Physical Activity","Public-Paid","Radio"," to ",0,0,0,0,0,0,null,"Physical Activity","Public-Paid","Radio"]
["Physical Activity","Public-Paid","Print"," to ",0,0,0,0,0,0,null,"Physical Activity","Public-Paid","Print"]
["Physical Activity","Public-Paid","Social/Digital Media"," to ",0,0,0,0,0,0,null,"Physical Activity","Public-Paid","Social/Digital Media"]
["Physical Activity","Public-Paid","Outdoor"," to ",0,0,0,0,0,0,null,"Physical Activity","Public-Paid","Outdoor"]
["Physical Activity","Public-Paid","Email/Print Newsletter"," to ",0,0,0,0,0,0,null,{"$f":"IF(OR(A45=\"Strategic Direction\", A45=\"Type\", A45=\"Media Channel/Type\", A45=0), IF(A47=0, L45, A47), A45)","v":"Physical Activity"},{"$f":"IF(OR(B45=\"Strategic Direction\", B45=\"Type\", B45=\"Media Channel/Type\", B45=0, B45=\"TOTAL\"), IF(B47=0, M45, IF(B47=$O$1, \"Partner\",IF(B47=$P$1, \"Sub-Recipients\", IF(B47=$Q$1, \"Public-Earned\", IF(B47=$R$1, \"Public-Paid\", B47))))), IF(B45=$O$1, \"Partner\",IF(B45=$P$1, \"Sub-Recipients\", IF(B45=$Q$1, \"Public-Earned\", IF(B45=$R$1, \"Public-Paid\", M45)))))","v":"Public-Paid"},{"$f":"C47","v":"Email/Print Newsletter"}]
["Physical Activity","Public-Paid","Other"," to ",0,0,0,0,0,0,null,{"$f":"IF(OR(A46=\"Strategic Direction\", A46=\"Type\", A46=\"Media Channel/Type\", A46=0), IF(A48=0, L46, A48), A46)","v":"Physical Activity"},{"$f":"IF(OR(B46=\"Strategic Direction\", B46=\"Type\", B46=\"Media Channel/Type\", B46=0, B46=\"TOTAL\"), IF(B48=0, M46, IF(B48=$O$1, \"Partner\",IF(B48=$P$1, \"Sub-Recipients\", IF(B48=$Q$1, \"Public-Earned\", IF(B48=$R$1, \"Public-Paid\", B48))))), IF(B46=$O$1, \"Partner\",IF(B46=$P$1, \"Sub-Recipients\", IF(B46=$Q$1, \"Public-Earned\", IF(B46=$R$1, \"Public-Paid\", M46)))))","v":"Public-Paid"},"Other"]
["Physical Activity","Public-Paid","Subtotal",null,0,0,0,0,0,0,null,"Physical Activity","Public-Paid","Subtotal"]
["Physical Activity","Partner","Television",{"$f":"$L$1","v":" to "},0,0,0,0,0,0,null,"Physical Activity","Public-Paid","Television"]
["Physical Activity","Partner","Radio"," to ",0,0,0,0,0,0,null,"Physical Activity","Partner","Radio"]
["Physical Activity","Partner","Print"," to ",0,0,0,0,0,0,null,"Physical Activity","Partner","Print"]
["Physical Activity","Partner","Social/Digital Media"," to ",0,0,0,0,0,0,null,"Physical Activity","Partner","Social/Digital Media"]
["Physical Activity","Partner","Outdoor"," to ",0,0,0,0,0,0,null,"Physical Activity","Partner","Outdoor"]
["Physical Activity","Partner","Email/Print Newsletter"," to ",0,0,0,0,0,0,null,{"$f":"IF(OR(A53=\"Strategic Direction\", A53=\"Type\", A53=\"Media Channel/Type\", A53=0), IF(A55=0, L53, A55), A53)","v":"Physical Activity"},{"$f":"IF(OR(B53=\"Strategic Direction\", B53=\"Type\", B53=\"Media Channel/Type\", B53=0, B53=\"TOTAL\"), IF(B55=0, M53, IF(B55=$O$1, \"Partner\",IF(B55=$P$1, \"Sub-Recipients\", IF(B55=$Q$1, \"Public-Earned\", IF(B55=$R$1, \"Public-Paid\", B55))))), IF(B53=$O$1, \"Partner\",IF(B53=$P$1, \"Sub-Recipients\", IF(B53=$Q$1, \"Public-Earned\", IF(B53=$R$1, \"Public-Paid\", M53)))))","v":"Partner"},"Email/Print Newsletter"]
["Physical Activity","Partner","Other"," to ",0,0,0,0,0,0,null,{"$f":"IF(OR(A54=\"Strategic Direction\", A54=\"Type\", A54=\"Media Channel/Type\", A54=0), IF(A56=0, L54, A56), A54)","v":"Physical Activity"},{"$f":"IF(OR(B54=\"Strategic Direction\", B54=\"Type\", B54=\"Media Channel/Type\", B54=0, B54=\"TOTAL\"), IF(B56=0, M54, IF(B56=$O$1, \"Partner\",IF(B56=$P$1, \"Sub-Recipients\", IF(B56=$Q$1, \"Public-Earned\", IF(B56=$R$1, \"Public-Paid\", B56))))), IF(B54=$O$1, \"Partner\",IF(B54=$P$1, \"Sub-Recipients\", IF(B54=$Q$1, \"Public-Earned\", IF(B54=$R$1, \"Public-Paid\", M54)))))","v":"Partner"},"Other"]
["Physical Activity","Partner","Subtotal",null,0,0,0,0,0,0,null,"Physical Activity","Partner","Subtotal"]
["Physical Activity",{"$f":"$P$1","v":"Sub-Recipients"},"Television",0,0,0,0,0,0,0,null,"Physical Activity","Partner","Television"]
["Physical Activity",null,"Radio",0,0,0,0,0,0,0,null,"Physical Activity","Sub-Recipients","Radio"]
["Physical Activity",null,"Print",0,0,0,0,0,0,0,null,"Physical Activity","Sub-Recipients","Print"]
["Physical Activity",null,"Social/New Media",0,0,0,0,0,0,0,null,"Physical Activity","Sub-Recipients","Social/New Media"]
["Physical Activity",null,"Outdoor",0,0,0,0,0,0,0,null,"Physical Activity","Sub-Recipients","Outdoor"]
["Physical Activity",null,"Other",0,0,0,0,0,0,0,null,"Physical Activity","Sub-Recipients","Other"]
["Physical Activity",null,"Subtotal",null,0,0,0,0,0,0,null,"Physical Activity","Sub-Recipients","Subtotal"]
["Physical Activity","TOTAL",null,null,0,0,0,0,0,0,null,"Physical Activity","TOTAL",0]
["Early Care And Education","Public-Earned","Television",{"$f":"$L$1","v":" to "},0,0,0,0,0,0,null,"Physical Activity","Public-Earned","Television"]
["Early Care And Education","Public-Earned","Radio"," to ",{"$f":"SUM(0)","v":0},0,0,0,0,0,null,"Early Care And Education","Public-Earned","Radio"]
["Early Care And Education","Public-Earned","Print"," to ",0,0,0,0,0,0,null,"Early Care And Education","Public-Earned","Print"]
["Early Care And Education","Public-Earned","Social/Digital Media"," to ",0,0,0,0,0,0,null,"Early Care And Education","Public-Earned","Social/Digital Media"]
["Early Care And Education","Public-Earned","Outdoor"," to ",0,0,0,0,0,0,null,"Early Care And Education","Public-Earned","Outdoor"]
["Early Care And Education","Public-Earned","Email/Print Newsletter"," to ",0,0,0,0,0,0,null,{"$f":"IF(OR(A69=\"Strategic Direction\", A69=\"Type\", A69=\"Media Channel/Type\", A69=0), IF(A71=0, L69, A71), A69)","v":"Early Care And Education"},{"$f":"IF(OR(B69=\"Strategic Direction\", B69=\"Type\", B69=\"Media Channel/Type\", B69=0, B69=\"TOTAL\"), IF(B71=0, M69, IF(B71=$O$1, \"Partner\",IF(B71=$P$1, \"Sub-Recipients\", IF(B71=$Q$1, \"Public-Earned\", IF(B71=$R$1, \"Public-Paid\", B71))))), IF(B69=$O$1, \"Partner\",IF(B69=$P$1, \"Sub-Recipients\", IF(B69=$Q$1, \"Public-Earned\", IF(B69=$R$1, \"Public-Paid\", M69)))))","v":"Public-Earned"},{"$f":"C71","v":"Email/Print Newsletter"}]
["Early Care And Education","Public-Earned","Other"," to ",0,0,0,0,0,0,null,{"$f":"IF(OR(A70=\"Strategic Direction\", A70=\"Type\", A70=\"Media Channel/Type\", A70=0), IF(A72=0, L70, A72), A70)","v":"Early Care And Education"},{"$f":"IF(OR(B70=\"Strategic Direction\", B70=\"Type\", B70=\"Media Channel/Type\", B70=0, B70=\"TOTAL\"), IF(B72=0, M70, IF(B72=$O$1, \"Partner\",IF(B72=$P$1, \"Sub-Recipients\", IF(B72=$Q$1, \"Public-Earned\", IF(B72=$R$1, \"Public-Paid\", B72))))), IF(B70=$O$1, \"Partner\",IF(B70=$P$1, \"Sub-Recipients\", IF(B70=$Q$1, \"Public-Earned\", IF(B70=$R$1, \"Public-Paid\", M70)))))","v":"Public-Earned"},"Other"]
["Early Care And Education","Public-Earned","Subtotal",null,0,0,0,0,0,0,null,"Early Care And Education","Public-Earned","Subtotal"]
["Early Care And Education","Public-Paid","Television",{"$f":"$L$1","v":" to "},0,0,0,0,0,0,null,{"$f":"IF(OR(A73=\"Strategic Direction\", A73=\"Type\", A73=\"Media Channel/Type\", A73=0), IF(A74=0, L73, A74), A73)","v":"Early Care And Education"},{"$f":"IF(OR(B73=\"Strategic Direction\", B73=\"Type\", B73=\"Media Channel/Type\", B73=0, B73=\"TOTAL\"), IF(B74=0, M73, IF(B74=$O$1, \"Partner\",IF(B74=$P$1, \"Sub-Recipients\", IF(B74=$Q$1, \"Public-Earned\", IF(B74=$R$1, \"Public-Paid\", B74))))), IF(B73=$O$1, \"Partner\",IF(B73=$P$1, \"Sub-Recipients\", IF(B73=$Q$1, \"Public-Earned\", IF(B73=$R$1, \"Public-Paid\", M73)))))","v":"Public-Earned"},{"$f":"C74","v":"Television"}]
["Early Care And Education","Public-Paid","Radio"," to ",0,0,0,0,0,0,null,"Early Care And Education","Public-Paid","Radio"]
["Early Care And Education","Public-Paid","Print"," to ",0,0,0,0,0,0,null,"Early Care And Education","Public-Paid","Print"]
["Early Care And Education","Public-Paid","Social/Digital Media"," to ",0,0,0,0,0,0,null,"Early Care And Education","Public-Paid","Social/Digital Media"]
["Early Care And Education","Public-Paid","Outdoor"," to ",0,0,0,0,0,0,null,"Early Care And Education","Public-Paid","Outdoor"]
["Early Care And Education","Public-Paid","Email/Print Newsletter"," to ",0,0,0,0,0,0,null,{"$f":"IF(OR(A77=\"Strategic Direction\", A77=\"Type\", A77=\"Media Channel/Type\", A77=0), IF(A79=0, L77, A79), A77)","v":"Early Care And Education"},{"$f":"IF(OR(B77=\"Strategic Direction\", B77=\"Type\", B77=\"Media Channel/Type\", B77=0, B77=\"TOTAL\"), IF(B79=0, M77, IF(B79=$O$1, \"Partner\",IF(B79=$P$1, \"Sub-Recipients\", IF(B79=$Q$1, \"Public-Earned\", IF(B79=$R$1, \"Public-Paid\", B79))))), IF(B77=$O$1, \"Partner\",IF(B77=$P$1, \"Sub-Recipients\", IF(B77=$Q$1, \"Public-Earned\", IF(B77=$R$1, \"Public-Paid\", M77)))))","v":"Public-Paid"},"Email/Print Newsletter"]
["Early Care And Education","Public-Paid","Other"," to ",0,0,0,0,0,0,null,{"$f":"IF(OR(A78=\"Strategic Direction\", A78=\"Type\", A78=\"Media Channel/Type\", A78=0), IF(A80=0, L78, A80), A78)","v":"Early Care And Education"},{"$f":"IF(OR(B78=\"Strategic Direction\", B78=\"Type\", B78=\"Media Channel/Type\", B78=0, B78=\"TOTAL\"), IF(B80=0, M78, IF(B80=$O$1, \"Partner\",IF(B80=$P$1, \"Sub-Recipients\", IF(B80=$Q$1, \"Public-Earned\", IF(B80=$R$1, \"Public-Paid\", B80))))), IF(B78=$O$1, \"Partner\",IF(B78=$P$1, \"Sub-Recipients\", IF(B78=$Q$1, \"Public-Earned\", IF(B78=$R$1, \"Public-Paid\", M78)))))","v":"Public-Paid"},"Other"]
["Early Care And Education","Public-Paid","Subtotal",null,0,0,0,0,0,0,null,"Early Care And Education","Public-Paid","Subtotal"]
["Early Care And Education","Partner","Television",{"$f":"$L$1","v":" to "},0,0,0,0,0,0,null,"Early Care And Education","Public-Paid","Television"]
["Early Care And Education","Partner","Radio"," to ",0,0,0,0,0,0,null,"Early Care And Education","Partner","Radio"]
["Early Care And Education","Partner","Print"," to ",0,0,0,0,0,0,null,"Early Care And Education","Partner","Print"]
["Early Care And Education","Partner","Social/Digital Media"," to ",0,0,0,0,0,0,null,"Early Care And Education","Partner","Social/Digital Media"]
["Early Care And Education","Partner","Outdoor"," to ",0,0,0,0,0,0,null,"Early Care And Education","Partner","Outdoor"]
["Early Care And Education","Partner","Email/Print Newsletter"," to ",0,0,0,0,0,0,null,{"$f":"IF(OR(A85=\"Strategic Direction\", A85=\"Type\", A85=\"Media Channel/Type\", A85=0), IF(A87=0, L85, A87), A85)","v":"Early Care And Education"},{"$f":"IF(OR(B85=\"Strategic Direction\", B85=\"Type\", B85=\"Media Channel/Type\", B85=0, B85=\"TOTAL\"), IF(B87=0, M85, IF(B87=$O$1, \"Partner\",IF(B87=$P$1, \"Sub-Recipients\", IF(B87=$Q$1, \"Public-Earned\", IF(B87=$R$1, \"Public-Paid\", B87))))), IF(B85=$O$1, \"Partner\",IF(B85=$P$1, \"Sub-Recipients\", IF(B85=$Q$1, \"Public-Earned\", IF(B85=$R$1, \"Public-Paid\", M85)))))","v":"Partner"},{"$f":"C87","v":"Email/Print Newsletter"}]
["Early Care And Education","Partner","Other"," to ",0,0,0,0,0,0,null,{"$f":"IF(OR(A86=\"Strategic Direction\", A86=\"Type\", A86=\"Media Channel/Type\", A86=0), IF(A88=0, L86, A88), A86)","v":"Early Care And Education"},{"$f":"IF(OR(B86=\"Strategic Direction\", B86=\"Type\", B86=\"Media Channel/Type\", B86=0, B86=\"TOTAL\"), IF(B88=0, M86, IF(B88=$O$1, \"Partner\",IF(B88=$P$1, \"Sub-Recipients\", IF(B88=$Q$1, \"Public-Earned\", IF(B88=$R$1, \"Public-Paid\", B88))))), IF(B86=$O$1, \"Partner\",IF(B86=$P$1, \"Sub-Recipients\", IF(B86=$Q$1, \"Public-Earned\", IF(B86=$R$1, \"Public-Paid\", M86)))))","v":"Partner"},"Other"]
["Early Care And Education","Partner","Subtotal",null,0,0,0,0,0,0,null,"Early Care And Education","Partner","Subtotal"]
["Early Care And Education",{"$f":"$P$1","v":"Sub-Recipients"},"Television",0,0,0,0,0,0,0,null,"Early Care And Education","Partner","Television"]
["Early Care And Education",null,"Radio",0,0,0,0,0,0,0,null,"Early Care And Education","Sub-Recipients","Radio"]
["Early Care And Education",null,"Print",0,0,0,0,0,0,0,null,"Early Care And Education","Sub-Recipients","Print"]
["Early Care And Education",null,"Social/New Media",0,0,0,0,0,0,0,null,"Early Care And Education","Sub-Recipients","Social/New Media"]
["Early Care And Education",null,"Outdoor",0,0,0,0,0,0,0,null,"Early Care And Education","Sub-Recipients","Outdoor"]
["Early Care And Education",null,"Other",0,0,0,0,0,0,0,null,"Early Care And Education","Sub-Recipients","Other"]
["Early Care And Education",null,"Subtotal",null,0,0,0,0,0,0,null,"Early Care And Education","Sub-Recipients","Subtotal"]
["Early Care And Education","TOTAL",null,null,0,0,0,0,0,0,null,"Early Care And Education","TOTAL",0]
["Breastfeeding","Public-Earned","Television",{"$f":"$L$1","v":" to "},0,0,0,0,0,0,null,"Early Care And Education","Public-Earned","Television"]
["Breastfeeding","Public-Earned","Radio"," to ",{"$f":"SUM(0)","v":0},0,0,0,0,0,null,"Breastfeeding","Public-Earned","Radio"]
["Breastfeeding","Public-Earned","Print"," to ",0,0,0,0,0,0,null,"Breastfeeding","Public-Earned","Print"]
["Breastfeeding","Public-Earned","Social/Digital Media"," to ",0,0,0,0,0,0,null,"Breastfeeding","Public-Earned","Social/Digital Media"]
["Breastfeeding","Public-Earned","Outdoor"," to ",0,0,0,0,0,0,null,"Breastfeeding","Public-Earned","Outdoor"]
["Breastfeeding","Public-Earned","Email/Print Newsletter"," to ",0,0,0,0,0,0,null,{"$f":"IF(OR(A101=\"Strategic Direction\", A101=\"Type\", A101=\"Media Channel/Type\", A101=0), IF(A103=0, L101, A103), A101)","v":"Breastfeeding"},{"$f":"IF(OR(B101=\"Strategic Direction\", B101=\"Type\", B101=\"Media Channel/Type\", B101=0, B101=\"TOTAL\"), IF(B103=0, M101, IF(B103=$O$1, \"Partner\",IF(B103=$P$1, \"Sub-Recipients\", IF(B103=$Q$1, \"Public-Earned\", IF(B103=$R$1, \"Public-Paid\", B103))))), IF(B101=$O$1, \"Partner\",IF(B101=$P$1, \"Sub-Recipients\", IF(B101=$Q$1, \"Public-Earned\", IF(B101=$R$1, \"Public-Paid\", M101)))))","v":"Public-Earned"},"Email/Print Newsletter"]
["Breastfeeding","Public-Earned","Other"," to ",0,0,0,0,0,0,null,{"$f":"IF(OR(A102=\"Strategic Direction\", A102=\"Type\", A102=\"Media Channel/Type\", A102=0), IF(A104=0, L102, A104), A102)","v":"Breastfeeding"},{"$f":"IF(OR(B102=\"Strategic Direction\", B102=\"Type\", B102=\"Media Channel/Type\", B102=0, B102=\"TOTAL\"), IF(B104=0, M102, IF(B104=$O$1, \"Partner\",IF(B104=$P$1, \"Sub-Recipients\", IF(B104=$Q$1, \"Public-Earned\", IF(B104=$R$1, \"Public-Paid\", B104))))), IF(B102=$O$1, \"Partner\",IF(B102=$P$1, \"Sub-Recipients\", IF(B102=$Q$1, \"Public-Earned\", IF(B102=$R$1, \"Public-Paid\", M102)))))","v":"Public-Earned"},"Other"]
["Breastfeeding","Public-Earned","Subtotal",null,0,0,0,0,0,0,null,"Breastfeeding","Public-Earned","Subtotal"]
["Breastfeeding","Public-Paid","Television",{"$f":"$L$1","v":" to "},0,0,0,0,0,0,null,"Breastfeeding","Public-Earned","Television"]
["Breastfeeding","Public-Paid","Radio"," to ",0,0,0,0,0,0,null,"Breastfeeding","Public-Paid","Radio"]
["Breastfeeding","Public-Paid","Print"," to ",0,0,0,0,0,0,null,"Breastfeeding","Public-Paid","Print"]
["Breastfeeding","Public-Paid","Social/Digital Media"," to ",0,0,0,0,0,0,null,"Breastfeeding","Public-Paid","Social/Digital Media"]
["Breastfeeding","Public-Paid","Outdoor"," to ",0,0,0,0,0,0,null,"Breastfeeding","Public-Paid","Outdoor"]
["Breastfeeding","Public-Paid","Email/Print Newsletter"," to ",0,0,0,0,0,0,null,{"$f":"IF(OR(A109=\"Strategic Direction\", A109=\"Type\", A109=\"Media Channel/Type\", A109=0), IF(A111=0, L109, A111), A109)","v":"Breastfeeding"},{"$f":"IF(OR(B109=\"Strategic Direction\", B109=\"Type\", B109=\"Media Channel/Type\", B109=0, B109=\"TOTAL\"), IF(B111=0, M109, IF(B111=$O$1, \"Partner\",IF(B111=$P$1, \"Sub-Recipients\", IF(B111=$Q$1, \"Public-Earned\", IF(B111=$R$1, \"Public-Paid\", B111))))), IF(B109=$O$1, \"Partner\",IF(B109=$P$1, \"Sub-Recipients\", IF(B109=$Q$1, \"Public-Earned\", IF(B109=$R$1, \"Public-Paid\", M109)))))","v":"Public-Paid"},{"$f":"C111","v":"Email/Print Newsletter"}]
["Breastfeeding","Public-Paid","Other"," to ",0,0,0,0,0,0,null,{"$f":"IF(OR(A110=\"Strategic Direction\", A110=\"Type\", A110=\"Media Channel/Type\", A110=0), IF(A112=0, L110, A112), A110)","v":"Breastfeeding"},{"$f":"IF(OR(B110=\"Strategic Direction\", B110=\"Type\", B110=\"Media Channel/Type\", B110=0, B110=\"TOTAL\"), IF(B112=0, M110, IF(B112=$O$1, \"Partner\",IF(B112=$P$1, \"Sub-Recipients\", IF(B112=$Q$1, \"Public-Earned\", IF(B112=$R$1, \"Public-Paid\", B112))))), IF(B110=$O$1, \"Partner\",IF(B110=$P$1, \"Sub-Recipients\", IF(B110=$Q$1, \"Public-Earned\", IF(B110=$R$1, \"Public-Paid\", M110)))))","v":"Public-Paid"},"Other"]
["Breastfeeding","Public-Paid","Subtotal",null,0,0,0,0,0,0,null,"Breastfeeding","Public-Paid","Subtotal"]
["Breastfeeding","Partner","Television",{"$f":"$L$1","v":" to "},0,0,0,0,0,0,null,"Breastfeeding","Public-Paid","Television"]
["Breastfeeding","Partner","Radio"," to ",0,0,0,0,0,0,null,"Breastfeeding","Partner","Radio"]
["Breastfeeding","Partner","Print"," to ",0,0,0,0,0,0,null,"Breastfeeding","Partner","Print"]
["Breastfeeding","Partner","Social/Digital Media"," to ",0,0,0,0,0,0,null,"Breastfeeding","Partner","Social/Digital Media"]
["Breastfeeding","Partner","Outdoor"," to ",0,0,0,0,0,0,null,"Breastfeeding","Partner","Outdoor"]
["Breastfeeding","Partner","Email/Print Newsletter"," to ",0,0,0,0,0,0,null,{"$f":"IF(OR(A117=\"Strategic Direction\", A117=\"Type\", A117=\"Media Channel/Type\", A117=0), IF(A119=0, L117, A119), A117)","v":"Breastfeeding"},{"$f":"IF(OR(B117=\"Strategic Direction\", B117=\"Type\", B117=\"Media Channel/Type\", B117=0, B117=\"TOTAL\"), IF(B119=0, M117, IF(B119=$O$1, \"Partner\",IF(B119=$P$1, \"Sub-Recipients\", IF(B119=$Q$1, \"Public-Earned\", IF(B119=$R$1, \"Public-Paid\", B119))))), IF(B117=$O$1, \"Partner\",IF(B117=$P$1, \"Sub-Recipients\", IF(B117=$Q$1, \"Public-Earned\", IF(B117=$R$1, \"Public-Paid\", M117)))))","v":"Partner"},"Email/Print Newsletter"]
["Breastfeeding","Partner","Other"," to ",0,0,0,0,0,0,null,{"$f":"IF(OR(A118=\"Strategic Direction\", A118=\"Type\", A118=\"Media Channel/Type\", A118=0), IF(A120=0, L118, A120), A118)","v":"Breastfeeding"},{"$f":"IF(OR(B118=\"Strategic Direction\", B118=\"Type\", B118=\"Media Channel/Type\", B118=0, B118=\"TOTAL\"), IF(B120=0, M118, IF(B120=$O$1, \"Partner\",IF(B120=$P$1, \"Sub-Recipients\", IF(B120=$Q$1, \"Public-Earned\", IF(B120=$R$1, \"Public-Paid\", B120))))), IF(B118=$O$1, \"Partner\",IF(B118=$P$1, \"Sub-Recipients\", IF(B118=$Q$1, \"Public-Earned\", IF(B118=$R$1, \"Public-Paid\", M118)))))","v":"Partner"},"Other"]
["Breastfeeding","Partner","Subtotal",null,0,0,0,0,0,0,null,"Breastfeeding","Partner","Subtotal"]
["Breastfeeding",{"$f":"$P$1","v":"Sub-Recipients"},"Television",0,0,0,0,0,0,0,null,"Breastfeeding","Partner","Television"]
["Breastfeeding",null,"Radio",0,0,0,0,0,0,0,null,"Breastfeeding","Sub-Recipients","Radio"]
["Breastfeeding",null,"Print",0,0,0,0,0,0,0,null,"Breastfeeding","Sub-Recipients","Print"]
["Breastfeeding",null,"Social/New Media",0,0,0,0,0,0,0,null,"Breastfeeding","Sub-Recipients","Social/New Media"]
["Breastfeeding",null,"Outdoor",0,0,0,0,0,0,0,null,"Breastfeeding","Sub-Recipients","Outdoor"]
["Breastfeeding",null,"Other",0,0,0,0,0,0,0,null,"Breastfeeding","Sub-Recipients","Other"]
["Breastfeeding",null,"Subtotal",null,0,0,0,0,0,0,null,"Breastfeeding","Sub-Recipients","Subtotal"]
["Breastfeeding","TOTAL",null,null,0,0,0,0,0,0,null,"Breastfeeding","TOTAL",0]
["Family Healthy Weight Programs","Public-Earned","Television",{"$f":"$L$1","v":" to "},0,0,0,0,0,0,null,"Breastfeeding","Public-Earned","Television"]
["Family Healthy Weight Programs","Public-Earned","Radio"," to ",{"$f":"SUM(0)","v":0},0,0,0,0,0,null,"Family Healthy Weight Programs","Public-Earned","Radio"]
["Family Healthy Weight Programs","Public-Earned","Print"," to ",0,0,0,0,0,0,null,"Family Healthy Weight Programs","Public-Earned","Print"]
["Family Healthy Weight Programs","Public-Earned","Social/Digital Media"," to ",0,0,0,0,0,0,null,"Family Healthy Weight Programs","Public-Earned","Social/Digital Media"]
["Family Healthy Weight Programs","Public-Earned","Outdoor"," to ",0,0,0,0,0,0,null,"Family Healthy Weight Programs","Public-Earned","Outdoor"]
["Family Healthy Weight Programs","Public-Earned","Email/Print Newsletter"," to ",0,0,0,0,0,0,null,{"$f":"IF(OR(A133=\"Strategic Direction\", A133=\"Type\", A133=\"Media Channel/Type\", A133=0), IF(A135=0, L133, A135), A133)","v":"Family Healthy Weight Programs"},{"$f":"IF(OR(B133=\"Strategic Direction\", B133=\"Type\", B133=\"Media Channel/Type\", B133=0, B133=\"TOTAL\"), IF(B135=0, M133, IF(B135=$O$1, \"Partner\",IF(B135=$P$1, \"Sub-Recipients\", IF(B135=$Q$1, \"Public-Earned\", IF(B135=$R$1, \"Public-Paid\", B135))))), IF(B133=$O$1, \"Partner\",IF(B133=$P$1, \"Sub-Recipients\", IF(B133=$Q$1, \"Public-Earned\", IF(B133=$R$1, \"Public-Paid\", M133)))))","v":"Public-Earned"},{"$f":"C135","v":"Email/Print Newsletter"}]
["Family Healthy Weight Programs","Public-Earned","Other"," to ",0,0,0,0,0,0,null,{"$f":"IF(OR(A134=\"Strategic Direction\", A134=\"Type\", A134=\"Media Channel/Type\", A134=0), IF(A136=0, L134, A136), A134)","v":"Family Healthy Weight Programs"},{"$f":"IF(OR(B134=\"Strategic Direction\", B134=\"Type\", B134=\"Media Channel/Type\", B134=0, B134=\"TOTAL\"), IF(B136=0, M134, IF(B136=$O$1, \"Partner\",IF(B136=$P$1, \"Sub-Recipients\", IF(B136=$Q$1, \"Public-Earned\", IF(B136=$R$1, \"Public-Paid\", B136))))), IF(B134=$O$1, \"Partner\",IF(B134=$P$1, \"Sub-Recipients\", IF(B134=$Q$1, \"Public-Earned\", IF(B134=$R$1, \"Public-Paid\", M134)))))","v":"Public-Earned"},"Other"]
["Family Healthy Weight Programs","Public-Earned","Subtotal",null,0,0,0,0,0,0,null,"Family Healthy Weight Programs","Public-Earned","Subtotal"]
["Family Healthy Weight Programs","Public-Paid","Television",{"$f":"$L$1","v":" to "},0,0,0,0,0,0,null,"Family Healthy Weight Programs","Public-Earned","Television"]
["Family Healthy Weight Programs","Public-Paid","Radio"," to ",0,0,0,0,0,0,null,"Family Healthy Weight Programs","Public-Paid","Radio"]
["Family Healthy Weight Programs","Public-Paid","Print"," to ",0,0,0,0,0,0,null,"Family Healthy Weight Programs","Public-Paid","Print"]
["Family Healthy Weight Programs","Public-Paid","Social/Digital Media"," to ",0,0,0,0,0,0,null,"Family Healthy Weight Programs","Public-Paid","Social/Digital Media"]
["Family Healthy Weight Programs","Public-Paid","Outdoor"," to ",0,0,0,0,0,0,null,"Family Healthy Weight Programs","Public-Paid","Outdoor"]
["Family Healthy Weight Programs","Public-Paid","Email/Print Newsletter"," to ",0,0,0,0,0,0,null,{"$f":"IF(OR(A141=\"Strategic Direction\", A141=\"Type\", A141=\"Media Channel/Type\", A141=0), IF(A143=0, L141, A143), A141)","v":"Family Healthy Weight Programs"},{"$f":"IF(OR(B141=\"Strategic Direction\", B141=\"Type\", B141=\"Media Channel/Type\", B141=0, B141=\"TOTAL\"), IF(B143=0, M141, IF(B143=$O$1, \"Partner\",IF(B143=$P$1, \"Sub-Recipients\", IF(B143=$Q$1, \"Public-Earned\", IF(B143=$R$1, \"Public-Paid\", B143))))), IF(B141=$O$1, \"Partner\",IF(B141=$P$1, \"Sub-Recipients\", IF(B141=$Q$1, \"Public-Earned\", IF(B141=$R$1, \"Public-Paid\", M141)))))","v":"Public-Paid"},"Email/Print Newsletter"]
["Family Healthy Weight Programs","Public-Paid","Other"," to ",0,0,0,0,0,0,null,{"$f":"IF(OR(A142=\"Strategic Direction\", A142=\"Type\", A142=\"Media Channel/Type\", A142=0), IF(A144=0, L142, A144), A142)","v":"Family Healthy Weight Programs"},{"$f":"IF(OR(B142=\"Strategic Direction\", B142=\"Type\", B142=\"Media Channel/Type\", B142=0, B142=\"TOTAL\"), IF(B144=0, M142, IF(B144=$O$1, \"Partner\",IF(B144=$P$1, \"Sub-Recipients\", IF(B144=$Q$1, \"Public-Earned\", IF(B144=$R$1, \"Public-Paid\", B144))))), IF(B142=$O$1, \"Partner\",IF(B142=$P$1, \"Sub-Recipients\", IF(B142=$Q$1, \"Public-Earned\", IF(B142=$R$1, \"Public-Paid\", M142)))))","v":"Public-Paid"},"Other"]
["Family Healthy Weight Programs","Public-Paid","Subtotal",null,0,0,0,0,0,0,null,{"$f":"IF(OR(A144=\"Strategic Direction\", A144=\"Type\", A144=\"Media Channel/Type\", A144=0), IF(A145=0, L144, A145), A144)","v":"Family Healthy Weight Programs"},{"$f":"IF(OR(B144=\"Strategic Direction\", B144=\"Type\", B144=\"Media Channel/Type\", B144=0, B144=\"TOTAL\"), IF(B145=0, M144, IF(B145=$O$1, \"Partner\",IF(B145=$P$1, \"Sub-Recipients\", IF(B145=$Q$1, \"Public-Earned\", IF(B145=$R$1, \"Public-Paid\", B145))))), IF(B144=$O$1, \"Partner\",IF(B144=$P$1, \"Sub-Recipients\", IF(B144=$Q$1, \"Public-Earned\", IF(B144=$R$1, \"Public-Paid\", M144)))))","v":"Public-Paid"},{"$f":"C145","v":"Subtotal"}]
["Family Healthy Weight Programs","Partner","Television",{"$f":"$L$1","v":" to "},0,0,0,0,0,0,null,"Family Healthy Weight Programs","Public-Paid","Television"]
["Family Healthy Weight Programs","Partner","Radio"," to ",0,0,0,0,0,0,null,"Family Healthy Weight Programs","Partner","Radio"]
["Family Healthy Weight Programs","Partner","Print"," to ",0,0,0,0,0,0,null,"Family Healthy Weight Programs","Partner","Print"]
["Family Healthy Weight Programs","Partner","Social/Digital Media"," to ",0,0,0,0,0,0,null,"Family Healthy Weight Programs","Partner","Social/Digital Media"]
["Family Healthy Weight Programs","Partner","Outdoor"," to ",0,0,0,0,0,0,null,"Family Healthy Weight Programs","Partner","Outdoor"]
["Family Healthy Weight Programs","Partner","Email/Print Newsletter"," to ",0,0,0,0,0,0,null,{"$f":"IF(OR(A149=\"Strategic Direction\", A149=\"Type\", A149=\"Media Channel/Type\", A149=0), IF(A151=0, L149, A151), A149)","v":"Family Healthy Weight Programs"},{"$f":"IF(OR(B149=\"Strategic Direction\", B149=\"Type\", B149=\"Media Channel/Type\", B149=0, B149=\"TOTAL\"), IF(B151=0, M149, IF(B151=$O$1, \"Partner\",IF(B151=$P$1, \"Sub-Recipients\", IF(B151=$Q$1, \"Public-Earned\", IF(B151=$R$1, \"Public-Paid\", B151))))), IF(B149=$O$1, \"Partner\",IF(B149=$P$1, \"Sub-Recipients\", IF(B149=$Q$1, \"Public-Earned\", IF(B149=$R$1, \"Public-Paid\", M149)))))","v":"Partner"},"Email/Print Newsletter"]
["Family Healthy Weight Programs","Partner","Other"," to ",0,0,0,0,0,0,null,{"$f":"IF(OR(A150=\"Strategic Direction\", A150=\"Type\", A150=\"Media Channel/Type\", A150=0), IF(A152=0, L150, A152), A150)","v":"Family Healthy Weight Programs"},{"$f":"IF(OR(B150=\"Strategic Direction\", B150=\"Type\", B150=\"Media Channel/Type\", B150=0, B150=\"TOTAL\"), IF(B152=0, M150, IF(B152=$O$1, \"Partner\",IF(B152=$P$1, \"Sub-Recipients\", IF(B152=$Q$1, \"Public-Earned\", IF(B152=$R$1, \"Public-Paid\", B152))))), IF(B150=$O$1, \"Partner\",IF(B150=$P$1, \"Sub-Recipients\", IF(B150=$Q$1, \"Public-Earned\", IF(B150=$R$1, \"Public-Paid\", M150)))))","v":"Partner"},"Other"]
["Family Healthy Weight Programs","Partner","Subtotal",null,0,0,0,0,0,0,null,"Family Healthy Weight Programs","Partner","Subtotal"]
["Family Healthy Weight Programs",{"$f":"$P$1","v":"Sub-Recipients"},"Television",0,0,0,0,0,0,0,null,"Family Healthy Weight Programs","Partner","Television"]
["Family Healthy Weight Programs",null,"Radio",0,0,0,0,0,0,0,null,"Family Healthy Weight Programs","Sub-Recipients","Radio"]
["Family Healthy Weight Programs",null,"Print",0,0,0,0,0,0,0,null,"Family Healthy Weight Programs","Sub-Recipients","Print"]
["Family Healthy Weight Programs",null,"Social/New Media",0,0,0,0,0,0,0,null,"Family Healthy Weight Programs","Sub-Recipients","Social/New Media"]
["Family Healthy Weight Programs",null,"Outdoor",0,0,0,0,0,0,0,null,"Family Healthy Weight Programs","Sub-Recipients","Outdoor"]
["Family Healthy Weight Programs",null,"Other",0,0,0,0,0,0,0,null,"Family Healthy Weight Programs","Sub-Recipients","Other"]
["Family Healthy Weight Programs",null,"Subtotal",null,0,0,0,0,0,0,null,"Family Healthy Weight Programs","Sub-Recipients","Subtotal"]
["Family Healthy Weight Programs","TOTAL",null,null,0,0,0,0,0,0,null,"Family Healthy Weight Programs","TOTAL",0]
["Adult Vaccinations","Public-Earned","Television",{"$f":"$L$1","v":" to "},0,0,0,0,0,0,null,"Family Healthy Weight Programs","Public-Earned","Television"]
["Adult Vaccinations","Public-Earned","Radio"," to ",{"$f":"SUM(0)","v":0},0,0,0,0,0,null,"Adult Vaccinations","Public-Earned","Radio"]
["Adult Vaccinations","Public-Earned","Print"," to ",0,0,0,0,0,0,null,"Adult Vaccinations","Public-Earned","Print"]
["Adult Vaccinations","Public-Earned","Social/Digital Media"," to ",0,0,0,0,0,0,null,"Adult Vaccinations","Public-Earned","Social/Digital Media"]
["Adult Vaccinations","Public-Earned","Outdoor"," to ",0,0,0,0,0,0,null,"Adult Vaccinations","Public-Earned","Outdoor"]
["Adult Vaccinations","Public-Earned","Email/Print Newsletter"," to ",0,0,0,0,0,0,null,"Adult Vaccinations","Public-Earned","Email/Print Newsletter"]
["Adult Vaccinations","Public-Earned","Other"," to ",0,0,0,0,0,0,null,"Adult Vaccinations","Public-Earned","Other"]
["Adult Vaccinations","Public-Earned","Subtotal",null,0,0,0,0,0,0,null,"Adult Vaccinations","Public-Earned","Subtotal"]
["Adult Vaccinations","Public-Paid","Television",{"$f":"$L$1","v":" to "},0,0,0,0,0,0,null,"Adult Vaccinations","Public-Earned","Television"]
["Adult Vaccinations","Public-Paid","Radio"," to ",0,0,0,0,0,0,null,"Adult Vaccinations","Public-Paid","Radio"]
["Adult Vaccinations","Public-Paid","Print"," to ",0,0,0,0,0,0,null,"Adult Vaccinations","Public-Paid","Print"]
["Adult Vaccinations","Public-Paid","Social/Digital Media"," to ",0,0,0,0,0,0,null,"Adult Vaccinations","Public-Paid","Social/Digital Media"]
["Adult Vaccinations","Public-Paid","Outdoor"," to ",0,0,0,0,0,0,null,"Adult Vaccinations","Public-Paid","Outdoor"]
["Adult Vaccinations","Public-Paid","Email/Print Newsletter"," to ",0,0,0,0,0,0,null,"Adult Vaccinations","Public-Paid","Email/Print Newsletter"]
["Adult Vaccinations","Public-Paid","Other"," to ",0,0,0,0,0,0,null,"Adult Vaccinations","Public-Paid","Other"]
["Adult Vaccinations","Public-Paid","Subtotal",null,0,0,0,0,0,0,null,"Adult Vaccinations","Public-Paid","Subtotal"]
["Adult Vaccinations","Partner","Television",{"$f":"$L$1","v":" to "},0,0,0,0,0,0,null,"Adult Vaccinations","Public-Paid","Television"]
["Adult Vaccinations","Partner","Radio"," to ",0,0,0,0,0,0,null,"Adult Vaccinations","Partner","Radio"]
["Adult Vaccinations","Partner","Print"," to ",0,0,0,0,0,0,null,"Adult Vaccinations","Partner","Print"]
["Adult Vaccinations","Partner","Social/Digital Media"," to ",0,0,0,0,0,0,null,"Adult Vaccinations","Partner","Social/Digital Media"]
["Adult Vaccinations","Partner","Outdoor"," to ",0,0,0,0,0,0,null,"Adult Vaccinations","Partner","Outdoor"]
["Adult Vaccinations","Partner","Email/Print Newsletter"," to ",0,0,0,0,0,0,null,"Adult Vaccinations","Partner","Email/Print Newsletter"]
["Adult Vaccinations","Partner","Other"," to ",0,0,0,0,0,0,null,"Adult Vaccinations","Partner","Other"]
["Adult Vaccinations","Partner","Subtotal",null,0,0,0,0,0,0,null,"Adult Vaccinations","Partner","Subtotal"]
["Adult Vaccinations","Sub-Recipients","Television",0,0,0,0,0,0,0,null,"Adult Vaccinations","Partner","Television"]
["Adult Vaccinations",null,"Radio",0,0,0,0,0,0,0,null,"Adult Vaccinations","Sub-Recipients","Radio"]
["Adult Vaccinations",null,"Print",0,0,0,0,0,0,0,null,"Adult Vaccinations","Sub-Recipients","Print"]
["Adult Vaccinations",null,"Social/New Media",0,0,0,0,0,0,0,null,"Adult Vaccinations","Sub-Recipients","Social/New Media"]
["Adult Vaccinations",null,"Outdoor",0,0,0,0,0,0,0,null,"Adult Vaccinations","Sub-Recipients","Outdoor"]
["Adult Vaccinations",null,"Other",0,0,0,0,0,0,0,null,"Adult Vaccinations","Sub-Recipients","Other"]
["Adult Vaccinations",null,"Subtotal",null,0,0,0,0,0,0,null,"Adult Vaccinations","Sub-Recipients","Subtotal"]
["Adult Vaccinations","TOTAL",null,null,0,0,0,0,0,0,null,"Adult Vaccinations","TOTAL",0]
["Total Public-Earned","Public-Earned","Subtotal",null,{"$f":"SUMPRODUCT(($B$2:$B$185=$B194)*($C$2:$C$185=$C194)*(E$2:E$185))","v":0},{"$f":"SUMPRODUCT(($B$2:$B$185=$B194)*($C$2:$C$185=$C194)*(F$2:F$185))","v":0},{"$f":"SUMPRODUCT(($B$2:$B$185=$B194)*($C$2:$C$185=$C194)*(G$2:G$185))","v":0},{"$f":"SUMPRODUCT(($B$2:$B$185=$B194)*($C$2:$C$185=$C194)*(H$2:H$185))","v":0},{"$f":"SUMPRODUCT(($B$2:$B$185=$B194)*($C$2:$C$185=$C194)*(I$2:I$185))","v":0},{"$f":"SUMPRODUCT(($B$2:$B$185=$B194)*($C$2:$C$185=$C194)*(J$2:J$185))","v":0}]
["Total Public-Paid","Public-Paid","Subtotal",null,{"$f":"SUMPRODUCT(($B$2:$B$185=$B195)*($C$2:$C$185=$C195)*(E$2:E$185))","v":0},{"$f":"SUMPRODUCT(($B$2:$B$185=$B195)*($C$2:$C$185=$C195)*(F$2:F$185))","v":0},{"$f":"SUMPRODUCT(($B$2:$B$185=$B195)*($C$2:$C$185=$C195)*(G$2:G$185))","v":0},{"$f":"SUMPRODUCT(($B$2:$B$185=$B195)*($C$2:$C$185=$C195)*(H$2:H$185))","v":0},{"$f":"SUMPRODUCT(($B$2:$B$185=$B195)*($C$2:$C$185=$C195)*(I$2:I$185))","v":0},{"$f":"SUMPRODUCT(($B$2:$B$185=$B195)*($C$2:$C$185=$C195)*(J$2:J$185))","v":0}]
["Total Partner","Partner","Subtotal",null,{"$f":"SUMPRODUCT(($B$2:$B$185=$B196)*($C$2:$C$185=$C196)*(E$2:E$185))","v":0},{"$f":"SUMPRODUCT(($B$2:$B$185=$B196)*($C$2:$C$185=$C196)*(F$2:F$185))","v":0},{"$f":"SUMPRODUCT(($B$2:$B$185=$B196)*($C$2:$C$185=$C196)*(G$2:G$185))","v":0},{"$f":"SUMPRODUCT(($B$2:$B$185=$B196)*($C$2:$C$185=$C196)*(H$2:H$185))","v":0},{"$f":"SUMPRODUCT(($B$2:$B$185=$B196)*($C$2:$C$185=$C196)*(I$2:I$185))","v":0},{"$f":"SUMPRODUCT(($B$2:$B$185=$B196)*($C$2:$C$185=$C196)*(J$2:J$185))","v":0}]
["Total","TOTAL",null,null,{"$f":"SUMPRODUCT(($M$2:$M$193=$B$197)*(E$2:E$193))","v":0},{"$f":"SUMPRODUCT(($M$2:$M$193=$B$197)*(F$2:F$193))","v":0},{"$f":"SUMPRODUCT(($M$2:$M$193=$B$197)*(G$2:G$193))","v":0},{"$f":"SUMPRODUCT(($M$2:$M$193=$B$197)*(H$2:H$193))","v":0},{"$f":"SUMPRODUCT(($M$2:$M$193=$B$197)*(I$2:I$193))","v":0},{"$f":"SUMPRODUCT(($M$2:$M$193=$B$197)*(J$2:J$193))","v":0}]
[]
["Recipient Messages",null,null,"Partner Messages"]
["Public-Earned",{"$f":"SUM(0)","v":0},null,"Public-Earned",{"$f":"SUM(0)","v":0}]
["Public-Paid",{"$f":"SUM(0)","v":0},null,"Public-Paid",{"$f":"SUM(0)","v":0}]
["Recipient to Public",{"$f":"SUM(B200:B201)","v":0}]
["Recipient to Partner",{"$f":"SUM(0)","v":0}]
[]
["Total Recipient Messages",{"$f":"SUM(B202, B203:B204)","v":0},null,"Total Partner Messages",{"$f":"SUM(E200:E204)","v":0}]
[]
["Total",{"$f":"SUM(B205,E205)","v":0}]

{"sheet":"MediaLog","index":2,"n_rows":1501,"n_cols":19,"rows_kept":1501,"cut":false,"hidden":true,"merged":[]}
["Who did it?","Type","Topic","Air or Run Date","Media Channel/Type","Media Outlet","Number of placements","Circulation Viewers Listeners","Social Media Shares","Media Impressions","Cost","Approximate Cost for 1 Ad","Number of bonus spots","Total Added Value","Approximate Cost for 1 Ad of This Size","Value of coverage","Group (Y/N)","Record Number"]
[null,null,null,null,null,null,null,null,null,null,null,null,null,null,null,null,null,null,{"$f":"IF(S1= \"\", 1, IF(R1= \"\",IF(ISNUMBER(S1)=FALSE, 0, S1), IF(ISNUMBER(S1)=FALSE, 0, S1) + 1))","v":1}]
[null,null,null,null,null,null,null,null,null,null,null,null,null,null,null,null,null,null,{"$f":"IF(S2= \"\", 1, IF(R2= \"\",IF(ISNUMBER(S2)=FALSE, 0, S2), IF(ISNUMBER(S2)=FALSE, 0, S2) + 1))","v":1}]
[null,null,null,null,null,null,null,null,null,null,null,null,null,null,null,null,null,null,1]
[null,null,null,null,null,null,null,null,null,null,null,null,null,null,null,null,null,null,1]
[null,null,null,null,null,null,null,null,null,null,null,null,null,null,null,null,null,null,1]
[null,null,null,null,null,null,null,null,null,null,null,null,null,null,null,null,null,null,1]
[null,null,null,null,null,null,null,null,null,null,null,null,null,null,null,null,null,null,1]
[null,null,null,null,null,null,null,null,null,null,null,null,null,null,null,null,null,null,1]
[null,null,null,null,null,null,null,null,null,null,null,null,null,null,null,null,null,null,1]
[null,null,null,null,null,null,null,null,null,null,null,null,null,null,null,null,null,null,1]
[null,null,null,null,null,null,null,null,null,null,null,null,null,null,null,null,null,null,1]
[null,null,null,null,null,null,null,null,null,null,null,null,null,null,null,null,null,null,1]
[null,null,null,null,null,null,null,null,null,null,null,null,null,null,null,null,null,null,1]
[null,null,null,null,null,null,null,null,null,null,null,null,null,null,null,null,null,null,1]
[null,null,null,null,null,null,null,null,null,null,null,null,null,null,null,null,null,null,1]
[null,null,null,null,null,null,null,null,null,null,null,null,null,null,null,null,null,null,1]
[null,null,null,null,null,null,null,null,null,null,null,null,null,null,null,null,null,null,1]
[null,null,null,null,null,null,null,null,null,null,null,null,null,null,null,null,null,null,1]
[null,null,null,null,null,null,null,null,null,null,null,null,null,null,null,null,null,null,1]
[null,null,null,null,null,null,null,null,null,null,null,null,null,null,null,null,null,null,1]
[null,null,null,null,null,null,null,null,null,null,null,null,null,null,null,null,null,null,1]
[null,null,null,null,null,null,null,null,null,null,null,null,null,null,null,null,null,null,1]
[null,null,null,null,null,null,null,null,null,null,null,null,null,null,null,null,null,null,1]
[null,null,null,null,null,null,null,null,null,null,null,null,null,null,null,null,null,null,1]
[null,null,null,null,null,null,null,null,null,null,null,null,null,null,null,null,null,null,1]
[null,null,null,null,null,null,null,null,null,null,null,null,null,null,null,null,null,null,1]
[null,null,null,null,null,null,null,null,null,null,null,null,null,null,null,null,null,null,1]
[null,null,null,null,null,null,null,null,null,null,null,null,null,null,null,null,null,null,1]
[null,null,null,null,null,null,null,null,null,null,null,null,null,null,null,null,null,null,1]
[null,null,null,null,null,null,null,null,null,null,null,null,null,null,null,null,null,null,1]
[null,null,null,null,null,null,null,null,null,null,null,null,null,null,null,null,null,null,1]
[null,null,null,null,null,null,null,null,null,null,null,null,null,null,null,null,null,null,1]
[null,null,null,null,null,null,null,null,null,null,null,null,null,null,null,null,null,null,1]
[null,null,null,null,null,null,null,null,null,null,null,null,null,null,null,null,null,null,1]
[null,null,null,null,null,null,null,null,null,null,null,null,null,null,null,null,null,null,1]
[null,null,null,null,null,null,null,null,null,null,null,null,null,null,null,null,null,null,1]
[null,null,null,null,null,null,null,null,null,null,null,null,null,null,null,null,null,null,1]
[null,null,null,null,null,null,null,null,null,null,null,null,null,null,null,null,null,null,1]
[null,null,null,null,null,null,null,null,null,null,null,null,null,null,null,null,null,null,1]
[null,null,null,null,null,null,null,null,null,null,null,null,null,null,null,null,null,null,1]
[null,null,null,null,null,null,null,null,null,null,null,null,null,null,null,null,null,null,1]
[null,null,null,null,null,null,null,null,null,null,null,null,null,null,null,null,null,null,1]
[null,null,null,null,null,null,null,null,null,null,null,null,null,null,null,null,null,null,1]
[null,null,null,null,null,null,null,null,null,null,null,null,null,null,null,null,null,null,1]
[null,null,null,null,null,null,null,null,null,null,null,null,null,null,null,null,null,null,1]
[null,null,null,null,null,null,null,null,null,null,null,null,null,null,null,null,null,null,1]
[null,null,null,null,null,null,null,null,null,null,null,null,null,null,null,null,null,null,1]
[null,null,null,null,null,null,null,null,null,null,null,null,null,null,null,null,null,null,1]
[null,null,null,null,null,null,null,null,null,null,null,null,null,null,null,null,null,null,1]
[null,null,null,null,null,null,null,null,null,null,null,null,null,null,null,null,null,null,1]
[null,null,null,null,null,null,null,null,null,null,null,null,null,null,null,null,null,null,1]
[null,null,null,null,null,null,null,null,null,null,null,null,null,null,null,null,null,null,1]
[null,null,null,null,null,null,null,null,null,null,null,null,null,null,null,null,null,null,1]
[null,null,null,null,null,null,null,null,null,null,null,null,null,null,null,null,null,null,1]
[null,null,null,null,null,null,null,null,null,null,null,null,null,null,null,null,null,null,1]
[null,null,null,null,null,null,null,null,null,null,null,null,null,null,null,null,null,null,1]
[null,null,null,null,null,null,null,null,null,null,null,null,null,null,null,null,null,null,1]
[null,null,null,null,null,null,null,null,null,null,null,null,null,null,null,null,null,null,1]
[null,null,null,null,null,null,null,null,null,null,null,null,null,null,null,null,null,null,1]
[null,null,null,null,null,null,null,null,null,null,null,null,null,null,null,null,null,null,1]
[null,null,null,null,null,null,null,null,null,null,null,null,null,null,null,null,null,null,1]
[null,null,null,null,null,null,null,null,null,null,null,null,null,null,null,null,null,null,1]
[null,null,null,null,null,null,null,null,null,null,null,null,null,null,null,null,null,null,1]
[null,null,null,null,null,null,null,null,null,null,null,null,null,null,null,null,null,null,1]
[null,null,null,null,null,null,null,null,null,null,null,null,null,null,null,null,null,null,1]
[null,null,null,null,null,null,null,null,null,null,null,null,null,null,null,null,null,null,{"$f":"IF(S66= \"\", 1, IF(R66= \"\",IF(ISNUMBER(S66)=FALSE, 0, S66), IF(ISNUMBER(S66)=FALSE, 0, S66) + 1))","v":1}]
[null,null,null,null,null,null,null,null,null,null,null,null,null,null,null,null,null,null,1]
[null,null,null,null,null,null,null,null,null,null,null,null,null,null,null,null,null,null,1]
[null,null,null,null,null,null,null,null,null,null,null,null,null,null,null,null,null,null,1]
[null,null,null,null,null,null,null,null,null,null,null,null,null,null,null,null,null,null,1]
[null,null,null,null,null,null,null,null,null,null,null,null,null,null,null,null,null,null,1]
[null,null,null,null,null,null,null,null,null,null,null,null,null,null,null,null,null,null,1]
[null,null,null,null,null,null,null,null,null,null,null,null,null,null,null,null,null,null,1]
[null,null,null,null,null,null,null,null,null,null,null,null,null,null,null,null,null,null,1]
[null,null,null,null,null,null,null,null,null,null,null,null,null,null,null,null,null,null,1]
[null,null,null,null,null,null,null,null,null,null,null,null,null,null,null,null,null,null,1]
[null,null,null,null,null,null,null,null,null,null,null,null,null,null,null,null,null,null,1]
[null,null,null,null,null,null,null,null,null,null,null,null,null,null,null,null,null,null,1]
[null,null,null,null,null,null,null,null,null,null,null,null,null,null,null,null,null,null,1]
[null,null,null,null,null,null,null,null,null,null,null,null,null,null,null,null,null,null,1]
[null,null,null,null,null,null,null,null,null,null,null,null,null,null,null,null,null,null,1]
[null,null,null,null,null,null,null,null,null,null,null,null,null,null,null,null,null,null,1]
[null,null,null,null,null,null,null,null,null,null,null,null,null,null,null,null,null,null,1]
[null,null,null,null,null,null,null,null,null,null,null,null,null,null,null,null,null,null,1]
[null,null,null,null,null,null,null,null,null,null,null,null,null,null,null,null,null,null,1]
[null,null,null,null,null,null,null,null,null,null,null,null,null,null,null,null,null,null,1]
[null,null,null,null,null,null,null,null,null,null,null,null,null,null,null,null,null,null,1]
[null,null,null,null,null,null,null,null,null,null,null,null,null,null,null,null,null,null,1]
[null,null,null,null,null,null,null,null,null,null,null,null,null,null,null,null,null,null,1]
[null,null,null,null,null,null,null,null,null,null,null,null,null,null,null,null,null,null,1]
[null,null,null,null,null,null,null,null,null,null,null,null,null,null,null,null,null,null,1]
[null,null,null,null,null,null,null,null,null,null,null,null,null,null,null,null,null,null,1]
[null,null,null,null,null,null,null,null,null,null,null,null,null,null,null,null,null,null,1]
[null,null,null,null,null,null,null,null,null,null,null,null,null,null,null,null,null,null,1]
[null,null,null,null,null,null,null,null,null,null,null,null,null,null,null,null,null,null,1]
[null,null,null,null,null,null,null,null,null,null,null,null,null,null,null,null,null,null,1]
[null,null,null,null,null,null,null,null,null,null,null,null,null,null,null,null,null,null,1]
[null,null,null,null,null,null,null,null,null,null,null,null,null,null,null,null,null,null,1]
[null,null,null,null,null,null,null,null,null,null,null,null,null,null,null,null,null,null,1]
[null,null,null,null,null,null,null,null,null,null,null,null,null,null,null,null,null,null,1]
[null,null,null,null,null,null,null,null,null,null,null,null,null,null,null,null,null,null,1]
[null,null,null,null,null,null,null,null,null,null,null,null,null,null,null,null,null,null,1]
[null,null,null,null,null,null,null,null,null,null,null,null,null,null,null,null,null,null,1]
[null,null,null,null,null,null,null,null,null,null,null,null,null,null,null,null,null,null,1]
[null,null,null,null,null,null,null,null,null,null,null,null,null,null,null,null,null,null,1]
[null,null,null,null,null,null,null,null,null,null,null,null,null,null,null,null,null,null,1]
[null,null,null,null,null,null,null,null,null,null,null,null,null,null,null,null,null,null,1]
[null,null,null,null,null,null,null,null,null,null,null,null,null,null,null,null,null,null,1]
[null,null,null,null,null,null,null,null,null,null,null,null,null,null,null,null,null,null,1]
[null,null,null,null,null,null,null,null,null,null,null,null,null,null,null,null,null,null,1]
[null,null,null,null,null,null,null,null,null,null,null,null,null,null,null,null,null,null,1]
[null,null,null,null,null,null,null,null,null,null,null,null,null,null,null,null,null,null,1]
[null,null,null,null,null,null,null,null,null,null,null,null,null,null,null,null,null,null,1]
[null,null,null,null,null,null,null,null,null,null,null,null,null,null,null,null,null,null,1]
[null,null,null,null,null,null,null,null,null,null,null,null,null,null,null,null,null,null,1]
[null,null,null,null,null,null,null,null,null,null,null,null,null,null,null,null,null,null,1]
[null,null,null,null,null,null,null,null,null,null,null,null,null,null,null,null,null,null,1]
[null,null,null,null,null,null,null,null,null,null,null,null,null,null,null,null,null,null,1]
[null,null,null,null,null,null,null,null,null,null,null,null,null,null,null,null,null,null,1]
[null,null,null,null,null,null,null,null,null,null,null,null,null,null,null,null,null,null,1]
[null,null,null,null,null,null,null,null,null,null,null,null,null,null,null,null,null,null,1]
[null,null,null,null,null,null,null,null,null,null,null,null,null,null,null,null,null,null,1]
[null,null,null,null,null,null,null,null,null,null,null,null,null,null,null,null,null,null,1]
[null,null,null,null,null,null,null,null,null,null,null,null,null,null,null,null,null,null,1]
[null,null,null,null,null,null,null,null,null,null,null,null,null,null,null,null,null,null,1]
[null,null,null,null,null,null,null,null,null,null,null,null,null,null,null,null,null,null,1]
[null,null,null,null,null,null,null,null,null,null,null,null,null,null,null,null,null,null,1]
[null,null,null,null,null,null,null,null,null,null,null,null,null,null,null,null,null,null,1]
[null,null,null,null,null,null,null,null,null,null,null,null,null,null,null,null,null,null,1]
[null,null,null,null,null,null,null,null,null,null,null,null,null,null,null,null,null,null,{"$f":"IF(S130= \"\", 1, IF(R130= \"\",IF(ISNUMBER(S130)=FALSE, 0, S130), IF(ISNUMBER(S130)=FALSE, 0, S130) + 1))","v":1}]
[null,null,null,null,null,null,null,null,null,null,null,null,null,null,null,null,null,null,1]
[null,null,null,null,null,null,null,null,null,null,null,null,null,null,null,null,null,null,1]
[null,null,null,null,null,null,null,null,null,null,null,null,null,null,null,null,null,null,1]
[null,null,null,null,null,null,null,null,null,null,null,null,null,null,null,null,null,null,1]
[null,null,null,null,null,null,null,null,null,null,null,null,null,null,null,null,null,null,1]
[null,null,null,null,null,null,null,null,null,null,null,null,null,null,null,null,null,null,1]
[null,null,null,null,null,null,null,null,null,null,null,null,null,null,null,null,null,null,1]
[null,null,null,null,null,null,null,null,null,null,null,null,null,null,null,null,null,null,1]
[null,null,null,null,null,null,null,null,null,null,null,null,null,null,null,null,null,null,1]
[null,null,null,null,null,null,null,null,null,null,null,null,null,null,null,null,null,null,1]
[null,null,null,null,null,null,null,null,null,null,null,null,null,null,null,null,null,null,1]
[null,null,null,null,null,null,null,null,null,null,null,null,null,null,null,null,null,null,1]
[null,null,null,null,null,null,null,null,null,null,null,null,null,null,null,null,null,null,1]
[null,null,null,null,null,null,null,null,null,null,null,null,null,null,null,null,null,null,1]
[null,null,null,null,null,null,null,null,null,null,null,null,null,null,null,null,null,null,1]
[null,null,null,null,null,null,null,null,null,null,null,null,null,null,null,null,null,null,1]
[null,null,null,null,null,null,null,null,null,null,null,null,null,null,null,null,null,null,1]
[null,null,null,null,null,null,null,null,null,null,null,null,null,null,null,null,null,null,1]
[null,null,null,null,null,null,null,null,null,null,null,null,null,null,null,null,null,null,1]
[null,null,null,null,null,null,null,null,null,null,null,null,null,null,null,null,null,null,1]
[null,null,null,null,null,null,null,null,null,null,null,null,null,null,null,null,null,null,1]
[null,null,null,null,null,null,null,null,null,null,null,null,null,null,null,null,null,null,1]
[null,null,null,null,null,null,null,null,null,null,null,null,null,null,null,null,null,null,1]
[null,null,null,null,null,null,null,null,null,null,null,null,null,null,null,null,null,null,1]
[null,null,null,null,null,null,null,null,null,null,null,null,null,null,null,null,null,null,1]
[null,null,null,null,null,null,null,null,null,null,null,null,null,null,null,null,null,null,1]
[null,null,null,null,null,null,null,null,null,null,null,null,null,null,null,null,null,null,1]
[null,null,null,null,null,null,null,null,null,null,null,null,null,null,null,null,null,null,1]
[null,null,null,null,null,null,null,null,null,null,null,null,null,null,null,null,null,null,1]
[null,null,null,null,null,null,null,null,null,null,null,null,null,null,null,null,null,null,1]
[null,null,null,null,null,null,null,null,null,null,null,null,null,null,null,null,null,null,1]
[null,null,null,null,null,null,null,null,null,null,null,null,null,null,null,null,null,null,1]
[null,null,null,null,null,null,null,null,null,null,null,null,null,null,null,null,null,null,1]
[null,null,null,null,null,null,null,null,null,null,null,null,null,null,null,null,null,null,1]
[null,null,null,null,null,null,null,null,null,null,null,null,null,null,null,null,null,null,1]
[null,null,null,null,null,null,null,null,null,null,null,null,null,null,null,null,null,null,1]
[null,null,null,null,null,null,null,null,null,null,null,null,null,null,null,null,null,null,1]
[null,null,null,null,null,null,null,null,null,null,null,null,null,null,null,null,null,null,1]
[null,null,null,null,null,null,null,null,null,null,null,null,null,null,null,null,null,null,1]
[null,null,null,null,null,null,null,null,null,null,null,null,null,null,null,null,null,null,1]
[null,null,null,null,null,null,null,null,null,null,null,null,null,null,null,null,null,null,1]
[null,null,null,null,null,null,null,null,null,null,null,null,null,null,null,null,null,null,1]
[null,null,null,null,null,null,null,null,null,null,null,null,null,null,null,null,null,null,1]
[null,null,null,null,null,null,null,null,null,null,null,null,null,null,null,null,null,null,1]
[null,null,null,null,null,null,null,null,null,null,null,null,null,null,null,null,null,null,1]
[null,null,null,null,null,null,null,null,null,null,null,null,null,null,null,null,null,null,1]
[null,null,null,null,null,null,null,null,null,null,null,null,null,null,null,null,null,null,1]
[null,null,null,null,null,null,null,null,null,null,null,null,null,null,null,null,null,null,1]
[null,null,null,null,null,null,null,null,null,null,null,null,null,null,null,null,null,null,1]
[null,null,null,null,null,null,null,null,null,null,null,null,null,null,null,null,null,null,1]
[null,null,null,null,null,null,null,null,null,null,null,null,null,null,null,null,null,null,1]
[null,null,null,null,null,null,null,null,null,null,null,null,null,null,null,null,null,null,1]
[null,null,null,null,null,null,null,null,null,null,null,null,null,null,null,null,null,null,1]
[null,null,null,null,null,null,null,null,null,null,null,null,null,null,null,null,null,null,1]
[null,null,null,null,null,null,null,null,null,null,null,null,null,null,null,null,null,null,1]
[null,null,null,null,null,null,null,null,null,null,null,null,null,null,null,null,null,null,1]
[null,null,null,null,null,null,null,null,null,null,null,null,null,null,null,null,null,null,1]
[null,null,null,null,null,null,null,null,null,null,null,null,null,null,null,null,null,null,1]
[null,null,null,null,null,null,null,null,null,null,null,null,null,null,null,null,null,null,1]
[null,null,null,null,null,null,null,null,null,null,null,null,null,null,null,null,null,null,1]
[null,null,null,null,null,null,null,null,null,null,null,null,null,null,null,null,null,null,1]
[null,null,null,null,null,null,null,null,null,null,null,null,null,null,null,null,null,null,1]
[null,null,null,null,null,null,null,null,null,null,null,null,null,null,null,null,null,null,1]
[null,null,null,null,null,null,null,null,null,null,null,null,null,null,null,null,null,null,{"$f":"IF(S194= \"\", 1, IF(R194= \"\",IF(ISNUMBER(S194)=FALSE, 0, S194), IF(ISNUMBER(S194)=FALSE, 0, S194) + 1))","v":1}]
[null,null,null,null,null,null,null,null,null,null,null,null,null,null,null,null,null,null,1]
[null,null,null,null,null,null,null,null,null,null,null,null,null,null,null,null,null,null,1]
[null,null,null,null,null,null,null,null,null,null,null,null,null,null,null,null,null,null,1]
[null,null,null,null,null,null,null,null,null,null,null,null,null,null,null,null,null,null,1]
[null,null,null,null,null,null,null,null,null,null,null,null,null,null,null,null,null,null,1]
[null,null,null,null,null,null,null,null,null,null,null,null,null,null,null,null,null,null,1]
[null,null,null,null,null,null,null,null,null,null,null,null,null,null,null,null,null,null,1]
[null,null,null,null,null,null,null,null,null,null,null,null,null,null,null,null,null,null,1]
[null,null,null,null,null,null,null,null,null,null,null,null,null,null,null,null,null,null,1]
[null,null,null,null,null,null,null,null,null,null,null,null,null,null,null,null,null,null,1]
[null,null,null,null,null,null,null,null,null,null,null,null,null,null,null,null,null,null,1]
[null,null,null,null,null,null,null,null,null,null,null,null,null,null,null,null,null,null,1]
[null,null,null,null,null,null,null,null,null,null,null,null,null,null,null,null,null,null,1]
[null,null,null,null,null,null,null,null,null,null,null,null,null,null,null,null,null,null,1]
[null,null,null,null,null,null,null,null,null,null,null,null,null,null,null,null,null,null,1]
[null,null,null,null,null,null,null,null,null,null,null,null,null,null,null,null,null,null,1]
[null,null,null,null,null,null,null,null,null,null,null,null,null,null,null,null,null,null,1]
[null,null,null,null,null,null,null,null,null,null,null,null,null,null,null,null,null,null,1]
[null,null,null,null,null,null,null,null,null,null,null,null,null,null,null,null,null,null,1]
[null,null,null,null,null,null,null,null,null,null,null,null,null,null,null,null,null,null,1]
[null,null,null,null,null,null,null,null,null,null,null,null,null,null,null,null,null,null,1]
[null,null,null,null,null,null,null,null,null,null,null,null,null,null,null,null,null,null,1]
[null,null,null,null,null,null,null,null,null,null,null,null,null,null,null,null,null,null,1]
[null,null,null,null,null,null,null,null,null,null,null,null,null,null,null,null,null,null,1]
[null,null,null,null,null,null,null,null,null,null,null,null,null,null,null,null,null,null,1]
[null,null,null,null,null,null,null,null,null,null,null,null,null,null,null,null,null,null,1]
[null,null,null,null,null,null,null,null,null,null,null,null,null,null,null,null,null,null,1]
[null,null,null,null,null,null,null,null,null,null,null,null,null,null,null,null,null,null,1]
[null,null,null,null,null,null,null,null,null,null,null,null,null,null,null,null,null,null,1]
[null,null,null,null,null,null,null,null,null,null,null,null,null,null,null,null,null,null,1]
[null,null,null,null,null,null,null,null,null,null,null,null,null,null,null,null,null,null,1]
[null,null,null,null,null,null,null,null,null,null,null,null,null,null,null,null,null,null,1]
[null,null,null,null,null,null,null,null,null,null,null,null,null,null,null,null,null,null,1]
[null,null,null,null,null,null,null,null,null,null,null,null,null,null,null,null,null,null,1]
[null,null,null,null,null,null,null,null,null,null,null,null,null,null,null,null,null,null,1]
[null,null,null,null,null,null,null,null,null,null,null,null,null,null,null,null,null,null,1]
[null,null,null,null,null,null,null,null,null,null,null,null,null,null,null,null,null,null,1]
[null,null,null,null,null,null,null,null,null,null,null,null,null,null,null,null,null,null,1]
[null,null,null,null,null,null,null,null,null,null,null,null,null,null,null,null,null,null,1]
[null,null,null,null,null,null,null,null,null,null,null,null,null,null,null,null,null,null,1]
[null,null,null,null,null,null,null,null,null,null,null,null,null,null,null,null,null,null,1]
[null,null,null,null,null,null,null,null,null,null,null,null,null,null,null,null,null,null,1]
[null,null,null,null,null,null,null,null,null,null,null,null,null,null,null,null,null,null,1]
[null,null,null,null,null,null,null,null,null,null,null,null,null,null,null,null,null,null,1]
[null,null,null,null,null,null,null,null,null,null,null,null,null,null,null,null,null,null,1]
[null,null,null,null,null,null,null,null,null,null,null,null,null,null,null,null,null,null,1]
[null,null,null,null,null,null,null,null,null,null,null,null,null,null,null,null,null,null,1]
[null,null,null,null,null,null,null,null,null,null,null,null,null,null,null,null,null,null,1]
[null,null,null,null,null,null,null,null,null,null,null,null,null,null,null,null,null,null,1]
[null,null,null,null,null,null,null,null,null,null,null,null,null,null,null,null,null,null,1]
[null,null,null,null,null,null,null,null,null,null,null,null,null,null,null,null,null,null,1]
[null,null,null,null,null,null,null,null,null,null,null,null,null,null,null,null,null,null,1]
[null,null,null,null,null,null,null,null,null,null,null,null,null,null,null,null,null,null,1]
[null,null,null,null,null,null,null,null,null,null,null,null,null,null,null,null,null,null,1]
[null,null,null,null,null,null,null,null,null,null,null,null,null,null,null,null,null,null,1]
[null,null,null,null,null,null,null,null,null,null,null,null,null,null,null,null,null,null,1]
[null,null,null,null,null,null,null,null,null,null,null,null,null,null,null,null,null,null,1]
[null,null,null,null,null,null,null,null,null,null,null,null,null,null,null,null,null,null,1]
[null,null,null,null,null,null,null,null,null,null,null,null,null,null,null,null,null,null,1]
[null,null,null,null,null,null,null,null,null,null,null,null,null,null,null,null,null,null,1]
[null,null,null,null,null,null,null,null,null,null,null,null,null,null,null,null,null,null,1]
[null,null,null,null,null,null,null,null,null,null,null,null,null,null,null,null,null,null,1]
[null,null,null,null,null,null,null,null,null,null,null,null,null,null,null,null,null,null,1]
[null,null,null,null,null,null,null,null,null,null,null,null,null,null,null,null,null,null,{"$f":"IF(S258= \"\", 1, IF(R258= \"\",IF(ISNUMBER(S258)=FALSE, 0, S258), IF(ISNUMBER(S258)=FALSE, 0, S258) + 1))","v":1}]
[null,null,null,null,null,null,null,null,null,null,null,null,null,null,null,null,null,null,1]
[null,null,null,null,null,null,null,null,null,null,null,null,null,null,null,null,null,null,1]
[null,null,null,null,null,null,null,null,null,null,null,null,null,null,null,null,null,null,1]
[null,null,null,null,null,null,null,null,null,null,null,null,null,null,null,null,null,null,1]
[null,null,null,null,null,null,null,null,null,null,null,null,null,null,null,null,null,null,1]
[null,null,null,null,null,null,null,null,null,null,null,null,null,null,null,null,null,null,1]
[null,null,null,null,null,null,null,null,null,null,null,null,null,null,null,null,null,null,1]
[null,null,null,null,null,null,null,null,null,null,null,null,null,null,null,null,null,null,1]
[null,null,null,null,null,null,null,null,null,null,null,null,null,null,null,null,null,null,1]
[null,null,null,null,null,null,null,null,null,null,null,null,null,null,null,null,null,null,1]
[null,null,null,null,null,null,null,null,null,null,null,null,null,null,null,null,null,null,1]
[null,null,null,null,null,null,null,null,null,null,null,null,null,null,null,null,null,null,1]
[null,null,null,null,null,null,null,null,null,null,null,null,null,null,null,null,null,null,1]
[null,null,null,null,null,null,null,null,null,null,null,null,null,null,null,null,null,null,1]
[null,null,null,null,null,null,null,null,null,null,null,null,null,null,null,null,null,null,1]
[null,null,null,null,null,null,null,null,null,null,null,null,null,null,null,null,null,null,1]
[null,null,null,null,null,null,null,null,null,null,null,null,null,null,null,null,null,null,1]
[null,null,null,null,null,null,null,null,null,null,null,null,null,null,null,null,null,null,1]
[null,null,null,null,null,null,null,null,null,null,null,null,null,null,null,null,null,null,1]
[null,null,null,null,null,null,null,null,null,null,null,null,null,null,null,null,null,null,1]
[null,null,null,null,null,null,null,null,null,null,null,null,null,null,null,null,null,null,1]
[null,null,null,null,null,null,null,null,null,null,null,null,null,null,null,null,null,null,1]
[null,null,null,null,null,null,null,null,null,null,null,null,null,null,null,null,null,null,1]
[null,null,null,null,null,null,null,null,null,null,null,null,null,null,null,null,null,null,1]
[null,null,null,null,null,null,null,null,null,null,null,null,null,null,null,null,null,null,1]
[null,null,null,null,null,null,null,null,null,null,null,null,null,null,null,null,null,null,1]
[null,null,null,null,null,null,null,null,null,null,null,null,null,null,null,null,null,null,1]
[null,null,null,null,null,null,null,null,null,null,null,null,null,null,null,null,null,null,1]
[null,null,null,null,null,null,null,null,null,null,null,null,null,null,null,null,null,null,1]
[null,null,null,null,null,null,null,null,null,null,null,null,null,null,null,null,null,null,1]
[null,null,null,null,null,null,null,null,null,null,null,null,null,null,null,null,null,null,1]
[null,null,null,null,null,null,null,null,null,null,null,null,null,null,null,null,null,null,1]
[null,null,null,null,null,null,null,null,null,null,null,null,null,null,null,null,null,null,1]
[null,null,null,null,null,null,null,null,null,null,null,null,null,null,null,null,null,null,1]
[null,null,null,null,null,null,null,null,null,null,null,null,null,null,null,null,null,null,1]
[null,null,null,null,null,null,null,null,null,null,null,null,null,null,null,null,null,null,1]
[null,null,null,null,null,null,null,null,null,null,null,null,null,null,null,null,null,null,1]
[null,null,null,null,null,null,null,null,null,null,null,null,null,null,null,null,null,null,1]
[null,null,null,null,null,null,null,null,null,null,null,null,null,null,null,null,null,null,1]
[null,null,null,null,null,null,null,null,null,null,null,null,null,null,null,null,null,null,1]
[null,null,null,null,null,null,null,null,null,null,null,null,null,null,null,null,null,null,1]
[null,null,null,null,null,null,null,null,null,null,null,null,null,null,null,null,null,null,1]
[null,null,null,null,null,null,null,null,null,null,null,null,null,null,null,null,null,null,1]
[null,null,null,null,null,null,null,null,null,null,null,null,null,null,null,null,null,null,1]
[null,null,null,null,null,null,null,null,null,null,null,null,null,null,null,null,null,null,1]
[null,null,null,null,null,null,null,null,null,null,null,null,null,null,null,null,null,null,1]
[null,null,null,null,null,null,null,null,null,null,null,null,null,null,null,null,null,null,1]
[null,null,null,null,null,null,null,null,null,null,null,null,null,null,null,null,null,null,1]
[null,null,null,null,null,null,null,null,null,null,null,null,null,null,null,null,null,null,1]
[null,null,null,null,null,null,null,null,null,null,null,null,null,null,null,null,null,null,1]
[null,null,null,null,null,null,null,null,null,null,null,null,null,null,null,null,null,null,1]
[null,null,null,null,null,null,null,null,null,null,null,null,null,null,null,null,null,null,1]
[null,null,null,null,null,null,null,null,null,null,null,null,null,null,null,null,null,null,1]
[null,null,null,null,null,null,null,null,null,null,null,null,null,null,null,null,null,null,1]
[null,null,null,null,null,null,null,null,null,null,null,null,null,null,null,null,null,null,1]
[null,null,null,null,null,null,null,null,null,null,null,null,null,null,null,null,null,null,1]
[null,null,null,null,null,null,null,null,null,null,null,null,null,null,null,null,null,null,1]
[null,null,null,null,null,null,null,null,null,null,null,null,null,null,null,null,null,null,1]
[null,null,null,null,null,null,null,null,null,null,null,null,null,null,null,null,null,null,1]
[null,null,null,null,null,null,null,null,null,null,null,null,null,null,null,null,null,null,1]
[null,null,null,null,null,null,null,null,null,null,null,null,null,null,null,null,null,null,1]
[null,null,null,null,null,null,null,null,null,null,null,null,null,null,null,null,null,null,1]
[null,null,null,null,null,null,null,null,null,null,null,null,null,null,null,null,null,null,1]
[null,null,null,null,null,null,null,null,null,null,null,null,null,null,null,null,null,null,{"$f":"IF(S322= \"\", 1, IF(R322= \"\",IF(ISNUMBER(S322)=FALSE, 0, S322), IF(ISNUMBER(S322)=FALSE, 0, S322) + 1))","v":1}]
[null,null,null,null,null,null,null,null,null,null,null,null,null,null,null,null,null,null,1]
[null,null,null,null,null,null,null,null,null,null,null,null,null,null,null,null,null,null,1]
[null,null,null,null,null,null,null,null,null,null,null,null,null,null,null,null,null,null,1]
[null,null,null,null,null,null,null,null,null,null,null,null,null,null,null,null,null,null,1]
[null,null,null,null,null,null,null,null,null,null,null,null,null,null,null,null,null,null,1]
[null,null,null,null,null,null,null,null,null,null,null,null,null,null,null,null,null,null,1]
[null,null,null,null,null,null,null,null,null,null,null,null,null,null,null,null,null,null,1]
[null,null,null,null,null,null,null,null,null,null,null,null,null,null,null,null,null,null,1]
[null,null,null,null,null,null,null,null,null,null,null,null,null,null,null,null,null,null,1]
[null,null,null,null,null,null,null,null,null,null,null,null,null,null,null,null,null,null,1]
[null,null,null,null,null,null,null,null,null,null,null,null,null,null,null,null,null,null,1]
[null,null,null,null,null,null,null,null,null,null,null,null,null,null,null,null,null,null,1]
[null,null,null,null,null,null,null,null,null,null,null,null,null,null,null,null,null,null,1]
[null,null,null,null,null,null,null,null,null,null,null,null,null,null,null,null,null,null,1]
[null,null,null,null,null,null,null,null,null,null,null,null,null,null,null,null,null,null,1]
[null,null,null,null,null,null,null,null,null,null,null,null,null,null,null,null,null,null,1]
[null,null,null,null,null,null,null,null,null,null,null,null,null,null,null,null,null,null,1]
[null,null,null,null,null,null,null,null,null,null,null,null,null,null,null,null,null,null,1]
[null,null,null,null,null,null,null,null,null,null,null,null,null,null,null,null,null,null,1]
[null,null,null,null,null,null,null,null,null,null,null,null,null,null,null,null,null,null,1]
[null,null,null,null,null,null,null,null,null,null,null,null,null,null,null,null,null,null,1]
[null,null,null,null,null,null,null,null,null,null,null,null,null,null,null,null,null,null,1]
[null,null,null,null,null,null,null,null,null,null,null,null,null,null,null,null,null,null,1]
[null,null,null,null,null,null,null,null,null,null,null,null,null,null,null,null,null,null,1]
[null,null,null,null,null,null,null,null,null,null,null,null,null,null,null,null,null,null,1]
[null,null,null,null,null,null,null,null,null,null,null,null,null,null,null,null,null,null,1]
[null,null,null,null,null,null,null,null,null,null,null,null,null,null,null,null,null,null,1]
[null,null,null,null,null,null,null,null,null,null,null,null,null,null,null,null,null,null,1]
[null,null,null,null,null,null,null,null,null,null,null,null,null,null,null,null,null,null,1]
[null,null,null,null,null,null,null,null,null,null,null,null,null,null,null,null,null,null,1]
[null,null,null,null,null,null,null,null,null,null,null,null,null,null,null,null,null,null,1]
[null,null,null,null,null,null,null,null,null,null,null,null,null,null,null,null,null,null,1]
[null,null,null,null,null,null,null,null,null,null,null,null,null,null,null,null,null,null,1]
[null,null,null,null,null,null,null,null,null,null,null,null,null,null,null,null,null,null,1]
[null,null,null,null,null,null,null,null,null,null,null,null,null,null,null,null,null,null,1]
[null,null,null,null,null,null,null,null,null,null,null,null,null,null,null,null,null,null,1]
[null,null,null,null,null,null,null,null,null,null,null,null,null,null,null,null,null,null,1]
[null,null,null,null,null,null,null,null,null,null,null,null,null,null,null,null,null,null,1]
[null,null,null,null,null,null,null,null,null,null,null,null,null,null,null,null,null,null,1]
[null,null,null,null,null,null,null,null,null,null,null,null,null,null,null,null,null,null,1]
[null,null,null,null,null,null,null,null,null,null,null,null,null,null,null,null,null,null,1]
[null,null,null,null,null,null,null,null,null,null,null,null,null,null,null,null,null,null,1]
[null,null,null,null,null,null,null,null,null,null,null,null,null,null,null,null,null,null,1]
[null,null,null,null,null,null,null,null,null,null,null,null,null,null,null,null,null,null,1]
[null,null,null,null,null,null,null,null,null,null,null,null,null,null,null,null,null,null,1]
[null,null,null,null,null,null,null,null,null,null,null,null,null,null,null,null,null,null,1]
[null,null,null,null,null,null,null,null,null,null,null,null,null,null,null,null,null,null,1]
[null,null,null,null,null,null,null,null,null,null,null,null,null,null,null,null,null,null,1]
[null,null,null,null,null,null,null,null,null,null,null,null,null,null,null,null,null,null,1]
[null,null,null,null,null,null,null,null,null,null,null,null,null,null,null,null,null,null,1]
[null,null,null,null,null,null,null,null,null,null,null,null,null,null,null,null,null,null,1]
[null,null,null,null,null,null,null,null,null,null,null,null,null,null,null,null,null,null,1]
[null,null,null,null,null,null,null,null,null,null,null,null,null,null,null,null,null,null,1]
[null,null,null,null,null,null,null,null,null,null,null,null,null,null,null,null,null,null,1]
[null,null,null,null,null,null,null,null,null,null,null,null,null,null,null,null,null,null,1]
[null,null,null,null,null,null,null,null,null,null,null,null,null,null,null,null,null,null,1]
[null,null,null,null,null,null,null,null,null,null,null,null,null,null,null,null,null,null,1]
[null,null,null,null,null,null,null,null,null,null,null,null,null,null,null,null,null,null,1]
[null,null,null,null,null,null,null,null,null,null,null,null,null,null,null,null,null,null,1]
[null,null,null,null,null,null,null,null,null,null,null,null,null,null,null,null,null,null,1]
[null,null,null,null,null,null,null,null,null,null,null,null,null,null,null,null,null,null,1]
[null,null,null,null,null,null,null,null,null,null,null,null,null,null,null,null,null,null,1]
[null,null,null,null,null,null,null,null,null,null,null,null,null,null,null,null,null,null,1]
[null,null,null,null,null,null,null,null,null,null,null,null,null,null,null,null,null,null,{"$f":"IF(S386= \"\", 1, IF(R386= \"\",IF(ISNUMBER(S386)=FALSE, 0, S386), IF(ISNUMBER(S386)=FALSE, 0, S386) + 1))","v":1}]
[null,null,null,null,null,null,null,null,null,null,null,null,null,null,null,null,null,null,1]
[null,null,null,null,null,null,null,null,null,null,null,null,null,null,null,null,null,null,1]
[null,null,null,null,null,null,null,null,null,null,null,null,null,null,null,null,null,null,1]
[null,null,null,null,null,null,null,null,null,null,null,null,null,null,null,null,null,null,1]
[null,null,null,null,null,null,null,null,null,null,null,null,null,null,null,null,null,null,1]
[null,null,null,null,null,null,null,null,null,null,null,null,null,null,null,null,null,null,1]
[null,null,null,null,null,null,null,null,null,null,null,null,null,null,null,null,null,null,1]
[null,null,null,null,null,null,null,null,null,null,null,null,null,null,null,null,null,null,1]
[null,null,null,null,null,null,null,null,null,null,null,null,null,null,null,null,null,null,1]
[null,null,null,null,null,null,null,null,null,null,null,null,null,null,null,null,null,null,1]
[null,null,null,null,null,null,null,null,null,null,null,null,null,null,null,null,null,null,1]
[null,null,null,null,null,null,null,null,null,null,null,null,null,null,null,null,null,null,1]
[null,null,null,null,null,null,null,null,null,null,null,null,null,null,null,null,null,null,1]
[null,null,null,null,null,null,null,null,null,null,null,null,null,null,null,null,null,null,1]
[null,null,null,null,null,null,null,null,null,null,null,null,null,null,null,null,null,null,1]
[null,null,null,null,null,null,null,null,null,null,null,null,null,null,null,null,null,null,1]
[null,null,null,null,null,null,null,null,null,null,null,null,null,null,null,null,null,null,1]
[null,null,null,null,null,null,null,null,null,null,null,null,null,null,null,null,null,null,1]
[null,null,null,null,null,null,null,null,null,null,null,null,null,null,null,null,null,null,1]
[null,null,null,null,null,null,null,null,null,null,null,null,null,null,null,null,null,null,1]
[null,null,null,null,null,null,null,null,null,null,null,null,null,null,null,null,null,null,1]
[null,null,null,null,null,null,null,null,null,null,null,null,null,null,null,null,null,null,1]
[null,null,null,null,null,null,null,null,null,null,null,null,null,null,null,null,null,null,1]
[null,null,null,null,null,null,null,null,null,null,null,null,null,null,null,null,null,null,1]
[null,null,null,null,null,null,null,null,null,null,null,null,null,null,null,null,null,null,1]
[null,null,null,null,null,null,null,null,null,null,null,null,null,null,null,null,null,null,1]
[null,null,null,null,null,null,null,null,null,null,null,null,null,null,null,null,null,null,1]
[null,null,null,null,null,null,null,null,null,null,null,null,null,null,null,null,null,null,1]
[null,null,null,null,null,null,null,null,null,null,null,null,null,null,null,null,null,null,1]
[null,null,null,null,null,null,null,null,null,null,null,null,null,null,null,null,null,null,1]
[null,null,null,null,null,null,null,null,null,null,null,null,null,null,null,null,null,null,1]
[null,null,null,null,null,null,null,null,null,null,null,null,null,null,null,null,null,null,1]
[null,null,null,null,null,null,null,null,null,null,null,null,null,null,null,null,null,null,1]
[null,null,null,null,null,null,null,null,null,null,null,null,null,null,null,null,null,null,1]
[null,null,null,null,null,null,null,null,null,null,null,null,null,null,null,null,null,null,1]
[null,null,null,null,null,null,null,null,null,null,null,null,null,null,null,null,null,null,1]
[null,null,null,null,null,null,null,null,null,null,null,null,null,null,null,null,null,null,1]
[null,null,null,null,null,null,null,null,null,null,null,null,null,null,null,null,null,null,1]
[null,null,null,null,null,null,null,null,null,null,null,null,null,null,null,null,null,null,1]
[null,null,null,null,null,null,null,null,null,null,null,null,null,null,null,null,null,null,1]
[null,null,null,null,null,null,null,null,null,null,null,null,null,null,null,null,null,null,1]
[null,null,null,null,null,null,null,null,null,null,null,null,null,null,null,null,null,null,1]
[null,null,null,null,null,null,null,null,null,null,null,null,null,null,null,null,null,null,1]
[null,null,null,null,null,null,null,null,null,null,null,null,null,null,null,null,null,null,1]
[null,null,null,null,null,null,null,null,null,null,null,null,null,null,null,null,null,null,1]
[null,null,null,null,null,null,null,null,null,null,null,null,null,null,null,null,null,null,1]
[null,null,null,null,null,null,null,null,null,null,null,null,null,null,null,null,null,null,1]
[null,null,null,null,null,null,null,null,null,null,null,null,null,null,null,null,null,null,1]
[null,null,null,null,null,null,null,null,null,null,null,null,null,null,null,null,null,null,1]
[null,null,null,null,null,null,null,null,null,null,null,null,null,null,null,null,null,null,1]
[null,null,null,null,null,null,null,null,null,null,null,null,null,null,null,null,null,null,1]
[null,null,null,null,null,null,null,null,null,null,null,null,null,null,null,null,null,null,1]
[null,null,null,null,null,null,null,null,null,null,null,null,null,null,null,null,null,null,1]
[null,null,null,null,null,null,null,null,null,null,null,null,null,null,null,null,null,null,1]
[null,null,null,null,null,null,null,null,null,null,null,null,null,null,null,null,null,null,1]
[null,null,null,null,null,null,null,null,null,null,null,null,null,null,null,null,null,null,1]
[null,null,null,null,null,null,null,null,null,null,null,null,null,null,null,null,null,null,1]
[null,null,null,null,null,null,null,null,null,null,null,null,null,null,null,null,null,null,1]
[null,null,null,null,null,null,null,null,null,null,null,null,null,null,null,null,null,null,1]
[null,null,null,null,null,null,null,null,null,null,null,null,null,null,null,null,null,null,1]
[null,null,null,null,null,null,null,null,null,null,null,null,null,null,null,null,null,null,1]
[null,null,null,null,null,null,null,null,null,null,null,null,null,null,null,null,null,null,1]
[null,null,null,null,null,null,null,null,null,null,null,null,null,null,null,null,null,null,1]
[null,null,null,null,null,null,null,null,null,null,null,null,null,null,null,null,null,null,{"$f":"IF(S450= \"\", 1, IF(R450= \"\",IF(ISNUMBER(S450)=FALSE, 0, S450), IF(ISNUMBER(S450)=FALSE, 0, S450) + 1))","v":1}]
[null,null,null,null,null,null,null,null,null,null,null,null,null,null,null,null,null,null,1]
[null,null,null,null,null,null,null,null,null,null,null,null,null,null,null,null,null,null,1]
[null,null,null,null,null,null,null,null,null,null,null,null,null,null,null,null,null,null,1]
[null,null,null,null,null,null,null,null,null,null,null,null,null,null,null,null,null,null,1]
[null,null,null,null,null,null,null,null,null,null,null,null,null,null,null,null,null,null,1]
[null,null,null,null,null,null,null,null,null,null,null,null,null,null,null,null,null,null,1]
[null,null,null,null,null,null,null,null,null,null,null,null,null,null,null,null,null,null,1]
[null,null,null,null,null,null,null,null,null,null,null,null,null,null,null,null,null,null,1]
[null,null,null,null,null,null,null,null,null,null,null,null,null,null,null,null,null,null,1]
[null,null,null,null,null,null,null,null,null,null,null,null,null,null,null,null,null,null,1]
[null,null,null,null,null,null,null,null,null,null,null,null,null,null,null,null,null,null,1]
[null,null,null,null,null,null,null,null,null,null,null,null,null,null,null,null,null,null,1]
[null,null,null,null,null,null,null,null,null,null,null,null,null,null,null,null,null,null,1]
[null,null,null,null,null,null,null,null,null,null,null,null,null,null,null,null,null,null,1]
[null,null,null,null,null,null,null,null,null,null,null,null,null,null,null,null,null,null,1]
[null,null,null,null,null,null,null,null,null,null,null,null,null,null,null,null,null,null,1]
[null,null,null,null,null,null,null,null,null,null,null,null,null,null,null,null,null,null,1]
[null,null,null,null,null,null,null,null,null,null,null,null,null,null,null,null,null,null,1]
[null,null,null,null,null,null,null,null,null,null,null,null,null,null,null,null,null,null,1]
[null,null,null,null,null,null,null,null,null,null,null,null,null,null,null,null,null,null,1]
[null,null,null,null,null,null,null,null,null,null,null,null,null,null,null,null,null,null,1]
[null,null,null,null,null,null,null,null,null,null,null,null,null,null,null,null,null,null,1]
[null,null,null,null,null,null,null,null,null,null,null,null,null,null,null,null,null,null,1]
[null,null,null,null,null,null,null,null,null,null,null,null,null,null,null,null,null,null,1]
[null,null,null,null,null,null,null,null,null,null,null,null,null,null,null,null,null,null,1]
[null,null,null,null,null,null,null,null,null,null,null,null,null,null,null,null,null,null,1]
[null,null,null,null,null,null,null,null,null,null,null,null,null,null,null,null,null,null,1]
[null,null,null,null,null,null,null,null,null,null,null,null,null,null,null,null,null,null,1]
[null,null,null,null,null,null,null,null,null,null,null,null,null,null,null,null,null,null,1]
[null,null,null,null,null,null,null,null,null,null,null,null,null,null,null,null,null,null,1]
[null,null,null,null,null,null,null,null,null,null,null,null,null,null,null,null,null,null,1]
[null,null,null,null,null,null,null,null,null,null,null,null,null,null,null,null,null,null,1]
[null,null,null,null,null,null,null,null,null,null,null,null,null,null,null,null,null,null,1]
[null,null,null,null,null,null,null,null,null,null,null,null,null,null,null,null,null,null,1]
[null,null,null,null,null,null,null,null,null,null,null,null,null,null,null,null,null,null,1]
[null,null,null,null,null,null,null,null,null,null,null,null,null,null,null,null,null,null,1]
[null,null,null,null,null,null,null,null,null,null,null,null,null,null,null,null,null,null,1]
[null,null,null,null,null,null,null,null,null,null,null,null,null,null,null,null,null,null,1]
[null,null,null,null,null,null,null,null,null,null,null,null,null,null,null,null,null,null,1]
[null,null,null,null,null,null,null,null,null,null,null,null,null,null,null,null,null,null,1]
[null,null,null,null,null,null,null,null,null,null,null,null,null,null,null,null,null,null,1]
[null,null,null,null,null,null,null,null,null,null,null,null,null,null,null,null,null,null,1]
[null,null,null,null,null,null,null,null,null,null,null,null,null,null,null,null,null,null,1]
[null,null,null,null,null,null,null,null,null,null,null,null,null,null,null,null,null,null,1]
[null,null,null,null,null,null,null,null,null,null,null,null,null,null,null,null,null,null,1]
[null,null,null,null,null,null,null,null,null,null,null,null,null,null,null,null,null,null,1]
[null,null,null,null,null,null,null,null,null,null,null,null,null,null,null,null,null,null,1]
[null,null,null,null,null,null,null,null,null,null,null,null,null,null,null,null,null,null,1]
[null,null,null,null,null,null,null,null,null,null,null,null,null,null,null,null,null,null,1]
[null,null,null,null,null,null,null,null,null,null,null,null,null,null,null,null,null,null,1]
[null,null,null,null,null,null,null,null,null,null,null,null,null,null,null,null,null,null,1]
[null,null,null,null,null,null,null,null,null,null,null,null,null,null,null,null,null,null,1]
[null,null,null,null,null,null,null,null,null,null,null,null,null,null,null,null,null,null,1]
[null,null,null,null,null,null,null,null,null,null,null,null,null,null,null,null,null,null,1]
[null,null,null,null,null,null,null,null,null,null,null,null,null,null,null,null,null,null,1]
[null,null,null,null,null,null,null,null,null,null,null,null,null,null,null,null,null,null,1]
[null,null,null,null,null,null,null,null,null,null,null,null,null,null,null,null,null,null,1]
[null,null,null,null,null,null,null,null,null,null,null,null,null,null,null,null,null,null,1]
[null,null,null,null,null,null,null,null,null,null,null,null,null,null,null,null,null,null,1]
[null,null,null,null,null,null,null,null,null,null,null,null,null,null,null,null,null,null,1]
[null,null,null,null,null,null,null,null,null,null,null,null,null,null,null,null,null,null,1]
[null,null,null,null,null,null,null,null,null,null,null,null,null,null,null,null,null,null,1]
[null,null,null,null,null,null,null,null,null,null,null,null,null,null,null,null,null,null,1]
[null,null,null,null,null,null,null,null,null,null,null,null,null,null,null,null,null,null,{"$f":"IF(S514= \"\", 1, IF(R514= \"\",IF(ISNUMBER(S514)=FALSE, 0, S514), IF(ISNUMBER(S514)=FALSE, 0, S514) + 1))","v":1}]
[null,null,null,null,null,null,null,null,null,null,null,null,null,null,null,null,null,null,1]
[null,null,null,null,null,null,null,null,null,null,null,null,null,null,null,null,null,null,1]
[null,null,null,null,null,null,null,null,null,null,null,null,null,null,null,null,null,null,1]
[null,null,null,null,null,null,null,null,null,null,null,null,null,null,null,null,null,null,1]
[null,null,null,null,null,null,null,null,null,null,null,null,null,null,null,null,null,null,1]
[null,null,null,null,null,null,null,null,null,null,null,null,null,null,null,null,null,null,1]
[null,null,null,null,null,null,null,null,null,null,null,null,null,null,null,null,null,null,1]
[null,null,null,null,null,null,null,null,null,null,null,null,null,null,null,null,null,null,1]
[null,null,null,null,null,null,null,null,null,null,null,null,null,null,null,null,null,null,1]
[null,null,null,null,null,null,null,null,null,null,null,null,null,null,null,null,null,null,1]
[null,null,null,null,null,null,null,null,null,null,null,null,null,null,null,null,null,null,1]
[null,null,null,null,null,null,null,null,null,null,null,null,null,null,null,null,null,null,1]
[null,null,null,null,null,null,null,null,null,null,null,null,null,null,null,null,null,null,1]
[null,null,null,null,null,null,null,null,null,null,null,null,null,null,null,null,null,null,1]
[null,null,null,null,null,null,null,null,null,null,null,null,null,null,null,null,null,null,1]
[null,null,null,null,null,null,null,null,null,null,null,null,null,null,null,null,null,null,1]
[null,null,null,null,null,null,null,null,null,null,null,null,null,null,null,null,null,null,1]
[null,null,null,null,null,null,null,null,null,null,null,null,null,null,null,null,null,null,1]
[null,null,null,null,null,null,null,null,null,null,null,null,null,null,null,null,null,null,1]
[null,null,null,null,null,null,null,null,null,null,null,null,null,null,null,null,null,null,1]
[null,null,null,null,null,null,null,null,null,null,null,null,null,null,null,null,null,null,1]
[null,null,null,null,null,null,null,null,null,null,null,null,null,null,null,null,null,null,1]
[null,null,null,null,null,null,null,null,null,null,null,null,null,null,null,null,null,null,1]
[null,null,null,null,null,null,null,null,null,null,null,null,null,null,null,null,null,null,1]
[null,null,null,null,null,null,null,null,null,null,null,null,null,null,null,null,null,null,1]
[null,null,null,null,null,null,null,null,null,null,null,null,null,null,null,null,null,null,1]
[null,null,null,null,null,null,null,null,null,null,null,null,null,null,null,null,null,null,1]
[null,null,null,null,null,null,null,null,null,null,null,null,null,null,null,null,null,null,1]
[null,null,null,null,null,null,null,null,null,null,null,null,null,null,null,null,null,null,1]
[null,null,null,null,null,null,null,null,null,null,null,null,null,null,null,null,null,null,1]
[null,null,null,null,null,null,null,null,null,null,null,null,null,null,null,null,null,null,1]
[null,null,null,null,null,null,null,null,null,null,null,null,null,null,null,null,null,null,1]
[null,null,null,null,null,null,null,null,null,null,null,null,null,null,null,null,null,null,1]
[null,null,null,null,null,null,null,null,null,null,null,null,null,null,null,null,null,null,1]
[null,null,null,null,null,null,null,null,null,null,null,null,null,null,null,null,null,null,1]
[null,null,null,null,null,null,null,null,null,null,null,null,null,null,null,null,null,null,1]
[null,null,null,null,null,null,null,null,null,null,null,null,null,null,null,null,null,null,1]
[null,null,null,null,null,null,null,null,null,null,null,null,null,null,null,null,null,null,1]
[null,null,null,null,null,null,null,null,null,null,null,null,null,null,null,null,null,null,1]
[null,null,null,null,null,null,null,null,null,null,null,null,null,null,null,null,null,null,1]
[null,null,null,null,null,null,null,null,null,null,null,null,null,null,null,null,null,null,1]
[null,null,null,null,null,null,null,null,null,null,null,null,null,null,null,null,null,null,1]
[null,null,null,null,null,null,null,null,null,null,null,null,null,null,null,null,null,null,1]
[null,null,null,null,null,null,null,null,null,null,null,null,null,null,null,null,null,null,1]
[null,null,null,null,null,null,null,null,null,null,null,null,null,null,null,null,null,null,1]
[null,null,null,null,null,null,null,null,null,null,null,null,null,null,null,null,null,null,1]
[null,null,null,null,null,null,null,null,null,null,null,null,null,null,null,null,null,null,1]
[null,null,null,null,null,null,null,null,null,null,null,null,null,null,null,null,null,null,1]
[null,null,null,null,null,null,null,null,null,null,null,null,null,null,null,null,null,null,1]
[null,null,null,null,null,null,null,null,null,null,null,null,null,null,null,null,null,null,1]
[null,null,null,null,null,null,null,null,null,null,null,null,null,null,null,null,null,null,1]
[null,null,null,null,null,null,null,null,null,null,null,null,null,null,null,null,null,null,1]
[null,null,null,null,null,null,null,null,null,null,null,null,null,null,null,null,null,null,1]
[null,null,null,null,null,null,null,null,null,null,null,null,null,null,null,null,null,null,1]
[null,null,null,null,null,null,null,null,null,null,null,null,null,null,null,null,null,null,1]
[null,null,null,null,null,null,null,null,null,null,null,null,null,null,null,null,null,null,1]
[null,null,null,null,null,null,null,null,null,null,null,null,null,null,null,null,null,null,1]
[null,null,null,null,null,null,null,null,null,null,null,null,null,null,null,null,null,null,1]
[null,null,null,null,null,null,null,null,null,null,null,null,null,null,null,null,null,null,1]
[null,null,null,null,null,null,null,null,null,null,null,null,null,null,null,null,null,null,1]
[null,null,null,null,null,null,null,null,null,null,null,null,null,null,null,null,null,null,1]
[null,null,null,null,null,null,null,null,null,null,null,null,null,null,null,null,null,null,1]
[null,null,null,null,null,null,null,null,null,null,null,null,null,null,null,null,null,null,1]
[null,null,null,null,null,null,null,null,null,null,null,null,null,null,null,null,null,null,{"$f":"IF(S578= \"\", 1, IF(R578= \"\",IF(ISNUMBER(S578)=FALSE, 0, S578), IF(ISNUMBER(S578)=FALSE, 0, S578) + 1))","v":1}]
[null,null,null,null,null,null,null,null,null,null,null,null,null,null,null,null,null,null,1]
[null,null,null,null,null,null,null,null,null,null,null,null,null,null,null,null,null,null,1]
[null,null,null,null,null,null,null,null,null,null,null,null,null,null,null,null,null,null,1]
[null,null,null,null,null,null,null,null,null,null,null,null,null,null,null,null,null,null,1]
[null,null,null,null,null,null,null,null,null,null,null,null,null,null,null,null,null,null,1]
[null,null,null,null,null,null,null,null,null,null,null,null,null,null,null,null,null,null,1]
[null,null,null,null,null,null,null,null,null,null,null,null,null,null,null,null,null,null,1]
[null,null,null,null,null,null,null,null,null,null,null,null,null,null,null,null,null,null,1]
[null,null,null,null,null,null,null,null,null,null,null,null,null,null,null,null,null,null,1]
[null,null,null,null,null,null,null,null,null,null,null,null,null,null,null,null,null,null,1]
[null,null,null,null,null,null,null,null,null,null,null,null,null,null,null,null,null,null,1]
[null,null,null,null,null,null,null,null,null,null,null,null,null,null,null,null,null,null,1]
[null,null,null,null,null,null,null,null,null,null,null,null,null,null,null,null,null,null,1]
[null,null,null,null,null,null,null,null,null,null,null,null,null,null,null,null,null,null,1]
[null,null,null,null,null,null,null,null,null,null,null,null,null,null,null,null,null,null,1]
[null,null,null,null,null,null,null,null,null,null,null,null,null,null,null,null,null,null,1]
[null,null,null,null,null,null,null,null,null,null,null,null,null,null,null,null,null,null,1]
[null,null,null,null,null,null,null,null,null,null,null,null,null,null,null,null,null,null,1]
[null,null,null,null,null,null,null,null,null,null,null,null,null,null,null,null,null,null,1]
[null,null,null,null,null,null,null,null,null,null,null,null,null,null,null,null,null,null,1]
[null,null,null,null,null,null,null,null,null,null,null,null,null,null,null,null,null,null,1]
[null,null,null,null,null,null,null,null,null,null,null,null,null,null,null,null,null,null,1]
[null,null,null,null,null,null,null,null,null,null,null,null,null,null,null,null,null,null,1]
[null,null,null,null,null,null,null,null,null,null,null,null,null,null,null,null,null,null,1]
[null,null,null,null,null,null,null,null,null,null,null,null,null,null,null,null,null,null,1]
[null,null,null,null,null,null,null,null,null,null,null,null,null,null,null,null,null,null,1]
[null,null,null,null,null,null,null,null,null,null,null,null,null,null,null,null,null,null,1]
[null,null,null,null,null,null,null,null,null,null,null,null,null,null,null,null,null,null,1]
[null,null,null,null,null,null,null,null,null,null,null,null,null,null,null,null,null,null,1]
[null,null,null,null,null,null,null,null,null,null,null,null,null,null,null,null,null,null,1]
[null,null,null,null,null,null,null,null,null,null,null,null,null,null,null,null,null,null,1]
[null,null,null,null,null,null,null,null,null,null,null,null,null,null,null,null,null,null,1]
[null,null,null,null,null,null,null,null,null,null,null,null,null,null,null,null,null,null,1]
[null,null,null,null,null,null,null,null,null,null,null,null,null,null,null,null,null,null,1]
[null,null,null,null,null,null,null,null,null,null,null,null,null,null,null,null,null,null,1]
[null,null,null,null,null,null,null,null,null,null,null,null,null,null,null,null,null,null,1]
[null,null,null,null,null,null,null,null,null,null,null,null,null,null,null,null,null,null,1]
[null,null,null,null,null,null,null,null,null,null,null,null,null,null,null,null,null,null,1]
[null,null,null,null,null,null,null,null,null,null,null,null,null,null,null,null,null,null,1]
[null,null,null,null,null,null,null,null,null,null,null,null,null,null,null,null,null,null,1]
[null,null,null,null,null,null,null,null,null,null,null,null,null,null,null,null,null,null,1]
[null,null,null,null,null,null,null,null,null,null,null,null,null,null,null,null,null,null,1]
[null,null,null,null,null,null,null,null,null,null,null,null,null,null,null,null,null,null,1]
[null,null,null,null,null,null,null,null,null,null,null,null,null,null,null,null,null,null,1]
[null,null,null,null,null,null,null,null,null,null,null,null,null,null,null,null,null,null,1]
[null,null,null,null,null,null,null,null,null,null,null,null,null,null,null,null,null,null,1]
[null,null,null,null,null,null,null,null,null,null,null,null,null,null,null,null,null,null,1]
[null,null,null,null,null,null,null,null,null,null,null,null,null,null,null,null,null,null,1]
[null,null,null,null,null,null,null,null,null,null,null,null,null,null,null,null,null,null,1]
[null,null,null,null,null,null,null,null,null,null,null,null,null,null,null,null,null,null,1]
[null,null,null,null,null,null,null,null,null,null,null,null,null,null,null,null,null,null,1]
[null,null,null,null,null,null,null,null,null,null,null,null,null,null,null,null,null,null,1]
[null,null,null,null,null,null,null,null,null,null,null,null,null,null,null,null,null,null,1]
[null,null,null,null,null,null,null,null,null,null,null,null,null,null,null,null,null,null,1]
[null,null,null,null,null,null,null,null,null,null,null,null,null,null,null,null,null,null,1]
[null,null,null,null,null,null,null,null,null,null,null,null,null,null,null,null,null,null,1]
[null,null,null,null,null,null,null,null,null,null,null,null,null,null,null,null,null,null,1]
[null,null,null,null,null,null,null,null,null,null,null,null,null,null,null,null,null,null,1]
[null,null,null,null,null,null,null,null,null,null,null,null,null,null,null,null,null,null,1]
[null,null,null,null,null,null,null,null,null,null,null,null,null,null,null,null,null,null,1]
[null,null,null,null,null,null,null,null,null,null,null,null,null,null,null,null,null,null,1]
[null,null,null,null,null,null,null,null,null,null,null,null,null,null,null,null,null,null,1]
[null,null,null,null,null,null,null,null,null,null,null,null,null,null,null,null,null,null,1]
[null,null,null,null,null,null,null,null,null,null,null,null,null,null,null,null,null,null,{"$f":"IF(S642= \"\", 1, IF(R642= \"\",IF(ISNUMBER(S642)=FALSE, 0, S642), IF(ISNUMBER(S642)=FALSE, 0, S642) + 1))","v":1}]
[null,null,null,null,null,null,null,null,null,null,null,null,null,null,null,null,null,null,1]
[null,null,null,null,null,null,null,null,null,null,null,null,null,null,null,null,null,null,1]
[null,null,null,null,null,null,null,null,null,null,null,null,null,null,null,null,null,null,1]
[null,null,null,null,null,null,null,null,null,null,null,null,null,null,null,null,null,null,1]
[null,null,null,null,null,null,null,null,null,null,null,null,null,null,null,null,null,null,1]
[null,null,null,null,null,null,null,null,null,null,null,null,null,null,null,null,null,null,1]
[null,null,null,null,null,null,null,null,null,null,null,null,null,null,null,null,null,null,1]
[null,null,null,null,null,null,null,null,null,null,null,null,null,null,null,null,null,null,1]
[null,null,null,null,null,null,null,null,null,null,null,null,null,null,null,null,null,null,1]
[null,null,null,null,null,null,null,null,null,null,null,null,null,null,null,null,null,null,1]
[null,null,null,null,null,null,null,null,null,null,null,null,null,null,null,null,null,null,1]
[null,null,null,null,null,null,null,null,null,null,null,null,null,null,null,null,null,null,1]
[null,null,null,null,null,null,null,null,null,null,null,null,null,null,null,null,null,null,1]
[null,null,null,null,null,null,null,null,null,null,null,null,null,null,null,null,null,null,1]
[null,null,null,null,null,null,null,null,null,null,null,null,null,null,null,null,null,null,1]
[null,null,null,null,null,null,null,null,null,null,null,null,null,null,null,null,null,null,1]
[null,null,null,null,null,null,null,null,null,null,null,null,null,null,null,null,null,null,1]
[null,null,null,null,null,null,null,null,null,null,null,null,null,null,null,null,null,null,1]
[null,null,null,null,null,null,null,null,null,null,null,null,null,null,null,null,null,null,1]
[null,null,null,null,null,null,null,null,null,null,null,null,null,null,null,null,null,null,1]
[null,null,null,null,null,null,null,null,null,null,null,null,null,null,null,null,null,null,1]
[null,null,null,null,null,null,null,null,null,null,null,null,null,null,null,null,null,null,1]
[null,null,null,null,null,null,null,null,null,null,null,null,null,null,null,null,null,null,1]
[null,null,null,null,null,null,null,null,null,null,null,null,null,null,null,null,null,null,1]
[null,null,null,null,null,null,null,null,null,null,null,null,null,null,null,null,null,null,1]
[null,null,null,null,null,null,null,null,null,null,null,null,null,null,null,null,null,null,1]
[null,null,null,null,null,null,null,null,null,null,null,null,null,null,null,null,null,null,1]
[null,null,null,null,null,null,null,null,null,null,null,null,null,null,null,null,null,null,1]
[null,null,null,null,null,null,null,null,null,null,null,null,null,null,null,null,null,null,1]
[null,null,null,null,null,null,null,null,null,null,null,null,null,null,null,null,null,null,1]
[null,null,null,null,null,null,null,null,null,null,null,null,null,null,null,null,null,null,1]
[null,null,null,null,null,null,null,null,null,null,null,null,null,null,null,null,null,null,1]
[null,null,null,null,null,null,null,null,null,null,null,null,null,null,null,null,null,null,1]
[null,null,null,null,null,null,null,null,null,null,null,null,null,null,null,null,null,null,1]
[null,null,null,null,null,null,null,null,null,null,null,null,null,null,null,null,null,null,1]
[null,null,null,null,null,null,null,null,null,null,null,null,null,null,null,null,null,null,1]
[null,null,null,null,null,null,null,null,null,null,null,null,null,null,null,null,null,null,1]
[null,null,null,null,null,null,null,null,null,null,null,null,null,null,null,null,null,null,1]
[null,null,null,null,null,null,null,null,null,null,null,null,null,null,null,null,null,null,1]
[null,null,null,null,null,null,null,null,null,null,null,null,null,null,null,null,null,null,1]
[null,null,null,null,null,null,null,null,null,null,null,null,null,null,null,null,null,null,1]
[null,null,null,null,null,null,null,null,null,null,null,null,null,null,null,null,null,null,1]
[null,null,null,null,null,null,null,null,null,null,null,null,null,null,null,null,null,null,1]
[null,null,null,null,null,null,null,null,null,null,null,null,null,null,null,null,null,null,1]
[null,null,null,null,null,null,null,null,null,null,null,null,null,null,null,null,null,null,1]
[null,null,null,null,null,null,null,null,null,null,null,null,null,null,null,null,null,null,1]
[null,null,null,null,null,null,null,null,null,null,null,null,null,null,null,null,null,null,1]
[null,null,null,null,null,null,null,null,null,null,null,null,null,null,null,null,null,null,1]
[null,null,null,null,null,null,null,null,null,null,null,null,null,null,null,null,null,null,1]
[null,null,null,null,null,null,null,null,null,null,null,null,null,null,null,null,null,null,1]
[null,null,null,null,null,null,null,null,null,null,null,null,null,null,null,null,null,null,1]
[null,null,null,null,null,null,null,null,null,null,null,null,null,null,null,null,null,null,1]
[null,null,null,null,null,null,null,null,null,null,null,null,null,null,null,null,null,null,1]
[null,null,null,null,null,null,null,null,null,null,null,null,null,null,null,null,null,null,1]
[null,null,null,null,null,null,null,null,null,null,null,null,null,null,null,null,null,null,1]
[null,null,null,null,null,null,null,null,null,null,null,null,null,null,null,null,null,null,1]
[null,null,null,null,null,null,null,null,null,null,null,null,null,null,null,null,null,null,1]
[null,null,null,null,null,null,null,null,null,null,null,null,null,null,null,null,null,null,1]
[null,null,null,null,null,null,null,null,null,null,null,null,null,null,null,null,null,null,1]
[null,null,null,null,null,null,null,null,null,null,null,null,null,null,null,null,null,null,1]
[null,null,null,null,null,null,null,null,null,null,null,null,null,null,null,null,null,null,1]
[null,null,null,null,null,null,null,null,null,null,null,null,null,null,null,null,null,null,1]
[null,null,null,null,null,null,null,null,null,null,null,null,null,null,null,null,null,null,1]
[null,null,null,null,null,null,null,null,null,null,null,null,null,null,null,null,null,null,{"$f":"IF(S706= \"\", 1, IF(R706= \"\",IF(ISNUMBER(S706)=FALSE, 0, S706), IF(ISNUMBER(S706)=FALSE, 0, S706) + 1))","v":1}]
[null,null,null,null,null,null,null,null,null,null,null,null,null,null,null,null,null,null,1]
[null,null,null,null,null,null,null,null,null,null,null,null,null,null,null,null,null,null,1]
[null,null,null,null,null,null,null,null,null,null,null,null,null,null,null,null,null,null,1]
[null,null,null,null,null,null,null,null,null,null,null,null,null,null,null,null,null,null,1]
[null,null,null,null,null,null,null,null,null,null,null,null,null,null,null,null,null,null,1]
[null,null,null,null,null,null,null,null,null,null,null,null,null,null,null,null,null,null,1]
[null,null,null,null,null,null,null,null,null,null,null,null,null,null,null,null,null,null,1]
[null,null,null,null,null,null,null,null,null,null,null,null,null,null,null,null,null,null,1]
[null,null,null,null,null,null,null,null,null,null,null,null,null,null,null,null,null,null,1]
[null,null,null,null,null,null,null,null,null,null,null,null,null,null,null,null,null,null,1]
[null,null,null,null,null,null,null,null,null,null,null,null,null,null,null,null,null,null,1]
[null,null,null,null,null,null,null,null,null,null,null,null,null,null,null,null,null,null,1]
[null,null,null,null,null,null,null,null,null,null,null,null,null,null,null,null,null,null,1]
[null,null,null,null,null,null,null,null,null,null,null,null,null,null,null,null,null,null,1]
[null,null,null,null,null,null,null,null,null,null,null,null,null,null,null,null,null,null,1]
[null,null,null,null,null,null,null,null,null,null,null,null,null,null,null,null,null,null,1]
[null,null,null,null,null,null,null,null,null,null,null,null,null,null,null,null,null,null,1]
[null,null,null,null,null,null,null,null,null,null,null,null,null,null,null,null,null,null,1]
[null,null,null,null,null,null,null,null,null,null,null,null,null,null,null,null,null,null,1]
[null,null,null,null,null,null,null,null,null,null,null,null,null,null,null,null,null,null,1]
[null,null,null,null,null,null,null,null,null,null,null,null,null,null,null,null,null,null,1]
[null,null,null,null,null,null,null,null,null,null,null,null,null,null,null,null,null,null,1]
[null,null,null,null,null,null,null,null,null,null,null,null,null,null,null,null,null,null,1]
[null,null,null,null,null,null,null,null,null,null,null,null,null,null,null,null,null,null,1]
[null,null,null,null,null,null,null,null,null,null,null,null,null,null,null,null,null,null,1]
[null,null,null,null,null,null,null,null,null,null,null,null,null,null,null,null,null,null,1]
[null,null,null,null,null,null,null,null,null,null,null,null,null,null,null,null,null,null,1]
[null,null,null,null,null,null,null,null,null,null,null,null,null,null,null,null,null,null,1]
[null,null,null,null,null,null,null,null,null,null,null,null,null,null,null,null,null,null,1]
[null,null,null,null,null,null,null,null,null,null,null,null,null,null,null,null,null,null,1]
[null,null,null,null,null,null,null,null,null,null,null,null,null,null,null,null,null,null,1]
[null,null,null,null,null,null,null,null,null,null,null,null,null,null,null,null,null,null,1]
[null,null,null,null,null,null,null,null,null,null,null,null,null,null,null,null,null,null,1]
[null,null,null,null,null,null,null,null,null,null,null,null,null,null,null,null,null,null,1]
[null,null,null,null,null,null,null,null,null,null,null,null,null,null,null,null,null,null,1]
[null,null,null,null,null,null,null,null,null,null,null,null,null,null,null,null,null,null,1]
[null,null,null,null,null,null,null,null,null,null,null,null,null,null,null,null,null,null,1]
[null,null,null,null,null,null,null,null,null,null,null,null,null,null,null,null,null,null,1]
[null,null,null,null,null,null,null,null,null,null,null,null,null,null,null,null,null,null,1]
[null,null,null,null,null,null,null,null,null,null,null,null,null,null,null,null,null,null,1]
[null,null,null,null,null,null,null,null,null,null,null,null,null,null,null,null,null,null,1]
[null,null,null,null,null,null,null,null,null,null,null,null,null,null,null,null,null,null,1]
[null,null,null,null,null,null,null,null,null,null,null,null,null,null,null,null,null,null,1]
[null,null,null,null,null,null,null,null,null,null,null,null,null,null,null,null,null,null,1]
[null,null,null,null,null,null,null,null,null,null,null,null,null,null,null,null,null,null,1]
[null,null,null,null,null,null,null,null,null,null,null,null,null,null,null,null,null,null,1]
[null,null,null,null,null,null,null,null,null,null,null,null,null,null,null,null,null,null,1]
[null,null,null,null,null,null,null,null,null,null,null,null,null,null,null,null,null,null,1]
[null,null,null,null,null,null,null,null,null,null,null,null,null,null,null,null,null,null,1]
[null,null,null,null,null,null,null,null,null,null,null,null,null,null,null,null,null,null,1]
[null,null,null,null,null,null,null,null,null,null,null,null,null,null,null,null,null,null,1]
[null,null,null,null,null,null,null,null,null,null,null,null,null,null,null,null,null,null,1]
[null,null,null,null,null,null,null,null,null,null,null,null,null,null,null,null,null,null,1]
[null,null,null,null,null,null,null,null,null,null,null,null,null,null,null,null,null,null,1]
[null,null,null,null,null,null,null,null,null,null,null,null,null,null,null,null,null,null,1]
[null,null,null,null,null,null,null,null,null,null,null,null,null,null,null,null,null,null,1]
[null,null,null,null,null,null,null,null,null,null,null,null,null,null,null,null,null,null,1]
[null,null,null,null,null,null,null,null,null,null,null,null,null,null,null,null,null,null,1]
[null,null,null,null,null,null,null,null,null,null,null,null,null,null,null,null,null,null,1]
[null,null,null,null,null,null,null,null,null,null,null,null,null,null,null,null,null,null,1]
[null,null,null,null,null,null,null,null,null,null,null,null,null,null,null,null,null,null,1]
[null,null,null,null,null,null,null,null,null,null,null,null,null,null,null,null,null,null,1]
[null,null,null,null,null,null,null,null,null,null,null,null,null,null,null,null,null,null,1]
[null,null,null,null,null,null,null,null,null,null,null,null,null,null,null,null,null,null,{"$f":"IF(S770= \"\", 1, IF(R770= \"\",IF(ISNUMBER(S770)=FALSE, 0, S770), IF(ISNUMBER(S770)=FALSE, 0, S770) + 1))","v":1}]
[null,null,null,null,null,null,null,null,null,null,null,null,null,null,null,null,null,null,1]
[null,null,null,null,null,null,null,null,null,null,null,null,null,null,null,null,null,null,1]
[null,null,null,null,null,null,null,null,null,null,null,null,null,null,null,null,null,null,1]
[null,null,null,null,null,null,null,null,null,null,null,null,null,null,null,null,null,null,1]
[null,null,null,null,null,null,null,null,null,null,null,null,null,null,null,null,null,null,1]
[null,null,null,null,null,null,null,null,null,null,null,null,null,null,null,null,null,null,1]
[null,null,null,null,null,null,null,null,null,null,null,null,null,null,null,null,null,null,1]
[null,null,null,null,null,null,null,null,null,null,null,null,null,null,null,null,null,null,1]
[null,null,null,null,null,null,null,null,null,null,null,null,null,null,null,null,null,null,1]
[null,null,null,null,null,null,null,null,null,null,null,null,null,null,null,null,null,null,1]
[null,null,null,null,null,null,null,null,null,null,null,null,null,null,null,null,null,null,1]
[null,null,null,null,null,null,null,null,null,null,null,null,null,null,null,null,null,null,1]
[null,null,null,null,null,null,null,null,null,null,null,null,null,null,null,null,null,null,1]
[null,null,null,null,null,null,null,null,null,null,null,null,null,null,null,null,null,null,1]
[null,null,null,null,null,null,null,null,null,null,null,null,null,null,null,null,null,null,1]
[null,null,null,null,null,null,null,null,null,null,null,null,null,null,null,null,null,null,1]
[null,null,null,null,null,null,null,null,null,null,null,null,null,null,null,null,null,null,1]
[null,null,null,null,null,null,null,null,null,null,null,null,null,null,null,null,null,null,1]
[null,null,null,null,null,null,null,null,null,null,null,null,null,null,null,null,null,null,1]
[null,null,null,null,null,null,null,null,null,null,null,null,null,null,null,null,null,null,1]
[null,null,null,null,null,null,null,null,null,null,null,null,null,null,null,null,null,null,1]
[null,null,null,null,null,null,null,null,null,null,null,null,null,null,null,null,null,null,1]
[null,null,null,null,null,null,null,null,null,null,null,null,null,null,null,null,null,null,1]
[null,null,null,null,null,null,null,null,null,null,null,null,null,null,null,null,null,null,1]
[null,null,null,null,null,null,null,null,null,null,null,null,null,null,null,null,null,null,1]
[null,null,null,null,null,null,null,null,null,null,null,null,null,null,null,null,null,null,1]
[null,null,null,null,null,null,null,null,null,null,null,null,null,null,null,null,null,null,1]
[null,null,null,null,null,null,null,null,null,null,null,null,null,null,null,null,null,null,1]
[null,null,null,null,null,null,null,null,null,null,null,null,null,null,null,null,null,null,1]
[null,null,null,null,null,null,null,null,null,null,null,null,null,null,null,null,null,null,1]
[null,null,null,null,null,null,null,null,null,null,null,null,null,null,null,null,null,null,1]
[null,null,null,null,null,null,null,null,null,null,null,null,null,null,null,null,null,null,1]
[null,null,null,null,null,null,null,null,null,null,null,null,null,null,null,null,null,null,1]
[null,null,null,null,null,null,null,null,null,null,null,null,null,null,null,null,null,null,1]
[null,null,null,null,null,null,null,null,null,null,null,null,null,null,null,null,null,null,1]
[null,null,null,null,null,null,null,null,null,null,null,null,null,null,null,null,null,null,1]
[null,null,null,null,null,null,null,null,null,null,null,null,null,null,null,null,null,null,1]
[null,null,null,null,null,null,null,null,null,null,null,null,null,null,null,null,null,null,1]
[null,null,null,null,null,null,null,null,null,null,null,null,null,null,null,null,null,null,1]
[null,null,null,null,null,null,null,null,null,null,null,null,null,null,null,null,null,null,1]
[null,null,null,null,null,null,null,null,null,null,null,null,null,null,null,null,null,null,1]
[null,null,null,null,null,null,null,null,null,null,null,null,null,null,null,null,null,null,1]
[null,null,null,null,null,null,null,null,null,null,null,null,null,null,null,null,null,null,1]
[null,null,null,null,null,null,null,null,null,null,null,null,null,null,null,null,null,null,1]
[null,null,null,null,null,null,null,null,null,null,null,null,null,null,null,null,null,null,1]
[null,null,null,null,null,null,null,null,null,null,null,null,null,null,null,null,null,null,1]
[null,null,null,null,null,null,null,null,null,null,null,null,null,null,null,null,null,null,1]
[null,null,null,null,null,null,null,null,null,null,null,null,null,null,null,null,null,null,1]
[null,null,null,null,null,null,null,null,null,null,null,null,null,null,null,null,null,null,1]
[null,null,null,null,null,null,null,null,null,null,null,null,null,null,null,null,null,null,1]
[null,null,null,null,null,null,null,null,null,null,null,null,null,null,null,null,null,null,1]
[null,null,null,null,null,null,null,null,null,null,null,null,null,null,null,null,null,null,1]
[null,null,null,null,null,null,null,null,null,null,null,null,null,null,null,null,null,null,1]
[null,null,null,null,null,null,null,null,null,null,null,null,null,null,null,null,null,null,1]
[null,null,null,null,null,null,null,null,null,null,null,null,null,null,null,null,null,null,1]
[null,null,null,null,null,null,null,null,null,null,null,null,null,null,null,null,null,null,1]
[null,null,null,null,null,null,null,null,null,null,null,null,null,null,null,null,null,null,1]
[null,null,null,null,null,null,null,null,null,null,null,null,null,null,null,null,null,null,1]
[null,null,null,null,null,null,null,null,null,null,null,null,null,null,null,null,null,null,1]
[null,null,null,null,null,null,null,null,null,null,null,null,null,null,null,null,null,null,1]
[null,null,null,null,null,null,null,null,null,null,null,null,null,null,null,null,null,null,1]
[null,null,null,null,null,null,null,null,null,null,null,null,null,null,null,null,null,null,1]
[null,null,null,null,null,null,null,null,null,null,null,null,null,null,null,null,null,null,1]
[null,null,null,null,null,null,null,null,null,null,null,null,null,null,null,null,null,null,{"$f":"IF(S834= \"\", 1, IF(R834= \"\",IF(ISNUMBER(S834)=FALSE, 0, S834), IF(ISNUMBER(S834)=FALSE, 0, S834) + 1))","v":1}]
[null,null,null,null,null,null,null,null,null,null,null,null,null,null,null,null,null,null,1]
[null,null,null,null,null,null,null,null,null,null,null,null,null,null,null,null,null,null,1]
[null,null,null,null,null,null,null,null,null,null,null,null,null,null,null,null,null,null,1]
[null,null,null,null,null,null,null,null,null,null,null,null,null,null,null,null,null,null,1]
[null,null,null,null,null,null,null,null,null,null,null,null,null,null,null,null,null,null,1]
[null,null,null,null,null,null,null,null,null,null,null,null,null,null,null,null,null,null,1]
[null,null,null,null,null,null,null,null,null,null,null,null,null,null,null,null,null,null,1]
[null,null,null,null,null,null,null,null,null,null,null,null,null,null,null,null,null,null,1]
[null,null,null,null,null,null,null,null,null,null,null,null,null,null,null,null,null,null,1]
[null,null,null,null,null,null,null,null,null,null,null,null,null,null,null,null,null,null,1]
[null,null,null,null,null,null,null,null,null,null,null,null,null,null,null,null,null,null,1]
[null,null,null,null,null,null,null,null,null,null,null,null,null,null,null,null,null,null,1]
[null,null,null,null,null,null,null,null,null,null,null,null,null,null,null,null,null,null,1]
[null,null,null,null,null,null,null,null,null,null,null,null,null,null,null,null,null,null,1]
[null,null,null,null,null,null,null,null,null,null,null,null,null,null,null,null,null,null,1]
[null,null,null,null,null,null,null,null,null,null,null,null,null,null,null,null,null,null,1]
[null,null,null,null,null,null,null,null,null,null,null,null,null,null,null,null,null,null,1]
[null,null,null,null,null,null,null,null,null,null,null,null,null,null,null,null,null,null,1]
[null,null,null,null,null,null,null,null,null,null,null,null,null,null,null,null,null,null,1]
[null,null,null,null,null,null,null,null,null,null,null,null,null,null,null,null,null,null,1]
[null,null,null,null,null,null,null,null,null,null,null,null,null,null,null,null,null,null,1]
[null,null,null,null,null,null,null,null,null,null,null,null,null,null,null,null,null,null,1]
[null,null,null,null,null,null,null,null,null,null,null,null,null,null,null,null,null,null,1]
[null,null,null,null,null,null,null,null,null,null,null,null,null,null,null,null,null,null,1]
[null,null,null,null,null,null,null,null,null,null,null,null,null,null,null,null,null,null,1]
[null,null,null,null,null,null,null,null,null,null,null,null,null,null,null,null,null,null,1]
[null,null,null,null,null,null,null,null,null,null,null,null,null,null,null,null,null,null,1]
[null,null,null,null,null,null,null,null,null,null,null,null,null,null,null,null,null,null,1]
[null,null,null,null,null,null,null,null,null,null,null,null,null,null,null,null,null,null,1]
[null,null,null,null,null,null,null,null,null,null,null,null,null,null,null,null,null,null,1]
[null,null,null,null,null,null,null,null,null,null,null,null,null,null,null,null,null,null,1]
[null,null,null,null,null,null,null,null,null,null,null,null,null,null,null,null,null,null,1]
[null,null,null,null,null,null,null,null,null,null,null,null,null,null,null,null,null,null,1]
[null,null,null,null,null,null,null,null,null,null,null,null,null,null,null,null,null,null,1]
[null,null,null,null,null,null,null,null,null,null,null,null,null,null,null,null,null,null,1]
[null,null,null,null,null,null,null,null,null,null,null,null,null,null,null,null,null,null,1]
[null,null,null,null,null,null,null,null,null,null,null,null,null,null,null,null,null,null,1]
[null,null,null,null,null,null,null,null,null,null,null,null,null,null,null,null,null,null,1]
[null,null,null,null,null,null,null,null,null,null,null,null,null,null,null,null,null,null,1]
[null,null,null,null,null,null,null,null,null,null,null,null,null,null,null,null,null,null,1]
[null,null,null,null,null,null,null,null,null,null,null,null,null,null,null,null,null,null,1]
[null,null,null,null,null,null,null,null,null,null,null,null,null,null,null,null,null,null,1]
[null,null,null,null,null,null,null,null,null,null,null,null,null,null,null,null,null,null,1]
[null,null,null,null,null,null,null,null,null,null,null,null,null,null,null,null,null,null,1]
[null,null,null,null,null,null,null,null,null,null,null,null,null,null,null,null,null,null,1]
[null,null,null,null,null,null,null,null,null,null,null,null,null,null,null,null,null,null,1]
[null,null,null,null,null,null,null,null,null,null,null,null,null,null,null,null,null,null,1]
[null,null,null,null,null,null,null,null,null,null,null,null,null,null,null,null,null,null,1]
[null,null,null,null,null,null,null,null,null,null,null,null,null,null,null,null,null,null,1]
[null,null,null,null,null,null,null,null,null,null,null,null,null,null,null,null,null,null,1]
[null,null,null,null,null,null,null,null,null,null,null,null,null,null,null,null,null,null,1]
[null,null,null,null,null,null,null,null,null,null,null,null,null,null,null,null,null,null,1]
[null,null,null,null,null,null,null,null,null,null,null,null,null,null,null,null,null,null,1]
[null,null,null,null,null,null,null,null,null,null,null,null,null,null,null,null,null,null,1]
[null,null,null,null,null,null,null,null,null,null,null,null,null,null,null,null,null,null,1]
[null,null,null,null,null,null,null,null,null,null,null,null,null,null,null,null,null,null,1]
[null,null,null,null,null,null,null,null,null,null,null,null,null,null,null,null,null,null,1]
[null,null,null,null,null,null,null,null,null,null,null,null,null,null,null,null,null,null,1]
[null,null,null,null,null,null,null,null,null,null,null,null,null,null,null,null,null,null,1]
[null,null,null,null,null,null,null,null,null,null,null,null,null,null,null,null,null,null,1]
[null,null,null,null,null,null,null,null,null,null,null,null,null,null,null,null,null,null,1]
[null,null,null,null,null,null,null,null,null,null,null,null,null,null,null,null,null,null,1]
[null,null,null,null,null,null,null,null,null,null,null,null,null,null,null,null,null,null,1]
[null,null,null,null,null,null,null,null,null,null,null,null,null,null,null,null,null,null,{"$f":"IF(S898= \"\", 1, IF(R898= \"\",IF(ISNUMBER(S898)=FALSE, 0, S898), IF(ISNUMBER(S898)=FALSE, 0, S898) + 1))","v":1}]
[null,null,null,null,null,null,null,null,null,null,null,null,null,null,null,null,null,null,1]
[null,null,null,null,null,null,null,null,null,null,null,null,null,null,null,null,null,null,1]
[null,null,null,null,null,null,null,null,null,null,null,null,null,null,null,null,null,null,1]
[null,null,null,null,null,null,null,null,null,null,null,null,null,null,null,null,null,null,1]
[null,null,null,null,null,null,null,null,null,null,null,null,null,null,null,null,null,null,1]
[null,null,null,null,null,null,null,null,null,null,null,null,null,null,null,null,null,null,1]
[null,null,null,null,null,null,null,null,null,null,null,null,null,null,null,null,null,null,1]
[null,null,null,null,null,null,null,null,null,null,null,null,null,null,null,null,null,null,1]
[null,null,null,null,null,null,null,null,null,null,null,null,null,null,null,null,null,null,1]
[null,null,null,null,null,null,null,null,null,null,null,null,null,null,null,null,null,null,1]
[null,null,null,null,null,null,null,null,null,null,null,null,null,null,null,null,null,null,1]
[null,null,null,null,null,null,null,null,null,null,null,null,null,null,null,null,null,null,1]
[null,null,null,null,null,null,null,null,null,null,null,null,null,null,null,null,null,null,1]
[null,null,null,null,null,null,null,null,null,null,null,null,null,null,null,null,null,null,1]
[null,null,null,null,null,null,null,null,null,null,null,null,null,null,null,null,null,null,1]
[null,null,null,null,null,null,null,null,null,null,null,null,null,null,null,null,null,null,1]
[null,null,null,null,null,null,null,null,null,null,null,null,null,null,null,null,null,null,1]
[null,null,null,null,null,null,null,null,null,null,null,null,null,null,null,null,null,null,1]
[null,null,null,null,null,null,null,null,null,null,null,null,null,null,null,null,null,null,1]
[null,null,null,null,null,null,null,null,null,null,null,null,null,null,null,null,null,null,1]
[null,null,null,null,null,null,null,null,null,null,null,null,null,null,null,null,null,null,1]
[null,null,null,null,null,null,null,null,null,null,null,null,null,null,null,null,null,null,1]
[null,null,null,null,null,null,null,null,null,null,null,null,null,null,null,null,null,null,1]
[null,null,null,null,null,null,null,null,null,null,null,null,null,null,null,null,null,null,1]
[null,null,null,null,null,null,null,null,null,null,null,null,null,null,null,null,null,null,1]
[null,null,null,null,null,null,null,null,null,null,null,null,null,null,null,null,null,null,1]
[null,null,null,null,null,null,null,null,null,null,null,null,null,null,null,null,null,null,1]
[null,null,null,null,null,null,null,null,null,null,null,null,null,null,null,null,null,null,1]
[null,null,null,null,null,null,null,null,null,null,null,null,null,null,null,null,null,null,1]
[null,null,null,null,null,null,null,null,null,null,null,null,null,null,null,null,null,null,1]
[null,null,null,null,null,null,null,null,null,null,null,null,null,null,null,null,null,null,1]
[null,null,null,null,null,null,null,null,null,null,null,null,null,null,null,null,null,null,1]
[null,null,null,null,null,null,null,null,null,null,null,null,null,null,null,null,null,null,1]
[null,null,null,null,null,null,null,null,null,null,null,null,null,null,null,null,null,null,1]
[null,null,null,null,null,null,null,null,null,null,null,null,null,null,null,null,null,null,1]
[null,null,null,null,null,null,null,null,null,null,null,null,null,null,null,null,null,null,1]
[null,null,null,null,null,null,null,null,null,null,null,null,null,null,null,null,null,null,1]
[null,null,null,null,null,null,null,null,null,null,null,null,null,null,null,null,null,null,1]
[null,null,null,null,null,null,null,null,null,null,null,null,null,null,null,null,null,null,1]
[null,null,null,null,null,null,null,null,null,null,null,null,null,null,null,null,null,null,1]
[null,null,null,null,null,null,null,null,null,null,null,null,null,null,null,null,null,null,1]
[null,null,null,null,null,null,null,null,null,null,null,null,null,null,null,null,null,null,1]
[null,null,null,null,null,null,null,null,null,null,null,null,null,null,null,null,null,null,1]
[null,null,null,null,null,null,null,null,null,null,null,null,null,null,null,null,null,null,1]
[null,null,null,null,null,null,null,null,null,null,null,null,null,null,null,null,null,null,1]
[null,null,null,null,null,null,null,null,null,null,null,null,null,null,null,null,null,null,1]
[null,null,null,null,null,null,null,null,null,null,null,null,null,null,null,null,null,null,1]
[null,null,null,null,null,null,null,null,null,null,null,null,null,null,null,null,null,null,1]
[null,null,null,null,null,null,null,null,null,null,null,null,null,null,null,null,null,null,1]
[null,null,null,null,null,null,null,null,null,null,null,null,null,null,null,null,null,null,1]
[null,null,null,null,null,null,null,null,null,null,null,null,null,null,null,null,null,null,1]
[null,null,null,null,null,null,null,null,null,null,null,null,null,null,null,null,null,null,1]
[null,null,null,null,null,null,null,null,null,null,null,null,null,null,null,null,null,null,1]
[null,null,null,null,null,null,null,null,null,null,null,null,null,null,null,null,null,null,1]
[null,null,null,null,null,null,null,null,null,null,null,null,null,null,null,null,null,null,1]
[null,null,null,null,null,null,null,null,null,null,null,null,null,null,null,null,null,null,1]
[null,null,null,null,null,null,null,null,null,null,null,null,null,null,null,null,null,null,1]
[null,null,null,null,null,null,null,null,null,null,null,null,null,null,null,null,null,null,1]
[null,null,null,null,null,null,null,null,null,null,null,null,null,null,null,null,null,null,1]
[null,null,null,null,null,null,null,null,null,null,null,null,null,null,null,null,null,null,1]
[null,null,null,null,null,null,null,null,null,null,null,null,null,null,null,null,null,null,1]
[null,null,null,null,null,null,null,null,null,null,null,null,null,null,null,null,null,null,1]
[null,null,null,null,null,null,null,null,null,null,null,null,null,null,null,null,null,null,1]
[null,null,null,null,null,null,null,null,null,null,null,null,null,null,null,null,null,null,{"$f":"IF(S962= \"\", 1, IF(R962= \"\",IF(ISNUMBER(S962)=FALSE, 0, S962), IF(ISNUMBER(S962)=FALSE, 0, S962) + 1))","v":1}]
[null,null,null,null,null,null,null,null,null,null,null,null,null,null,null,null,null,null,1]
[null,null,null,null,null,null,null,null,null,null,null,null,null,null,null,null,null,null,1]
[null,null,null,null,null,null,null,null,null,null,null,null,null,null,null,null,null,null,1]
[null,null,null,null,null,null,null,null,null,null,null,null,null,null,null,null,null,null,1]
[null,null,null,null,null,null,null,null,null,null,null,null,null,null,null,null,null,null,1]
[null,null,null,null,null,null,null,null,null,null,null,null,null,null,null,null,null,null,1]
[null,null,null,null,null,null,null,null,null,null,null,null,null,null,null,null,null,null,1]
[null,null,null,null,null,null,null,null,null,null,null,null,null,null,null,null,null,null,1]
[null,null,null,null,null,null,null,null,null,null,null,null,null,null,null,null,null,null,1]
[null,null,null,null,null,null,null,null,null,null,null,null,null,null,null,null,null,null,1]
[null,null,null,null,null,null,null,null,null,null,null,null,null,null,null,null,null,null,1]
[null,null,null,null,null,null,null,null,null,null,null,null,null,null,null,null,null,null,1]
[null,null,null,null,null,null,null,null,null,null,null,null,null,null,null,null,null,null,1]
[null,null,null,null,null,null,null,null,null,null,null,null,null,null,null,null,null,null,1]
[null,null,null,null,null,null,null,null,null,null,null,null,null,null,null,null,null,null,1]
[null,null,null,null,null,null,null,null,null,null,null,null,null,null,null,null,null,null,1]
[null,null,null,null,null,null,null,null,null,null,null,null,null,null,null,null,null,null,1]
[null,null,null,null,null,null,null,null,null,null,null,null,null,null,null,null,null,null,1]
[null,null,null,null,null,null,null,null,null,null,null,null,null,null,null,null,null,null,1]
[null,null,null,null,null,null,null,null,null,null,null,null,null,null,null,null,null,null,1]
[null,null,null,null,null,null,null,null,null,null,null,null,null,null,null,null,null,null,1]
[null,null,null,null,null,null,null,null,null,null,null,null,null,null,null,null,null,null,1]
[null,null,null,null,null,null,null,null,null,null,null,null,null,null,null,null,null,null,1]
[null,null,null,null,null,null,null,null,null,null,null,null,null,null,null,null,null,null,1]
[null,null,null,null,null,null,null,null,null,null,null,null,null,null,null,null,null,null,1]
[null,null,null,null,null,null,null,null,null,null,null,null,null,null,null,null,null,null,1]
[null,null,null,null,null,null,null,null,null,null,null,null,null,null,null,null,null,null,1]
[null,null,null,null,null,null,null,null,null,null,null,null,null,null,null,null,null,null,1]
[null,null,null,null,null,null,null,null,null,null,null,null,null,null,null,null,null,null,1]
[null,null,null,null,null,null,null,null,null,null,null,null,null,null,null,null,null,null,1]
[null,null,null,null,null,null,null,null,null,null,null,null,null,null,null,null,null,null,1]
[null,null,null,null,null,null,null,null,null,null,null,null,null,null,null,null,null,null,1]
[null,null,null,null,null,null,null,null,null,null,null,null,null,null,null,null,null,null,1]
[null,null,null,null,null,null,null,null,null,null,null,null,null,null,null,null,null,null,1]
[null,null,null,null,null,null,null,null,null,null,null,null,null,null,null,null,null,null,1]
[null,null,null,null,null,null,null,null,null,null,null,null,null,null,null,null,null,null,1]
[null,null,null,null,null,null,null,null,null,null,null,null,null,null,null,null,null,null,1]
[null,null,null,null,null,null,null,null,null,null,null,null,null,null,null,null,null,null,1]
[null,null,null,null,null,null,null,null,null,null,null,null,null,null,null,null,null,null,1]
[null,null,null,null,null,null,null,null,null,null,null,null,null,null,null,null,null,null,1]
[null,null,null,null,null,null,null,null,null,null,null,null,null,null,null,null,null,null,1]
[null,null,null,null,null,null,null,null,null,null,null,null,null,null,null,null,null,null,1]
[null,null,null,null,null,null,null,null,null,null,null,null,null,null,null,null,null,null,1]
[null,null,null,null,null,null,null,null,null,null,null,null,null,null,null,null,null,null,1]
[null,null,null,null,null,null,null,null,null,null,null,null,null,null,null,null,null,null,1]
[null,null,null,null,null,null,null,null,null,null,null,null,null,null,null,null,null,null,1]
[null,null,null,null,null,null,null,null,null,null,null,null,null,null,null,null,null,null,1]
[null,null,null,null,null,null,null,null,null,null,null,null,null,null,null,null,null,null,1]
[null,null,null,null,null,null,null,null,null,null,null,null,null,null,null,null,null,null,1]
[null,null,null,null,null,null,null,null,null,null,null,null,null,null,null,null,null,null,1]
[null,null,null,null,null,null,null,null,null,null,null,null,null,null,null,null,null,null,1]
[null,null,null,null,null,null,null,null,null,null,null,null,null,null,null,null,null,null,1]
[null,null,null,null,null,null,null,null,null,null,null,null,null,null,null,null,null,null,1]
[null,null,null,null,null,null,null,null,null,null,null,null,null,null,null,null,null,null,1]
[null,null,null,null,null,null,null,null,null,null,null,null,null,null,null,null,null,null,1]
[null,null,null,null,null,null,null,null,null,null,null,null,null,null,null,null,null,null,1]
[null,null,null,null,null,null,null,null,null,null,null,null,null,null,null,null,null,null,1]
[null,null,null,null,null,null,null,null,null,null,null,null,null,null,null,null,null,null,1]
[null,null,null,null,null,null,null,null,null,null,null,null,null,null,null,null,null,null,1]
[null,null,null,null,null,null,null,null,null,null,null,null,null,null,null,null,null,null,1]
[null,null,null,null,null,null,null,null,null,null,null,null,null,null,null,null,null,null,1]
[null,null,null,null,null,null,null,null,null,null,null,null,null,null,null,null,null,null,1]
[null,null,null,null,null,null,null,null,null,null,null,null,null,null,null,null,null,null,1]
[null,null,null,null,null,null,null,null,null,null,null,null,null,null,null,null,null,null,{"$f":"IF(S1026= \"\", 1, IF(R1026= \"\",IF(ISNUMBER(S1026)=FALSE, 0, S1026), IF(ISNUMBER(S1026)=FALSE, 0, S1026) + 1))","v":1}]
[null,null,null,null,null,null,null,null,null,null,null,null,null,null,null,null,null,null,1]
[null,null,null,null,null,null,null,null,null,null,null,null,null,null,null,null,null,null,1]
[null,null,null,null,null,null,null,null,null,null,null,null,null,null,null,null,null,null,1]
[null,null,null,null,null,null,null,null,null,null,null,null,null,null,null,null,null,null,1]
[null,null,null,null,null,null,null,null,null,null,null,null,null,null,null,null,null,null,1]
[null,null,null,null,null,null,null,null,null,null,null,null,null,null,null,null,null,null,1]
[null,null,null,null,null,null,null,null,null,null,null,null,null,null,null,null,null,null,1]
[null,null,null,null,null,null,null,null,null,null,null,null,null,null,null,null,null,null,1]
[null,null,null,null,null,null,null,null,null,null,null,null,null,null,null,null,null,null,1]
[null,null,null,null,null,null,null,null,null,null,null,null,null,null,null,null,null,null,1]
[null,null,null,null,null,null,null,null,null,null,null,null,null,null,null,null,null,null,1]
[null,null,null,null,null,null,null,null,null,null,null,null,null,null,null,null,null,null,1]
[null,null,null,null,null,null,null,null,null,null,null,null,null,null,null,null,null,null,1]
[null,null,null,null,null,null,null,null,null,null,null,null,null,null,null,null,null,null,1]
[null,null,null,null,null,null,null,null,null,null,null,null,null,null,null,null,null,null,1]
[null,null,null,null,null,null,null,null,null,null,null,null,null,null,null,null,null,null,1]
[null,null,null,null,null,null,null,null,null,null,null,null,null,null,null,null,null,null,1]
[null,null,null,null,null,null,null,null,null,null,null,null,null,null,null,null,null,null,1]
[null,null,null,null,null,null,null,null,null,null,null,null,null,null,null,null,null,null,1]
[null,null,null,null,null,null,null,null,null,null,null,null,null,null,null,null,null,null,1]
[null,null,null,null,null,null,null,null,null,null,null,null,null,null,null,null,null,null,1]
[null,null,null,null,null,null,null,null,null,null,null,null,null,null,null,null,null,null,1]
[null,null,null,null,null,null,null,null,null,null,null,null,null,null,null,null,null,null,1]
[null,null,null,null,null,null,null,null,null,null,null,null,null,null,null,null,null,null,1]
[null,null,null,null,null,null,null,null,null,null,null,null,null,null,null,null,null,null,1]
[null,null,null,null,null,null,null,null,null,null,null,null,null,null,null,null,null,null,1]
[null,null,null,null,null,null,null,null,null,null,null,null,null,null,null,null,null,null,1]
[null,null,null,null,null,null,null,null,null,null,null,null,null,null,null,null,null,null,1]
[null,null,null,null,null,null,null,null,null,null,null,null,null,null,null,null,null,null,1]
[null,null,null,null,null,null,null,null,null,null,null,null,null,null,null,null,null,null,1]
[null,null,null,null,null,null,null,null,null,null,null,null,null,null,null,null,null,null,1]
[null,null,null,null,null,null,null,null,null,null,null,null,null,null,null,null,null,null,1]
[null,null,null,null,null,null,null,null,null,null,null,null,null,null,null,null,null,null,1]
[null,null,null,null,null,null,null,null,null,null,null,null,null,null,null,null,null,null,1]
[null,null,null,null,null,null,null,null,null,null,null,null,null,null,null,null,null,null,1]
[null,null,null,null,null,null,null,null,null,null,null,null,null,null,null,null,null,null,1]
[null,null,null,null,null,null,null,null,null,null,null,null,null,null,null,null,null,null,1]
[null,null,null,null,null,null,null,null,null,null,null,null,null,null,null,null,null,null,1]
[null,null,null,null,null,null,null,null,null,null,null,null,null,null,null,null,null,null,1]
[null,null,null,null,null,null,null,null,null,null,null,null,null,null,null,null,null,null,1]
[null,null,null,null,null,null,null,null,null,null,null,null,null,null,null,null,null,null,1]
[null,null,null,null,null,null,null,null,null,null,null,null,null,null,null,null,null,null,1]
[null,null,null,null,null,null,null,null,null,null,null,null,null,null,null,null,null,null,1]
[null,null,null,null,null,null,null,null,null,null,null,null,null,null,null,null,null,null,1]
[null,null,null,null,null,null,null,null,null,null,null,null,null,null,null,null,null,null,1]
[null,null,null,null,null,null,null,null,null,null,null,null,null,null,null,null,null,null,1]
[null,null,null,null,null,null,null,null,null,null,null,null,null,null,null,null,null,null,1]
[null,null,null,null,null,null,null,null,null,null,null,null,null,null,null,null,null,null,1]
[null,null,null,null,null,null,null,null,null,null,null,null,null,null,null,null,null,null,1]
[null,null,null,null,null,null,null,null,null,null,null,null,null,null,null,null,null,null,1]
[null,null,null,null,null,null,null,null,null,null,null,null,null,null,null,null,null,null,1]
[null,null,null,null,null,null,null,null,null,null,null,null,null,null,null,null,null,null,1]
[null,null,null,null,null,null,null,null,null,null,null,null,null,null,null,null,null,null,1]
[null,null,null,null,null,null,null,null,null,null,null,null,null,null,null,null,null,null,1]
[null,null,null,null,null,null,null,null,null,null,null,null,null,null,null,null,null,null,1]
[null,null,null,null,null,null,null,null,null,null,null,null,null,null,null,null,null,null,1]
[null,null,null,null,null,null,null,null,null,null,null,null,null,null,null,null,null,null,1]
[null,null,null,null,null,null,null,null,null,null,null,null,null,null,null,null,null,null,1]
[null,null,null,null,null,null,null,null,null,null,null,null,null,null,null,null,null,null,1]
[null,null,null,null,null,null,null,null,null,null,null,null,null,null,null,null,null,null,1]
[null,null,null,null,null,null,null,null,null,null,null,null,null,null,null,null,null,null,1]
[null,null,null,null,null,null,null,null,null,null,null,null,null,null,null,null,null,null,1]
[null,null,null,null,null,null,null,null,null,null,null,null,null,null,null,null,null,null,1]
[null,null,null,null,null,null,null,null,null,null,null,null,null,null,null,null,null,null,{"$f":"IF(S1090= \"\", 1, IF(R1090= \"\",IF(ISNUMBER(S1090)=FALSE, 0, S1090), IF(ISNUMBER(S1090)=FALSE, 0, S1090) + 1))","v":1}]
[null,null,null,null,null,null,null,null,null,null,null,null,null,null,null,null,null,null,1]
[null,null,null,null,null,null,null,null,null,null,null,null,null,null,null,null,null,null,1]
[null,null,null,null,null,null,null,null,null,null,null,null,null,null,null,null,null,null,1]
[null,null,null,null,null,null,null,null,null,null,null,null,null,null,null,null,null,null,1]
[null,null,null,null,null,null,null,null,null,null,null,null,null,null,null,null,null,null,1]
[null,null,null,null,null,null,null,null,null,null,null,null,null,null,null,null,null,null,1]
[null,null,null,null,null,null,null,null,null,null,null,null,null,null,null,null,null,null,1]
[null,null,null,null,null,null,null,null,null,null,null,null,null,null,null,null,null,null,1]
[null,null,null,null,null,null,null,null,null,null,null,null,null,null,null,null,null,null,1]
[null,null,null,null,null,null,null,null,null,null,null,null,null,null,null,null,null,null,1]
[null,null,null,null,null,null,null,null,null,null,null,null,null,null,null,null,null,null,1]
[null,null,null,null,null,null,null,null,null,null,null,null,null,null,null,null,null,null,1]
[null,null,null,null,null,null,null,null,null,null,null,null,null,null,null,null,null,null,1]
[null,null,null,null,null,null,null,null,null,null,null,null,null,null,null,null,null,null,1]
[null,null,null,null,null,null,null,null,null,null,null,null,null,null,null,null,null,null,1]
[null,null,null,null,null,null,null,null,null,null,null,null,null,null,null,null,null,null,1]
[null,null,null,null,null,null,null,null,null,null,null,null,null,null,null,null,null,null,1]
[null,null,null,null,null,null,null,null,null,null,null,null,null,null,null,null,null,null,1]
[null,null,null,null,null,null,null,null,null,null,null,null,null,null,null,null,null,null,1]
[null,null,null,null,null,null,null,null,null,null,null,null,null,null,null,null,null,null,1]
[null,null,null,null,null,null,null,null,null,null,null,null,null,null,null,null,null,null,1]
[null,null,null,null,null,null,null,null,null,null,null,null,null,null,null,null,null,null,1]
[null,null,null,null,null,null,null,null,null,null,null,null,null,null,null,null,null,null,1]
[null,null,null,null,null,null,null,null,null,null,null,null,null,null,null,null,null,null,1]
[null,null,null,null,null,null,null,null,null,null,null,null,null,null,null,null,null,null,1]
[null,null,null,null,null,null,null,null,null,null,null,null,null,null,null,null,null,null,1]
[null,null,null,null,null,null,null,null,null,null,null,null,null,null,null,null,null,null,1]
[null,null,null,null,null,null,null,null,null,null,null,null,null,null,null,null,null,null,1]
[null,null,null,null,null,null,null,null,null,null,null,null,null,null,null,null,null,null,1]
[null,null,null,null,null,null,null,null,null,null,null,null,null,null,null,null,null,null,1]
[null,null,null,null,null,null,null,null,null,null,null,null,null,null,null,null,null,null,1]
[null,null,null,null,null,null,null,null,null,null,null,null,null,null,null,null,null,null,1]
[null,null,null,null,null,null,null,null,null,null,null,null,null,null,null,null,null,null,1]
[null,null,null,null,null,null,null,null,null,null,null,null,null,null,null,null,null,null,1]
[null,null,null,null,null,null,null,null,null,null,null,null,null,null,null,null,null,null,1]
[null,null,null,null,null,null,null,null,null,null,null,null,null,null,null,null,null,null,1]
[null,null,null,null,null,null,null,null,null,null,null,null,null,null,null,null,null,null,1]
[null,null,null,null,null,null,null,null,null,null,null,null,null,null,null,null,null,null,1]
[null,null,null,null,null,null,null,null,null,null,null,null,null,null,null,null,null,null,1]
[null,null,null,null,null,null,null,null,null,null,null,null,null,null,null,null,null,null,1]
[null,null,null,null,null,null,null,null,null,null,null,null,null,null,null,null,null,null,1]
[null,null,null,null,null,null,null,null,null,null,null,null,null,null,null,null,null,null,1]
[null,null,null,null,null,null,null,null,null,null,null,null,null,null,null,null,null,null,1]
[null,null,null,null,null,null,null,null,null,null,null,null,null,null,null,null,null,null,1]
[null,null,null,null,null,null,null,null,null,null,null,null,null,null,null,null,null,null,1]
[null,null,null,null,null,null,null,null,null,null,null,null,null,null,null,null,null,null,1]
[null,null,null,null,null,null,null,null,null,null,null,null,null,null,null,null,null,null,1]
[null,null,null,null,null,null,null,null,null,null,null,null,null,null,null,null,null,null,1]
[null,null,null,null,null,null,null,null,null,null,null,null,null,null,null,null,null,null,1]
[null,null,null,null,null,null,null,null,null,null,null,null,null,null,null,null,null,null,1]
[null,null,null,null,null,null,null,null,null,null,null,null,null,null,null,null,null,null,1]
[null,null,null,null,null,null,null,null,null,null,null,null,null,null,null,null,null,null,1]
[null,null,null,null,null,null,null,null,null,null,null,null,null,null,null,null,null,null,1]
[null,null,null,null,null,null,null,null,null,null,null,null,null,null,null,null,null,null,1]
[null,null,null,null,null,null,null,null,null,null,null,null,null,null,null,null,null,null,1]
[null,null,null,null,null,null,null,null,null,null,null,null,null,null,null,null,null,null,1]
[null,null,null,null,null,null,null,null,null,null,null,null,null,null,null,null,null,null,1]
[null,null,null,null,null,null,null,null,null,null,null,null,null,null,null,null,null,null,1]
[null,null,null,null,null,null,null,null,null,null,null,null,null,null,null,null,null,null,1]
[null,null,null,null,null,null,null,null,null,null,null,null,null,null,null,null,null,null,1]
[null,null,null,null,null,null,null,null,null,null,null,null,null,null,null,null,null,null,1]
[null,null,null,null,null,null,null,null,null,null,null,null,null,null,null,null,null,null,1]
[null,null,null,null,null,null,null,null,null,null,null,null,null,null,null,null,null,null,1]
[null,null,null,null,null,null,null,null,null,null,null,null,null,null,null,null,null,null,{"$f":"IF(S1154= \"\", 1, IF(R1154= \"\",IF(ISNUMBER(S1154)=FALSE, 0, S1154), IF(ISNUMBER(S1154)=FALSE, 0, S1154) + 1))","v":1}]
[null,null,null,null,null,null,null,null,null,null,null,null,null,null,null,null,null,null,1]
[null,null,null,null,null,null,null,null,null,null,null,null,null,null,null,null,null,null,1]
[null,null,null,null,null,null,null,null,null,null,null,null,null,null,null,null,null,null,1]
[null,null,null,null,null,null,null,null,null,null,null,null,null,null,null,null,null,null,1]
[null,null,null,null,null,null,null,null,null,null,null,null,null,null,null,null,null,null,1]
[null,null,null,null,null,null,null,null,null,null,null,null,null,null,null,null,null,null,1]
[null,null,null,null,null,null,null,null,null,null,null,null,null,null,null,null,null,null,1]
[null,null,null,null,null,null,null,null,null,null,null,null,null,null,null,null,null,null,1]
[null,null,null,null,null,null,null,null,null,null,null,null,null,null,null,null,null,null,1]
[null,null,null,null,null,null,null,null,null,null,null,null,null,null,null,null,null,null,1]
[null,null,null,null,null,null,null,null,null,null,null,null,null,null,null,null,null,null,1]
[null,null,null,null,null,null,null,null,null,null,null,null,null,null,null,null,null,null,1]
[null,null,null,null,null,null,null,null,null,null,null,null,null,null,null,null,null,null,1]
[null,null,null,null,null,null,null,null,null,null,null,null,null,null,null,null,null,null,1]
[null,null,null,null,null,null,null,null,null,null,null,null,null,null,null,null,null,null,1]
[null,null,null,null,null,null,null,null,null,null,null,null,null,null,null,null,null,null,1]
[null,null,null,null,null,null,null,null,null,null,null,null,null,null,null,null,null,null,1]
[null,null,null,null,null,null,null,null,null,null,null,null,null,null,null,null,null,null,1]
[null,null,null,null,null,null,null,null,null,null,null,null,null,null,null,null,null,null,1]
[null,null,null,null,null,null,null,null,null,null,null,null,null,null,null,null,null,null,1]
[null,null,null,null,null,null,null,null,null,null,null,null,null,null,null,null,null,null,1]
[null,null,null,null,null,null,null,null,null,null,null,null,null,null,null,null,null,null,1]
[null,null,null,null,null,null,null,null,null,null,null,null,null,null,null,null,null,null,1]
[null,null,null,null,null,null,null,null,null,null,null,null,null,null,null,null,null,null,1]
[null,null,null,null,null,null,null,null,null,null,null,null,null,null,null,null,null,null,1]
[null,null,null,null,null,null,null,null,null,null,null,null,null,null,null,null,null,null,1]
[null,null,null,null,null,null,null,null,null,null,null,null,null,null,null,null,null,null,1]
[null,null,null,null,null,null,null,null,null,null,null,null,null,null,null,null,null,null,1]
[null,null,null,null,null,null,null,null,null,null,null,null,null,null,null,null,null,null,1]
[null,null,null,null,null,null,null,null,null,null,null,null,null,null,null,null,null,null,1]
[null,null,null,null,null,null,null,null,null,null,null,null,null,null,null,null,null,null,1]
[null,null,null,null,null,null,null,null,null,null,null,null,null,null,null,null,null,null,1]
[null,null,null,null,null,null,null,null,null,null,null,null,null,null,null,null,null,null,1]
[null,null,null,null,null,null,null,null,null,null,null,null,null,null,null,null,null,null,1]
[null,null,null,null,null,null,null,null,null,null,null,null,null,null,null,null,null,null,1]
[null,null,null,null,null,null,null,null,null,null,null,null,null,null,null,null,null,null,1]
[null,null,null,null,null,null,null,null,null,null,null,null,null,null,null,null,null,null,1]
[null,null,null,null,null,null,null,null,null,null,null,null,null,null,null,null,null,null,1]
[null,null,null,null,null,null,null,null,null,null,null,null,null,null,null,null,null,null,1]
[null,null,null,null,null,null,null,null,null,null,null,null,null,null,null,null,null,null,1]
[null,null,null,null,null,null,null,null,null,null,null,null,null,null,null,null,null,null,1]
[null,null,null,null,null,null,null,null,null,null,null,null,null,null,null,null,null,null,1]
[null,null,null,null,null,null,null,null,null,null,null,null,null,null,null,null,null,null,1]
[null,null,null,null,null,null,null,null,null,null,null,null,null,null,null,null,null,null,1]
[null,null,null,null,null,null,null,null,null,null,null,null,null,null,null,null,null,null,1]
[null,null,null,null,null,null,null,null,null,null,null,null,null,null,null,null,null,null,1]
[null,null,null,null,null,null,null,null,null,null,null,null,null,null,null,null,null,null,1]
[null,null,null,null,null,null,null,null,null,null,null,null,null,null,null,null,null,null,1]
[null,null,null,null,null,null,null,null,null,null,null,null,null,null,null,null,null,null,1]
[null,null,null,null,null,null,null,null,null,null,null,null,null,null,null,null,null,null,1]
[null,null,null,null,null,null,null,null,null,null,null,null,null,null,null,null,null,null,1]
[null,null,null,null,null,null,null,null,null,null,null,null,null,null,null,null,null,null,1]
[null,null,null,null,null,null,null,null,null,null,null,null,null,null,null,null,null,null,1]
[null,null,null,null,null,null,null,null,null,null,null,null,null,null,null,null,null,null,1]
[null,null,null,null,null,null,null,null,null,null,null,null,null,null,null,null,null,null,1]
[null,null,null,null,null,null,null,null,null,null,null,null,null,null,null,null,null,null,1]
[null,null,null,null,null,null,null,null,null,null,null,null,null,null,null,null,null,null,1]
[null,null,null,null,null,null,null,null,null,null,null,null,null,null,null,null,null,null,1]
[null,null,null,null,null,null,null,null,null,null,null,null,null,null,null,null,null,null,1]
[null,null,null,null,null,null,null,null,null,null,null,null,null,null,null,null,null,null,1]
[null,null,null,null,null,null,null,null,null,null,null,null,null,null,null,null,null,null,1]
[null,null,null,null,null,null,null,null,null,null,null,null,null,null,null,null,null,null,1]
[null,null,null,null,null,null,null,null,null,null,null,null,null,null,null,null,null,null,1]
[null,null,null,null,null,null,null,null,null,null,null,null,null,null,null,null,null,null,{"$f":"IF(S1218= \"\", 1, IF(R1218= \"\",IF(ISNUMBER(S1218)=FALSE, 0, S1218), IF(ISNUMBER(S1218)=FALSE, 0, S1218) + 1))","v":1}]
[null,null,null,null,null,null,null,null,null,null,null,null,null,null,null,null,null,null,1]
[null,null,null,null,null,null,null,null,null,null,null,null,null,null,null,null,null,null,1]
[null,null,null,null,null,null,null,null,null,null,null,null,null,null,null,null,null,null,1]
[null,null,null,null,null,null,null,null,null,null,null,null,null,null,null,null,null,null,1]
[null,null,null,null,null,null,null,null,null,null,null,null,null,null,null,null,null,null,1]
[null,null,null,null,null,null,null,null,null,null,null,null,null,null,null,null,null,null,1]
[null,null,null,null,null,null,null,null,null,null,null,null,null,null,null,null,null,null,1]
[null,null,null,null,null,null,null,null,null,null,null,null,null,null,null,null,null,null,1]
[null,null,null,null,null,null,null,null,null,null,null,null,null,null,null,null,null,null,1]
[null,null,null,null,null,null,null,null,null,null,null,null,null,null,null,null,null,null,1]
[null,null,null,null,null,null,null,null,null,null,null,null,null,null,null,null,null,null,1]
[null,null,null,null,null,null,null,null,null,null,null,null,null,null,null,null,null,null,1]
[null,null,null,null,null,null,null,null,null,null,null,null,null,null,null,null,null,null,1]
[null,null,null,null,null,null,null,null,null,null,null,null,null,null,null,null,null,null,1]
[null,null,null,null,null,null,null,null,null,null,null,null,null,null,null,null,null,null,1]
[null,null,null,null,null,null,null,null,null,null,null,null,null,null,null,null,null,null,1]
[null,null,null,null,null,null,null,null,null,null,null,null,null,null,null,null,null,null,1]
[null,null,null,null,null,null,null,null,null,null,null,null,null,null,null,null,null,null,1]
[null,null,null,null,null,null,null,null,null,null,null,null,null,null,null,null,null,null,1]
[null,null,null,null,null,null,null,null,null,null,null,null,null,null,null,null,null,null,1]
[null,null,null,null,null,null,null,null,null,null,null,null,null,null,null,null,null,null,1]
[null,null,null,null,null,null,null,null,null,null,null,null,null,null,null,null,null,null,1]
[null,null,null,null,null,null,null,null,null,null,null,null,null,null,null,null,null,null,1]
[null,null,null,null,null,null,null,null,null,null,null,null,null,null,null,null,null,null,1]
[null,null,null,null,null,null,null,null,null,null,null,null,null,null,null,null,null,null,1]
[null,null,null,null,null,null,null,null,null,null,null,null,null,null,null,null,null,null,1]
[null,null,null,null,null,null,null,null,null,null,null,null,null,null,null,null,null,null,1]
[null,null,null,null,null,null,null,null,null,null,null,null,null,null,null,null,null,null,1]
[null,null,null,null,null,null,null,null,null,null,null,null,null,null,null,null,null,null,1]
[null,null,null,null,null,null,null,null,null,null,null,null,null,null,null,null,null,null,1]
[null,null,null,null,null,null,null,null,null,null,null,null,null,null,null,null,null,null,1]
[null,null,null,null,null,null,null,null,null,null,null,null,null,null,null,null,null,null,1]
[null,null,null,null,null,null,null,null,null,null,null,null,null,null,null,null,null,null,1]
[null,null,null,null,null,null,null,null,null,null,null,null,null,null,null,null,null,null,1]
[null,null,null,null,null,null,null,null,null,null,null,null,null,null,null,null,null,null,1]
[null,null,null,null,null,null,null,null,null,null,null,null,null,null,null,null,null,null,1]
[null,null,null,null,null,null,null,null,null,null,null,null,null,null,null,null,null,null,1]
[null,null,null,null,null,null,null,null,null,null,null,null,null,null,null,null,null,null,1]
[null,null,null,null,null,null,null,null,null,null,null,null,null,null,null,null,null,null,1]
[null,null,null,null,null,null,null,null,null,null,null,null,null,null,null,null,null,null,1]
[null,null,null,null,null,null,null,null,null,null,null,null,null,null,null,null,null,null,1]
[null,null,null,null,null,null,null,null,null,null,null,null,null,null,null,null,null,null,1]
[null,null,null,null,null,null,null,null,null,null,null,null,null,null,null,null,null,null,1]
[null,null,null,null,null,null,null,null,null,null,null,null,null,null,null,null,null,null,1]
[null,null,null,null,null,null,null,null,null,null,null,null,null,null,null,null,null,null,1]
[null,null,null,null,null,null,null,null,null,null,null,null,null,null,null,null,null,null,1]
[null,null,null,null,null,null,null,null,null,null,null,null,null,null,null,null,null,null,1]
[null,null,null,null,null,null,null,null,null,null,null,null,null,null,null,null,null,null,1]
[null,null,null,null,null,null,null,null,null,null,null,null,null,null,null,null,null,null,1]
[null,null,null,null,null,null,null,null,null,null,null,null,null,null,null,null,null,null,1]
[null,null,null,null,null,null,null,null,null,null,null,null,null,null,null,null,null,null,1]
[null,null,null,null,null,null,null,null,null,null,null,null,null,null,null,null,null,null,1]
[null,null,null,null,null,null,null,null,null,null,null,null,null,null,null,null,null,null,1]
[null,null,null,null,null,null,null,null,null,null,null,null,null,null,null,null,null,null,1]
[null,null,null,null,null,null,null,null,null,null,null,null,null,null,null,null,null,null,1]
[null,null,null,null,null,null,null,null,null,null,null,null,null,null,null,null,null,null,1]
[null,null,null,null,null,null,null,null,null,null,null,null,null,null,null,null,null,null,1]
[null,null,null,null,null,null,null,null,null,null,null,null,null,null,null,null,null,null,1]
[null,null,null,null,null,null,null,null,null,null,null,null,null,null,null,null,null,null,1]
[null,null,null,null,null,null,null,null,null,null,null,null,null,null,null,null,null,null,1]
[null,null,null,null,null,null,null,null,null,null,null,null,null,null,null,null,null,null,1]
[null,null,null,null,null,null,null,null,null,null,null,null,null,null,null,null,null,null,1]
[null,null,null,null,null,null,null,null,null,null,null,null,null,null,null,null,null,null,1]
[null,null,null,null,null,null,null,null,null,null,null,null,null,null,null,null,null,null,{"$f":"IF(S1282= \"\", 1, IF(R1282= \"\",IF(ISNUMBER(S1282)=FALSE, 0, S1282), IF(ISNUMBER(S1282)=FALSE, 0, S1282) + 1))","v":1}]
[null,null,null,null,null,null,null,null,null,null,null,null,null,null,null,null,null,null,1]
[null,null,null,null,null,null,null,null,null,null,null,null,null,null,null,null,null,null,1]
[null,null,null,null,null,null,null,null,null,null,null,null,null,null,null,null,null,null,1]
[null,null,null,null,null,null,null,null,null,null,null,null,null,null,null,null,null,null,1]
[null,null,null,null,null,null,null,null,null,null,null,null,null,null,null,null,null,null,1]
[null,null,null,null,null,null,null,null,null,null,null,null,null,null,null,null,null,null,1]
[null,null,null,null,null,null,null,null,null,null,null,null,null,null,null,null,null,null,1]
[null,null,null,null,null,null,null,null,null,null,null,null,null,null,null,null,null,null,1]
[null,null,null,null,null,null,null,null,null,null,null,null,null,null,null,null,null,null,1]
[null,null,null,null,null,null,null,null,null,null,null,null,null,null,null,null,null,null,1]
[null,null,null,null,null,null,null,null,null,null,null,null,null,null,null,null,null,null,1]
[null,null,null,null,null,null,null,null,null,null,null,null,null,null,null,null,null,null,1]
[null,null,null,null,null,null,null,null,null,null,null,null,null,null,null,null,null,null,1]
[null,null,null,null,null,null,null,null,null,null,null,null,null,null,null,null,null,null,1]
[null,null,null,null,null,null,null,null,null,null,null,null,null,null,null,null,null,null,1]
[null,null,null,null,null,null,null,null,null,null,null,null,null,null,null,null,null,null,1]
[null,null,null,null,null,null,null,null,null,null,null,null,null,null,null,null,null,null,1]
[null,null,null,null,null,null,null,null,null,null,null,null,null,null,null,null,null,null,1]
[null,null,null,null,null,null,null,null,null,null,null,null,null,null,null,null,null,null,1]
[null,null,null,null,null,null,null,null,null,null,null,null,null,null,null,null,null,null,1]
[null,null,null,null,null,null,null,null,null,null,null,null,null,null,null,null,null,null,1]
[null,null,null,null,null,null,null,null,null,null,null,null,null,null,null,null,null,null,1]
[null,null,null,null,null,null,null,null,null,null,null,null,null,null,null,null,null,null,1]
[null,null,null,null,null,null,null,null,null,null,null,null,null,null,null,null,null,null,1]
[null,null,null,null,null,null,null,null,null,null,null,null,null,null,null,null,null,null,1]
[null,null,null,null,null,null,null,null,null,null,null,null,null,null,null,null,null,null,1]
[null,null,null,null,null,null,null,null,null,null,null,null,null,null,null,null,null,null,1]
[null,null,null,null,null,null,null,null,null,null,null,null,null,null,null,null,null,null,1]
[null,null,null,null,null,null,null,null,null,null,null,null,null,null,null,null,null,null,1]
[null,null,null,null,null,null,null,null,null,null,null,null,null,null,null,null,null,null,1]
[null,null,null,null,null,null,null,null,null,null,null,null,null,null,null,null,null,null,1]
[null,null,null,null,null,null,null,null,null,null,null,null,null,null,null,null,null,null,1]
[null,null,null,null,null,null,null,null,null,null,null,null,null,null,null,null,null,null,1]
[null,null,null,null,null,null,null,null,null,null,null,null,null,null,null,null,null,null,1]
[null,null,null,null,null,null,null,null,null,null,null,null,null,null,null,null,null,null,1]
[null,null,null,null,null,null,null,null,null,null,null,null,null,null,null,null,null,null,1]
[null,null,null,null,null,null,null,null,null,null,null,null,null,null,null,null,null,null,1]
[null,null,null,null,null,null,null,null,null,null,null,null,null,null,null,null,null,null,1]
[null,null,null,null,null,null,null,null,null,null,null,null,null,null,null,null,null,null,1]
[null,null,null,null,null,null,null,null,null,null,null,null,null,null,null,null,null,null,1]
[null,null,null,null,null,null,null,null,null,null,null,null,null,null,null,null,null,null,1]
[null,null,null,null,null,null,null,null,null,null,null,null,null,null,null,null,null,null,1]
[null,null,null,null,null,null,null,null,null,null,null,null,null,null,null,null,null,null,1]
[null,null,null,null,null,null,null,null,null,null,null,null,null,null,null,null,null,null,1]
[null,null,null,null,null,null,null,null,null,null,null,null,null,null,null,null,null,null,1]
[null,null,null,null,null,null,null,null,null,null,null,null,null,null,null,null,null,null,1]
[null,null,null,null,null,null,null,null,null,null,null,null,null,null,null,null,null,null,1]
[null,null,null,null,null,null,null,null,null,null,null,null,null,null,null,null,null,null,1]
[null,null,null,null,null,null,null,null,null,null,null,null,null,null,null,null,null,null,1]
[null,null,null,null,null,null,null,null,null,null,null,null,null,null,null,null,null,null,1]
[null,null,null,null,null,null,null,null,null,null,null,null,null,null,null,null,null,null,1]
[null,null,null,null,null,null,null,null,null,null,null,null,null,null,null,null,null,null,1]
[null,null,null,null,null,null,null,null,null,null,null,null,null,null,null,null,null,null,1]
[null,null,null,null,null,null,null,null,null,null,null,null,null,null,null,null,null,null,1]
[null,null,null,null,null,null,null,null,null,null,null,null,null,null,null,null,null,null,1]
[null,null,null,null,null,null,null,null,null,null,null,null,null,null,null,null,null,null,1]
[null,null,null,null,null,null,null,null,null,null,null,null,null,null,null,null,null,null,1]
[null,null,null,null,null,null,null,null,null,null,null,null,null,null,null,null,null,null,1]
[null,null,null,null,null,null,null,null,null,null,null,null,null,null,null,null,null,null,1]
[null,null,null,null,null,null,null,null,null,null,null,null,null,null,null,null,null,null,1]
[null,null,null,null,null,null,null,null,null,null,null,null,null,null,null,null,null,null,1]
[null,null,null,null,null,null,null,null,null,null,null,null,null,null,null,null,null,null,1]
[null,null,null,null,null,null,null,null,null,null,null,null,null,null,null,null,null,null,1]
[null,null,null,null,null,null,null,null,null,null,null,null,null,null,null,null,null,null,{"$f":"IF(S1346= \"\", 1, IF(R1346= \"\",IF(ISNUMBER(S1346)=FALSE, 0, S1346), IF(ISNUMBER(S1346)=FALSE, 0, S1346) + 1))","v":1}]
[null,null,null,null,null,null,null,null,null,null,null,null,null,null,null,null,null,null,1]
[null,null,null,null,null,null,null,null,null,null,null,null,null,null,null,null,null,null,1]
[null,null,null,null,null,null,null,null,null,null,null,null,null,null,null,null,null,null,1]
[null,null,null,null,null,null,null,null,null,null,null,null,null,null,null,null,null,null,1]
[null,null,null,null,null,null,null,null,null,null,null,null,null,null,null,null,null,null,1]
[null,null,null,null,null,null,null,null,null,null,null,null,null,null,null,null,null,null,1]
[null,null,null,null,null,null,null,null,null,null,null,null,null,null,null,null,null,null,1]
[null,null,null,null,null,null,null,null,null,null,null,null,null,null,null,null,null,null,1]
[null,null,null,null,null,null,null,null,null,null,null,null,null,null,null,null,null,null,1]
[null,null,null,null,null,null,null,null,null,null,null,null,null,null,null,null,null,null,1]
[null,null,null,null,null,null,null,null,null,null,null,null,null,null,null,null,null,null,1]
[null,null,null,null,null,null,null,null,null,null,null,null,null,null,null,null,null,null,1]
[null,null,null,null,null,null,null,null,null,null,null,null,null,null,null,null,null,null,1]
[null,null,null,null,null,null,null,null,null,null,null,null,null,null,null,null,null,null,1]
[null,null,null,null,null,null,null,null,null,null,null,null,null,null,null,null,null,null,1]
[null,null,null,null,null,null,null,null,null,null,null,null,null,null,null,null,null,null,1]
[null,null,null,null,null,null,null,null,null,null,null,null,null,null,null,null,null,null,1]
[null,null,null,null,null,null,null,null,null,null,null,null,null,null,null,null,null,null,1]
[null,null,null,null,null,null,null,null,null,null,null,null,null,null,null,null,null,null,1]
[null,null,null,null,null,null,null,null,null,null,null,null,null,null,null,null,null,null,1]
[null,null,null,null,null,null,null,null,null,null,null,null,null,null,null,null,null,null,1]
[null,null,null,null,null,null,null,null,null,null,null,null,null,null,null,null,null,null,1]
[null,null,null,null,null,null,null,null,null,null,null,null,null,null,null,null,null,null,1]
[null,null,null,null,null,null,null,null,null,null,null,null,null,null,null,null,null,null,1]
[null,null,null,null,null,null,null,null,null,null,null,null,null,null,null,null,null,null,1]
[null,null,null,null,null,null,null,null,null,null,null,null,null,null,null,null,null,null,1]
[null,null,null,null,null,null,null,null,null,null,null,null,null,null,null,null,null,null,1]
[null,null,null,null,null,null,null,null,null,null,null,null,null,null,null,null,null,null,1]
[null,null,null,null,null,null,null,null,null,null,null,null,null,null,null,null,null,null,1]
[null,null,null,null,null,null,null,null,null,null,null,null,null,null,null,null,null,null,1]
[null,null,null,null,null,null,null,null,null,null,null,null,null,null,null,null,null,null,1]
[null,null,null,null,null,null,null,null,null,null,null,null,null,null,null,null,null,null,1]
[null,null,null,null,null,null,null,null,null,null,null,null,null,null,null,null,null,null,1]
[null,null,null,null,null,null,null,null,null,null,null,null,null,null,null,null,null,null,1]
[null,null,null,null,null,null,null,null,null,null,null,null,null,null,null,null,null,null,1]
[null,null,null,null,null,null,null,null,null,null,null,null,null,null,null,null,null,null,1]
[null,null,null,null,null,null,null,null,null,null,null,null,null,null,null,null,null,null,1]
[null,null,null,null,null,null,null,null,null,null,null,null,null,null,null,null,null,null,1]
[null,null,null,null,null,null,null,null,null,null,null,null,null,null,null,null,null,null,1]
[null,null,null,null,null,null,null,null,null,null,null,null,null,null,null,null,null,null,1]
[null,null,null,null,null,null,null,null,null,null,null,null,null,null,null,null,null,null,1]
[null,null,null,null,null,null,null,null,null,null,null,null,null,null,null,null,null,null,1]
[null,null,null,null,null,null,null,null,null,null,null,null,null,null,null,null,null,null,1]
[null,null,null,null,null,null,null,null,null,null,null,null,null,null,null,null,null,null,1]
[null,null,null,null,null,null,null,null,null,null,null,null,null,null,null,null,null,null,1]
[null,null,null,null,null,null,null,null,null,null,null,null,null,null,null,null,null,null,1]
[null,null,null,null,null,null,null,null,null,null,null,null,null,null,null,null,null,null,1]
[null,null,null,null,null,null,null,null,null,null,null,null,null,null,null,null,null,null,1]
[null,null,null,null,null,null,null,null,null,null,null,null,null,null,null,null,null,null,1]
[null,null,null,null,null,null,null,null,null,null,null,null,null,null,null,null,null,null,1]
[null,null,null,null,null,null,null,null,null,null,null,null,null,null,null,null,null,null,1]
[null,null,null,null,null,null,null,null,null,null,null,null,null,null,null,null,null,null,1]
[null,null,null,null,null,null,null,null,null,null,null,null,null,null,null,null,null,null,1]
[null,null,null,null,null,null,null,null,null,null,null,null,null,null,null,null,null,null,1]
[null,null,null,null,null,null,null,null,null,null,null,null,null,null,null,null,null,null,1]
[null,null,null,null,null,null,null,null,null,null,null,null,null,null,null,null,null,null,1]
[null,null,null,null,null,null,null,null,null,null,null,null,null,null,null,null,null,null,1]
[null,null,null,null,null,null,null,null,null,null,null,null,null,null,null,null,null,null,1]
[null,null,null,null,null,null,null,null,null,null,null,null,null,null,null,null,null,null,1]
[null,null,null,null,null,null,null,null,null,null,null,null,null,null,null,null,null,null,1]
[null,null,null,null,null,null,null,null,null,null,null,null,null,null,null,null,null,null,1]
[null,null,null,null,null,null,null,null,null,null,null,null,null,null,null,null,null,null,1]
[null,null,null,null,null,null,null,null,null,null,null,null,null,null,null,null,null,null,1]
[null,null,null,null,null,null,null,null,null,null,null,null,null,null,null,null,null,null,{"$f":"IF(S1410= \"\", 1, IF(R1410= \"\",IF(ISNUMBER(S1410)=FALSE, 0, S1410), IF(ISNUMBER(S1410)=FALSE, 0, S1410) + 1))","v":1}]
[null,null,null,null,null,null,null,null,null,null,null,null,null,null,null,null,null,null,1]
[null,null,null,null,null,null,null,null,null,null,null,null,null,null,null,null,null,null,1]
[null,null,null,null,null,null,null,null,null,null,null,null,null,null,null,null,null,null,1]
[null,null,null,null,null,null,null,null,null,null,null,null,null,null,null,null,null,null,1]
[null,null,null,null,null,null,null,null,null,null,null,null,null,null,null,null,null,null,1]
[null,null,null,null,null,null,null,null,null,null,null,null,null,null,null,null,null,null,1]
[null,null,null,null,null,null,null,null,null,null,null,null,null,null,null,null,null,null,1]
[null,null,null,null,null,null,null,null,null,null,null,null,null,null,null,null,null,null,1]
[null,null,null,null,null,null,null,null,null,null,null,null,null,null,null,null,null,null,1]
[null,null,null,null,null,null,null,null,null,null,null,null,null,null,null,null,null,null,1]
[null,null,null,null,null,null,null,null,null,null,null,null,null,null,null,null,null,null,1]
[null,null,null,null,null,null,null,null,null,null,null,null,null,null,null,null,null,null,1]
[null,null,null,null,null,null,null,null,null,null,null,null,null,null,null,null,null,null,1]
[null,null,null,null,null,null,null,null,null,null,null,null,null,null,null,null,null,null,1]
[null,null,null,null,null,null,null,null,null,null,null,null,null,null,null,null,null,null,1]
[null,null,null,null,null,null,null,null,null,null,null,null,null,null,null,null,null,null,1]
[null,null,null,null,null,null,null,null,null,null,null,null,null,null,null,null,null,null,1]
[null,null,null,null,null,null,null,null,null,null,null,null,null,null,null,null,null,null,1]
[null,null,null,null,null,null,null,null,null,null,null,null,null,null,null,null,null,null,1]
[null,null,null,null,null,null,null,null,null,null,null,null,null,null,null,null,null,null,1]
[null,null,null,null,null,null,null,null,null,null,null,null,null,null,null,null,null,null,1]
[null,null,null,null,null,null,null,null,null,null,null,null,null,null,null,null,null,null,1]
[null,null,null,null,null,null,null,null,null,null,null,null,null,null,null,null,null,null,1]
[null,null,null,null,null,null,null,null,null,null,null,null,null,null,null,null,null,null,1]
[null,null,null,null,null,null,null,null,null,null,null,null,null,null,null,null,null,null,1]
[null,null,null,null,null,null,null,null,null,null,null,null,null,null,null,null,null,null,1]
[null,null,null,null,null,null,null,null,null,null,null,null,null,null,null,null,null,null,1]
[null,null,null,null,null,null,null,null,null,null,null,null,null,null,null,null,null,null,1]
[null,null,null,null,null,null,null,null,null,null,null,null,null,null,null,null,null,null,1]
[null,null,null,null,null,null,null,null,null,null,null,null,null,null,null,null,null,null,1]
[null,null,null,null,null,null,null,null,null,null,null,null,null,null,null,null,null,null,1]
[null,null,null,null,null,null,null,null,null,null,null,null,null,null,null,null,null,null,1]
[null,null,null,null,null,null,null,null,null,null,null,null,null,null,null,null,null,null,1]
[null,null,null,null,null,null,null,null,null,null,null,null,null,null,null,null,null,null,1]
[null,null,null,null,null,null,null,null,null,null,null,null,null,null,null,null,null,null,1]
[null,null,null,null,null,null,null,null,null,null,null,null,null,null,null,null,null,null,1]
[null,null,null,null,null,null,null,null,null,null,null,null,null,null,null,null,null,null,1]
[null,null,null,null,null,null,null,null,null,null,null,null,null,null,null,null,null,null,1]
[null,null,null,null,null,null,null,null,null,null,null,null,null,null,null,null,null,null,1]
[null,null,null,null,null,null,null,null,null,null,null,null,null,null,null,null,null,null,1]
[null,null,null,null,null,null,null,null,null,null,null,null,null,null,null,null,null,null,1]
[null,null,null,null,null,null,null,null,null,null,null,null,null,null,null,null,null,null,1]
[null,null,null,null,null,null,null,null,null,null,null,null,null,null,null,null,null,null,1]
[null,null,null,null,null,null,null,null,null,null,null,null,null,null,null,null,null,null,1]
[null,null,null,null,null,null,null,null,null,null,null,null,null,null,null,null,null,null,1]
[null,null,null,null,null,null,null,null,null,null,null,null,null,null,null,null,null,null,1]
[null,null,null,null,null,null,null,null,null,null,null,null,null,null,null,null,null,null,1]
[null,null,null,null,null,null,null,null,null,null,null,null,null,null,null,null,null,null,1]
[null,null,null,null,null,null,null,null,null,null,null,null,null,null,null,null,null,null,1]
[null,null,null,null,null,null,null,null,null,null,null,null,null,null,null,null,null,null,1]
[null,null,null,null,null,null,null,null,null,null,null,null,null,null,null,null,null,null,1]
[null,null,null,null,null,null,null,null,null,null,null,null,null,null,null,null,null,null,1]
[null,null,null,null,null,null,null,null,null,null,null,null,null,null,null,null,null,null,1]
[null,null,null,null,null,null,null,null,null,null,null,null,null,null,null,null,null,null,1]
[null,null,null,null,null,null,null,null,null,null,null,null,null,null,null,null,null,null,1]
[null,null,null,null,null,null,null,null,null,null,null,null,null,null,null,null,null,null,1]
[null,null,null,null,null,null,null,null,null,null,null,null,null,null,null,null,null,null,1]
[null,null,null,null,null,null,null,null,null,null,null,null,null,null,null,null,null,null,1]
[null,null,null,null,null,null,null,null,null,null,null,null,null,null,null,null,null,null,1]
[null,null,null,null,null,null,null,null,null,null,null,null,null,null,null,null,null,null,1]
[null,null,null,null,null,null,null,null,null,null,null,null,null,null,null,null,null,null,1]
[null,null,null,null,null,null,null,null,null,null,null,null,null,null,null,null,null,null,1]
[null,null,null,null,null,null,null,null,null,null,null,null,null,null,null,null,null,null,1]
[null,null,null,null,null,null,null,null,null,null,null,null,null,null,null,null,null,null,{"$f":"IF(S1474= \"\", 1, IF(R1474= \"\",IF(ISNUMBER(S1474)=FALSE, 0, S1474), IF(ISNUMBER(S1474)=FALSE, 0, S1474) + 1))","v":1}]
[null,null,null,null,null,null,null,null,null,null,null,null,null,null,null,null,null,null,1]
[null,null,null,null,null,null,null,null,null,null,null,null,null,null,null,null,null,null,1]
[null,null,null,null,null,null,null,null,null,null,null,null,null,null,null,null,null,null,1]
[null,null,null,null,null,null,null,null,null,null,null,null,null,null,null,null,null,null,1]
[null,null,null,null,null,null,null,null,null,null,null,null,null,null,null,null,null,null,1]
[null,null,null,null,null,null,null,null,null,null,null,null,null,null,null,null,null,null,1]
[null,null,null,null,null,null,null,null,null,null,null,null,null,null,null,null,null,null,1]
[null,null,null,null,null,null,null,null,null,null,null,null,null,null,null,null,null,null,1]
[null,null,null,null,null,null,null,null,null,null,null,null,null,null,null,null,null,null,1]
[null,null,null,null,null,null,null,null,null,null,null,null,null,null,null,null,null,null,1]
[null,null,null,null,null,null,null,null,null,null,null,null,null,null,null,null,null,null,1]
[null,null,null,null,null,null,null,null,null,null,null,null,null,null,null,null,null,null,1]
[null,null,null,null,null,null,null,null,null,null,null,null,null,null,null,null,null,null,1]
[null,null,null,null,null,null,null,null,null,null,null,null,null,null,null,null,null,null,1]
[null,null,null,null,null,null,null,null,null,null,null,null,null,null,null,null,null,null,1]
[null,null,null,null,null,null,null,null,null,null,null,null,null,null,null,null,null,null,1]
[null,null,null,null,null,null,null,null,null,null,null,null,null,null,null,null,null,null,1]
[null,null,null,null,null,null,null,null,null,null,null,null,null,null,null,null,null,null,1]
[null,null,null,null,null,null,null,null,null,null,null,null,null,null,null,null,null,null,1]
[null,null,null,null,null,null,null,null,null,null,null,null,null,null,null,null,null,null,1]
[null,null,null,null,null,null,null,null,null,null,null,null,null,null,null,null,null,null,1]
[null,null,null,null,null,null,null,null,null,null,null,null,null,null,null,null,null,null,1]
[null,null,null,null,null,null,null,null,null,null,null,null,null,null,null,null,null,null,1]
[null,null,null,null,null,null,null,null,null,null,null,null,null,null,null,null,null,null,1]
[null,null,null,null,null,null,null,null,null,null,null,null,null,null,null,null,null,null,1]
[null,null,null,null,null,null,null,null,null,null,null,null,null,null,null,null,null,null,1]

{"sheet":"Summary","index":3,"n_rows":207,"n_cols":19,"rows_kept":207,"cut":false,"hidden":true,"merged":[]}
["Topic","Type","Media Channel/Type","Time Period of Placements","Circulation Viewers Listeners","Social Media Shares","Media Impressions","Cost","Total Added Value","Value of coverage",null,{"$f":"TRIM(TRIM(MID(CELL(\"filename\",A1),SEARCH(\"]\",CELL(\"filename\",A1),1)+1,LEN(CELL(\"filename\",A1))-(SEARCH(\"]\",CELL(\"filename\",A1),1)+LEN(\"Summary\")))) & \" MediaLog\")","v":"MediaLog"},{"$f":"TRIM(MID(CELL(\"filename\",B1),SEARCH(\"]\",CELL(\"filename\",B1),1)+1,LEN(CELL(\"filename\",B1))-(SEARCH(\"]\",CELL(\"filename\",B1),1))))","v":"Summary"},{"$f":"TRIM(MID(CELL(\"filename\",A1),SEARCH(\"]\",CELL(\"filename\",A1),1)+1,LEN(CELL(\"filename\",A1))-(SEARCH(\"]\",CELL(\"filename\",A1),1)+LEN(\"Summary\"))))","v":""},"Partner","Sub-Recipients","Public-Earned","Public-Paid","MID(ADDRESS(2,MATCH(H1,INDIRECT(\"'\"&$L$1&\"'!$a$1:$z$1\"),0)), 1, SEARCH(\"$\", ADDRESS(2,MATCH(H1,INDIRECT(\"'\"&$L$1&\"'!$a$1:$z$1\"),0)), 2)-1)"]
["Nutrition","Public-Earned","Television",{"$f":"$N$1","v":""},{"$f":"SUMPRODUCT((INDIRECT(\"'\" & $L$1 & \"'!$C$2:$C$1501\")= $A2)*(INDIRECT(\"'\" & $L$1 & \"'!$B$2:$B$1501\")= $B2)*(INDIRECT(\"'\" & $L$1 & \"'!$E$2:$E$1501\")= $C2)*(INDIRECT(\"'\" & $L$1 & \"'!$H$2:$H$1501\")))","v":0},{"$f":"SUMPRODUCT((INDIRECT(\"'\" & $L$1 & \"'!$C$2:$C$1501\")= $A2)*(INDIRECT(\"'\" & $L$1 & \"'!$B$2:$B$1501\")=$B2)*(INDIRECT(\"'\" & $L$1 & \"'!$E$2:$E$1501\")= $C2)*(INDIRECT(\"'\" & $L$1 & \"'!$I$2:$I$1501\")))","v":0},{"$f":"SUMPRODUCT((INDIRECT(\"'\" & $L$1 & \"'!$C$2:$C$1501\")= $A2)*(INDIRECT(\"'\" & $L$1 & \"'!$B$2:$B$1501\")=$B2)*(INDIRECT(\"'\" & $L$1 & \"'!$E$2:$E$1501\")= $C2)*(INDIRECT(\"'\" & $L$1 & \"'!$j$2:$j$1501\")))","v":0},{"$f":"SUMPRODUCT((INDIRECT(\"'\" & $L$1 & \"'!$C$2:$C$1501\")= $A2)*(INDIRECT(\"'\" & $L$1 & \"'!$B$2:$B$1501\")= $B2)*(INDIRECT(\"'\" & $L$1 & \"'!$E$2:$E$1501\")= $C2)*(INDIRECT(\"'\" & $L$1 & \"'!$K$2:$K$1501\")))","v":0},{"$f":"SUMPRODUCT((INDIRECT(\"'\" & $L$1 & \"'!$C$2:$C$1501\")= $A2)*(INDIRECT(\"'\" & $L$1 & \"'!$B$2:$B$1501\")= $B2)*(INDIRECT(\"'\" & $L$1 & \"'!$E$2:$E$1501\")= $C2)*(INDIRECT(\"'\" & $L$1 & \"'!$n$2:$n$1501\")))","v":0},{"$f":"SUMPRODUCT((INDIRECT(\"'\" & $L$1 & \"'!$C$2:$C$1501\")= $A2)*(INDIRECT(\"'\" & $L$1 & \"'!$B$2:$B$1501\")= $B2)*(INDIRECT(\"'\" & $L$1 & \"'!$E$2:$E$1501\")= $C2)*(INDIRECT(\"'\" & $L$1 & \"'!$p$2:$p$1501\")))","v":0}]
["Nutrition","Public-Earned","Radio",{"$f":"$N$1","v":""},{"$f":"SUMPRODUCT((INDIRECT(\"'\" & $L$1 & \"'!$C$2:$C$1501\")= $A3)*(INDIRECT(\"'\" & $L$1 & \"'!$B$2:$B$1501\")= $B3)*(INDIRECT(\"'\" & $L$1 & \"'!$E$2:$E$1501\")= $C3)*(INDIRECT(\"'\" & $L$1 & \"'!$H$2:$H$1501\")))","v":0},{"$f":"SUMPRODUCT((INDIRECT(\"'\" & $L$1 & \"'!$C$2:$C$1501\")= $A3)*(INDIRECT(\"'\" & $L$1 & \"'!$B$2:$B$1501\")=$B3)*(INDIRECT(\"'\" & $L$1 & \"'!$E$2:$E$1501\")= $C3)*(INDIRECT(\"'\" & $L$1 & \"'!$I$2:$I$1501\")))","v":0},{"$f":"SUMPRODUCT((INDIRECT(\"'\" & $L$1 & \"'!$C$2:$C$1501\")= $A3)*(INDIRECT(\"'\" & $L$1 & \"'!$B$2:$B$1501\")=$B3)*(INDIRECT(\"'\" & $L$1 & \"'!$E$2:$E$1501\")= $C3)*(INDIRECT(\"'\" & $L$1 & \"'!$j$2:$j$1501\")))","v":0},{"$f":"SUMPRODUCT((INDIRECT(\"'\" & $L$1 & \"'!$C$2:$C$1501\")=$A3)*(INDIRECT(\"'\" & $L$1 & \"'!$B$2:$B$1501\")=$B3)*(INDIRECT(\"'\" & $L$1 & \"'!$E$2:$E$1501\")=$C3)*(INDIRECT(\"'\" & $L$1 & \"'!$K$2:$K$1501\")))","v":0},{"$f":"SUMPRODUCT((INDIRECT(\"'\" & $L$1 & \"'!$C$2:$C$1501\")=$A3)*(INDIRECT(\"'\" & $L$1 & \"'!$B$2:$B$1501\")=$B3)*(INDIRECT(\"'\" & $L$1 & \"'!$E$2:$E$1501\")=$C3)*(INDIRECT(\"'\" & $L$1 & \"'!$n$2:$n$1501\")))","v":0},{"$f":"SUMPRODUCT((INDIRECT(\"'\" & $L$1 & \"'!$C$2:$C$1501\")=$A3)*(INDIRECT(\"'\" & $L$1 & \"'!$B$2:$B$1501\")=$B3)*(INDIRECT(\"'\" & $L$1 & \"'!$E$2:$E$1501\")=$C3)*(INDIRECT(\"'\" & $L$1 & \"'!$p$2:$p$1501\")))","v":0}]
["Nutrition","Public-Earned","Print","",0,0,0,{"$f":"SUMPRODUCT((INDIRECT(\"'\" & $L$1 & \"'!$C$2:$C$1501\")=$A4)*(INDIRECT(\"'\" & $L$1 & \"'!$B$2:$B$1501\")=$B4)*(INDIRECT(\"'\" & $L$1 & \"'!$E$2:$E$1501\")=$C4)*(INDIRECT(\"'\" & $L$1 & \"'!$K$2:$K$1501\")))","v":0},{"$f":"SUMPRODUCT((INDIRECT(\"'\" & $L$1 & \"'!$C$2:$C$1501\")=$A4)*(INDIRECT(\"'\" & $L$1 & \"'!$B$2:$B$1501\")=$B4)*(INDIRECT(\"'\" & $L$1 & \"'!$E$2:$E$1501\")=$C4)*(INDIRECT(\"'\" & $L$1 & \"'!$n$2:$n$1501\")))","v":0},{"$f":"SUMPRODUCT((INDIRECT(\"'\" & $L$1 & \"'!$C$2:$C$1501\")=$A4)*(INDIRECT(\"'\" & $L$1 & \"'!$B$2:$B$1501\")=$B4)*(INDIRECT(\"'\" & $L$1 & \"'!$E$2:$E$1501\")=$C4)*(INDIRECT(\"'\" & $L$1 & \"'!$p$2:$p$1501\")))","v":0}]
["Nutrition","Public-Earned","Social/Digital Media","",0,0,0,{"$f":"SUMPRODUCT((INDIRECT(\"'\" & $L$1 & \"'!$C$2:$C$1501\")=$A5)*(INDIRECT(\"'\" & $L$1 & \"'!$B$2:$B$1501\")=$B5)*(INDIRECT(\"'\" & $L$1 & \"'!$E$2:$E$1501\")=$C5)*(INDIRECT(\"'\" & $L$1 & \"'!$K$2:$K$1501\")))","v":0},{"$f":"SUMPRODUCT((INDIRECT(\"'\" & $L$1 & \"'!$C$2:$C$1501\")=$A5)*(INDIRECT(\"'\" & $L$1 & \"'!$B$2:$B$1501\")=$B5)*(INDIRECT(\"'\" & $L$1 & \"'!$E$2:$E$1501\")=$C5)*(INDIRECT(\"'\" & $L$1 & \"'!$n$2:$n$1501\")))","v":0},{"$f":"SUMPRODUCT((INDIRECT(\"'\" & $L$1 & \"'!$C$2:$C$1501\")=$A5)*(INDIRECT(\"'\" & $L$1 & \"'!$B$2:$B$1501\")=$B5)*(INDIRECT(\"'\" & $L$1 & \"'!$E$2:$E$1501\")=$C5)*(INDIRECT(\"'\" & $L$1 & \"'!$p$2:$p$1501\")))","v":0}]
["Nutrition","Public-Earned","Outdoor","",0,0,0,{"$f":"SUMPRODUCT((INDIRECT(\"'\" & $L$1 & \"'!$C$2:$C$1501\")=$A6)*(INDIRECT(\"'\" & $L$1 & \"'!$B$2:$B$1501\")=$B6)*(INDIRECT(\"'\" & $L$1 & \"'!$E$2:$E$1501\")=$C6)*(INDIRECT(\"'\" & $L$1 & \"'!$K$2:$K$1501\")))","v":0},{"$f":"SUMPRODUCT((INDIRECT(\"'\" & $L$1 & \"'!$C$2:$C$1501\")=$A6)*(INDIRECT(\"'\" & $L$1 & \"'!$B$2:$B$1501\")=$B6)*(INDIRECT(\"'\" & $L$1 & \"'!$E$2:$E$1501\")=$C6)*(INDIRECT(\"'\" & $L$1 & \"'!$n$2:$n$1501\")))","v":0},{"$f":"SUMPRODUCT((INDIRECT(\"'\" & $L$1 & \"'!$C$2:$C$1501\")=$A6)*(INDIRECT(\"'\" & $L$1 & \"'!$B$2:$B$1501\")=$B6)*(INDIRECT(\"'\" & $L$1 & \"'!$E$2:$E$1501\")=$C6)*(INDIRECT(\"'\" & $L$1 & \"'!$p$2:$p$1501\")))","v":0}]
["Nutrition","Public-Earned","Email/Print Newsletter","",0,0,0,{"$f":"SUMPRODUCT((INDIRECT(\"'\" & $L$1 & \"'!$C$2:$C$1501\")=$A7)*(INDIRECT(\"'\" & $L$1 & \"'!$B$2:$B$1501\")=$B7)*(INDIRECT(\"'\" & $L$1 & \"'!$E$2:$E$1501\")=$C7)*(INDIRECT(\"'\" & $L$1 & \"'!$K$2:$K$1501\")))","v":0},{"$f":"SUMPRODUCT((INDIRECT(\"'\" & $L$1 & \"'!$C$2:$C$1501\")=$A7)*(INDIRECT(\"'\" & $L$1 & \"'!$B$2:$B$1501\")=$B7)*(INDIRECT(\"'\" & $L$1 & \"'!$E$2:$E$1501\")=$C7)*(INDIRECT(\"'\" & $L$1 & \"'!$n$2:$n$1501\")))","v":0},{"$f":"SUMPRODUCT((INDIRECT(\"'\" & $L$1 & \"'!$C$2:$C$1501\")=$A7)*(INDIRECT(\"'\" & $L$1 & \"'!$B$2:$B$1501\")=$B7)*(INDIRECT(\"'\" & $L$1 & \"'!$E$2:$E$1501\")=$C7)*(INDIRECT(\"'\" & $L$1 & \"'!$p$2:$p$1501\")))","v":0}]
["Nutrition","Public-Earned","Other","",0,0,0,{"$f":"SUMPRODUCT((INDIRECT(\"'\" & $L$1 & \"'!$C$2:$C$1501\")=$A8)*(INDIRECT(\"'\" & $L$1 & \"'!$B$2:$B$1501\")=$B8)*(INDIRECT(\"'\" & $L$1 & \"'!$E$2:$E$1501\")=$C8)*(INDIRECT(\"'\" & $L$1 & \"'!$K$2:$K$1501\")))","v":0},{"$f":"SUMPRODUCT((INDIRECT(\"'\" & $L$1 & \"'!$C$2:$C$1501\")=$A8)*(INDIRECT(\"'\" & $L$1 & \"'!$B$2:$B$1501\")=$B8)*(INDIRECT(\"'\" & $L$1 & \"'!$E$2:$E$1501\")=$C8)*(INDIRECT(\"'\" & $L$1 & \"'!$n$2:$n$1501\")))","v":0},{"$f":"SUMPRODUCT((INDIRECT(\"'\" & $L$1 & \"'!$C$2:$C$1501\")=$A8)*(INDIRECT(\"'\" & $L$1 & \"'!$B$2:$B$1501\")=$B8)*(INDIRECT(\"'\" & $L$1 & \"'!$E$2:$E$1501\")=$C8)*(INDIRECT(\"'\" & $L$1 & \"'!$p$2:$p$1501\")))","v":0}]
["Nutrition","Public-Earned","Subtotal",null,{"$f":"IF(SUM(E2:E8)=0, 0, SUM(E2:E8))","v":0},{"$f":"IF(SUM(F2:F8)=0, 0, SUM(F2:F8))","v":0},{"$f":"IF(SUM(G2:G8)=0, 0, SUM(G2:G8))","v":0},0,0,0]
["Nutrition","Public-Paid","Television","",{"$f":"SUMPRODUCT((INDIRECT(\"'\" & $L$1 & \"'!$C$2:$C$1501\")= $A10)*(INDIRECT(\"'\" & $L$1 & \"'!$B$2:$B$1501\")= $B10)*(INDIRECT(\"'\" & $L$1 & \"'!$E$2:$E$1501\")= $C10)*(INDIRECT(\"'\" & $L$1 & \"'!$H$2:$H$1501\")))","v":0},{"$f":"SUMPRODUCT((INDIRECT(\"'\" & $L$1 & \"'!$C$2:$C$1501\")= $A10)*(INDIRECT(\"'\" & $L$1 & \"'!$B$2:$B$1501\")=$B10)*(INDIRECT(\"'\" & $L$1 & \"'!$E$2:$E$1501\")= $C10)*(INDIRECT(\"'\" & $L$1 & \"'!$I$2:$I$1501\")))","v":0},{"$f":"SUMPRODUCT((INDIRECT(\"'\" & $L$1 & \"'!$C$2:$C$1501\")= $A10)*(INDIRECT(\"'\" & $L$1 & \"'!$B$2:$B$1501\")=$B10)*(INDIRECT(\"'\" & $L$1 & \"'!$E$2:$E$1501\")= $C10)*(INDIRECT(\"'\" & $L$1 & \"'!$j$2:$j$1501\")))","v":0},{"$f":"SUMPRODUCT((INDIRECT(\"'\" & $L$1 & \"'!$C$2:$C$1501\")=$A10)*(INDIRECT(\"'\" & $L$1 & \"'!$B$2:$B$1501\")=$B10)*(INDIRECT(\"'\" & $L$1 & \"'!$E$2:$E$1501\")=$C10)*(INDIRECT(\"'\" & $L$1 & \"'!$K$2:$K$1501\")))","v":0},{"$f":"SUMPRODUCT((INDIRECT(\"'\" & $L$1 & \"'!$C$2:$C$1501\")=$A10)*(INDIRECT(\"'\" & $L$1 & \"'!$B$2:$B$1501\")=$B10)*(INDIRECT(\"'\" & $L$1 & \"'!$E$2:$E$1501\")=$C10)*(INDIRECT(\"'\" & $L$1 & \"'!$n$2:$n$1501\")))","v":0},{"$f":"SUMPRODUCT((INDIRECT(\"'\" & $L$1 & \"'!$C$2:$C$1501\")=$A10)*(INDIRECT(\"'\" & $L$1 & \"'!$B$2:$B$1501\")=$B10)*(INDIRECT(\"'\" & $L$1 & \"'!$E$2:$E$1501\")=$C10)*(INDIRECT(\"'\" & $L$1 & \"'!$p$2:$p$1501\")))","v":0}]
["Nutrition","Public-Paid","Radio","",0,0,0,{"$f":"SUMPRODUCT((INDIRECT(\"'\" & $L$1 & \"'!$C$2:$C$1501\")=$A11)*(INDIRECT(\"'\" & $L$1 & \"'!$B$2:$B$1501\")=$B11)*(INDIRECT(\"'\" & $L$1 & \"'!$E$2:$E$1501\")=$C11)*(INDIRECT(\"'\" & $L$1 & \"'!$K$2:$K$1501\")))","v":0},{"$f":"SUMPRODUCT((INDIRECT(\"'\" & $L$1 & \"'!$C$2:$C$1501\")=$A11)*(INDIRECT(\"'\" & $L$1 & \"'!$B$2:$B$1501\")=$B11)*(INDIRECT(\"'\" & $L$1 & \"'!$E$2:$E$1501\")=$C11)*(INDIRECT(\"'\" & $L$1 & \"'!$n$2:$n$1501\")))","v":0},{"$f":"SUMPRODUCT((INDIRECT(\"'\" & $L$1 & \"'!$C$2:$C$1501\")=$A11)*(INDIRECT(\"'\" & $L$1 & \"'!$B$2:$B$1501\")=$B11)*(INDIRECT(\"'\" & $L$1 & \"'!$E$2:$E$1501\")=$C11)*(INDIRECT(\"'\" & $L$1 & \"'!$p$2:$p$1501\")))","v":0}]
["Nutrition","Public-Paid","Print","",0,0,0,{"$f":"SUMPRODUCT((INDIRECT(\"'\" & $L$1 & \"'!$C$2:$C$1501\")=$A12)*(INDIRECT(\"'\" & $L$1 & \"'!$B$2:$B$1501\")=$B12)*(INDIRECT(\"'\" & $L$1 & \"'!$E$2:$E$1501\")=$C12)*(INDIRECT(\"'\" & $L$1 & \"'!$K$2:$K$1501\")))","v":0},{"$f":"SUMPRODUCT((INDIRECT(\"'\" & $L$1 & \"'!$C$2:$C$1501\")=$A12)*(INDIRECT(\"'\" & $L$1 & \"'!$B$2:$B$1501\")=$B12)*(INDIRECT(\"'\" & $L$1 & \"'!$E$2:$E$1501\")=$C12)*(INDIRECT(\"'\" & $L$1 & \"'!$n$2:$n$1501\")))","v":0},{"$f":"SUMPRODUCT((INDIRECT(\"'\" & $L$1 & \"'!$C$2:$C$1501\")=$A12)*(INDIRECT(\"'\" & $L$1 & \"'!$B$2:$B$1501\")=$B12)*(INDIRECT(\"'\" & $L$1 & \"'!$E$2:$E$1501\")=$C12)*(INDIRECT(\"'\" & $L$1 & \"'!$p$2:$p$1501\")))","v":0}]
["Nutrition","Public-Paid","Social/Digital Media","",0,0,0,{"$f":"SUMPRODUCT((INDIRECT(\"'\" & $L$1 & \"'!$C$2:$C$1501\")=$A13)*(INDIRECT(\"'\" & $L$1 & \"'!$B$2:$B$1501\")=$B13)*(INDIRECT(\"'\" & $L$1 & \"'!$E$2:$E$1501\")=$C13)*(INDIRECT(\"'\" & $L$1 & \"'!$K$2:$K$1501\")))","v":0},{"$f":"SUMPRODUCT((INDIRECT(\"'\" & $L$1 & \"'!$C$2:$C$1501\")=$A13)*(INDIRECT(\"'\" & $L$1 & \"'!$B$2:$B$1501\")=$B13)*(INDIRECT(\"'\" & $L$1 & \"'!$E$2:$E$1501\")=$C13)*(INDIRECT(\"'\" & $L$1 & \"'!$n$2:$n$1501\")))","v":0},{"$f":"SUMPRODUCT((INDIRECT(\"'\" & $L$1 & \"'!$C$2:$C$1501\")=$A13)*(INDIRECT(\"'\" & $L$1 & \"'!$B$2:$B$1501\")=$B13)*(INDIRECT(\"'\" & $L$1 & \"'!$E$2:$E$1501\")=$C13)*(INDIRECT(\"'\" & $L$1 & \"'!$p$2:$p$1501\")))","v":0}]
["Nutrition","Public-Paid","Outdoor","",0,0,0,{"$f":"SUMPRODUCT((INDIRECT(\"'\" & $L$1 & \"'!$C$2:$C$1501\")=$A14)*(INDIRECT(\"'\" & $L$1 & \"'!$B$2:$B$1501\")=$B14)*(INDIRECT(\"'\" & $L$1 & \"'!$E$2:$E$1501\")=$C14)*(INDIRECT(\"'\" & $L$1 & \"'!$K$2:$K$1501\")))","v":0},{"$f":"SUMPRODUCT((INDIRECT(\"'\" & $L$1 & \"'!$C$2:$C$1501\")=$A14)*(INDIRECT(\"'\" & $L$1 & \"'!$B$2:$B$1501\")=$B14)*(INDIRECT(\"'\" & $L$1 & \"'!$E$2:$E$1501\")=$C14)*(INDIRECT(\"'\" & $L$1 & \"'!$n$2:$n$1501\")))","v":0},{"$f":"SUMPRODUCT((INDIRECT(\"'\" & $L$1 & \"'!$C$2:$C$1501\")=$A14)*(INDIRECT(\"'\" & $L$1 & \"'!$B$2:$B$1501\")=$B14)*(INDIRECT(\"'\" & $L$1 & \"'!$E$2:$E$1501\")=$C14)*(INDIRECT(\"'\" & $L$1 & \"'!$p$2:$p$1501\")))","v":0}]
["Nutrition","Public-Paid","Email/Print Newsletter","",0,0,0,{"$f":"SUMPRODUCT((INDIRECT(\"'\" & $L$1 & \"'!$C$2:$C$1501\")=$A15)*(INDIRECT(\"'\" & $L$1 & \"'!$B$2:$B$1501\")=$B15)*(INDIRECT(\"'\" & $L$1 & \"'!$E$2:$E$1501\")=$C15)*(INDIRECT(\"'\" & $L$1 & \"'!$K$2:$K$1501\")))","v":0},{"$f":"SUMPRODUCT((INDIRECT(\"'\" & $L$1 & \"'!$C$2:$C$1501\")=$A15)*(INDIRECT(\"'\" & $L$1 & \"'!$B$2:$B$1501\")=$B15)*(INDIRECT(\"'\" & $L$1 & \"'!$E$2:$E$1501\")=$C15)*(INDIRECT(\"'\" & $L$1 & \"'!$n$2:$n$1501\")))","v":0},{"$f":"SUMPRODUCT((INDIRECT(\"'\" & $L$1 & \"'!$C$2:$C$1501\")=$A15)*(INDIRECT(\"'\" & $L$1 & \"'!$B$2:$B$1501\")=$B15)*(INDIRECT(\"'\" & $L$1 & \"'!$E$2:$E$1501\")=$C15)*(INDIRECT(\"'\" & $L$1 & \"'!$p$2:$p$1501\")))","v":0}]
["Nutrition","Public-Paid","Other","",0,0,0,{"$f":"SUMPRODUCT((INDIRECT(\"'\" & $L$1 & \"'!$C$2:$C$1501\")=$A16)*(INDIRECT(\"'\" & $L$1 & \"'!$B$2:$B$1501\")=$B16)*(INDIRECT(\"'\" & $L$1 & \"'!$E$2:$E$1501\")=$C16)*(INDIRECT(\"'\" & $L$1 & \"'!$K$2:$K$1501\")))","v":0},{"$f":"SUMPRODUCT((INDIRECT(\"'\" & $L$1 & \"'!$C$2:$C$1501\")=$A16)*(INDIRECT(\"'\" & $L$1 & \"'!$B$2:$B$1501\")=$B16)*(INDIRECT(\"'\" & $L$1 & \"'!$E$2:$E$1501\")=$C16)*(INDIRECT(\"'\" & $L$1 & \"'!$n$2:$n$1501\")))","v":0},{"$f":"SUMPRODUCT((INDIRECT(\"'\" & $L$1 & \"'!$C$2:$C$1501\")=$A16)*(INDIRECT(\"'\" & $L$1 & \"'!$B$2:$B$1501\")=$B16)*(INDIRECT(\"'\" & $L$1 & \"'!$E$2:$E$1501\")=$C16)*(INDIRECT(\"'\" & $L$1 & \"'!$p$2:$p$1501\")))","v":0}]
["Nutrition","Public-Paid","Subtotal",null,{"$f":"IF(SUM(E10:E16)=0, 0, SUM(E10:E16))","v":0},{"$f":"IF(SUM(F10:F16)=0, 0, SUM(F10:F16))","v":0},0,{"$f":"IF(SUM(H10:H16)=0, 0, SUM(H10:H16))","v":0},{"$f":"IF(SUM(I10:I16)=0, 0, SUM(I10:I16))","v":0},{"$f":"IF(SUM(J10:J16)=0, 0, SUM(J10:J16))","v":0}]
["Nutrition","Partner","Television","",{"$f":"SUMPRODUCT((INDIRECT(\"'\" & $L$1 & \"'!$C$2:$C$1501\")= $A18)*(INDIRECT(\"'\" & $L$1 & \"'!$B$2:$B$1501\")= $B18)*(INDIRECT(\"'\" & $L$1 & \"'!$E$2:$E$1501\")= $C18)*(INDIRECT(\"'\" & $L$1 & \"'!$H$2:$H$1501\")))","v":0},{"$f":"SUMPRODUCT((INDIRECT(\"'\" & $L$1 & \"'!$C$2:$C$1501\")= $A18)*(INDIRECT(\"'\" & $L$1 & \"'!$B$2:$B$1501\")=$B18)*(INDIRECT(\"'\" & $L$1 & \"'!$E$2:$E$1501\")= $C18)*(INDIRECT(\"'\" & $L$1 & \"'!$I$2:$I$1501\")))","v":0},{"$f":"SUMPRODUCT((INDIRECT(\"'\" & $L$1 & \"'!$C$2:$C$1501\")= $A18)*(INDIRECT(\"'\" & $L$1 & \"'!$B$2:$B$1501\")=$B18)*(INDIRECT(\"'\" & $L$1 & \"'!$E$2:$E$1501\")= $C18)*(INDIRECT(\"'\" & $L$1 & \"'!$j$2:$j$1501\")))","v":0},{"$f":"SUMPRODUCT((INDIRECT(\"'\" & $L$1 & \"'!$C$2:$C$1501\")=$A18)*(INDIRECT(\"'\" & $L$1 & \"'!$B$2:$B$1501\")=$B18)*(INDIRECT(\"'\" & $L$1 & \"'!$E$2:$E$1501\")=$C18)*(INDIRECT(\"'\" & $L$1 & \"'!$K$2:$K$1501\")))","v":0},{"$f":"SUMPRODUCT((INDIRECT(\"'\" & $L$1 & \"'!$C$2:$C$1501\")=$A18)*(INDIRECT(\"'\" & $L$1 & \"'!$B$2:$B$1501\")=$B18)*(INDIRECT(\"'\" & $L$1 & \"'!$E$2:$E$1501\")=$C18)*(INDIRECT(\"'\" & $L$1 & \"'!$n$2:$n$1501\")))","v":0},{"$f":"SUMPRODUCT((INDIRECT(\"'\" & $L$1 & \"'!$C$2:$C$1501\")=$A18)*(INDIRECT(\"'\" & $L$1 & \"'!$B$2:$B$1501\")=$B18)*(INDIRECT(\"'\" & $L$1 & \"'!$E$2:$E$1501\")=$C18)*(INDIRECT(\"'\" & $L$1 & \"'!$p$2:$p$1501\")))","v":0}]
["Nutrition","Partner","Radio","",0,0,0,{"$f":"SUMPRODUCT((INDIRECT(\"'\" & $L$1 & \"'!$C$2:$C$1501\")=$A19)*(INDIRECT(\"'\" & $L$1 & \"'!$B$2:$B$1501\")=$B19)*(INDIRECT(\"'\" & $L$1 & \"'!$E$2:$E$1501\")=$C19)*(INDIRECT(\"'\" & $L$1 & \"'!$K$2:$K$1501\")))","v":0},{"$f":"SUMPRODUCT((INDIRECT(\"'\" & $L$1 & \"'!$C$2:$C$1501\")=$A19)*(INDIRECT(\"'\" & $L$1 & \"'!$B$2:$B$1501\")=$B19)*(INDIRECT(\"'\" & $L$1 & \"'!$E$2:$E$1501\")=$C19)*(INDIRECT(\"'\" & $L$1 & \"'!$n$2:$n$1501\")))","v":0},{"$f":"SUMPRODUCT((INDIRECT(\"'\" & $L$1 & \"'!$C$2:$C$1501\")=$A19)*(INDIRECT(\"'\" & $L$1 & \"'!$B$2:$B$1501\")=$B19)*(INDIRECT(\"'\" & $L$1 & \"'!$E$2:$E$1501\")=$C19)*(INDIRECT(\"'\" & $L$1 & \"'!$p$2:$p$1501\")))","v":0}]
["Nutrition","Partner","Print","",0,0,0,{"$f":"SUMPRODUCT((INDIRECT(\"'\" & $L$1 & \"'!$C$2:$C$1501\")=$A20)*(INDIRECT(\"'\" & $L$1 & \"'!$B$2:$B$1501\")=$B20)*(INDIRECT(\"'\" & $L$1 & \"'!$E$2:$E$1501\")=$C20)*(INDIRECT(\"'\" & $L$1 & \"'!$K$2:$K$1501\")))","v":0},{"$f":"SUMPRODUCT((INDIRECT(\"'\" & $L$1 & \"'!$C$2:$C$1501\")=$A20)*(INDIRECT(\"'\" & $L$1 & \"'!$B$2:$B$1501\")=$B20)*(INDIRECT(\"'\" & $L$1 & \"'!$E$2:$E$1501\")=$C20)*(INDIRECT(\"'\" & $L$1 & \"'!$n$2:$n$1501\")))","v":0},{"$f":"SUMPRODUCT((INDIRECT(\"'\" & $L$1 & \"'!$C$2:$C$1501\")=$A20)*(INDIRECT(\"'\" & $L$1 & \"'!$B$2:$B$1501\")=$B20)*(INDIRECT(\"'\" & $L$1 & \"'!$E$2:$E$1501\")=$C20)*(INDIRECT(\"'\" & $L$1 & \"'!$p$2:$p$1501\")))","v":0}]
["Nutrition","Partner","Social/Digital Media","",0,0,0,{"$f":"SUMPRODUCT((INDIRECT(\"'\" & $L$1 & \"'!$C$2:$C$1501\")=$A21)*(INDIRECT(\"'\" & $L$1 & \"'!$B$2:$B$1501\")=$B21)*(INDIRECT(\"'\" & $L$1 & \"'!$E$2:$E$1501\")=$C21)*(INDIRECT(\"'\" & $L$1 & \"'!$K$2:$K$1501\")))","v":0},{"$f":"SUMPRODUCT((INDIRECT(\"'\" & $L$1 & \"'!$C$2:$C$1501\")=$A21)*(INDIRECT(\"'\" & $L$1 & \"'!$B$2:$B$1501\")=$B21)*(INDIRECT(\"'\" & $L$1 & \"'!$E$2:$E$1501\")=$C21)*(INDIRECT(\"'\" & $L$1 & \"'!$n$2:$n$1501\")))","v":0},{"$f":"SUMPRODUCT((INDIRECT(\"'\" & $L$1 & \"'!$C$2:$C$1501\")=$A21)*(INDIRECT(\"'\" & $L$1 & \"'!$B$2:$B$1501\")=$B21)*(INDIRECT(\"'\" & $L$1 & \"'!$E$2:$E$1501\")=$C21)*(INDIRECT(\"'\" & $L$1 & \"'!$p$2:$p$1501\")))","v":0}]
["Nutrition","Partner","Outdoor","",0,0,0,{"$f":"SUMPRODUCT((INDIRECT(\"'\" & $L$1 & \"'!$C$2:$C$1501\")=$A22)*(INDIRECT(\"'\" & $L$1 & \"'!$B$2:$B$1501\")=$B22)*(INDIRECT(\"'\" & $L$1 & \"'!$E$2:$E$1501\")=$C22)*(INDIRECT(\"'\" & $L$1 & \"'!$K$2:$K$1501\")))","v":0},{"$f":"SUMPRODUCT((INDIRECT(\"'\" & $L$1 & \"'!$C$2:$C$1501\")=$A22)*(INDIRECT(\"'\" & $L$1 & \"'!$B$2:$B$1501\")=$B22)*(INDIRECT(\"'\" & $L$1 & \"'!$E$2:$E$1501\")=$C22)*(INDIRECT(\"'\" & $L$1 & \"'!$n$2:$n$1501\")))","v":0},{"$f":"SUMPRODUCT((INDIRECT(\"'\" & $L$1 & \"'!$C$2:$C$1501\")=$A22)*(INDIRECT(\"'\" & $L$1 & \"'!$B$2:$B$1501\")=$B22)*(INDIRECT(\"'\" & $L$1 & \"'!$E$2:$E$1501\")=$C22)*(INDIRECT(\"'\" & $L$1 & \"'!$p$2:$p$1501\")))","v":0}]
["Nutrition","Partner","Email/Print Newsletter","",0,0,0,{"$f":"SUMPRODUCT((INDIRECT(\"'\" & $L$1 & \"'!$C$2:$C$1501\")=$A23)*(INDIRECT(\"'\" & $L$1 & \"'!$B$2:$B$1501\")=$B23)*(INDIRECT(\"'\" & $L$1 & \"'!$E$2:$E$1501\")=$C23)*(INDIRECT(\"'\" & $L$1 & \"'!$K$2:$K$1501\")))","v":0},{"$f":"SUMPRODUCT((INDIRECT(\"'\" & $L$1 & \"'!$C$2:$C$1501\")=$A23)*(INDIRECT(\"'\" & $L$1 & \"'!$B$2:$B$1501\")=$B23)*(INDIRECT(\"'\" & $L$1 & \"'!$E$2:$E$1501\")=$C23)*(INDIRECT(\"'\" & $L$1 & \"'!$n$2:$n$1501\")))","v":0},{"$f":"SUMPRODUCT((INDIRECT(\"'\" & $L$1 & \"'!$C$2:$C$1501\")=$A23)*(INDIRECT(\"'\" & $L$1 & \"'!$B$2:$B$1501\")=$B23)*(INDIRECT(\"'\" & $L$1 & \"'!$E$2:$E$1501\")=$C23)*(INDIRECT(\"'\" & $L$1 & \"'!$p$2:$p$1501\")))","v":0}]
["Nutrition","Partner","Other","",0,0,0,{"$f":"SUMPRODUCT((INDIRECT(\"'\" & $L$1 & \"'!$C$2:$C$1501\")=$A24)*(INDIRECT(\"'\" & $L$1 & \"'!$B$2:$B$1501\")=$B24)*(INDIRECT(\"'\" & $L$1 & \"'!$E$2:$E$1501\")=$C24)*(INDIRECT(\"'\" & $L$1 & \"'!$K$2:$K$1501\")))","v":0},{"$f":"SUMPRODUCT((INDIRECT(\"'\" & $L$1 & \"'!$C$2:$C$1501\")=$A24)*(INDIRECT(\"'\" & $L$1 & \"'!$B$2:$B$1501\")=$B24)*(INDIRECT(\"'\" & $L$1 & \"'!$E$2:$E$1501\")=$C24)*(INDIRECT(\"'\" & $L$1 & \"'!$n$2:$n$1501\")))","v":0},{"$f":"SUMPRODUCT((INDIRECT(\"'\" & $L$1 & \"'!$C$2:$C$1501\")=$A24)*(INDIRECT(\"'\" & $L$1 & \"'!$B$2:$B$1501\")=$B24)*(INDIRECT(\"'\" & $L$1 & \"'!$E$2:$E$1501\")=$C24)*(INDIRECT(\"'\" & $L$1 & \"'!$p$2:$p$1501\")))","v":0}]
["Nutrition","Partner","Subtotal",null,{"$f":"IF(SUM(E18:E24)=0, 0, SUM(E18:E24))","v":0},{"$f":"IF(SUM(F18:F24)=0, 0, SUM(F18:F24))","v":0},0,{"$f":"IF(SUM(H18:H24)=0, 0, SUM(H18:H24))","v":0},{"$f":"IF(SUM(I18:I24)=0, 0, SUM(I18:I24))","v":0},{"$f":"IF(SUM(J18:J24)=0, 0, SUM(J18:J24))","v":0}]
["Nutrition",{"$f":"$P$1","v":"Sub-Recipients"},"Television",""]
["Nutrition",null,"Radio",""]
["Nutrition",null,"Print",""]
["Nutrition",null,"Social/New Media",""]
["Nutrition",null,"Outdoor",""]
["Nutrition",null,"Other",""]
["Nutrition",null,"Subtotal",""]
["Nutrition","TOTAL",null,null,{"$f":"SUMPRODUCT(($C2:$C32=$C$25)*(E2:E32))","v":0},{"$f":"SUMPRODUCT(($C2:$C32=$C$25)*(F2:F32))","v":0},{"$f":"SUMPRODUCT(($C2:$C32=$C$25)*(G2:G32))","v":0},0,0,0]
["Physical Activity","Public-Earned","Television","",{"$f":"SUMPRODUCT((INDIRECT(\"'\" & $L$1 & \"'!$C$2:$C$1501\")= $A34)*(INDIRECT(\"'\" & $L$1 & \"'!$B$2:$B$1501\")= $B34)*(INDIRECT(\"'\" & $L$1 & \"'!$E$2:$E$1501\")= $C34)*(INDIRECT(\"'\" & $L$1 & \"'!$H$2:$H$1501\")))","v":0},{"$f":"SUMPRODUCT((INDIRECT(\"'\" & $L$1 & \"'!$C$2:$C$1501\")= $A34)*(INDIRECT(\"'\" & $L$1 & \"'!$B$2:$B$1501\")=$B34)*(INDIRECT(\"'\" & $L$1 & \"'!$E$2:$E$1501\")= $C34)*(INDIRECT(\"'\" & $L$1 & \"'!$I$2:$I$1501\")))","v":0},{"$f":"SUMPRODUCT((INDIRECT(\"'\" & $L$1 & \"'!$C$2:$C$1501\")= $A34)*(INDIRECT(\"'\" & $L$1 & \"'!$B$2:$B$1501\")=$B34)*(INDIRECT(\"'\" & $L$1 & \"'!$E$2:$E$1501\")= $C34)*(INDIRECT(\"'\" & $L$1 & \"'!$j$2:$j$1501\")))","v":0},{"$f":"SUMPRODUCT((INDIRECT(\"'\" & $L$1 & \"'!$C$2:$C$1501\")=$A34)*(INDIRECT(\"'\" & $L$1 & \"'!$B$2:$B$1501\")=$B34)*(INDIRECT(\"'\" & $L$1 & \"'!$E$2:$E$1501\")=$C34)*(INDIRECT(\"'\" & $L$1 & \"'!$K$2:$K$1501\")))","v":0},{"$f":"SUMPRODUCT((INDIRECT(\"'\" & $L$1 & \"'!$C$2:$C$1501\")=$A34)*(INDIRECT(\"'\" & $L$1 & \"'!$B$2:$B$1501\")=$B34)*(INDIRECT(\"'\" & $L$1 & \"'!$E$2:$E$1501\")=$C34)*(INDIRECT(\"'\" & $L$1 & \"'!$n$2:$n$1501\")))","v":0},{"$f":"SUMPRODUCT((INDIRECT(\"'\" & $L$1 & \"'!$C$2:$C$1501\")=$A34)*(INDIRECT(\"'\" & $L$1 & \"'!$B$2:$B$1501\")=$B34)*(INDIRECT(\"'\" & $L$1 & \"'!$E$2:$E$1501\")=$C34)*(INDIRECT(\"'\" & $L$1 & \"'!$p$2:$p$1501\")))","v":0}]
["Physical Activity","Public-Earned","Radio","",0,0,0,{"$f":"SUMPRODUCT((INDIRECT(\"'\" & $L$1 & \"'!$C$2:$C$1501\")=$A35)*(INDIRECT(\"'\" & $L$1 & \"'!$B$2:$B$1501\")=$B35)*(INDIRECT(\"'\" & $L$1 & \"'!$E$2:$E$1501\")=$C35)*(INDIRECT(\"'\" & $L$1 & \"'!$K$2:$K$1501\")))","v":0},{"$f":"SUMPRODUCT((INDIRECT(\"'\" & $L$1 & \"'!$C$2:$C$1501\")=$A35)*(INDIRECT(\"'\" & $L$1 & \"'!$B$2:$B$1501\")=$B35)*(INDIRECT(\"'\" & $L$1 & \"'!$E$2:$E$1501\")=$C35)*(INDIRECT(\"'\" & $L$1 & \"'!$n$2:$n$1501\")))","v":0},{"$f":"SUMPRODUCT((INDIRECT(\"'\" & $L$1 & \"'!$C$2:$C$1501\")=$A35)*(INDIRECT(\"'\" & $L$1 & \"'!$B$2:$B$1501\")=$B35)*(INDIRECT(\"'\" & $L$1 & \"'!$E$2:$E$1501\")=$C35)*(INDIRECT(\"'\" & $L$1 & \"'!$p$2:$p$1501\")))","v":0}]
["Physical Activity","Public-Earned","Print","",0,0,0,{"$f":"SUMPRODUCT((INDIRECT(\"'\" & $L$1 & \"'!$C$2:$C$1501\")=$A36)*(INDIRECT(\"'\" & $L$1 & \"'!$B$2:$B$1501\")=$B36)*(INDIRECT(\"'\" & $L$1 & \"'!$E$2:$E$1501\")=$C36)*(INDIRECT(\"'\" & $L$1 & \"'!$K$2:$K$1501\")))","v":0},{"$f":"SUMPRODUCT((INDIRECT(\"'\" & $L$1 & \"'!$C$2:$C$1501\")=$A36)*(INDIRECT(\"'\" & $L$1 & \"'!$B$2:$B$1501\")=$B36)*(INDIRECT(\"'\" & $L$1 & \"'!$E$2:$E$1501\")=$C36)*(INDIRECT(\"'\" & $L$1 & \"'!$n$2:$n$1501\")))","v":0},{"$f":"SUMPRODUCT((INDIRECT(\"'\" & $L$1 & \"'!$C$2:$C$1501\")=$A36)*(INDIRECT(\"'\" & $L$1 & \"'!$B$2:$B$1501\")=$B36)*(INDIRECT(\"'\" & $L$1 & \"'!$E$2:$E$1501\")=$C36)*(INDIRECT(\"'\" & $L$1 & \"'!$p$2:$p$1501\")))","v":0}]
["Physical Activity","Public-Earned","Social/Digital Media","",0,0,0,{"$f":"SUMPRODUCT((INDIRECT(\"'\" & $L$1 & \"'!$C$2:$C$1501\")=$A37)*(INDIRECT(\"'\" & $L$1 & \"'!$B$2:$B$1501\")=$B37)*(INDIRECT(\"'\" & $L$1 & \"'!$E$2:$E$1501\")=$C37)*(INDIRECT(\"'\" & $L$1 & \"'!$K$2:$K$1501\")))","v":0},{"$f":"SUMPRODUCT((INDIRECT(\"'\" & $L$1 & \"'!$C$2:$C$1501\")=$A37)*(INDIRECT(\"'\" & $L$1 & \"'!$B$2:$B$1501\")=$B37)*(INDIRECT(\"'\" & $L$1 & \"'!$E$2:$E$1501\")=$C37)*(INDIRECT(\"'\" & $L$1 & \"'!$n$2:$n$1501\")))","v":0},{"$f":"SUMPRODUCT((INDIRECT(\"'\" & $L$1 & \"'!$C$2:$C$1501\")=$A37)*(INDIRECT(\"'\" & $L$1 & \"'!$B$2:$B$1501\")=$B37)*(INDIRECT(\"'\" & $L$1 & \"'!$E$2:$E$1501\")=$C37)*(INDIRECT(\"'\" & $L$1 & \"'!$p$2:$p$1501\")))","v":0}]
["Physical Activity","Public-Earned","Outdoor","",0,0,0,{"$f":"SUMPRODUCT((INDIRECT(\"'\" & $L$1 & \"'!$C$2:$C$1501\")=$A38)*(INDIRECT(\"'\" & $L$1 & \"'!$B$2:$B$1501\")=$B38)*(INDIRECT(\"'\" & $L$1 & \"'!$E$2:$E$1501\")=$C38)*(INDIRECT(\"'\" & $L$1 & \"'!$K$2:$K$1501\")))","v":0},{"$f":"SUMPRODUCT((INDIRECT(\"'\" & $L$1 & \"'!$C$2:$C$1501\")=$A38)*(INDIRECT(\"'\" & $L$1 & \"'!$B$2:$B$1501\")=$B38)*(INDIRECT(\"'\" & $L$1 & \"'!$E$2:$E$1501\")=$C38)*(INDIRECT(\"'\" & $L$1 & \"'!$n$2:$n$1501\")))","v":0},{"$f":"SUMPRODUCT((INDIRECT(\"'\" & $L$1 & \"'!$C$2:$C$1501\")=$A38)*(INDIRECT(\"'\" & $L$1 & \"'!$B$2:$B$1501\")=$B38)*(INDIRECT(\"'\" & $L$1 & \"'!$E$2:$E$1501\")=$C38)*(INDIRECT(\"'\" & $L$1 & \"'!$p$2:$p$1501\")))","v":0}]
["Physical Activity","Public-Earned","Email/Print Newsletter","",0,0,0,{"$f":"SUMPRODUCT((INDIRECT(\"'\" & $L$1 & \"'!$C$2:$C$1501\")=$A39)*(INDIRECT(\"'\" & $L$1 & \"'!$B$2:$B$1501\")=$B39)*(INDIRECT(\"'\" & $L$1 & \"'!$E$2:$E$1501\")=$C39)*(INDIRECT(\"'\" & $L$1 & \"'!$K$2:$K$1501\")))","v":0},{"$f":"SUMPRODUCT((INDIRECT(\"'\" & $L$1 & \"'!$C$2:$C$1501\")=$A39)*(INDIRECT(\"'\" & $L$1 & \"'!$B$2:$B$1501\")=$B39)*(INDIRECT(\"'\" & $L$1 & \"'!$E$2:$E$1501\")=$C39)*(INDIRECT(\"'\" & $L$1 & \"'!$n$2:$n$1501\")))","v":0},{"$f":"SUMPRODUCT((INDIRECT(\"'\" & $L$1 & \"'!$C$2:$C$1501\")=$A39)*(INDIRECT(\"'\" & $L$1 & \"'!$B$2:$B$1501\")=$B39)*(INDIRECT(\"'\" & $L$1 & \"'!$E$2:$E$1501\")=$C39)*(INDIRECT(\"'\" & $L$1 & \"'!$p$2:$p$1501\")))","v":0}]
["Physical Activity","Public-Earned","Other","",0,0,0,{"$f":"SUMPRODUCT((INDIRECT(\"'\" & $L$1 & \"'!$C$2:$C$1501\")=$A40)*(INDIRECT(\"'\" & $L$1 & \"'!$B$2:$B$1501\")=$B40)*(INDIRECT(\"'\" & $L$1 & \"'!$E$2:$E$1501\")=$C40)*(INDIRECT(\"'\" & $L$1 & \"'!$K$2:$K$1501\")))","v":0},{"$f":"SUMPRODUCT((INDIRECT(\"'\" & $L$1 & \"'!$C$2:$C$1501\")=$A40)*(INDIRECT(\"'\" & $L$1 & \"'!$B$2:$B$1501\")=$B40)*(INDIRECT(\"'\" & $L$1 & \"'!$E$2:$E$1501\")=$C40)*(INDIRECT(\"'\" & $L$1 & \"'!$n$2:$n$1501\")))","v":0},{"$f":"SUMPRODUCT((INDIRECT(\"'\" & $L$1 & \"'!$C$2:$C$1501\")=$A40)*(INDIRECT(\"'\" & $L$1 & \"'!$B$2:$B$1501\")=$B40)*(INDIRECT(\"'\" & $L$1 & \"'!$E$2:$E$1501\")=$C40)*(INDIRECT(\"'\" & $L$1 & \"'!$p$2:$p$1501\")))","v":0}]
["Physical Activity","Public-Earned","Subtotal",null,{"$f":"IF(SUM(E34:E40)=0, 0, SUM(E34:E40))","v":0},{"$f":"IF(SUM(F34:F40)=0, 0, SUM(F34:F40))","v":0},0,{"$f":"IF(SUM(H34:H40)=0, 0, SUM(H34:H40))","v":0},{"$f":"IF(SUM(I34:I40)=0, 0, SUM(I34:I40))","v":0},{"$f":"IF(SUM(J34:J40)=0, 0, SUM(J34:J40))","v":0}]
["Physical Activity","Public-Paid","Television","",{"$f":"SUMPRODUCT((INDIRECT(\"'\" & $L$1 & \"'!$C$2:$C$1501\")= $A42)*(INDIRECT(\"'\" & $L$1 & \"'!$B$2:$B$1501\")= $B42)*(INDIRECT(\"'\" & $L$1 & \"'!$E$2:$E$1501\")= $C42)*(INDIRECT(\"'\" & $L$1 & \"'!$H$2:$H$1501\")))","v":0},{"$f":"SUMPRODUCT((INDIRECT(\"'\" & $L$1 & \"'!$C$2:$C$1501\")= $A42)*(INDIRECT(\"'\" & $L$1 & \"'!$B$2:$B$1501\")=$B42)*(INDIRECT(\"'\" & $L$1 & \"'!$E$2:$E$1501\")= $C42)*(INDIRECT(\"'\" & $L$1 & \"'!$I$2:$I$1501\")))","v":0},{"$f":"SUMPRODUCT((INDIRECT(\"'\" & $L$1 & \"'!$C$2:$C$1501\")= $A42)*(INDIRECT(\"'\" & $L$1 & \"'!$B$2:$B$1501\")=$B42)*(INDIRECT(\"'\" & $L$1 & \"'!$E$2:$E$1501\")= $C42)*(INDIRECT(\"'\" & $L$1 & \"'!$j$2:$j$1501\")))","v":0},{"$f":"SUMPRODUCT((INDIRECT(\"'\" & $L$1 & \"'!$C$2:$C$1501\")=$A42)*(INDIRECT(\"'\" & $L$1 & \"'!$B$2:$B$1501\")=$B42)*(INDIRECT(\"'\" & $L$1 & \"'!$E$2:$E$1501\")=$C42)*(INDIRECT(\"'\" & $L$1 & \"'!$K$2:$K$1501\")))","v":0},{"$f":"SUMPRODUCT((INDIRECT(\"'\" & $L$1 & \"'!$C$2:$C$1501\")=$A42)*(INDIRECT(\"'\" & $L$1 & \"'!$B$2:$B$1501\")=$B42)*(INDIRECT(\"'\" & $L$1 & \"'!$E$2:$E$1501\")=$C42)*(INDIRECT(\"'\" & $L$1 & \"'!$n$2:$n$1501\")))","v":0},{"$f":"SUMPRODUCT((INDIRECT(\"'\" & $L$1 & \"'!$C$2:$C$1501\")=$A42)*(INDIRECT(\"'\" & $L$1 & \"'!$B$2:$B$1501\")=$B42)*(INDIRECT(\"'\" & $L$1 & \"'!$E$2:$E$1501\")=$C42)*(INDIRECT(\"'\" & $L$1 & \"'!$p$2:$p$1501\")))","v":0}]
["Physical Activity","Public-Paid","Radio","",0,0,0,{"$f":"SUMPRODUCT((INDIRECT(\"'\" & $L$1 & \"'!$C$2:$C$1501\")=$A43)*(INDIRECT(\"'\" & $L$1 & \"'!$B$2:$B$1501\")=$B43)*(INDIRECT(\"'\" & $L$1 & \"'!$E$2:$E$1501\")=$C43)*(INDIRECT(\"'\" & $L$1 & \"'!$K$2:$K$1501\")))","v":0},{"$f":"SUMPRODUCT((INDIRECT(\"'\" & $L$1 & \"'!$C$2:$C$1501\")=$A43)*(INDIRECT(\"'\" & $L$1 & \"'!$B$2:$B$1501\")=$B43)*(INDIRECT(\"'\" & $L$1 & \"'!$E$2:$E$1501\")=$C43)*(INDIRECT(\"'\" & $L$1 & \"'!$n$2:$n$1501\")))","v":0},{"$f":"SUMPRODUCT((INDIRECT(\"'\" & $L$1 & \"'!$C$2:$C$1501\")=$A43)*(INDIRECT(\"'\" & $L$1 & \"'!$B$2:$B$1501\")=$B43)*(INDIRECT(\"'\" & $L$1 & \"'!$E$2:$E$1501\")=$C43)*(INDIRECT(\"'\" & $L$1 & \"'!$p$2:$p$1501\")))","v":0}]
["Physical Activity","Public-Paid","Print","",0,0,0,{"$f":"SUMPRODUCT((INDIRECT(\"'\" & $L$1 & \"'!$C$2:$C$1501\")=$A44)*(INDIRECT(\"'\" & $L$1 & \"'!$B$2:$B$1501\")=$B44)*(INDIRECT(\"'\" & $L$1 & \"'!$E$2:$E$1501\")=$C44)*(INDIRECT(\"'\" & $L$1 & \"'!$K$2:$K$1501\")))","v":0},{"$f":"SUMPRODUCT((INDIRECT(\"'\" & $L$1 & \"'!$C$2:$C$1501\")=$A44)*(INDIRECT(\"'\" & $L$1 & \"'!$B$2:$B$1501\")=$B44)*(INDIRECT(\"'\" & $L$1 & \"'!$E$2:$E$1501\")=$C44)*(INDIRECT(\"'\" & $L$1 & \"'!$n$2:$n$1501\")))","v":0},{"$f":"SUMPRODUCT((INDIRECT(\"'\" & $L$1 & \"'!$C$2:$C$1501\")=$A44)*(INDIRECT(\"'\" & $L$1 & \"'!$B$2:$B$1501\")=$B44)*(INDIRECT(\"'\" & $L$1 & \"'!$E$2:$E$1501\")=$C44)*(INDIRECT(\"'\" & $L$1 & \"'!$p$2:$p$1501\")))","v":0}]
["Physical Activity","Public-Paid","Social/Digital Media","",0,0,0,{"$f":"SUMPRODUCT((INDIRECT(\"'\" & $L$1 & \"'!$C$2:$C$1501\")=$A45)*(INDIRECT(\"'\" & $L$1 & \"'!$B$2:$B$1501\")=$B45)*(INDIRECT(\"'\" & $L$1 & \"'!$E$2:$E$1501\")=$C45)*(INDIRECT(\"'\" & $L$1 & \"'!$K$2:$K$1501\")))","v":0},{"$f":"SUMPRODUCT((INDIRECT(\"'\" & $L$1 & \"'!$C$2:$C$1501\")=$A45)*(INDIRECT(\"'\" & $L$1 & \"'!$B$2:$B$1501\")=$B45)*(INDIRECT(\"'\" & $L$1 & \"'!$E$2:$E$1501\")=$C45)*(INDIRECT(\"'\" & $L$1 & \"'!$n$2:$n$1501\")))","v":0},{"$f":"SUMPRODUCT((INDIRECT(\"'\" & $L$1 & \"'!$C$2:$C$1501\")=$A45)*(INDIRECT(\"'\" & $L$1 & \"'!$B$2:$B$1501\")=$B45)*(INDIRECT(\"'\" & $L$1 & \"'!$E$2:$E$1501\")=$C45)*(INDIRECT(\"'\" & $L$1 & \"'!$p$2:$p$1501\")))","v":0}]
["Physical Activity","Public-Paid","Outdoor","",0,0,0,{"$f":"SUMPRODUCT((INDIRECT(\"'\" & $L$1 & \"'!$C$2:$C$1501\")=$A46)*(INDIRECT(\"'\" & $L$1 & \"'!$B$2:$B$1501\")=$B46)*(INDIRECT(\"'\" & $L$1 & \"'!$E$2:$E$1501\")=$C46)*(INDIRECT(\"'\" & $L$1 & \"'!$K$2:$K$1501\")))","v":0},{"$f":"SUMPRODUCT((INDIRECT(\"'\" & $L$1 & \"'!$C$2:$C$1501\")=$A46)*(INDIRECT(\"'\" & $L$1 & \"'!$B$2:$B$1501\")=$B46)*(INDIRECT(\"'\" & $L$1 & \"'!$E$2:$E$1501\")=$C46)*(INDIRECT(\"'\" & $L$1 & \"'!$n$2:$n$1501\")))","v":0},{"$f":"SUMPRODUCT((INDIRECT(\"'\" & $L$1 & \"'!$C$2:$C$1501\")=$A46)*(INDIRECT(\"'\" & $L$1 & \"'!$B$2:$B$1501\")=$B46)*(INDIRECT(\"'\" & $L$1 & \"'!$E$2:$E$1501\")=$C46)*(INDIRECT(\"'\" & $L$1 & \"'!$p$2:$p$1501\")))","v":0}]
["Physical Activity","Public-Paid","Email/Print Newsletter","",0,0,0,{"$f":"SUMPRODUCT((INDIRECT(\"'\" & $L$1 & \"'!$C$2:$C$1501\")=$A47)*(INDIRECT(\"'\" & $L$1 & \"'!$B$2:$B$1501\")=$B47)*(INDIRECT(\"'\" & $L$1 & \"'!$E$2:$E$1501\")=$C47)*(INDIRECT(\"'\" & $L$1 & \"'!$K$2:$K$1501\")))","v":0},{"$f":"SUMPRODUCT((INDIRECT(\"'\" & $L$1 & \"'!$C$2:$C$1501\")=$A47)*(INDIRECT(\"'\" & $L$1 & \"'!$B$2:$B$1501\")=$B47)*(INDIRECT(\"'\" & $L$1 & \"'!$E$2:$E$1501\")=$C47)*(INDIRECT(\"'\" & $L$1 & \"'!$n$2:$n$1501\")))","v":0},{"$f":"SUMPRODUCT((INDIRECT(\"'\" & $L$1 & \"'!$C$2:$C$1501\")=$A47)*(INDIRECT(\"'\" & $L$1 & \"'!$B$2:$B$1501\")=$B47)*(INDIRECT(\"'\" & $L$1 & \"'!$E$2:$E$1501\")=$C47)*(INDIRECT(\"'\" & $L$1 & \"'!$p$2:$p$1501\")))","v":0}]
["Physical Activity","Public-Paid","Other","",0,0,0,{"$f":"SUMPRODUCT((INDIRECT(\"'\" & $L$1 & \"'!$C$2:$C$1501\")=$A48)*(INDIRECT(\"'\" & $L$1 & \"'!$B$2:$B$1501\")=$B48)*(INDIRECT(\"'\" & $L$1 & \"'!$E$2:$E$1501\")=$C48)*(INDIRECT(\"'\" & $L$1 & \"'!$K$2:$K$1501\")))","v":0},{"$f":"SUMPRODUCT((INDIRECT(\"'\" & $L$1 & \"'!$C$2:$C$1501\")=$A48)*(INDIRECT(\"'\" & $L$1 & \"'!$B$2:$B$1501\")=$B48)*(INDIRECT(\"'\" & $L$1 & \"'!$E$2:$E$1501\")=$C48)*(INDIRECT(\"'\" & $L$1 & \"'!$n$2:$n$1501\")))","v":0},{"$f":"SUMPRODUCT((INDIRECT(\"'\" & $L$1 & \"'!$C$2:$C$1501\")=$A48)*(INDIRECT(\"'\" & $L$1 & \"'!$B$2:$B$1501\")=$B48)*(INDIRECT(\"'\" & $L$1 & \"'!$E$2:$E$1501\")=$C48)*(INDIRECT(\"'\" & $L$1 & \"'!$p$2:$p$1501\")))","v":0}]
["Physical Activity","Public-Paid","Subtotal",null,{"$f":"IF(SUM(E42:E48)=0, 0, SUM(E42:E48))","v":0},{"$f":"IF(SUM(F42:F48)=0, 0, SUM(F42:F48))","v":0},0,{"$f":"IF(SUM(H42:H48)=0, 0, SUM(H42:H48))","v":0},{"$f":"IF(SUM(I42:I48)=0, 0, SUM(I42:I48))","v":0},{"$f":"IF(SUM(J42:J48)=0, 0, SUM(J42:J48))","v":0}]
["Physical Activity","Partner","Television","",{"$f":"SUMPRODUCT((INDIRECT(\"'\" & $L$1 & \"'!$C$2:$C$1501\")= $A50)*(INDIRECT(\"'\" & $L$1 & \"'!$B$2:$B$1501\")= $B50)*(INDIRECT(\"'\" & $L$1 & \"'!$E$2:$E$1501\")= $C50)*(INDIRECT(\"'\" & $L$1 & \"'!$H$2:$H$1501\")))","v":0},{"$f":"SUMPRODUCT((INDIRECT(\"'\" & $L$1 & \"'!$C$2:$C$1501\")= $A50)*(INDIRECT(\"'\" & $L$1 & \"'!$B$2:$B$1501\")=$B50)*(INDIRECT(\"'\" & $L$1 & \"'!$E$2:$E$1501\")= $C50)*(INDIRECT(\"'\" & $L$1 & \"'!$I$2:$I$1501\")))","v":0},{"$f":"SUMPRODUCT((INDIRECT(\"'\" & $L$1 & \"'!$C$2:$C$1501\")= $A50)*(INDIRECT(\"'\" & $L$1 & \"'!$B$2:$B$1501\")=$B50)*(INDIRECT(\"'\" & $L$1 & \"'!$E$2:$E$1501\")= $C50)*(INDIRECT(\"'\" & $L$1 & \"'!$j$2:$j$1501\")))","v":0},{"$f":"SUMPRODUCT((INDIRECT(\"'\" & $L$1 & \"'!$C$2:$C$1501\")=$A50)*(INDIRECT(\"'\" & $L$1 & \"'!$B$2:$B$1501\")=$B50)*(INDIRECT(\"'\" & $L$1 & \"'!$E$2:$E$1501\")=$C50)*(INDIRECT(\"'\" & $L$1 & \"'!$K$2:$K$1501\")))","v":0},{"$f":"SUMPRODUCT((INDIRECT(\"'\" & $L$1 & \"'!$C$2:$C$1501\")=$A50)*(INDIRECT(\"'\" & $L$1 & \"'!$B$2:$B$1501\")=$B50)*(INDIRECT(\"'\" & $L$1 & \"'!$E$2:$E$1501\")=$C50)*(INDIRECT(\"'\" & $L$1 & \"'!$n$2:$n$1501\")))","v":0},{"$f":"SUMPRODUCT((INDIRECT(\"'\" & $L$1 & \"'!$C$2:$C$1501\")=$A50)*(INDIRECT(\"'\" & $L$1 & \"'!$B$2:$B$1501\")=$B50)*(INDIRECT(\"'\" & $L$1 & \"'!$E$2:$E$1501\")=$C50)*(INDIRECT(\"'\" & $L$1 & \"'!$p$2:$p$1501\")))","v":0}]
["Physical Activity","Partner","Radio","",0,0,0,{"$f":"SUMPRODUCT((INDIRECT(\"'\" & $L$1 & \"'!$C$2:$C$1501\")=$A51)*(INDIRECT(\"'\" & $L$1 & \"'!$B$2:$B$1501\")=$B51)*(INDIRECT(\"'\" & $L$1 & \"'!$E$2:$E$1501\")=$C51)*(INDIRECT(\"'\" & $L$1 & \"'!$K$2:$K$1501\")))","v":0},{"$f":"SUMPRODUCT((INDIRECT(\"'\" & $L$1 & \"'!$C$2:$C$1501\")=$A51)*(INDIRECT(\"'\" & $L$1 & \"'!$B$2:$B$1501\")=$B51)*(INDIRECT(\"'\" & $L$1 & \"'!$E$2:$E$1501\")=$C51)*(INDIRECT(\"'\" & $L$1 & \"'!$n$2:$n$1501\")))","v":0},{"$f":"SUMPRODUCT((INDIRECT(\"'\" & $L$1 & \"'!$C$2:$C$1501\")=$A51)*(INDIRECT(\"'\" & $L$1 & \"'!$B$2:$B$1501\")=$B51)*(INDIRECT(\"'\" & $L$1 & \"'!$E$2:$E$1501\")=$C51)*(INDIRECT(\"'\" & $L$1 & \"'!$p$2:$p$1501\")))","v":0}]
["Physical Activity","Partner","Print","",0,0,0,{"$f":"SUMPRODUCT((INDIRECT(\"'\" & $L$1 & \"'!$C$2:$C$1501\")=$A52)*(INDIRECT(\"'\" & $L$1 & \"'!$B$2:$B$1501\")=$B52)*(INDIRECT(\"'\" & $L$1 & \"'!$E$2:$E$1501\")=$C52)*(INDIRECT(\"'\" & $L$1 & \"'!$K$2:$K$1501\")))","v":0},{"$f":"SUMPRODUCT((INDIRECT(\"'\" & $L$1 & \"'!$C$2:$C$1501\")=$A52)*(INDIRECT(\"'\" & $L$1 & \"'!$B$2:$B$1501\")=$B52)*(INDIRECT(\"'\" & $L$1 & \"'!$E$2:$E$1501\")=$C52)*(INDIRECT(\"'\" & $L$1 & \"'!$n$2:$n$1501\")))","v":0},{"$f":"SUMPRODUCT((INDIRECT(\"'\" & $L$1 & \"'!$C$2:$C$1501\")=$A52)*(INDIRECT(\"'\" & $L$1 & \"'!$B$2:$B$1501\")=$B52)*(INDIRECT(\"'\" & $L$1 & \"'!$E$2:$E$1501\")=$C52)*(INDIRECT(\"'\" & $L$1 & \"'!$p$2:$p$1501\")))","v":0}]
["Physical Activity","Partner","Social/Digital Media","",0,0,0,{"$f":"SUMPRODUCT((INDIRECT(\"'\" & $L$1 & \"'!$C$2:$C$1501\")=$A53)*(INDIRECT(\"'\" & $L$1 & \"'!$B$2:$B$1501\")=$B53)*(INDIRECT(\"'\" & $L$1 & \"'!$E$2:$E$1501\")=$C53)*(INDIRECT(\"'\" & $L$1 & \"'!$K$2:$K$1501\")))","v":0},{"$f":"SUMPRODUCT((INDIRECT(\"'\" & $L$1 & \"'!$C$2:$C$1501\")=$A53)*(INDIRECT(\"'\" & $L$1 & \"'!$B$2:$B$1501\")=$B53)*(INDIRECT(\"'\" & $L$1 & \"'!$E$2:$E$1501\")=$C53)*(INDIRECT(\"'\" & $L$1 & \"'!$n$2:$n$1501\")))","v":0},{"$f":"SUMPRODUCT((INDIRECT(\"'\" & $L$1 & \"'!$C$2:$C$1501\")=$A53)*(INDIRECT(\"'\" & $L$1 & \"'!$B$2:$B$1501\")=$B53)*(INDIRECT(\"'\" & $L$1 & \"'!$E$2:$E$1501\")=$C53)*(INDIRECT(\"'\" & $L$1 & \"'!$p$2:$p$1501\")))","v":0}]
["Physical Activity","Partner","Outdoor","",0,0,0,{"$f":"SUMPRODUCT((INDIRECT(\"'\" & $L$1 & \"'!$C$2:$C$1501\")=$A54)*(INDIRECT(\"'\" & $L$1 & \"'!$B$2:$B$1501\")=$B54)*(INDIRECT(\"'\" & $L$1 & \"'!$E$2:$E$1501\")=$C54)*(INDIRECT(\"'\" & $L$1 & \"'!$K$2:$K$1501\")))","v":0},{"$f":"SUMPRODUCT((INDIRECT(\"'\" & $L$1 & \"'!$C$2:$C$1501\")=$A54)*(INDIRECT(\"'\" & $L$1 & \"'!$B$2:$B$1501\")=$B54)*(INDIRECT(\"'\" & $L$1 & \"'!$E$2:$E$1501\")=$C54)*(INDIRECT(\"'\" & $L$1 & \"'!$n$2:$n$1501\")))","v":0},{"$f":"SUMPRODUCT((INDIRECT(\"'\" & $L$1 & \"'!$C$2:$C$1501\")=$A54)*(INDIRECT(\"'\" & $L$1 & \"'!$B$2:$B$1501\")=$B54)*(INDIRECT(\"'\" & $L$1 & \"'!$E$2:$E$1501\")=$C54)*(INDIRECT(\"'\" & $L$1 & \"'!$p$2:$p$1501\")))","v":0}]
["Physical Activity","Partner","Email/Print Newsletter","",0,0,0,{"$f":"SUMPRODUCT((INDIRECT(\"'\" & $L$1 & \"'!$C$2:$C$1501\")=$A55)*(INDIRECT(\"'\" & $L$1 & \"'!$B$2:$B$1501\")=$B55)*(INDIRECT(\"'\" & $L$1 & \"'!$E$2:$E$1501\")=$C55)*(INDIRECT(\"'\" & $L$1 & \"'!$K$2:$K$1501\")))","v":0},{"$f":"SUMPRODUCT((INDIRECT(\"'\" & $L$1 & \"'!$C$2:$C$1501\")=$A55)*(INDIRECT(\"'\" & $L$1 & \"'!$B$2:$B$1501\")=$B55)*(INDIRECT(\"'\" & $L$1 & \"'!$E$2:$E$1501\")=$C55)*(INDIRECT(\"'\" & $L$1 & \"'!$n$2:$n$1501\")))","v":0},{"$f":"SUMPRODUCT((INDIRECT(\"'\" & $L$1 & \"'!$C$2:$C$1501\")=$A55)*(INDIRECT(\"'\" & $L$1 & \"'!$B$2:$B$1501\")=$B55)*(INDIRECT(\"'\" & $L$1 & \"'!$E$2:$E$1501\")=$C55)*(INDIRECT(\"'\" & $L$1 & \"'!$p$2:$p$1501\")))","v":0}]
["Physical Activity","Partner","Other","",0,0,0,{"$f":"SUMPRODUCT((INDIRECT(\"'\" & $L$1 & \"'!$C$2:$C$1501\")=$A56)*(INDIRECT(\"'\" & $L$1 & \"'!$B$2:$B$1501\")=$B56)*(INDIRECT(\"'\" & $L$1 & \"'!$E$2:$E$1501\")=$C56)*(INDIRECT(\"'\" & $L$1 & \"'!$K$2:$K$1501\")))","v":0},{"$f":"SUMPRODUCT((INDIRECT(\"'\" & $L$1 & \"'!$C$2:$C$1501\")=$A56)*(INDIRECT(\"'\" & $L$1 & \"'!$B$2:$B$1501\")=$B56)*(INDIRECT(\"'\" & $L$1 & \"'!$E$2:$E$1501\")=$C56)*(INDIRECT(\"'\" & $L$1 & \"'!$n$2:$n$1501\")))","v":0},{"$f":"SUMPRODUCT((INDIRECT(\"'\" & $L$1 & \"'!$C$2:$C$1501\")=$A56)*(INDIRECT(\"'\" & $L$1 & \"'!$B$2:$B$1501\")=$B56)*(INDIRECT(\"'\" & $L$1 & \"'!$E$2:$E$1501\")=$C56)*(INDIRECT(\"'\" & $L$1 & \"'!$p$2:$p$1501\")))","v":0}]
["Physical Activity","Partner","Subtotal",null,{"$f":"IF(SUM(E50:E56)=0, 0, SUM(E50:E56))","v":0},{"$f":"IF(SUM(F50:F56)=0, 0, SUM(F50:F56))","v":0},0,{"$f":"IF(SUM(H50:H56)=0, 0, SUM(H50:H56))","v":0},{"$f":"IF(SUM(I50:I56)=0, 0, SUM(I50:I56))","v":0},{"$f":"IF(SUM(J50:J56)=0, 0, SUM(J50:J56))","v":0}]
["Physical Activity",{"$f":"$P$1","v":"Sub-Recipients"},"Television",""]
["Physical Activity",null,"Radio",""]
["Physical Activity",null,"Print",""]
["Physical Activity",null,"Social/New Media",""]
["Physical Activity",null,"Outdoor",""]
["Physical Activity",null,"Other",""]
["Physical Activity",null,"Subtotal",""]
["Physical Activity","TOTAL",null,null,{"$f":"SUMPRODUCT(($C34:$C64=$C$25)*(E34:E64))","v":0},{"$f":"SUMPRODUCT(($C34:$C64=$C$25)*(F34:F64))","v":0},{"$f":"SUMPRODUCT(($C34:$C64=$C$25)*(G34:G64))","v":0},0,0,0]
["Early Care And Education","Public-Earned","Television","",{"$f":"SUMPRODUCT((INDIRECT(\"'\" & $L$1 & \"'!$C$2:$C$1501\")= $A66)*(INDIRECT(\"'\" & $L$1 & \"'!$B$2:$B$1501\")= $B66)*(INDIRECT(\"'\" & $L$1 & \"'!$E$2:$E$1501\")= $C66)*(INDIRECT(\"'\" & $L$1 & \"'!$H$2:$H$1501\")))","v":0},{"$f":"SUMPRODUCT((INDIRECT(\"'\" & $L$1 & \"'!$C$2:$C$1501\")= $A66)*(INDIRECT(\"'\" & $L$1 & \"'!$B$2:$B$1501\")=$B66)*(INDIRECT(\"'\" & $L$1 & \"'!$E$2:$E$1501\")= $C66)*(INDIRECT(\"'\" & $L$1 & \"'!$I$2:$I$1501\")))","v":0},{"$f":"SUMPRODUCT((INDIRECT(\"'\" & $L$1 & \"'!$C$2:$C$1501\")= $A66)*(INDIRECT(\"'\" & $L$1 & \"'!$B$2:$B$1501\")=$B66)*(INDIRECT(\"'\" & $L$1 & \"'!$E$2:$E$1501\")= $C66)*(INDIRECT(\"'\" & $L$1 & \"'!$j$2:$j$1501\")))","v":0},{"$f":"SUMPRODUCT((INDIRECT(\"'\" & $L$1 & \"'!$C$2:$C$1501\")=$A66)*(INDIRECT(\"'\" & $L$1 & \"'!$B$2:$B$1501\")=$B66)*(INDIRECT(\"'\" & $L$1 & \"'!$E$2:$E$1501\")=$C66)*(INDIRECT(\"'\" & $L$1 & \"'!$K$2:$K$1501\")))","v":0},{"$f":"SUMPRODUCT((INDIRECT(\"'\" & $L$1 & \"'!$C$2:$C$1501\")=$A66)*(INDIRECT(\"'\" & $L$1 & \"'!$B$2:$B$1501\")=$B66)*(INDIRECT(\"'\" & $L$1 & \"'!$E$2:$E$1501\")=$C66)*(INDIRECT(\"'\" & $L$1 & \"'!$n$2:$n$1501\")))","v":0},{"$f":"SUMPRODUCT((INDIRECT(\"'\" & $L$1 & \"'!$C$2:$C$1501\")=$A66)*(INDIRECT(\"'\" & $L$1 & \"'!$B$2:$B$1501\")=$B66)*(INDIRECT(\"'\" & $L$1 & \"'!$E$2:$E$1501\")=$C66)*(INDIRECT(\"'\" & $L$1 & \"'!$p$2:$p$1501\")))","v":0}]
["Early Care And Education","Public-Earned","Radio","",0,0,0,{"$f":"SUMPRODUCT((INDIRECT(\"'\" & $L$1 & \"'!$C$2:$C$1501\")=$A67)*(INDIRECT(\"'\" & $L$1 & \"'!$B$2:$B$1501\")=$B67)*(INDIRECT(\"'\" & $L$1 & \"'!$E$2:$E$1501\")=$C67)*(INDIRECT(\"'\" & $L$1 & \"'!$K$2:$K$1501\")))","v":0},{"$f":"SUMPRODUCT((INDIRECT(\"'\" & $L$1 & \"'!$C$2:$C$1501\")=$A67)*(INDIRECT(\"'\" & $L$1 & \"'!$B$2:$B$1501\")=$B67)*(INDIRECT(\"'\" & $L$1 & \"'!$E$2:$E$1501\")=$C67)*(INDIRECT(\"'\" & $L$1 & \"'!$n$2:$n$1501\")))","v":0},{"$f":"SUMPRODUCT((INDIRECT(\"'\" & $L$1 & \"'!$C$2:$C$1501\")=$A67)*(INDIRECT(\"'\" & $L$1 & \"'!$B$2:$B$1501\")=$B67)*(INDIRECT(\"'\" & $L$1 & \"'!$E$2:$E$1501\")=$C67)*(INDIRECT(\"'\" & $L$1 & \"'!$p$2:$p$1501\")))","v":0}]
["Early Care And Education","Public-Earned","Print","",0,0,0,{"$f":"SUMPRODUCT((INDIRECT(\"'\" & $L$1 & \"'!$C$2:$C$1501\")=$A68)*(INDIRECT(\"'\" & $L$1 & \"'!$B$2:$B$1501\")=$B68)*(INDIRECT(\"'\" & $L$1 & \"'!$E$2:$E$1501\")=$C68)*(INDIRECT(\"'\" & $L$1 & \"'!$K$2:$K$1501\")))","v":0},{"$f":"SUMPRODUCT((INDIRECT(\"'\" & $L$1 & \"'!$C$2:$C$1501\")=$A68)*(INDIRECT(\"'\" & $L$1 & \"'!$B$2:$B$1501\")=$B68)*(INDIRECT(\"'\" & $L$1 & \"'!$E$2:$E$1501\")=$C68)*(INDIRECT(\"'\" & $L$1 & \"'!$n$2:$n$1501\")))","v":0},{"$f":"SUMPRODUCT((INDIRECT(\"'\" & $L$1 & \"'!$C$2:$C$1501\")=$A68)*(INDIRECT(\"'\" & $L$1 & \"'!$B$2:$B$1501\")=$B68)*(INDIRECT(\"'\" & $L$1 & \"'!$E$2:$E$1501\")=$C68)*(INDIRECT(\"'\" & $L$1 & \"'!$p$2:$p$1501\")))","v":0}]
["Early Care And Education","Public-Earned","Social/Digital Media","",0,0,0,{"$f":"SUMPRODUCT((INDIRECT(\"'\" & $L$1 & \"'!$C$2:$C$1501\")=$A69)*(INDIRECT(\"'\" & $L$1 & \"'!$B$2:$B$1501\")=$B69)*(INDIRECT(\"'\" & $L$1 & \"'!$E$2:$E$1501\")=$C69)*(INDIRECT(\"'\" & $L$1 & \"'!$K$2:$K$1501\")))","v":0},{"$f":"SUMPRODUCT((INDIRECT(\"'\" & $L$1 & \"'!$C$2:$C$1501\")=$A69)*(INDIRECT(\"'\" & $L$1 & \"'!$B$2:$B$1501\")=$B69)*(INDIRECT(\"'\" & $L$1 & \"'!$E$2:$E$1501\")=$C69)*(INDIRECT(\"'\" & $L$1 & \"'!$n$2:$n$1501\")))","v":0},{"$f":"SUMPRODUCT((INDIRECT(\"'\" & $L$1 & \"'!$C$2:$C$1501\")=$A69)*(INDIRECT(\"'\" & $L$1 & \"'!$B$2:$B$1501\")=$B69)*(INDIRECT(\"'\" & $L$1 & \"'!$E$2:$E$1501\")=$C69)*(INDIRECT(\"'\" & $L$1 & \"'!$p$2:$p$1501\")))","v":0}]
["Early Care And Education","Public-Earned","Outdoor","",0,0,0,{"$f":"SUMPRODUCT((INDIRECT(\"'\" & $L$1 & \"'!$C$2:$C$1501\")=$A70)*(INDIRECT(\"'\" & $L$1 & \"'!$B$2:$B$1501\")=$B70)*(INDIRECT(\"'\" & $L$1 & \"'!$E$2:$E$1501\")=$C70)*(INDIRECT(\"'\" & $L$1 & \"'!$K$2:$K$1501\")))","v":0},{"$f":"SUMPRODUCT((INDIRECT(\"'\" & $L$1 & \"'!$C$2:$C$1501\")=$A70)*(INDIRECT(\"'\" & $L$1 & \"'!$B$2:$B$1501\")=$B70)*(INDIRECT(\"'\" & $L$1 & \"'!$E$2:$E$1501\")=$C70)*(INDIRECT(\"'\" & $L$1 & \"'!$n$2:$n$1501\")))","v":0},{"$f":"SUMPRODUCT((INDIRECT(\"'\" & $L$1 & \"'!$C$2:$C$1501\")=$A70)*(INDIRECT(\"'\" & $L$1 & \"'!$B$2:$B$1501\")=$B70)*(INDIRECT(\"'\" & $L$1 & \"'!$E$2:$E$1501\")=$C70)*(INDIRECT(\"'\" & $L$1 & \"'!$p$2:$p$1501\")))","v":0}]
["Early Care And Education","Public-Earned","Email/Print Newsletter","",0,0,0,{"$f":"SUMPRODUCT((INDIRECT(\"'\" & $L$1 & \"'!$C$2:$C$1501\")=$A71)*(INDIRECT(\"'\" & $L$1 & \"'!$B$2:$B$1501\")=$B71)*(INDIRECT(\"'\" & $L$1 & \"'!$E$2:$E$1501\")=$C71)*(INDIRECT(\"'\" & $L$1 & \"'!$K$2:$K$1501\")))","v":0},{"$f":"SUMPRODUCT((INDIRECT(\"'\" & $L$1 & \"'!$C$2:$C$1501\")=$A71)*(INDIRECT(\"'\" & $L$1 & \"'!$B$2:$B$1501\")=$B71)*(INDIRECT(\"'\" & $L$1 & \"'!$E$2:$E$1501\")=$C71)*(INDIRECT(\"'\" & $L$1 & \"'!$n$2:$n$1501\")))","v":0},{"$f":"SUMPRODUCT((INDIRECT(\"'\" & $L$1 & \"'!$C$2:$C$1501\")=$A71)*(INDIRECT(\"'\" & $L$1 & \"'!$B$2:$B$1501\")=$B71)*(INDIRECT(\"'\" & $L$1 & \"'!$E$2:$E$1501\")=$C71)*(INDIRECT(\"'\" & $L$1 & \"'!$p$2:$p$1501\")))","v":0}]
["Early Care And Education","Public-Earned","Other","",0,0,0,{"$f":"SUMPRODUCT((INDIRECT(\"'\" & $L$1 & \"'!$C$2:$C$1501\")=$A72)*(INDIRECT(\"'\" & $L$1 & \"'!$B$2:$B$1501\")=$B72)*(INDIRECT(\"'\" & $L$1 & \"'!$E$2:$E$1501\")=$C72)*(INDIRECT(\"'\" & $L$1 & \"'!$K$2:$K$1501\")))","v":0},{"$f":"SUMPRODUCT((INDIRECT(\"'\" & $L$1 & \"'!$C$2:$C$1501\")=$A72)*(INDIRECT(\"'\" & $L$1 & \"'!$B$2:$B$1501\")=$B72)*(INDIRECT(\"'\" & $L$1 & \"'!$E$2:$E$1501\")=$C72)*(INDIRECT(\"'\" & $L$1 & \"'!$n$2:$n$1501\")))","v":0},{"$f":"SUMPRODUCT((INDIRECT(\"'\" & $L$1 & \"'!$C$2:$C$1501\")=$A72)*(INDIRECT(\"'\" & $L$1 & \"'!$B$2:$B$1501\")=$B72)*(INDIRECT(\"'\" & $L$1 & \"'!$E$2:$E$1501\")=$C72)*(INDIRECT(\"'\" & $L$1 & \"'!$p$2:$p$1501\")))","v":0}]
["Early Care And Education","Public-Earned","Subtotal",null,{"$f":"IF(SUM(E66:E72)=0, 0, SUM(E66:E72))","v":0},{"$f":"IF(SUM(F66:F72)=0, 0, SUM(F66:F72))","v":0},0,{"$f":"IF(SUM(H66:H72)=0, 0, SUM(H66:H72))","v":0},{"$f":"IF(SUM(I66:I72)=0, 0, SUM(I66:I72))","v":0},{"$f":"IF(SUM(J66:J72)=0, 0, SUM(J66:J72))","v":0}]
["Early Care And Education","Public-Paid","Television",{"$f":"$N$1","v":""},{"$f":"SUMPRODUCT((INDIRECT(\"'\" & $L$1 & \"'!$C$2:$C$1501\")= $A74)*(INDIRECT(\"'\" & $L$1 & \"'!$B$2:$B$1501\")= $B74)*(INDIRECT(\"'\" & $L$1 & \"'!$E$2:$E$1501\")= $C74)*(INDIRECT(\"'\" & $L$1 & \"'!$H$2:$H$1501\")))","v":0},{"$f":"SUMPRODUCT((INDIRECT(\"'\" & $L$1 & \"'!$C$2:$C$1501\")= $A74)*(INDIRECT(\"'\" & $L$1 & \"'!$B$2:$B$1501\")=$B74)*(INDIRECT(\"'\" & $L$1 & \"'!$E$2:$E$1501\")= $C74)*(INDIRECT(\"'\" & $L$1 & \"'!$I$2:$I$1501\")))","v":0},{"$f":"SUMPRODUCT((INDIRECT(\"'\" & $L$1 & \"'!$C$2:$C$1501\")= $A74)*(INDIRECT(\"'\" & $L$1 & \"'!$B$2:$B$1501\")=$B74)*(INDIRECT(\"'\" & $L$1 & \"'!$E$2:$E$1501\")= $C74)*(INDIRECT(\"'\" & $L$1 & \"'!$j$2:$j$1501\")))","v":0},{"$f":"SUMPRODUCT((INDIRECT(\"'\" & $L$1 & \"'!$C$2:$C$1501\")=$A74)*(INDIRECT(\"'\" & $L$1 & \"'!$B$2:$B$1501\")=$B74)*(INDIRECT(\"'\" & $L$1 & \"'!$E$2:$E$1501\")=$C74)*(INDIRECT(\"'\" & $L$1 & \"'!$K$2:$K$1501\")))","v":0},{"$f":"SUMPRODUCT((INDIRECT(\"'\" & $L$1 & \"'!$C$2:$C$1501\")=$A74)*(INDIRECT(\"'\" & $L$1 & \"'!$B$2:$B$1501\")=$B74)*(INDIRECT(\"'\" & $L$1 & \"'!$E$2:$E$1501\")=$C74)*(INDIRECT(\"'\" & $L$1 & \"'!$n$2:$n$1501\")))","v":0},{"$f":"SUMPRODUCT((INDIRECT(\"'\" & $L$1 & \"'!$C$2:$C$1501\")=$A74)*(INDIRECT(\"'\" & $L$1 & \"'!$B$2:$B$1501\")=$B74)*(INDIRECT(\"'\" & $L$1 & \"'!$E$2:$E$1501\")=$C74)*(INDIRECT(\"'\" & $L$1 & \"'!$p$2:$p$1501\")))","v":0}]
["Early Care And Education","Public-Paid","Radio","",0,0,0,{"$f":"SUMPRODUCT((INDIRECT(\"'\" & $L$1 & \"'!$C$2:$C$1501\")=$A75)*(INDIRECT(\"'\" & $L$1 & \"'!$B$2:$B$1501\")=$B75)*(INDIRECT(\"'\" & $L$1 & \"'!$E$2:$E$1501\")=$C75)*(INDIRECT(\"'\" & $L$1 & \"'!$K$2:$K$1501\")))","v":0},{"$f":"SUMPRODUCT((INDIRECT(\"'\" & $L$1 & \"'!$C$2:$C$1501\")=$A75)*(INDIRECT(\"'\" & $L$1 & \"'!$B$2:$B$1501\")=$B75)*(INDIRECT(\"'\" & $L$1 & \"'!$E$2:$E$1501\")=$C75)*(INDIRECT(\"'\" & $L$1 & \"'!$n$2:$n$1501\")))","v":0},{"$f":"SUMPRODUCT((INDIRECT(\"'\" & $L$1 & \"'!$C$2:$C$1501\")=$A75)*(INDIRECT(\"'\" & $L$1 & \"'!$B$2:$B$1501\")=$B75)*(INDIRECT(\"'\" & $L$1 & \"'!$E$2:$E$1501\")=$C75)*(INDIRECT(\"'\" & $L$1 & \"'!$p$2:$p$1501\")))","v":0}]
["Early Care And Education","Public-Paid","Print","",0,0,0,{"$f":"SUMPRODUCT((INDIRECT(\"'\" & $L$1 & \"'!$C$2:$C$1501\")=$A76)*(INDIRECT(\"'\" & $L$1 & \"'!$B$2:$B$1501\")=$B76)*(INDIRECT(\"'\" & $L$1 & \"'!$E$2:$E$1501\")=$C76)*(INDIRECT(\"'\" & $L$1 & \"'!$K$2:$K$1501\")))","v":0},{"$f":"SUMPRODUCT((INDIRECT(\"'\" & $L$1 & \"'!$C$2:$C$1501\")=$A76)*(INDIRECT(\"'\" & $L$1 & \"'!$B$2:$B$1501\")=$B76)*(INDIRECT(\"'\" & $L$1 & \"'!$E$2:$E$1501\")=$C76)*(INDIRECT(\"'\" & $L$1 & \"'!$n$2:$n$1501\")))","v":0},{"$f":"SUMPRODUCT((INDIRECT(\"'\" & $L$1 & \"'!$C$2:$C$1501\")=$A76)*(INDIRECT(\"'\" & $L$1 & \"'!$B$2:$B$1501\")=$B76)*(INDIRECT(\"'\" & $L$1 & \"'!$E$2:$E$1501\")=$C76)*(INDIRECT(\"'\" & $L$1 & \"'!$p$2:$p$1501\")))","v":0}]
["Early Care And Education","Public-Paid","Social/Digital Media","",0,0,0,{"$f":"SUMPRODUCT((INDIRECT(\"'\" & $L$1 & \"'!$C$2:$C$1501\")=$A77)*(INDIRECT(\"'\" & $L$1 & \"'!$B$2:$B$1501\")=$B77)*(INDIRECT(\"'\" & $L$1 & \"'!$E$2:$E$1501\")=$C77)*(INDIRECT(\"'\" & $L$1 & \"'!$K$2:$K$1501\")))","v":0},{"$f":"SUMPRODUCT((INDIRECT(\"'\" & $L$1 & \"'!$C$2:$C$1501\")=$A77)*(INDIRECT(\"'\" & $L$1 & \"'!$B$2:$B$1501\")=$B77)*(INDIRECT(\"'\" & $L$1 & \"'!$E$2:$E$1501\")=$C77)*(INDIRECT(\"'\" & $L$1 & \"'!$n$2:$n$1501\")))","v":0},{"$f":"SUMPRODUCT((INDIRECT(\"'\" & $L$1 & \"'!$C$2:$C$1501\")=$A77)*(INDIRECT(\"'\" & $L$1 & \"'!$B$2:$B$1501\")=$B77)*(INDIRECT(\"'\" & $L$1 & \"'!$E$2:$E$1501\")=$C77)*(INDIRECT(\"'\" & $L$1 & \"'!$p$2:$p$1501\")))","v":0}]
["Early Care And Education","Public-Paid","Outdoor","",0,0,0,{"$f":"SUMPRODUCT((INDIRECT(\"'\" & $L$1 & \"'!$C$2:$C$1501\")=$A78)*(INDIRECT(\"'\" & $L$1 & \"'!$B$2:$B$1501\")=$B78)*(INDIRECT(\"'\" & $L$1 & \"'!$E$2:$E$1501\")=$C78)*(INDIRECT(\"'\" & $L$1 & \"'!$K$2:$K$1501\")))","v":0},{"$f":"SUMPRODUCT((INDIRECT(\"'\" & $L$1 & \"'!$C$2:$C$1501\")=$A78)*(INDIRECT(\"'\" & $L$1 & \"'!$B$2:$B$1501\")=$B78)*(INDIRECT(\"'\" & $L$1 & \"'!$E$2:$E$1501\")=$C78)*(INDIRECT(\"'\" & $L$1 & \"'!$n$2:$n$1501\")))","v":0},{"$f":"SUMPRODUCT((INDIRECT(\"'\" & $L$1 & \"'!$C$2:$C$1501\")=$A78)*(INDIRECT(\"'\" & $L$1 & \"'!$B$2:$B$1501\")=$B78)*(INDIRECT(\"'\" & $L$1 & \"'!$E$2:$E$1501\")=$C78)*(INDIRECT(\"'\" & $L$1 & \"'!$p$2:$p$1501\")))","v":0}]
["Early Care And Education","Public-Paid","Email/Print Newsletter","",0,0,0,{"$f":"SUMPRODUCT((INDIRECT(\"'\" & $L$1 & \"'!$C$2:$C$1501\")=$A79)*(INDIRECT(\"'\" & $L$1 & \"'!$B$2:$B$1501\")=$B79)*(INDIRECT(\"'\" & $L$1 & \"'!$E$2:$E$1501\")=$C79)*(INDIRECT(\"'\" & $L$1 & \"'!$K$2:$K$1501\")))","v":0},{"$f":"SUMPRODUCT((INDIRECT(\"'\" & $L$1 & \"'!$C$2:$C$1501\")=$A79)*(INDIRECT(\"'\" & $L$1 & \"'!$B$2:$B$1501\")=$B79)*(INDIRECT(\"'\" & $L$1 & \"'!$E$2:$E$1501\")=$C79)*(INDIRECT(\"'\" & $L$1 & \"'!$n$2:$n$1501\")))","v":0},{"$f":"SUMPRODUCT((INDIRECT(\"'\" & $L$1 & \"'!$C$2:$C$1501\")=$A79)*(INDIRECT(\"'\" & $L$1 & \"'!$B$2:$B$1501\")=$B79)*(INDIRECT(\"'\" & $L$1 & \"'!$E$2:$E$1501\")=$C79)*(INDIRECT(\"'\" & $L$1 & \"'!$p$2:$p$1501\")))","v":0}]
["Early Care And Education","Public-Paid","Other","",0,0,0,{"$f":"SUMPRODUCT((INDIRECT(\"'\" & $L$1 & \"'!$C$2:$C$1501\")=$A80)*(INDIRECT(\"'\" & $L$1 & \"'!$B$2:$B$1501\")=$B80)*(INDIRECT(\"'\" & $L$1 & \"'!$E$2:$E$1501\")=$C80)*(INDIRECT(\"'\" & $L$1 & \"'!$K$2:$K$1501\")))","v":0},{"$f":"SUMPRODUCT((INDIRECT(\"'\" & $L$1 & \"'!$C$2:$C$1501\")=$A80)*(INDIRECT(\"'\" & $L$1 & \"'!$B$2:$B$1501\")=$B80)*(INDIRECT(\"'\" & $L$1 & \"'!$E$2:$E$1501\")=$C80)*(INDIRECT(\"'\" & $L$1 & \"'!$n$2:$n$1501\")))","v":0},{"$f":"SUMPRODUCT((INDIRECT(\"'\" & $L$1 & \"'!$C$2:$C$1501\")=$A80)*(INDIRECT(\"'\" & $L$1 & \"'!$B$2:$B$1501\")=$B80)*(INDIRECT(\"'\" & $L$1 & \"'!$E$2:$E$1501\")=$C80)*(INDIRECT(\"'\" & $L$1 & \"'!$p$2:$p$1501\")))","v":0}]
["Early Care And Education","Public-Paid","Subtotal",null,{"$f":"IF(SUM(E74:E80)=0, 0, SUM(E74:E80))","v":0},{"$f":"IF(SUM(F74:F80)=0, 0, SUM(F74:F80))","v":0},0,{"$f":"IF(SUM(H74:H80)=0, 0, SUM(H74:H80))","v":0},{"$f":"IF(SUM(I74:I80)=0, 0, SUM(I74:I80))","v":0},{"$f":"IF(SUM(J74:J80)=0, 0, SUM(J74:J80))","v":0}]
["Early Care And Education","Partner","Television","",{"$f":"SUMPRODUCT((INDIRECT(\"'\" & $L$1 & \"'!$C$2:$C$1501\")= $A82)*(INDIRECT(\"'\" & $L$1 & \"'!$B$2:$B$1501\")= $B82)*(INDIRECT(\"'\" & $L$1 & \"'!$E$2:$E$1501\")= $C82)*(INDIRECT(\"'\" & $L$1 & \"'!$H$2:$H$1501\")))","v":0},{"$f":"SUMPRODUCT((INDIRECT(\"'\" & $L$1 & \"'!$C$2:$C$1501\")= $A82)*(INDIRECT(\"'\" & $L$1 & \"'!$B$2:$B$1501\")=$B82)*(INDIRECT(\"'\" & $L$1 & \"'!$E$2:$E$1501\")= $C82)*(INDIRECT(\"'\" & $L$1 & \"'!$I$2:$I$1501\")))","v":0},{"$f":"SUMPRODUCT((INDIRECT(\"'\" & $L$1 & \"'!$C$2:$C$1501\")= $A82)*(INDIRECT(\"'\" & $L$1 & \"'!$B$2:$B$1501\")=$B82)*(INDIRECT(\"'\" & $L$1 & \"'!$E$2:$E$1501\")= $C82)*(INDIRECT(\"'\" & $L$1 & \"'!$j$2:$j$1501\")))","v":0},{"$f":"SUMPRODUCT((INDIRECT(\"'\" & $L$1 & \"'!$C$2:$C$1501\")=$A82)*(INDIRECT(\"'\" & $L$1 & \"'!$B$2:$B$1501\")=$B82)*(INDIRECT(\"'\" & $L$1 & \"'!$E$2:$E$1501\")=$C82)*(INDIRECT(\"'\" & $L$1 & \"'!$K$2:$K$1501\")))","v":0},{"$f":"SUMPRODUCT((INDIRECT(\"'\" & $L$1 & \"'!$C$2:$C$1501\")=$A82)*(INDIRECT(\"'\" & $L$1 & \"'!$B$2:$B$1501\")=$B82)*(INDIRECT(\"'\" & $L$1 & \"'!$E$2:$E$1501\")=$C82)*(INDIRECT(\"'\" & $L$1 & \"'!$n$2:$n$1501\")))","v":0},{"$f":"SUMPRODUCT((INDIRECT(\"'\" & $L$1 & \"'!$C$2:$C$1501\")=$A82)*(INDIRECT(\"'\" & $L$1 & \"'!$B$2:$B$1501\")=$B82)*(INDIRECT(\"'\" & $L$1 & \"'!$E$2:$E$1501\")=$C82)*(INDIRECT(\"'\" & $L$1 & \"'!$p$2:$p$1501\")))","v":0}]
["Early Care And Education","Partner","Radio","",0,0,0,{"$f":"SUMPRODUCT((INDIRECT(\"'\" & $L$1 & \"'!$C$2:$C$1501\")=$A83)*(INDIRECT(\"'\" & $L$1 & \"'!$B$2:$B$1501\")=$B83)*(INDIRECT(\"'\" & $L$1 & \"'!$E$2:$E$1501\")=$C83)*(INDIRECT(\"'\" & $L$1 & \"'!$K$2:$K$1501\")))","v":0},{"$f":"SUMPRODUCT((INDIRECT(\"'\" & $L$1 & \"'!$C$2:$C$1501\")=$A83)*(INDIRECT(\"'\" & $L$1 & \"'!$B$2:$B$1501\")=$B83)*(INDIRECT(\"'\" & $L$1 & \"'!$E$2:$E$1501\")=$C83)*(INDIRECT(\"'\" & $L$1 & \"'!$n$2:$n$1501\")))","v":0},{"$f":"SUMPRODUCT((INDIRECT(\"'\" & $L$1 & \"'!$C$2:$C$1501\")=$A83)*(INDIRECT(\"'\" & $L$1 & \"'!$B$2:$B$1501\")=$B83)*(INDIRECT(\"'\" & $L$1 & \"'!$E$2:$E$1501\")=$C83)*(INDIRECT(\"'\" & $L$1 & \"'!$p$2:$p$1501\")))","v":0}]
["Early Care And Education","Partner","Print","",0,0,0,{"$f":"SUMPRODUCT((INDIRECT(\"'\" & $L$1 & \"'!$C$2:$C$1501\")=$A84)*(INDIRECT(\"'\" & $L$1 & \"'!$B$2:$B$1501\")=$B84)*(INDIRECT(\"'\" & $L$1 & \"'!$E$2:$E$1501\")=$C84)*(INDIRECT(\"'\" & $L$1 & \"'!$K$2:$K$1501\")))","v":0},{"$f":"SUMPRODUCT((INDIRECT(\"'\" & $L$1 & \"'!$C$2:$C$1501\")=$A84)*(INDIRECT(\"'\" & $L$1 & \"'!$B$2:$B$1501\")=$B84)*(INDIRECT(\"'\" & $L$1 & \"'!$E$2:$E$1501\")=$C84)*(INDIRECT(\"'\" & $L$1 & \"'!$n$2:$n$1501\")))","v":0},{"$f":"SUMPRODUCT((INDIRECT(\"'\" & $L$1 & \"'!$C$2:$C$1501\")=$A84)*(INDIRECT(\"'\" & $L$1 & \"'!$B$2:$B$1501\")=$B84)*(INDIRECT(\"'\" & $L$1 & \"'!$E$2:$E$1501\")=$C84)*(INDIRECT(\"'\" & $L$1 & \"'!$p$2:$p$1501\")))","v":0}]
["Early Care And Education","Partner","Social/Digital Media","",0,0,0,{"$f":"SUMPRODUCT((INDIRECT(\"'\" & $L$1 & \"'!$C$2:$C$1501\")=$A85)*(INDIRECT(\"'\" & $L$1 & \"'!$B$2:$B$1501\")=$B85)*(INDIRECT(\"'\" & $L$1 & \"'!$E$2:$E$1501\")=$C85)*(INDIRECT(\"'\" & $L$1 & \"'!$K$2:$K$1501\")))","v":0},{"$f":"SUMPRODUCT((INDIRECT(\"'\" & $L$1 & \"'!$C$2:$C$1501\")=$A85)*(INDIRECT(\"'\" & $L$1 & \"'!$B$2:$B$1501\")=$B85)*(INDIRECT(\"'\" & $L$1 & \"'!$E$2:$E$1501\")=$C85)*(INDIRECT(\"'\" & $L$1 & \"'!$n$2:$n$1501\")))","v":0},{"$f":"SUMPRODUCT((INDIRECT(\"'\" & $L$1 & \"'!$C$2:$C$1501\")=$A85)*(INDIRECT(\"'\" & $L$1 & \"'!$B$2:$B$1501\")=$B85)*(INDIRECT(\"'\" & $L$1 & \"'!$E$2:$E$1501\")=$C85)*(INDIRECT(\"'\" & $L$1 & \"'!$p$2:$p$1501\")))","v":0}]
["Early Care And Education","Partner","Outdoor","",0,0,0,{"$f":"SUMPRODUCT((INDIRECT(\"'\" & $L$1 & \"'!$C$2:$C$1501\")=$A86)*(INDIRECT(\"'\" & $L$1 & \"'!$B$2:$B$1501\")=$B86)*(INDIRECT(\"'\" & $L$1 & \"'!$E$2:$E$1501\")=$C86)*(INDIRECT(\"'\" & $L$1 & \"'!$K$2:$K$1501\")))","v":0},{"$f":"SUMPRODUCT((INDIRECT(\"'\" & $L$1 & \"'!$C$2:$C$1501\")=$A86)*(INDIRECT(\"'\" & $L$1 & \"'!$B$2:$B$1501\")=$B86)*(INDIRECT(\"'\" & $L$1 & \"'!$E$2:$E$1501\")=$C86)*(INDIRECT(\"'\" & $L$1 & \"'!$n$2:$n$1501\")))","v":0},{"$f":"SUMPRODUCT((INDIRECT(\"'\" & $L$1 & \"'!$C$2:$C$1501\")=$A86)*(INDIRECT(\"'\" & $L$1 & \"'!$B$2:$B$1501\")=$B86)*(INDIRECT(\"'\" & $L$1 & \"'!$E$2:$E$1501\")=$C86)*(INDIRECT(\"'\" & $L$1 & \"'!$p$2:$p$1501\")))","v":0}]
["Early Care And Education","Partner","Email/Print Newsletter","",0,0,0,{"$f":"SUMPRODUCT((INDIRECT(\"'\" & $L$1 & \"'!$C$2:$C$1501\")=$A87)*(INDIRECT(\"'\" & $L$1 & \"'!$B$2:$B$1501\")=$B87)*(INDIRECT(\"'\" & $L$1 & \"'!$E$2:$E$1501\")=$C87)*(INDIRECT(\"'\" & $L$1 & \"'!$K$2:$K$1501\")))","v":0},{"$f":"SUMPRODUCT((INDIRECT(\"'\" & $L$1 & \"'!$C$2:$C$1501\")=$A87)*(INDIRECT(\"'\" & $L$1 & \"'!$B$2:$B$1501\")=$B87)*(INDIRECT(\"'\" & $L$1 & \"'!$E$2:$E$1501\")=$C87)*(INDIRECT(\"'\" & $L$1 & \"'!$n$2:$n$1501\")))","v":0},{"$f":"SUMPRODUCT((INDIRECT(\"'\" & $L$1 & \"'!$C$2:$C$1501\")=$A87)*(INDIRECT(\"'\" & $L$1 & \"'!$B$2:$B$1501\")=$B87)*(INDIRECT(\"'\" & $L$1 & \"'!$E$2:$E$1501\")=$C87)*(INDIRECT(\"'\" & $L$1 & \"'!$p$2:$p$1501\")))","v":0}]
["Early Care And Education","Partner","Other","",0,0,0,{"$f":"SUMPRODUCT((INDIRECT(\"'\" & $L$1 & \"'!$C$2:$C$1501\")=$A88)*(INDIRECT(\"'\" & $L$1 & \"'!$B$2:$B$1501\")=$B88)*(INDIRECT(\"'\" & $L$1 & \"'!$E$2:$E$1501\")=$C88)*(INDIRECT(\"'\" & $L$1 & \"'!$K$2:$K$1501\")))","v":0},{"$f":"SUMPRODUCT((INDIRECT(\"'\" & $L$1 & \"'!$C$2:$C$1501\")=$A88)*(INDIRECT(\"'\" & $L$1 & \"'!$B$2:$B$1501\")=$B88)*(INDIRECT(\"'\" & $L$1 & \"'!$E$2:$E$1501\")=$C88)*(INDIRECT(\"'\" & $L$1 & \"'!$n$2:$n$1501\")))","v":0},{"$f":"SUMPRODUCT((INDIRECT(\"'\" & $L$1 & \"'!$C$2:$C$1501\")=$A88)*(INDIRECT(\"'\" & $L$1 & \"'!$B$2:$B$1501\")=$B88)*(INDIRECT(\"'\" & $L$1 & \"'!$E$2:$E$1501\")=$C88)*(INDIRECT(\"'\" & $L$1 & \"'!$p$2:$p$1501\")))","v":0}]
["Early Care And Education","Partner","Subtotal",null,{"$f":"IF(SUM(E82:E88)=0, 0, SUM(E82:E88))","v":0},{"$f":"IF(SUM(F82:F88)=0, 0, SUM(F82:F88))","v":0},0,{"$f":"IF(SUM(H82:H88)=0, 0, SUM(H82:H88))","v":0},{"$f":"IF(SUM(I82:I88)=0, 0, SUM(I82:I88))","v":0},{"$f":"IF(SUM(J82:J88)=0, 0, SUM(J82:J88))","v":0}]
["Early Care And Education",{"$f":"$P$1","v":"Sub-Recipients"},"Television",""]
["Early Care And Education",null,"Radio",""]
["Early Care And Education",null,"Print",""]
["Early Care And Education",null,"Social/New Media",""]
["Early Care And Education",null,"Outdoor",""]
["Early Care And Education",null,"Other",""]
["Early Care And Education",null,"Subtotal",""]
["Early Care And Education","TOTAL",null,null,{"$f":"SUMPRODUCT(($C66:$C96=$C$25)*(E66:E96))","v":0},{"$f":"SUMPRODUCT(($C66:$C96=$C$25)*(F66:F96))","v":0},{"$f":"SUMPRODUCT(($C66:$C96=$C$25)*(G66:G96))","v":0},0,0,0]
["Breastfeeding","Public-Earned","Television","",{"$f":"SUMPRODUCT((INDIRECT(\"'\" & $L$1 & \"'!$C$2:$C$1501\")= $A98)*(INDIRECT(\"'\" & $L$1 & \"'!$B$2:$B$1501\")= $B98)*(INDIRECT(\"'\" & $L$1 & \"'!$E$2:$E$1501\")= $C98)*(INDIRECT(\"'\" & $L$1 & \"'!$H$2:$H$1501\")))","v":0},{"$f":"SUMPRODUCT((INDIRECT(\"'\" & $L$1 & \"'!$C$2:$C$1501\")= $A98)*(INDIRECT(\"'\" & $L$1 & \"'!$B$2:$B$1501\")=$B98)*(INDIRECT(\"'\" & $L$1 & \"'!$E$2:$E$1501\")= $C98)*(INDIRECT(\"'\" & $L$1 & \"'!$I$2:$I$1501\")))","v":0},{"$f":"SUMPRODUCT((INDIRECT(\"'\" & $L$1 & \"'!$C$2:$C$1501\")= $A98)*(INDIRECT(\"'\" & $L$1 & \"'!$B$2:$B$1501\")=$B98)*(INDIRECT(\"'\" & $L$1 & \"'!$E$2:$E$1501\")= $C98)*(INDIRECT(\"'\" & $L$1 & \"'!$j$2:$j$1501\")))","v":0},{"$f":"SUMPRODUCT((INDIRECT(\"'\" & $L$1 & \"'!$C$2:$C$1501\")=$A98)*(INDIRECT(\"'\" & $L$1 & \"'!$B$2:$B$1501\")=$B98)*(INDIRECT(\"'\" & $L$1 & \"'!$E$2:$E$1501\")=$C98)*(INDIRECT(\"'\" & $L$1 & \"'!$K$2:$K$1501\")))","v":0},{"$f":"SUMPRODUCT((INDIRECT(\"'\" & $L$1 & \"'!$C$2:$C$1501\")=$A98)*(INDIRECT(\"'\" & $L$1 & \"'!$B$2:$B$1501\")=$B98)*(INDIRECT(\"'\" & $L$1 & \"'!$E$2:$E$1501\")=$C98)*(INDIRECT(\"'\" & $L$1 & \"'!$n$2:$n$1501\")))","v":0},{"$f":"SUMPRODUCT((INDIRECT(\"'\" & $L$1 & \"'!$C$2:$C$1501\")=$A98)*(INDIRECT(\"'\" & $L$1 & \"'!$B$2:$B$1501\")=$B98)*(INDIRECT(\"'\" & $L$1 & \"'!$E$2:$E$1501\")=$C98)*(INDIRECT(\"'\" & $L$1 & \"'!$p$2:$p$1501\")))","v":0}]
["Breastfeeding","Public-Earned","Radio","",0,0,0,{"$f":"SUMPRODUCT((INDIRECT(\"'\" & $L$1 & \"'!$C$2:$C$1501\")=$A99)*(INDIRECT(\"'\" & $L$1 & \"'!$B$2:$B$1501\")=$B99)*(INDIRECT(\"'\" & $L$1 & \"'!$E$2:$E$1501\")=$C99)*(INDIRECT(\"'\" & $L$1 & \"'!$K$2:$K$1501\")))","v":0},{"$f":"SUMPRODUCT((INDIRECT(\"'\" & $L$1 & \"'!$C$2:$C$1501\")=$A99)*(INDIRECT(\"'\" & $L$1 & \"'!$B$2:$B$1501\")=$B99)*(INDIRECT(\"'\" & $L$1 & \"'!$E$2:$E$1501\")=$C99)*(INDIRECT(\"'\" & $L$1 & \"'!$n$2:$n$1501\")))","v":0},{"$f":"SUMPRODUCT((INDIRECT(\"'\" & $L$1 & \"'!$C$2:$C$1501\")=$A99)*(INDIRECT(\"'\" & $L$1 & \"'!$B$2:$B$1501\")=$B99)*(INDIRECT(\"'\" & $L$1 & \"'!$E$2:$E$1501\")=$C99)*(INDIRECT(\"'\" & $L$1 & \"'!$p$2:$p$1501\")))","v":0}]
["Breastfeeding","Public-Earned","Print","",0,0,0,{"$f":"SUMPRODUCT((INDIRECT(\"'\" & $L$1 & \"'!$C$2:$C$1501\")=$A100)*(INDIRECT(\"'\" & $L$1 & \"'!$B$2:$B$1501\")=$B100)*(INDIRECT(\"'\" & $L$1 & \"'!$E$2:$E$1501\")=$C100)*(INDIRECT(\"'\" & $L$1 & \"'!$K$2:$K$1501\")))","v":0},{"$f":"SUMPRODUCT((INDIRECT(\"'\" & $L$1 & \"'!$C$2:$C$1501\")=$A100)*(INDIRECT(\"'\" & $L$1 & \"'!$B$2:$B$1501\")=$B100)*(INDIRECT(\"'\" & $L$1 & \"'!$E$2:$E$1501\")=$C100)*(INDIRECT(\"'\" & $L$1 & \"'!$n$2:$n$1501\")))","v":0},{"$f":"SUMPRODUCT((INDIRECT(\"'\" & $L$1 & \"'!$C$2:$C$1501\")=$A100)*(INDIRECT(\"'\" & $L$1 & \"'!$B$2:$B$1501\")=$B100)*(INDIRECT(\"'\" & $L$1 & \"'!$E$2:$E$1501\")=$C100)*(INDIRECT(\"'\" & $L$1 & \"'!$p$2:$p$1501\")))","v":0}]
["Breastfeeding","Public-Earned","Social/Digital Media","",0,0,0,{"$f":"SUMPRODUCT((INDIRECT(\"'\" & $L$1 & \"'!$C$2:$C$1501\")=$A101)*(INDIRECT(\"'\" & $L$1 & \"'!$B$2:$B$1501\")=$B101)*(INDIRECT(\"'\" & $L$1 & \"'!$E$2:$E$1501\")=$C101)*(INDIRECT(\"'\" & $L$1 & \"'!$K$2:$K$1501\")))","v":0},{"$f":"SUMPRODUCT((INDIRECT(\"'\" & $L$1 & \"'!$C$2:$C$1501\")=$A101)*(INDIRECT(\"'\" & $L$1 & \"'!$B$2:$B$1501\")=$B101)*(INDIRECT(\"'\" & $L$1 & \"'!$E$2:$E$1501\")=$C101)*(INDIRECT(\"'\" & $L$1 & \"'!$n$2:$n$1501\")))","v":0},{"$f":"SUMPRODUCT((INDIRECT(\"'\" & $L$1 & \"'!$C$2:$C$1501\")=$A101)*(INDIRECT(\"'\" & $L$1 & \"'!$B$2:$B$1501\")=$B101)*(INDIRECT(\"'\" & $L$1 & \"'!$E$2:$E$1501\")=$C101)*(INDIRECT(\"'\" & $L$1 & \"'!$p$2:$p$1501\")))","v":0}]
["Breastfeeding","Public-Earned","Outdoor","",0,0,0,{"$f":"SUMPRODUCT((INDIRECT(\"'\" & $L$1 & \"'!$C$2:$C$1501\")=$A102)*(INDIRECT(\"'\" & $L$1 & \"'!$B$2:$B$1501\")=$B102)*(INDIRECT(\"'\" & $L$1 & \"'!$E$2:$E$1501\")=$C102)*(INDIRECT(\"'\" & $L$1 & \"'!$K$2:$K$1501\")))","v":0},{"$f":"SUMPRODUCT((INDIRECT(\"'\" & $L$1 & \"'!$C$2:$C$1501\")=$A102)*(INDIRECT(\"'\" & $L$1 & \"'!$B$2:$B$1501\")=$B102)*(INDIRECT(\"'\" & $L$1 & \"'!$E$2:$E$1501\")=$C102)*(INDIRECT(\"'\" & $L$1 & \"'!$n$2:$n$1501\")))","v":0},{"$f":"SUMPRODUCT((INDIRECT(\"'\" & $L$1 & \"'!$C$2:$C$1501\")=$A102)*(INDIRECT(\"'\" & $L$1 & \"'!$B$2:$B$1501\")=$B102)*(INDIRECT(\"'\" & $L$1 & \"'!$E$2:$E$1501\")=$C102)*(INDIRECT(\"'\" & $L$1 & \"'!$p$2:$p$1501\")))","v":0}]
["Breastfeeding","Public-Earned","Email/Print Newsletter","",0,0,0,{"$f":"SUMPRODUCT((INDIRECT(\"'\" & $L$1 & \"'!$C$2:$C$1501\")=$A103)*(INDIRECT(\"'\" & $L$1 & \"'!$B$2:$B$1501\")=$B103)*(INDIRECT(\"'\" & $L$1 & \"'!$E$2:$E$1501\")=$C103)*(INDIRECT(\"'\" & $L$1 & \"'!$K$2:$K$1501\")))","v":0},{"$f":"SUMPRODUCT((INDIRECT(\"'\" & $L$1 & \"'!$C$2:$C$1501\")=$A103)*(INDIRECT(\"'\" & $L$1 & \"'!$B$2:$B$1501\")=$B103)*(INDIRECT(\"'\" & $L$1 & \"'!$E$2:$E$1501\")=$C103)*(INDIRECT(\"'\" & $L$1 & \"'!$n$2:$n$1501\")))","v":0},{"$f":"SUMPRODUCT((INDIRECT(\"'\" & $L$1 & \"'!$C$2:$C$1501\")=$A103)*(INDIRECT(\"'\" & $L$1 & \"'!$B$2:$B$1501\")=$B103)*(INDIRECT(\"'\" & $L$1 & \"'!$E$2:$E$1501\")=$C103)*(INDIRECT(\"'\" & $L$1 & \"'!$p$2:$p$1501\")))","v":0}]
["Breastfeeding","Public-Earned","Other","",0,0,0,{"$f":"SUMPRODUCT((INDIRECT(\"'\" & $L$1 & \"'!$C$2:$C$1501\")=$A104)*(INDIRECT(\"'\" & $L$1 & \"'!$B$2:$B$1501\")=$B104)*(INDIRECT(\"'\" & $L$1 & \"'!$E$2:$E$1501\")=$C104)*(INDIRECT(\"'\" & $L$1 & \"'!$K$2:$K$1501\")))","v":0},{"$f":"SUMPRODUCT((INDIRECT(\"'\" & $L$1 & \"'!$C$2:$C$1501\")=$A104)*(INDIRECT(\"'\" & $L$1 & \"'!$B$2:$B$1501\")=$B104)*(INDIRECT(\"'\" & $L$1 & \"'!$E$2:$E$1501\")=$C104)*(INDIRECT(\"'\" & $L$1 & \"'!$n$2:$n$1501\")))","v":0},{"$f":"SUMPRODUCT((INDIRECT(\"'\" & $L$1 & \"'!$C$2:$C$1501\")=$A104)*(INDIRECT(\"'\" & $L$1 & \"'!$B$2:$B$1501\")=$B104)*(INDIRECT(\"'\" & $L$1 & \"'!$E$2:$E$1501\")=$C104)*(INDIRECT(\"'\" & $L$1 & \"'!$p$2:$p$1501\")))","v":0}]
["Breastfeeding","Public-Earned","Subtotal",null,{"$f":"IF(SUM(E98:E104)=0, 0, SUM(E98:E104))","v":0},{"$f":"IF(SUM(F98:F104)=0, 0, SUM(F98:F104))","v":0},0,{"$f":"IF(SUM(H98:H104)=0, 0, SUM(H98:H104))","v":0},{"$f":"IF(SUM(I98:I104)=0, 0, SUM(I98:I104))","v":0},{"$f":"IF(SUM(J98:J104)=0, 0, SUM(J98:J104))","v":0}]
["Breastfeeding","Public-Paid","Television","",{"$f":"SUMPRODUCT((INDIRECT(\"'\" & $L$1 & \"'!$C$2:$C$1501\")= $A106)*(INDIRECT(\"'\" & $L$1 & \"'!$B$2:$B$1501\")= $B106)*(INDIRECT(\"'\" & $L$1 & \"'!$E$2:$E$1501\")= $C106)*(INDIRECT(\"'\" & $L$1 & \"'!$H$2:$H$1501\")))","v":0},{"$f":"SUMPRODUCT((INDIRECT(\"'\" & $L$1 & \"'!$C$2:$C$1501\")= $A106)*(INDIRECT(\"'\" & $L$1 & \"'!$B$2:$B$1501\")=$B106)*(INDIRECT(\"'\" & $L$1 & \"'!$E$2:$E$1501\")= $C106)*(INDIRECT(\"'\" & $L$1 & \"'!$I$2:$I$1501\")))","v":0},{"$f":"SUMPRODUCT((INDIRECT(\"'\" & $L$1 & \"'!$C$2:$C$1501\")= $A106)*(INDIRECT(\"'\" & $L$1 & \"'!$B$2:$B$1501\")=$B106)*(INDIRECT(\"'\" & $L$1 & \"'!$E$2:$E$1501\")= $C106)*(INDIRECT(\"'\" & $L$1 & \"'!$j$2:$j$1501\")))","v":0},{"$f":"SUMPRODUCT((INDIRECT(\"'\" & $L$1 & \"'!$C$2:$C$1501\")=$A106)*(INDIRECT(\"'\" & $L$1 & \"'!$B$2:$B$1501\")=$B106)*(INDIRECT(\"'\" & $L$1 & \"'!$E$2:$E$1501\")=$C106)*(INDIRECT(\"'\" & $L$1 & \"'!$K$2:$K$1501\")))","v":0},{"$f":"SUMPRODUCT((INDIRECT(\"'\" & $L$1 & \"'!$C$2:$C$1501\")=$A106)*(INDIRECT(\"'\" & $L$1 & \"'!$B$2:$B$1501\")=$B106)*(INDIRECT(\"'\" & $L$1 & \"'!$E$2:$E$1501\")=$C106)*(INDIRECT(\"'\" & $L$1 & \"'!$n$2:$n$1501\")))","v":0},{"$f":"SUMPRODUCT((INDIRECT(\"'\" & $L$1 & \"'!$C$2:$C$1501\")=$A106)*(INDIRECT(\"'\" & $L$1 & \"'!$B$2:$B$1501\")=$B106)*(INDIRECT(\"'\" & $L$1 & \"'!$E$2:$E$1501\")=$C106)*(INDIRECT(\"'\" & $L$1 & \"'!$p$2:$p$1501\")))","v":0}]
["Breastfeeding","Public-Paid","Radio","",0,0,0,{"$f":"SUMPRODUCT((INDIRECT(\"'\" & $L$1 & \"'!$C$2:$C$1501\")=$A107)*(INDIRECT(\"'\" & $L$1 & \"'!$B$2:$B$1501\")=$B107)*(INDIRECT(\"'\" & $L$1 & \"'!$E$2:$E$1501\")=$C107)*(INDIRECT(\"'\" & $L$1 & \"'!$K$2:$K$1501\")))","v":0},{"$f":"SUMPRODUCT((INDIRECT(\"'\" & $L$1 & \"'!$C$2:$C$1501\")=$A107)*(INDIRECT(\"'\" & $L$1 & \"'!$B$2:$B$1501\")=$B107)*(INDIRECT(\"'\" & $L$1 & \"'!$E$2:$E$1501\")=$C107)*(INDIRECT(\"'\" & $L$1 & \"'!$n$2:$n$1501\")))","v":0},{"$f":"SUMPRODUCT((INDIRECT(\"'\" & $L$1 & \"'!$C$2:$C$1501\")=$A107)*(INDIRECT(\"'\" & $L$1 & \"'!$B$2:$B$1501\")=$B107)*(INDIRECT(\"'\" & $L$1 & \"'!$E$2:$E$1501\")=$C107)*(INDIRECT(\"'\" & $L$1 & \"'!$p$2:$p$1501\")))","v":0}]
["Breastfeeding","Public-Paid","Print","",0,0,0,{"$f":"SUMPRODUCT((INDIRECT(\"'\" & $L$1 & \"'!$C$2:$C$1501\")=$A108)*(INDIRECT(\"'\" & $L$1 & \"'!$B$2:$B$1501\")=$B108)*(INDIRECT(\"'\" & $L$1 & \"'!$E$2:$E$1501\")=$C108)*(INDIRECT(\"'\" & $L$1 & \"'!$K$2:$K$1501\")))","v":0},{"$f":"SUMPRODUCT((INDIRECT(\"'\" & $L$1 & \"'!$C$2:$C$1501\")=$A108)*(INDIRECT(\"'\" & $L$1 & \"'!$B$2:$B$1501\")=$B108)*(INDIRECT(\"'\" & $L$1 & \"'!$E$2:$E$1501\")=$C108)*(INDIRECT(\"'\" & $L$1 & \"'!$n$2:$n$1501\")))","v":0},{"$f":"SUMPRODUCT((INDIRECT(\"'\" & $L$1 & \"'!$C$2:$C$1501\")=$A108)*(INDIRECT(\"'\" & $L$1 & \"'!$B$2:$B$1501\")=$B108)*(INDIRECT(\"'\" & $L$1 & \"'!$E$2:$E$1501\")=$C108)*(INDIRECT(\"'\" & $L$1 & \"'!$p$2:$p$1501\")))","v":0}]
["Breastfeeding","Public-Paid","Social/Digital Media","",0,0,0,{"$f":"SUMPRODUCT((INDIRECT(\"'\" & $L$1 & \"'!$C$2:$C$1501\")=$A109)*(INDIRECT(\"'\" & $L$1 & \"'!$B$2:$B$1501\")=$B109)*(INDIRECT(\"'\" & $L$1 & \"'!$E$2:$E$1501\")=$C109)*(INDIRECT(\"'\" & $L$1 & \"'!$K$2:$K$1501\")))","v":0},{"$f":"SUMPRODUCT((INDIRECT(\"'\" & $L$1 & \"'!$C$2:$C$1501\")=$A109)*(INDIRECT(\"'\" & $L$1 & \"'!$B$2:$B$1501\")=$B109)*(INDIRECT(\"'\" & $L$1 & \"'!$E$2:$E$1501\")=$C109)*(INDIRECT(\"'\" & $L$1 & \"'!$n$2:$n$1501\")))","v":0},{"$f":"SUMPRODUCT((INDIRECT(\"'\" & $L$1 & \"'!$C$2:$C$1501\")=$A109)*(INDIRECT(\"'\" & $L$1 & \"'!$B$2:$B$1501\")=$B109)*(INDIRECT(\"'\" & $L$1 & \"'!$E$2:$E$1501\")=$C109)*(INDIRECT(\"'\" & $L$1 & \"'!$p$2:$p$1501\")))","v":0}]
["Breastfeeding","Public-Paid","Outdoor","",0,0,0,{"$f":"SUMPRODUCT((INDIRECT(\"'\" & $L$1 & \"'!$C$2:$C$1501\")=$A110)*(INDIRECT(\"'\" & $L$1 & \"'!$B$2:$B$1501\")=$B110)*(INDIRECT(\"'\" & $L$1 & \"'!$E$2:$E$1501\")=$C110)*(INDIRECT(\"'\" & $L$1 & \"'!$K$2:$K$1501\")))","v":0},{"$f":"SUMPRODUCT((INDIRECT(\"'\" & $L$1 & \"'!$C$2:$C$1501\")=$A110)*(INDIRECT(\"'\" & $L$1 & \"'!$B$2:$B$1501\")=$B110)*(INDIRECT(\"'\" & $L$1 & \"'!$E$2:$E$1501\")=$C110)*(INDIRECT(\"'\" & $L$1 & \"'!$n$2:$n$1501\")))","v":0},{"$f":"SUMPRODUCT((INDIRECT(\"'\" & $L$1 & \"'!$C$2:$C$1501\")=$A110)*(INDIRECT(\"'\" & $L$1 & \"'!$B$2:$B$1501\")=$B110)*(INDIRECT(\"'\" & $L$1 & \"'!$E$2:$E$1501\")=$C110)*(INDIRECT(\"'\" & $L$1 & \"'!$p$2:$p$1501\")))","v":0}]
["Breastfeeding","Public-Paid","Email/Print Newsletter","",0,0,0,{"$f":"SUMPRODUCT((INDIRECT(\"'\" & $L$1 & \"'!$C$2:$C$1501\")=$A111)*(INDIRECT(\"'\" & $L$1 & \"'!$B$2:$B$1501\")=$B111)*(INDIRECT(\"'\" & $L$1 & \"'!$E$2:$E$1501\")=$C111)*(INDIRECT(\"'\" & $L$1 & \"'!$K$2:$K$1501\")))","v":0},{"$f":"SUMPRODUCT((INDIRECT(\"'\" & $L$1 & \"'!$C$2:$C$1501\")=$A111)*(INDIRECT(\"'\" & $L$1 & \"'!$B$2:$B$1501\")=$B111)*(INDIRECT(\"'\" & $L$1 & \"'!$E$2:$E$1501\")=$C111)*(INDIRECT(\"'\" & $L$1 & \"'!$n$2:$n$1501\")))","v":0},{"$f":"SUMPRODUCT((INDIRECT(\"'\" & $L$1 & \"'!$C$2:$C$1501\")=$A111)*(INDIRECT(\"'\" & $L$1 & \"'!$B$2:$B$1501\")=$B111)*(INDIRECT(\"'\" & $L$1 & \"'!$E$2:$E$1501\")=$C111)*(INDIRECT(\"'\" & $L$1 & \"'!$p$2:$p$1501\")))","v":0}]
["Breastfeeding","Public-Paid","Other","",0,0,0,{"$f":"SUMPRODUCT((INDIRECT(\"'\" & $L$1 & \"'!$C$2:$C$1501\")=$A112)*(INDIRECT(\"'\" & $L$1 & \"'!$B$2:$B$1501\")=$B112)*(INDIRECT(\"'\" & $L$1 & \"'!$E$2:$E$1501\")=$C112)*(INDIRECT(\"'\" & $L$1 & \"'!$K$2:$K$1501\")))","v":0},{"$f":"SUMPRODUCT((INDIRECT(\"'\" & $L$1 & \"'!$C$2:$C$1501\")=$A112)*(INDIRECT(\"'\" & $L$1 & \"'!$B$2:$B$1501\")=$B112)*(INDIRECT(\"'\" & $L$1 & \"'!$E$2:$E$1501\")=$C112)*(INDIRECT(\"'\" & $L$1 & \"'!$n$2:$n$1501\")))","v":0},{"$f":"SUMPRODUCT((INDIRECT(\"'\" & $L$1 & \"'!$C$2:$C$1501\")=$A112)*(INDIRECT(\"'\" & $L$1 & \"'!$B$2:$B$1501\")=$B112)*(INDIRECT(\"'\" & $L$1 & \"'!$E$2:$E$1501\")=$C112)*(INDIRECT(\"'\" & $L$1 & \"'!$p$2:$p$1501\")))","v":0}]
["Breastfeeding","Public-Paid","Subtotal",null,{"$f":"IF(SUM(E106:E112)=0, 0, SUM(E106:E112))","v":0},{"$f":"IF(SUM(F106:F112)=0, 0, SUM(F106:F112))","v":0},0,{"$f":"IF(SUM(H106:H112)=0, 0, SUM(H106:H112))","v":0},{"$f":"IF(SUM(I106:I112)=0, 0, SUM(I106:I112))","v":0},{"$f":"IF(SUM(J106:J112)=0, 0, SUM(J106:J112))","v":0}]
["Breastfeeding","Partner","Television","",{"$f":"SUMPRODUCT((INDIRECT(\"'\" & $L$1 & \"'!$C$2:$C$1501\")= $A114)*(INDIRECT(\"'\" & $L$1 & \"'!$B$2:$B$1501\")= $B114)*(INDIRECT(\"'\" & $L$1 & \"'!$E$2:$E$1501\")= $C114)*(INDIRECT(\"'\" & $L$1 & \"'!$H$2:$H$1501\")))","v":0},{"$f":"SUMPRODUCT((INDIRECT(\"'\" & $L$1 & \"'!$C$2:$C$1501\")= $A114)*(INDIRECT(\"'\" & $L$1 & \"'!$B$2:$B$1501\")=$B114)*(INDIRECT(\"'\" & $L$1 & \"'!$E$2:$E$1501\")= $C114)*(INDIRECT(\"'\" & $L$1 & \"'!$I$2:$I$1501\")))","v":0},{"$f":"SUMPRODUCT((INDIRECT(\"'\" & $L$1 & \"'!$C$2:$C$1501\")= $A114)*(INDIRECT(\"'\" & $L$1 & \"'!$B$2:$B$1501\")=$B114)*(INDIRECT(\"'\" & $L$1 & \"'!$E$2:$E$1501\")= $C114)*(INDIRECT(\"'\" & $L$1 & \"'!$j$2:$j$1501\")))","v":0},{"$f":"SUMPRODUCT((INDIRECT(\"'\" & $L$1 & \"'!$C$2:$C$1501\")=$A114)*(INDIRECT(\"'\" & $L$1 & \"'!$B$2:$B$1501\")=$B114)*(INDIRECT(\"'\" & $L$1 & \"'!$E$2:$E$1501\")=$C114)*(INDIRECT(\"'\" & $L$1 & \"'!$K$2:$K$1501\")))","v":0},{"$f":"SUMPRODUCT((INDIRECT(\"'\" & $L$1 & \"'!$C$2:$C$1501\")=$A114)*(INDIRECT(\"'\" & $L$1 & \"'!$B$2:$B$1501\")=$B114)*(INDIRECT(\"'\" & $L$1 & \"'!$E$2:$E$1501\")=$C114)*(INDIRECT(\"'\" & $L$1 & \"'!$n$2:$n$1501\")))","v":0},{"$f":"SUMPRODUCT((INDIRECT(\"'\" & $L$1 & \"'!$C$2:$C$1501\")=$A114)*(INDIRECT(\"'\" & $L$1 & \"'!$B$2:$B$1501\")=$B114)*(INDIRECT(\"'\" & $L$1 & \"'!$E$2:$E$1501\")=$C114)*(INDIRECT(\"'\" & $L$1 & \"'!$p$2:$p$1501\")))","v":0}]
["Breastfeeding","Partner","Radio","",0,0,0,{"$f":"SUMPRODUCT((INDIRECT(\"'\" & $L$1 & \"'!$C$2:$C$1501\")=$A115)*(INDIRECT(\"'\" & $L$1 & \"'!$B$2:$B$1501\")=$B115)*(INDIRECT(\"'\" & $L$1 & \"'!$E$2:$E$1501\")=$C115)*(INDIRECT(\"'\" & $L$1 & \"'!$K$2:$K$1501\")))","v":0},{"$f":"SUMPRODUCT((INDIRECT(\"'\" & $L$1 & \"'!$C$2:$C$1501\")=$A115)*(INDIRECT(\"'\" & $L$1 & \"'!$B$2:$B$1501\")=$B115)*(INDIRECT(\"'\" & $L$1 & \"'!$E$2:$E$1501\")=$C115)*(INDIRECT(\"'\" & $L$1 & \"'!$n$2:$n$1501\")))","v":0},{"$f":"SUMPRODUCT((INDIRECT(\"'\" & $L$1 & \"'!$C$2:$C$1501\")=$A115)*(INDIRECT(\"'\" & $L$1 & \"'!$B$2:$B$1501\")=$B115)*(INDIRECT(\"'\" & $L$1 & \"'!$E$2:$E$1501\")=$C115)*(INDIRECT(\"'\" & $L$1 & \"'!$p$2:$p$1501\")))","v":0}]
["Breastfeeding","Partner","Print","",0,0,0,{"$f":"SUMPRODUCT((INDIRECT(\"'\" & $L$1 & \"'!$C$2:$C$1501\")=$A116)*(INDIRECT(\"'\" & $L$1 & \"'!$B$2:$B$1501\")=$B116)*(INDIRECT(\"'\" & $L$1 & \"'!$E$2:$E$1501\")=$C116)*(INDIRECT(\"'\" & $L$1 & \"'!$K$2:$K$1501\")))","v":0},{"$f":"SUMPRODUCT((INDIRECT(\"'\" & $L$1 & \"'!$C$2:$C$1501\")=$A116)*(INDIRECT(\"'\" & $L$1 & \"'!$B$2:$B$1501\")=$B116)*(INDIRECT(\"'\" & $L$1 & \"'!$E$2:$E$1501\")=$C116)*(INDIRECT(\"'\" & $L$1 & \"'!$n$2:$n$1501\")))","v":0},{"$f":"SUMPRODUCT((INDIRECT(\"'\" & $L$1 & \"'!$C$2:$C$1501\")=$A116)*(INDIRECT(\"'\" & $L$1 & \"'!$B$2:$B$1501\")=$B116)*(INDIRECT(\"'\" & $L$1 & \"'!$E$2:$E$1501\")=$C116)*(INDIRECT(\"'\" & $L$1 & \"'!$p$2:$p$1501\")))","v":0}]
["Breastfeeding","Partner","Social/Digital Media","",0,0,0,{"$f":"SUMPRODUCT((INDIRECT(\"'\" & $L$1 & \"'!$C$2:$C$1501\")=$A117)*(INDIRECT(\"'\" & $L$1 & \"'!$B$2:$B$1501\")=$B117)*(INDIRECT(\"'\" & $L$1 & \"'!$E$2:$E$1501\")=$C117)*(INDIRECT(\"'\" & $L$1 & \"'!$K$2:$K$1501\")))","v":0},{"$f":"SUMPRODUCT((INDIRECT(\"'\" & $L$1 & \"'!$C$2:$C$1501\")=$A117)*(INDIRECT(\"'\" & $L$1 & \"'!$B$2:$B$1501\")=$B117)*(INDIRECT(\"'\" & $L$1 & \"'!$E$2:$E$1501\")=$C117)*(INDIRECT(\"'\" & $L$1 & \"'!$n$2:$n$1501\")))","v":0},{"$f":"SUMPRODUCT((INDIRECT(\"'\" & $L$1 & \"'!$C$2:$C$1501\")=$A117)*(INDIRECT(\"'\" & $L$1 & \"'!$B$2:$B$1501\")=$B117)*(INDIRECT(\"'\" & $L$1 & \"'!$E$2:$E$1501\")=$C117)*(INDIRECT(\"'\" & $L$1 & \"'!$p$2:$p$1501\")))","v":0}]
["Breastfeeding","Partner","Outdoor","",0,0,0,{"$f":"SUMPRODUCT((INDIRECT(\"'\" & $L$1 & \"'!$C$2:$C$1501\")=$A118)*(INDIRECT(\"'\" & $L$1 & \"'!$B$2:$B$1501\")=$B118)*(INDIRECT(\"'\" & $L$1 & \"'!$E$2:$E$1501\")=$C118)*(INDIRECT(\"'\" & $L$1 & \"'!$K$2:$K$1501\")))","v":0},{"$f":"SUMPRODUCT((INDIRECT(\"'\" & $L$1 & \"'!$C$2:$C$1501\")=$A118)*(INDIRECT(\"'\" & $L$1 & \"'!$B$2:$B$1501\")=$B118)*(INDIRECT(\"'\" & $L$1 & \"'!$E$2:$E$1501\")=$C118)*(INDIRECT(\"'\" & $L$1 & \"'!$n$2:$n$1501\")))","v":0},{"$f":"SUMPRODUCT((INDIRECT(\"'\" & $L$1 & \"'!$C$2:$C$1501\")=$A118)*(INDIRECT(\"'\" & $L$1 & \"'!$B$2:$B$1501\")=$B118)*(INDIRECT(\"'\" & $L$1 & \"'!$E$2:$E$1501\")=$C118)*(INDIRECT(\"'\" & $L$1 & \"'!$p$2:$p$1501\")))","v":0}]
["Breastfeeding","Partner","Email/Print Newsletter","",0,0,0,{"$f":"SUMPRODUCT((INDIRECT(\"'\" & $L$1 & \"'!$C$2:$C$1501\")=$A119)*(INDIRECT(\"'\" & $L$1 & \"'!$B$2:$B$1501\")=$B119)*(INDIRECT(\"'\" & $L$1 & \"'!$E$2:$E$1501\")=$C119)*(INDIRECT(\"'\" & $L$1 & \"'!$K$2:$K$1501\")))","v":0},{"$f":"SUMPRODUCT((INDIRECT(\"'\" & $L$1 & \"'!$C$2:$C$1501\")=$A119)*(INDIRECT(\"'\" & $L$1 & \"'!$B$2:$B$1501\")=$B119)*(INDIRECT(\"'\" & $L$1 & \"'!$E$2:$E$1501\")=$C119)*(INDIRECT(\"'\" & $L$1 & \"'!$n$2:$n$1501\")))","v":0},{"$f":"SUMPRODUCT((INDIRECT(\"'\" & $L$1 & \"'!$C$2:$C$1501\")=$A119)*(INDIRECT(\"'\" & $L$1 & \"'!$B$2:$B$1501\")=$B119)*(INDIRECT(\"'\" & $L$1 & \"'!$E$2:$E$1501\")=$C119)*(INDIRECT(\"'\" & $L$1 & \"'!$p$2:$p$1501\")))","v":0}]
["Breastfeeding","Partner","Other","",0,0,0,{"$f":"SUMPRODUCT((INDIRECT(\"'\" & $L$1 & \"'!$C$2:$C$1501\")=$A120)*(INDIRECT(\"'\" & $L$1 & \"'!$B$2:$B$1501\")=$B120)*(INDIRECT(\"'\" & $L$1 & \"'!$E$2:$E$1501\")=$C120)*(INDIRECT(\"'\" & $L$1 & \"'!$K$2:$K$1501\")))","v":0},{"$f":"SUMPRODUCT((INDIRECT(\"'\" & $L$1 & \"'!$C$2:$C$1501\")=$A120)*(INDIRECT(\"'\" & $L$1 & \"'!$B$2:$B$1501\")=$B120)*(INDIRECT(\"'\" & $L$1 & \"'!$E$2:$E$1501\")=$C120)*(INDIRECT(\"'\" & $L$1 & \"'!$n$2:$n$1501\")))","v":0},{"$f":"SUMPRODUCT((INDIRECT(\"'\" & $L$1 & \"'!$C$2:$C$1501\")=$A120)*(INDIRECT(\"'\" & $L$1 & \"'!$B$2:$B$1501\")=$B120)*(INDIRECT(\"'\" & $L$1 & \"'!$E$2:$E$1501\")=$C120)*(INDIRECT(\"'\" & $L$1 & \"'!$p$2:$p$1501\")))","v":0}]
["Breastfeeding","Partner","Subtotal",null,{"$f":"IF(SUM(E114:E120)=0, 0, SUM(E114:E120))","v":0},{"$f":"IF(SUM(F114:F120)=0, 0, SUM(F114:F120))","v":0},0,{"$f":"IF(SUM(H114:H120)=0, 0, SUM(H114:H120))","v":0},{"$f":"IF(SUM(I114:I120)=0, 0, SUM(I114:I120))","v":0},{"$f":"IF(SUM(J114:J120)=0, 0, SUM(J114:J120))","v":0}]
["Breastfeeding",{"$f":"$P$1","v":"Sub-Recipients"},"Television",""]
["Breastfeeding",null,"Radio",""]
["Breastfeeding",null,"Print",""]
["Breastfeeding",null,"Social/New Media",""]
["Breastfeeding",null,"Outdoor",""]
["Breastfeeding",null,"Other",""]
["Breastfeeding",null,"Subtotal",""]
["Breastfeeding","TOTAL",null,null,{"$f":"SUMPRODUCT(($C98:$C128=$C$25)*(E98:E128))","v":0},{"$f":"SUMPRODUCT(($C98:$C128=$C$25)*(F98:F128))","v":0},{"$f":"SUMPRODUCT(($C98:$C128=$C$25)*(G98:G128))","v":0},0,0,0]
["Family Healthy Weight Programs","Public-Earned","Television","",{"$f":"SUMPRODUCT((INDIRECT(\"'\" & $L$1 & \"'!$C$2:$C$1501\")= $A130)*(INDIRECT(\"'\" & $L$1 & \"'!$B$2:$B$1501\")= $B130)*(INDIRECT(\"'\" & $L$1 & \"'!$E$2:$E$1501\")= $C130)*(INDIRECT(\"'\" & $L$1 & \"'!$H$2:$H$1501\")))","v":0},{"$f":"SUMPRODUCT((INDIRECT(\"'\" & $L$1 & \"'!$C$2:$C$1501\")= $A130)*(INDIRECT(\"'\" & $L$1 & \"'!$B$2:$B$1501\")=$B130)*(INDIRECT(\"'\" & $L$1 & \"'!$E$2:$E$1501\")= $C130)*(INDIRECT(\"'\" & $L$1 & \"'!$I$2:$I$1501\")))","v":0},{"$f":"SUMPRODUCT((INDIRECT(\"'\" & $L$1 & \"'!$C$2:$C$1501\")= $A130)*(INDIRECT(\"'\" & $L$1 & \"'!$B$2:$B$1501\")=$B130)*(INDIRECT(\"'\" & $L$1 & \"'!$E$2:$E$1501\")= $C130)*(INDIRECT(\"'\" & $L$1 & \"'!$j$2:$j$1501\")))","v":0},{"$f":"SUMPRODUCT((INDIRECT(\"'\" & $L$1 & \"'!$C$2:$C$1501\")=$A130)*(INDIRECT(\"'\" & $L$1 & \"'!$B$2:$B$1501\")=$B130)*(INDIRECT(\"'\" & $L$1 & \"'!$E$2:$E$1501\")=$C130)*(INDIRECT(\"'\" & $L$1 & \"'!$K$2:$K$1501\")))","v":0},{"$f":"SUMPRODUCT((INDIRECT(\"'\" & $L$1 & \"'!$C$2:$C$1501\")=$A130)*(INDIRECT(\"'\" & $L$1 & \"'!$B$2:$B$1501\")=$B130)*(INDIRECT(\"'\" & $L$1 & \"'!$E$2:$E$1501\")=$C130)*(INDIRECT(\"'\" & $L$1 & \"'!$n$2:$n$1501\")))","v":0},{"$f":"SUMPRODUCT((INDIRECT(\"'\" & $L$1 & \"'!$C$2:$C$1501\")=$A130)*(INDIRECT(\"'\" & $L$1 & \"'!$B$2:$B$1501\")=$B130)*(INDIRECT(\"'\" & $L$1 & \"'!$E$2:$E$1501\")=$C130)*(INDIRECT(\"'\" & $L$1 & \"'!$p$2:$p$1501\")))","v":0}]
["Family Healthy Weight Programs","Public-Earned","Radio","",0,0,0,{"$f":"SUMPRODUCT((INDIRECT(\"'\" & $L$1 & \"'!$C$2:$C$1501\")=$A131)*(INDIRECT(\"'\" & $L$1 & \"'!$B$2:$B$1501\")=$B131)*(INDIRECT(\"'\" & $L$1 & \"'!$E$2:$E$1501\")=$C131)*(INDIRECT(\"'\" & $L$1 & \"'!$K$2:$K$1501\")))","v":0},{"$f":"SUMPRODUCT((INDIRECT(\"'\" & $L$1 & \"'!$C$2:$C$1501\")=$A131)*(INDIRECT(\"'\" & $L$1 & \"'!$B$2:$B$1501\")=$B131)*(INDIRECT(\"'\" & $L$1 & \"'!$E$2:$E$1501\")=$C131)*(INDIRECT(\"'\" & $L$1 & \"'!$n$2:$n$1501\")))","v":0},{"$f":"SUMPRODUCT((INDIRECT(\"'\" & $L$1 & \"'!$C$2:$C$1501\")=$A131)*(INDIRECT(\"'\" & $L$1 & \"'!$B$2:$B$1501\")=$B131)*(INDIRECT(\"'\" & $L$1 & \"'!$E$2:$E$1501\")=$C131)*(INDIRECT(\"'\" & $L$1 & \"'!$p$2:$p$1501\")))","v":0}]
["Family Healthy Weight Programs","Public-Earned","Print","",0,0,0,{"$f":"SUMPRODUCT((INDIRECT(\"'\" & $L$1 & \"'!$C$2:$C$1501\")=$A132)*(INDIRECT(\"'\" & $L$1 & \"'!$B$2:$B$1501\")=$B132)*(INDIRECT(\"'\" & $L$1 & \"'!$E$2:$E$1501\")=$C132)*(INDIRECT(\"'\" & $L$1 & \"'!$K$2:$K$1501\")))","v":0},{"$f":"SUMPRODUCT((INDIRECT(\"'\" & $L$1 & \"'!$C$2:$C$1501\")=$A132)*(INDIRECT(\"'\" & $L$1 & \"'!$B$2:$B$1501\")=$B132)*(INDIRECT(\"'\" & $L$1 & \"'!$E$2:$E$1501\")=$C132)*(INDIRECT(\"'\" & $L$1 & \"'!$n$2:$n$1501\")))","v":0},{"$f":"SUMPRODUCT((INDIRECT(\"'\" & $L$1 & \"'!$C$2:$C$1501\")=$A132)*(INDIRECT(\"'\" & $L$1 & \"'!$B$2:$B$1501\")=$B132)*(INDIRECT(\"'\" & $L$1 & \"'!$E$2:$E$1501\")=$C132)*(INDIRECT(\"'\" & $L$1 & \"'!$p$2:$p$1501\")))","v":0}]
["Family Healthy Weight Programs","Public-Earned","Social/Digital Media","",0,0,0,{"$f":"SUMPRODUCT((INDIRECT(\"'\" & $L$1 & \"'!$C$2:$C$1501\")=$A133)*(INDIRECT(\"'\" & $L$1 & \"'!$B$2:$B$1501\")=$B133)*(INDIRECT(\"'\" & $L$1 & \"'!$E$2:$E$1501\")=$C133)*(INDIRECT(\"'\" & $L$1 & \"'!$K$2:$K$1501\")))","v":0},{"$f":"SUMPRODUCT((INDIRECT(\"'\" & $L$1 & \"'!$C$2:$C$1501\")=$A133)*(INDIRECT(\"'\" & $L$1 & \"'!$B$2:$B$1501\")=$B133)*(INDIRECT(\"'\" & $L$1 & \"'!$E$2:$E$1501\")=$C133)*(INDIRECT(\"'\" & $L$1 & \"'!$n$2:$n$1501\")))","v":0},{"$f":"SUMPRODUCT((INDIRECT(\"'\" & $L$1 & \"'!$C$2:$C$1501\")=$A133)*(INDIRECT(\"'\" & $L$1 & \"'!$B$2:$B$1501\")=$B133)*(INDIRECT(\"'\" & $L$1 & \"'!$E$2:$E$1501\")=$C133)*(INDIRECT(\"'\" & $L$1 & \"'!$p$2:$p$1501\")))","v":0}]
["Family Healthy Weight Programs","Public-Earned","Outdoor","",0,0,0,{"$f":"SUMPRODUCT((INDIRECT(\"'\" & $L$1 & \"'!$C$2:$C$1501\")=$A134)*(INDIRECT(\"'\" & $L$1 & \"'!$B$2:$B$1501\")=$B134)*(INDIRECT(\"'\" & $L$1 & \"'!$E$2:$E$1501\")=$C134)*(INDIRECT(\"'\" & $L$1 & \"'!$K$2:$K$1501\")))","v":0},{"$f":"SUMPRODUCT((INDIRECT(\"'\" & $L$1 & \"'!$C$2:$C$1501\")=$A134)*(INDIRECT(\"'\" & $L$1 & \"'!$B$2:$B$1501\")=$B134)*(INDIRECT(\"'\" & $L$1 & \"'!$E$2:$E$1501\")=$C134)*(INDIRECT(\"'\" & $L$1 & \"'!$n$2:$n$1501\")))","v":0},{"$f":"SUMPRODUCT((INDIRECT(\"'\" & $L$1 & \"'!$C$2:$C$1501\")=$A134)*(INDIRECT(\"'\" & $L$1 & \"'!$B$2:$B$1501\")=$B134)*(INDIRECT(\"'\" & $L$1 & \"'!$E$2:$E$1501\")=$C134)*(INDIRECT(\"'\" & $L$1 & \"'!$p$2:$p$1501\")))","v":0}]
["Family Healthy Weight Programs","Public-Earned","Email/Print Newsletter","",0,0,0,{"$f":"SUMPRODUCT((INDIRECT(\"'\" & $L$1 & \"'!$C$2:$C$1501\")=$A135)*(INDIRECT(\"'\" & $L$1 & \"'!$B$2:$B$1501\")=$B135)*(INDIRECT(\"'\" & $L$1 & \"'!$E$2:$E$1501\")=$C135)*(INDIRECT(\"'\" & $L$1 & \"'!$K$2:$K$1501\")))","v":0},{"$f":"SUMPRODUCT((INDIRECT(\"'\" & $L$1 & \"'!$C$2:$C$1501\")=$A135)*(INDIRECT(\"'\" & $L$1 & \"'!$B$2:$B$1501\")=$B135)*(INDIRECT(\"'\" & $L$1 & \"'!$E$2:$E$1501\")=$C135)*(INDIRECT(\"'\" & $L$1 & \"'!$n$2:$n$1501\")))","v":0},{"$f":"SUMPRODUCT((INDIRECT(\"'\" & $L$1 & \"'!$C$2:$C$1501\")=$A135)*(INDIRECT(\"'\" & $L$1 & \"'!$B$2:$B$1501\")=$B135)*(INDIRECT(\"'\" & $L$1 & \"'!$E$2:$E$1501\")=$C135)*(INDIRECT(\"'\" & $L$1 & \"'!$p$2:$p$1501\")))","v":0}]
["Family Healthy Weight Programs","Public-Earned","Other","",0,0,0,{"$f":"SUMPRODUCT((INDIRECT(\"'\" & $L$1 & \"'!$C$2:$C$1501\")=$A136)*(INDIRECT(\"'\" & $L$1 & \"'!$B$2:$B$1501\")=$B136)*(INDIRECT(\"'\" & $L$1 & \"'!$E$2:$E$1501\")=$C136)*(INDIRECT(\"'\" & $L$1 & \"'!$K$2:$K$1501\")))","v":0},{"$f":"SUMPRODUCT((INDIRECT(\"'\" & $L$1 & \"'!$C$2:$C$1501\")=$A136)*(INDIRECT(\"'\" & $L$1 & \"'!$B$2:$B$1501\")=$B136)*(INDIRECT(\"'\" & $L$1 & \"'!$E$2:$E$1501\")=$C136)*(INDIRECT(\"'\" & $L$1 & \"'!$n$2:$n$1501\")))","v":0},{"$f":"SUMPRODUCT((INDIRECT(\"'\" & $L$1 & \"'!$C$2:$C$1501\")=$A136)*(INDIRECT(\"'\" & $L$1 & \"'!$B$2:$B$1501\")=$B136)*(INDIRECT(\"'\" & $L$1 & \"'!$E$2:$E$1501\")=$C136)*(INDIRECT(\"'\" & $L$1 & \"'!$p$2:$p$1501\")))","v":0}]
["Family Healthy Weight Programs","Public-Earned","Subtotal",null,{"$f":"IF(SUM(E130:E136)=0, 0, SUM(E130:E136))","v":0},{"$f":"IF(SUM(F130:F136)=0, 0, SUM(F130:F136))","v":0},0,{"$f":"IF(SUM(H130:H136)=0, 0, SUM(H130:H136))","v":0},{"$f":"IF(SUM(I130:I136)=0, 0, SUM(I130:I136))","v":0},{"$f":"IF(SUM(J130:J136)=0, 0, SUM(J130:J136))","v":0}]
["Family Healthy Weight Programs","Public-Paid","Television","",{"$f":"SUMPRODUCT((INDIRECT(\"'\" & $L$1 & \"'!$C$2:$C$1501\")= $A138)*(INDIRECT(\"'\" & $L$1 & \"'!$B$2:$B$1501\")= $B138)*(INDIRECT(\"'\" & $L$1 & \"'!$E$2:$E$1501\")= $C138)*(INDIRECT(\"'\" & $L$1 & \"'!$H$2:$H$1501\")))","v":0},{"$f":"SUMPRODUCT((INDIRECT(\"'\" & $L$1 & \"'!$C$2:$C$1501\")= $A138)*(INDIRECT(\"'\" & $L$1 & \"'!$B$2:$B$1501\")=$B138)*(INDIRECT(\"'\" & $L$1 & \"'!$E$2:$E$1501\")= $C138)*(INDIRECT(\"'\" & $L$1 & \"'!$I$2:$I$1501\")))","v":0},{"$f":"SUMPRODUCT((INDIRECT(\"'\" & $L$1 & \"'!$C$2:$C$1501\")= $A138)*(INDIRECT(\"'\" & $L$1 & \"'!$B$2:$B$1501\")=$B138)*(INDIRECT(\"'\" & $L$1 & \"'!$E$2:$E$1501\")= $C138)*(INDIRECT(\"'\" & $L$1 & \"'!$j$2:$j$1501\")))","v":0},{"$f":"SUMPRODUCT((INDIRECT(\"'\" & $L$1 & \"'!$C$2:$C$1501\")=$A138)*(INDIRECT(\"'\" & $L$1 & \"'!$B$2:$B$1501\")=$B138)*(INDIRECT(\"'\" & $L$1 & \"'!$E$2:$E$1501\")=$C138)*(INDIRECT(\"'\" & $L$1 & \"'!$K$2:$K$1501\")))","v":0},{"$f":"SUMPRODUCT((INDIRECT(\"'\" & $L$1 & \"'!$C$2:$C$1501\")=$A138)*(INDIRECT(\"'\" & $L$1 & \"'!$B$2:$B$1501\")=$B138)*(INDIRECT(\"'\" & $L$1 & \"'!$E$2:$E$1501\")=$C138)*(INDIRECT(\"'\" & $L$1 & \"'!$n$2:$n$1501\")))","v":0},{"$f":"SUMPRODUCT((INDIRECT(\"'\" & $L$1 & \"'!$C$2:$C$1501\")=$A138)*(INDIRECT(\"'\" & $L$1 & \"'!$B$2:$B$1501\")=$B138)*(INDIRECT(\"'\" & $L$1 & \"'!$E$2:$E$1501\")=$C138)*(INDIRECT(\"'\" & $L$1 & \"'!$p$2:$p$1501\")))","v":0}]
["Family Healthy Weight Programs","Public-Paid","Radio","",0,0,0,{"$f":"SUMPRODUCT((INDIRECT(\"'\" & $L$1 & \"'!$C$2:$C$1501\")=$A139)*(INDIRECT(\"'\" & $L$1 & \"'!$B$2:$B$1501\")=$B139)*(INDIRECT(\"'\" & $L$1 & \"'!$E$2:$E$1501\")=$C139)*(INDIRECT(\"'\" & $L$1 & \"'!$K$2:$K$1501\")))","v":0},{"$f":"SUMPRODUCT((INDIRECT(\"'\" & $L$1 & \"'!$C$2:$C$1501\")=$A139)*(INDIRECT(\"'\" & $L$1 & \"'!$B$2:$B$1501\")=$B139)*(INDIRECT(\"'\" & $L$1 & \"'!$E$2:$E$1501\")=$C139)*(INDIRECT(\"'\" & $L$1 & \"'!$n$2:$n$1501\")))","v":0},{"$f":"SUMPRODUCT((INDIRECT(\"'\" & $L$1 & \"'!$C$2:$C$1501\")=$A139)*(INDIRECT(\"'\" & $L$1 & \"'!$B$2:$B$1501\")=$B139)*(INDIRECT(\"'\" & $L$1 & \"'!$E$2:$E$1501\")=$C139)*(INDIRECT(\"'\" & $L$1 & \"'!$p$2:$p$1501\")))","v":0}]
["Family Healthy Weight Programs","Public-Paid","Print","",0,0,0,{"$f":"SUMPRODUCT((INDIRECT(\"'\" & $L$1 & \"'!$C$2:$C$1501\")=$A140)*(INDIRECT(\"'\" & $L$1 & \"'!$B$2:$B$1501\")=$B140)*(INDIRECT(\"'\" & $L$1 & \"'!$E$2:$E$1501\")=$C140)*(INDIRECT(\"'\" & $L$1 & \"'!$K$2:$K$1501\")))","v":0},{"$f":"SUMPRODUCT((INDIRECT(\"'\" & $L$1 & \"'!$C$2:$C$1501\")=$A140)*(INDIRECT(\"'\" & $L$1 & \"'!$B$2:$B$1501\")=$B140)*(INDIRECT(\"'\" & $L$1 & \"'!$E$2:$E$1501\")=$C140)*(INDIRECT(\"'\" & $L$1 & \"'!$n$2:$n$1501\")))","v":0},{"$f":"SUMPRODUCT((INDIRECT(\"'\" & $L$1 & \"'!$C$2:$C$1501\")=$A140)*(INDIRECT(\"'\" & $L$1 & \"'!$B$2:$B$1501\")=$B140)*(INDIRECT(\"'\" & $L$1 & \"'!$E$2:$E$1501\")=$C140)*(INDIRECT(\"'\" & $L$1 & \"'!$p$2:$p$1501\")))","v":0}]
["Family Healthy Weight Programs","Public-Paid","Social/Digital Media","",0,0,0,{"$f":"SUMPRODUCT((INDIRECT(\"'\" & $L$1 & \"'!$C$2:$C$1501\")=$A141)*(INDIRECT(\"'\" & $L$1 & \"'!$B$2:$B$1501\")=$B141)*(INDIRECT(\"'\" & $L$1 & \"'!$E$2:$E$1501\")=$C141)*(INDIRECT(\"'\" & $L$1 & \"'!$K$2:$K$1501\")))","v":0},{"$f":"SUMPRODUCT((INDIRECT(\"'\" & $L$1 & \"'!$C$2:$C$1501\")=$A141)*(INDIRECT(\"'\" & $L$1 & \"'!$B$2:$B$1501\")=$B141)*(INDIRECT(\"'\" & $L$1 & \"'!$E$2:$E$1501\")=$C141)*(INDIRECT(\"'\" & $L$1 & \"'!$n$2:$n$1501\")))","v":0},{"$f":"SUMPRODUCT((INDIRECT(\"'\" & $L$1 & \"'!$C$2:$C$1501\")=$A141)*(INDIRECT(\"'\" & $L$1 & \"'!$B$2:$B$1501\")=$B141)*(INDIRECT(\"'\" & $L$1 & \"'!$E$2:$E$1501\")=$C141)*(INDIRECT(\"'\" & $L$1 & \"'!$p$2:$p$1501\")))","v":0}]
["Family Healthy Weight Programs","Public-Paid","Outdoor","",0,0,0,{"$f":"SUMPRODUCT((INDIRECT(\"'\" & $L$1 & \"'!$C$2:$C$1501\")=$A142)*(INDIRECT(\"'\" & $L$1 & \"'!$B$2:$B$1501\")=$B142)*(INDIRECT(\"'\" & $L$1 & \"'!$E$2:$E$1501\")=$C142)*(INDIRECT(\"'\" & $L$1 & \"'!$K$2:$K$1501\")))","v":0},{"$f":"SUMPRODUCT((INDIRECT(\"'\" & $L$1 & \"'!$C$2:$C$1501\")=$A142)*(INDIRECT(\"'\" & $L$1 & \"'!$B$2:$B$1501\")=$B142)*(INDIRECT(\"'\" & $L$1 & \"'!$E$2:$E$1501\")=$C142)*(INDIRECT(\"'\" & $L$1 & \"'!$n$2:$n$1501\")))","v":0},{"$f":"SUMPRODUCT((INDIRECT(\"'\" & $L$1 & \"'!$C$2:$C$1501\")=$A142)*(INDIRECT(\"'\" & $L$1 & \"'!$B$2:$B$1501\")=$B142)*(INDIRECT(\"'\" & $L$1 & \"'!$E$2:$E$1501\")=$C142)*(INDIRECT(\"'\" & $L$1 & \"'!$p$2:$p$1501\")))","v":0}]
["Family Healthy Weight Programs","Public-Paid","Email/Print Newsletter","",0,0,0,{"$f":"SUMPRODUCT((INDIRECT(\"'\" & $L$1 & \"'!$C$2:$C$1501\")=$A143)*(INDIRECT(\"'\" & $L$1 & \"'!$B$2:$B$1501\")=$B143)*(INDIRECT(\"'\" & $L$1 & \"'!$E$2:$E$1501\")=$C143)*(INDIRECT(\"'\" & $L$1 & \"'!$K$2:$K$1501\")))","v":0},{"$f":"SUMPRODUCT((INDIRECT(\"'\" & $L$1 & \"'!$C$2:$C$1501\")=$A143)*(INDIRECT(\"'\" & $L$1 & \"'!$B$2:$B$1501\")=$B143)*(INDIRECT(\"'\" & $L$1 & \"'!$E$2:$E$1501\")=$C143)*(INDIRECT(\"'\" & $L$1 & \"'!$n$2:$n$1501\")))","v":0},{"$f":"SUMPRODUCT((INDIRECT(\"'\" & $L$1 & \"'!$C$2:$C$1501\")=$A143)*(INDIRECT(\"'\" & $L$1 & \"'!$B$2:$B$1501\")=$B143)*(INDIRECT(\"'\" & $L$1 & \"'!$E$2:$E$1501\")=$C143)*(INDIRECT(\"'\" & $L$1 & \"'!$p$2:$p$1501\")))","v":0}]
["Family Healthy Weight Programs","Public-Paid","Other","",0,0,0,{"$f":"SUMPRODUCT((INDIRECT(\"'\" & $L$1 & \"'!$C$2:$C$1501\")=$A144)*(INDIRECT(\"'\" & $L$1 & \"'!$B$2:$B$1501\")=$B144)*(INDIRECT(\"'\" & $L$1 & \"'!$E$2:$E$1501\")=$C144)*(INDIRECT(\"'\" & $L$1 & \"'!$K$2:$K$1501\")))","v":0},{"$f":"SUMPRODUCT((INDIRECT(\"'\" & $L$1 & \"'!$C$2:$C$1501\")=$A144)*(INDIRECT(\"'\" & $L$1 & \"'!$B$2:$B$1501\")=$B144)*(INDIRECT(\"'\" & $L$1 & \"'!$E$2:$E$1501\")=$C144)*(INDIRECT(\"'\" & $L$1 & \"'!$n$2:$n$1501\")))","v":0},{"$f":"SUMPRODUCT((INDIRECT(\"'\" & $L$1 & \"'!$C$2:$C$1501\")=$A144)*(INDIRECT(\"'\" & $L$1 & \"'!$B$2:$B$1501\")=$B144)*(INDIRECT(\"'\" & $L$1 & \"'!$E$2:$E$1501\")=$C144)*(INDIRECT(\"'\" & $L$1 & \"'!$p$2:$p$1501\")))","v":0}]
["Family Healthy Weight Programs","Public-Paid","Subtotal",null,{"$f":"IF(SUM(E138:E144)=0, 0, SUM(E138:E144))","v":0},{"$f":"IF(SUM(F138:F144)=0, 0, SUM(F138:F144))","v":0},0,{"$f":"IF(SUM(H138:H144)=0, 0, SUM(H138:H144))","v":0},{"$f":"IF(SUM(I138:I144)=0, 0, SUM(I138:I144))","v":0},{"$f":"IF(SUM(J138:J144)=0, 0, SUM(J138:J144))","v":0}]
["Family Healthy Weight Programs","Partner","Television",{"$f":"$N$1","v":""},{"$f":"SUMPRODUCT((INDIRECT(\"'\" & $L$1 & \"'!$C$2:$C$1501\")= $A146)*(INDIRECT(\"'\" & $L$1 & \"'!$B$2:$B$1501\")= $B146)*(INDIRECT(\"'\" & $L$1 & \"'!$E$2:$E$1501\")= $C146)*(INDIRECT(\"'\" & $L$1 & \"'!$H$2:$H$1501\")))","v":0},{"$f":"SUMPRODUCT((INDIRECT(\"'\" & $L$1 & \"'!$C$2:$C$1501\")= $A146)*(INDIRECT(\"'\" & $L$1 & \"'!$B$2:$B$1501\")=$B146)*(INDIRECT(\"'\" & $L$1 & \"'!$E$2:$E$1501\")= $C146)*(INDIRECT(\"'\" & $L$1 & \"'!$I$2:$I$1501\")))","v":0},{"$f":"SUMPRODUCT((INDIRECT(\"'\" & $L$1 & \"'!$C$2:$C$1501\")= $A146)*(INDIRECT(\"'\" & $L$1 & \"'!$B$2:$B$1501\")=$B146)*(INDIRECT(\"'\" & $L$1 & \"'!$E$2:$E$1501\")= $C146)*(INDIRECT(\"'\" & $L$1 & \"'!$j$2:$j$1501\")))","v":0},{"$f":"SUMPRODUCT((INDIRECT(\"'\" & $L$1 & \"'!$C$2:$C$1501\")=$A146)*(INDIRECT(\"'\" & $L$1 & \"'!$B$2:$B$1501\")=$B146)*(INDIRECT(\"'\" & $L$1 & \"'!$E$2:$E$1501\")=$C146)*(INDIRECT(\"'\" & $L$1 & \"'!$K$2:$K$1501\")))","v":0},{"$f":"SUMPRODUCT((INDIRECT(\"'\" & $L$1 & \"'!$C$2:$C$1501\")=$A146)*(INDIRECT(\"'\" & $L$1 & \"'!$B$2:$B$1501\")=$B146)*(INDIRECT(\"'\" & $L$1 & \"'!$E$2:$E$1501\")=$C146)*(INDIRECT(\"'\" & $L$1 & \"'!$n$2:$n$1501\")))","v":0},{"$f":"SUMPRODUCT((INDIRECT(\"'\" & $L$1 & \"'!$C$2:$C$1501\")=$A146)*(INDIRECT(\"'\" & $L$1 & \"'!$B$2:$B$1501\")=$B146)*(INDIRECT(\"'\" & $L$1 & \"'!$E$2:$E$1501\")=$C146)*(INDIRECT(\"'\" & $L$1 & \"'!$p$2:$p$1501\")))","v":0}]
["Family Healthy Weight Programs","Partner","Radio","",0,0,0,{"$f":"SUMPRODUCT((INDIRECT(\"'\" & $L$1 & \"'!$C$2:$C$1501\")=$A147)*(INDIRECT(\"'\" & $L$1 & \"'!$B$2:$B$1501\")=$B147)*(INDIRECT(\"'\" & $L$1 & \"'!$E$2:$E$1501\")=$C147)*(INDIRECT(\"'\" & $L$1 & \"'!$K$2:$K$1501\")))","v":0},{"$f":"SUMPRODUCT((INDIRECT(\"'\" & $L$1 & \"'!$C$2:$C$1501\")=$A147)*(INDIRECT(\"'\" & $L$1 & \"'!$B$2:$B$1501\")=$B147)*(INDIRECT(\"'\" & $L$1 & \"'!$E$2:$E$1501\")=$C147)*(INDIRECT(\"'\" & $L$1 & \"'!$n$2:$n$1501\")))","v":0},{"$f":"SUMPRODUCT((INDIRECT(\"'\" & $L$1 & \"'!$C$2:$C$1501\")=$A147)*(INDIRECT(\"'\" & $L$1 & \"'!$B$2:$B$1501\")=$B147)*(INDIRECT(\"'\" & $L$1 & \"'!$E$2:$E$1501\")=$C147)*(INDIRECT(\"'\" & $L$1 & \"'!$p$2:$p$1501\")))","v":0}]
["Family Healthy Weight Programs","Partner","Print","",0,0,0,{"$f":"SUMPRODUCT((INDIRECT(\"'\" & $L$1 & \"'!$C$2:$C$1501\")=$A148)*(INDIRECT(\"'\" & $L$1 & \"'!$B$2:$B$1501\")=$B148)*(INDIRECT(\"'\" & $L$1 & \"'!$E$2:$E$1501\")=$C148)*(INDIRECT(\"'\" & $L$1 & \"'!$K$2:$K$1501\")))","v":0},{"$f":"SUMPRODUCT((INDIRECT(\"'\" & $L$1 & \"'!$C$2:$C$1501\")=$A148)*(INDIRECT(\"'\" & $L$1 & \"'!$B$2:$B$1501\")=$B148)*(INDIRECT(\"'\" & $L$1 & \"'!$E$2:$E$1501\")=$C148)*(INDIRECT(\"'\" & $L$1 & \"'!$n$2:$n$1501\")))","v":0},{"$f":"SUMPRODUCT((INDIRECT(\"'\" & $L$1 & \"'!$C$2:$C$1501\")=$A148)*(INDIRECT(\"'\" & $L$1 & \"'!$B$2:$B$1501\")=$B148)*(INDIRECT(\"'\" & $L$1 & \"'!$E$2:$E$1501\")=$C148)*(INDIRECT(\"'\" & $L$1 & \"'!$p$2:$p$1501\")))","v":0}]
["Family Healthy Weight Programs","Partner","Social/Digital Media","",0,0,0,{"$f":"SUMPRODUCT((INDIRECT(\"'\" & $L$1 & \"'!$C$2:$C$1501\")=$A149)*(INDIRECT(\"'\" & $L$1 & \"'!$B$2:$B$1501\")=$B149)*(INDIRECT(\"'\" & $L$1 & \"'!$E$2:$E$1501\")=$C149)*(INDIRECT(\"'\" & $L$1 & \"'!$K$2:$K$1501\")))","v":0},{"$f":"SUMPRODUCT((INDIRECT(\"'\" & $L$1 & \"'!$C$2:$C$1501\")=$A149)*(INDIRECT(\"'\" & $L$1 & \"'!$B$2:$B$1501\")=$B149)*(INDIRECT(\"'\" & $L$1 & \"'!$E$2:$E$1501\")=$C149)*(INDIRECT(\"'\" & $L$1 & \"'!$n$2:$n$1501\")))","v":0},{"$f":"SUMPRODUCT((INDIRECT(\"'\" & $L$1 & \"'!$C$2:$C$1501\")=$A149)*(INDIRECT(\"'\" & $L$1 & \"'!$B$2:$B$1501\")=$B149)*(INDIRECT(\"'\" & $L$1 & \"'!$E$2:$E$1501\")=$C149)*(INDIRECT(\"'\" & $L$1 & \"'!$p$2:$p$1501\")))","v":0}]
["Family Healthy Weight Programs","Partner","Outdoor","",0,0,0,{"$f":"SUMPRODUCT((INDIRECT(\"'\" & $L$1 & \"'!$C$2:$C$1501\")=$A150)*(INDIRECT(\"'\" & $L$1 & \"'!$B$2:$B$1501\")=$B150)*(INDIRECT(\"'\" & $L$1 & \"'!$E$2:$E$1501\")=$C150)*(INDIRECT(\"'\" & $L$1 & \"'!$K$2:$K$1501\")))","v":0},{"$f":"SUMPRODUCT((INDIRECT(\"'\" & $L$1 & \"'!$C$2:$C$1501\")=$A150)*(INDIRECT(\"'\" & $L$1 & \"'!$B$2:$B$1501\")=$B150)*(INDIRECT(\"'\" & $L$1 & \"'!$E$2:$E$1501\")=$C150)*(INDIRECT(\"'\" & $L$1 & \"'!$n$2:$n$1501\")))","v":0},{"$f":"SUMPRODUCT((INDIRECT(\"'\" & $L$1 & \"'!$C$2:$C$1501\")=$A150)*(INDIRECT(\"'\" & $L$1 & \"'!$B$2:$B$1501\")=$B150)*(INDIRECT(\"'\" & $L$1 & \"'!$E$2:$E$1501\")=$C150)*(INDIRECT(\"'\" & $L$1 & \"'!$p$2:$p$1501\")))","v":0}]
["Family Healthy Weight Programs","Partner","Email/Print Newsletter","",0,0,0,{"$f":"SUMPRODUCT((INDIRECT(\"'\" & $L$1 & \"'!$C$2:$C$1501\")=$A151)*(INDIRECT(\"'\" & $L$1 & \"'!$B$2:$B$1501\")=$B151)*(INDIRECT(\"'\" & $L$1 & \"'!$E$2:$E$1501\")=$C151)*(INDIRECT(\"'\" & $L$1 & \"'!$K$2:$K$1501\")))","v":0},{"$f":"SUMPRODUCT((INDIRECT(\"'\" & $L$1 & \"'!$C$2:$C$1501\")=$A151)*(INDIRECT(\"'\" & $L$1 & \"'!$B$2:$B$1501\")=$B151)*(INDIRECT(\"'\" & $L$1 & \"'!$E$2:$E$1501\")=$C151)*(INDIRECT(\"'\" & $L$1 & \"'!$n$2:$n$1501\")))","v":0},{"$f":"SUMPRODUCT((INDIRECT(\"'\" & $L$1 & \"'!$C$2:$C$1501\")=$A151)*(INDIRECT(\"'\" & $L$1 & \"'!$B$2:$B$1501\")=$B151)*(INDIRECT(\"'\" & $L$1 & \"'!$E$2:$E$1501\")=$C151)*(INDIRECT(\"'\" & $L$1 & \"'!$p$2:$p$1501\")))","v":0}]
["Family Healthy Weight Programs","Partner","Other","",0,0,0,{"$f":"SUMPRODUCT((INDIRECT(\"'\" & $L$1 & \"'!$C$2:$C$1501\")=$A152)*(INDIRECT(\"'\" & $L$1 & \"'!$B$2:$B$1501\")=$B152)*(INDIRECT(\"'\" & $L$1 & \"'!$E$2:$E$1501\")=$C152)*(INDIRECT(\"'\" & $L$1 & \"'!$K$2:$K$1501\")))","v":0},{"$f":"SUMPRODUCT((INDIRECT(\"'\" & $L$1 & \"'!$C$2:$C$1501\")=$A152)*(INDIRECT(\"'\" & $L$1 & \"'!$B$2:$B$1501\")=$B152)*(INDIRECT(\"'\" & $L$1 & \"'!$E$2:$E$1501\")=$C152)*(INDIRECT(\"'\" & $L$1 & \"'!$n$2:$n$1501\")))","v":0},{"$f":"SUMPRODUCT((INDIRECT(\"'\" & $L$1 & \"'!$C$2:$C$1501\")=$A152)*(INDIRECT(\"'\" & $L$1 & \"'!$B$2:$B$1501\")=$B152)*(INDIRECT(\"'\" & $L$1 & \"'!$E$2:$E$1501\")=$C152)*(INDIRECT(\"'\" & $L$1 & \"'!$p$2:$p$1501\")))","v":0}]
["Family Healthy Weight Programs","Partner","Subtotal",null,{"$f":"IF(SUM(E146:E152)=0, 0, SUM(E146:E152))","v":0},{"$f":"IF(SUM(F146:F152)=0, 0, SUM(F146:F152))","v":0},0,{"$f":"IF(SUM(H146:H152)=0, 0, SUM(H146:H152))","v":0},{"$f":"IF(SUM(I146:I152)=0, 0, SUM(I146:I152))","v":0},{"$f":"IF(SUM(J146:J152)=0, 0, SUM(J146:J152))","v":0}]
["Family Healthy Weight Programs",{"$f":"$P$1","v":"Sub-Recipients"},"Television"]
["Family Healthy Weight Programs",null,"Radio"]
["Family Healthy Weight Programs",null,"Print"]
["Family Healthy Weight Programs",null,"Social/New Media"]
["Family Healthy Weight Programs",null,"Outdoor"]
["Family Healthy Weight Programs",null,"Other"]
["Family Healthy Weight Programs",null,"Subtotal"]
["Family Healthy Weight Programs","TOTAL",null,null,{"$f":"SUMPRODUCT(($C130:$C160=$C$25)*(E130:E160))","v":0},{"$f":"SUMPRODUCT(($C130:$C160=$C$25)*(F130:F160))","v":0},{"$f":"SUMPRODUCT(($C130:$C160=$C$25)*(G130:G160))","v":0},0,0,0]
["Adult Vaccinations","Public-Earned","Television",{"$f":"$N$1","v":""},{"$f":"SUMPRODUCT((INDIRECT(\"'\" & $L$1 & \"'!$C$2:$C$1501\")= $A162)*(INDIRECT(\"'\" & $L$1 & \"'!$B$2:$B$1501\")= $B162)*(INDIRECT(\"'\" & $L$1 & \"'!$E$2:$E$1501\")= $C162)*(INDIRECT(\"'\" & $L$1 & \"'!$H$2:$H$1501\")))","v":0},{"$f":"SUMPRODUCT((INDIRECT(\"'\" & $L$1 & \"'!$C$2:$C$1501\")= $A162)*(INDIRECT(\"'\" & $L$1 & \"'!$B$2:$B$1501\")=$B162)*(INDIRECT(\"'\" & $L$1 & \"'!$E$2:$E$1501\")= $C162)*(INDIRECT(\"'\" & $L$1 & \"'!$I$2:$I$1501\")))","v":0},{"$f":"SUMPRODUCT((INDIRECT(\"'\" & $L$1 & \"'!$C$2:$C$1501\")= $A162)*(INDIRECT(\"'\" & $L$1 & \"'!$B$2:$B$1501\")=$B162)*(INDIRECT(\"'\" & $L$1 & \"'!$E$2:$E$1501\")= $C162)*(INDIRECT(\"'\" & $L$1 & \"'!$j$2:$j$1501\")))","v":0},{"$f":"SUMPRODUCT((INDIRECT(\"'\" & $L$1 & \"'!$C$2:$C$1501\")=$A162)*(INDIRECT(\"'\" & $L$1 & \"'!$B$2:$B$1501\")=$B162)*(INDIRECT(\"'\" & $L$1 & \"'!$E$2:$E$1501\")=$C162)*(INDIRECT(\"'\" & $L$1 & \"'!$K$2:$K$1501\")))","v":0},{"$f":"SUMPRODUCT((INDIRECT(\"'\" & $L$1 & \"'!$C$2:$C$1501\")=$A162)*(INDIRECT(\"'\" & $L$1 & \"'!$B$2:$B$1501\")=$B162)*(INDIRECT(\"'\" & $L$1 & \"'!$E$2:$E$1501\")=$C162)*(INDIRECT(\"'\" & $L$1 & \"'!$n$2:$n$1501\")))","v":0},{"$f":"SUMPRODUCT((INDIRECT(\"'\" & $L$1 & \"'!$C$2:$C$1501\")=$A162)*(INDIRECT(\"'\" & $L$1 & \"'!$B$2:$B$1501\")=$B162)*(INDIRECT(\"'\" & $L$1 & \"'!$E$2:$E$1501\")=$C162)*(INDIRECT(\"'\" & $L$1 & \"'!$p$2:$p$1501\")))","v":0}]
["Adult Vaccinations","Public-Earned","Radio","",0,0,0,{"$f":"SUMPRODUCT((INDIRECT(\"'\" & $L$1 & \"'!$C$2:$C$1501\")=$A163)*(INDIRECT(\"'\" & $L$1 & \"'!$B$2:$B$1501\")=$B163)*(INDIRECT(\"'\" & $L$1 & \"'!$E$2:$E$1501\")=$C163)*(INDIRECT(\"'\" & $L$1 & \"'!$K$2:$K$1501\")))","v":0},{"$f":"SUMPRODUCT((INDIRECT(\"'\" & $L$1 & \"'!$C$2:$C$1501\")=$A163)*(INDIRECT(\"'\" & $L$1 & \"'!$B$2:$B$1501\")=$B163)*(INDIRECT(\"'\" & $L$1 & \"'!$E$2:$E$1501\")=$C163)*(INDIRECT(\"'\" & $L$1 & \"'!$n$2:$n$1501\")))","v":0},{"$f":"SUMPRODUCT((INDIRECT(\"'\" & $L$1 & \"'!$C$2:$C$1501\")=$A163)*(INDIRECT(\"'\" & $L$1 & \"'!$B$2:$B$1501\")=$B163)*(INDIRECT(\"'\" & $L$1 & \"'!$E$2:$E$1501\")=$C163)*(INDIRECT(\"'\" & $L$1 & \"'!$p$2:$p$1501\")))","v":0}]
["Adult Vaccinations","Public-Earned","Print","",0,0,0,{"$f":"SUMPRODUCT((INDIRECT(\"'\" & $L$1 & \"'!$C$2:$C$1501\")=$A164)*(INDIRECT(\"'\" & $L$1 & \"'!$B$2:$B$1501\")=$B164)*(INDIRECT(\"'\" & $L$1 & \"'!$E$2:$E$1501\")=$C164)*(INDIRECT(\"'\" & $L$1 & \"'!$K$2:$K$1501\")))","v":0},{"$f":"SUMPRODUCT((INDIRECT(\"'\" & $L$1 & \"'!$C$2:$C$1501\")=$A164)*(INDIRECT(\"'\" & $L$1 & \"'!$B$2:$B$1501\")=$B164)*(INDIRECT(\"'\" & $L$1 & \"'!$E$2:$E$1501\")=$C164)*(INDIRECT(\"'\" & $L$1 & \"'!$n$2:$n$1501\")))","v":0},{"$f":"SUMPRODUCT((INDIRECT(\"'\" & $L$1 & \"'!$C$2:$C$1501\")=$A164)*(INDIRECT(\"'\" & $L$1 & \"'!$B$2:$B$1501\")=$B164)*(INDIRECT(\"'\" & $L$1 & \"'!$E$2:$E$1501\")=$C164)*(INDIRECT(\"'\" & $L$1 & \"'!$p$2:$p$1501\")))","v":0}]
["Adult Vaccinations","Public-Earned","Social/Digital Media","",0,0,0,{"$f":"SUMPRODUCT((INDIRECT(\"'\" & $L$1 & \"'!$C$2:$C$1501\")=$A165)*(INDIRECT(\"'\" & $L$1 & \"'!$B$2:$B$1501\")=$B165)*(INDIRECT(\"'\" & $L$1 & \"'!$E$2:$E$1501\")=$C165)*(INDIRECT(\"'\" & $L$1 & \"'!$K$2:$K$1501\")))","v":0},{"$f":"SUMPRODUCT((INDIRECT(\"'\" & $L$1 & \"'!$C$2:$C$1501\")=$A165)*(INDIRECT(\"'\" & $L$1 & \"'!$B$2:$B$1501\")=$B165)*(INDIRECT(\"'\" & $L$1 & \"'!$E$2:$E$1501\")=$C165)*(INDIRECT(\"'\" & $L$1 & \"'!$n$2:$n$1501\")))","v":0},{"$f":"SUMPRODUCT((INDIRECT(\"'\" & $L$1 & \"'!$C$2:$C$1501\")=$A165)*(INDIRECT(\"'\" & $L$1 & \"'!$B$2:$B$1501\")=$B165)*(INDIRECT(\"'\" & $L$1 & \"'!$E$2:$E$1501\")=$C165)*(INDIRECT(\"'\" & $L$1 & \"'!$p$2:$p$1501\")))","v":0}]
["Adult Vaccinations","Public-Earned","Outdoor","",0,0,0,{"$f":"SUMPRODUCT((INDIRECT(\"'\" & $L$1 & \"'!$C$2:$C$1501\")=$A166)*(INDIRECT(\"'\" & $L$1 & \"'!$B$2:$B$1501\")=$B166)*(INDIRECT(\"'\" & $L$1 & \"'!$E$2:$E$1501\")=$C166)*(INDIRECT(\"'\" & $L$1 & \"'!$K$2:$K$1501\")))","v":0},{"$f":"SUMPRODUCT((INDIRECT(\"'\" & $L$1 & \"'!$C$2:$C$1501\")=$A166)*(INDIRECT(\"'\" & $L$1 & \"'!$B$2:$B$1501\")=$B166)*(INDIRECT(\"'\" & $L$1 & \"'!$E$2:$E$1501\")=$C166)*(INDIRECT(\"'\" & $L$1 & \"'!$n$2:$n$1501\")))","v":0},{"$f":"SUMPRODUCT((INDIRECT(\"'\" & $L$1 & \"'!$C$2:$C$1501\")=$A166)*(INDIRECT(\"'\" & $L$1 & \"'!$B$2:$B$1501\")=$B166)*(INDIRECT(\"'\" & $L$1 & \"'!$E$2:$E$1501\")=$C166)*(INDIRECT(\"'\" & $L$1 & \"'!$p$2:$p$1501\")))","v":0}]
["Adult Vaccinations","Public-Earned","Email/Print Newsletter","",0,0,0,{"$f":"SUMPRODUCT((INDIRECT(\"'\" & $L$1 & \"'!$C$2:$C$1501\")=$A167)*(INDIRECT(\"'\" & $L$1 & \"'!$B$2:$B$1501\")=$B167)*(INDIRECT(\"'\" & $L$1 & \"'!$E$2:$E$1501\")=$C167)*(INDIRECT(\"'\" & $L$1 & \"'!$K$2:$K$1501\")))","v":0},{"$f":"SUMPRODUCT((INDIRECT(\"'\" & $L$1 & \"'!$C$2:$C$1501\")=$A167)*(INDIRECT(\"'\" & $L$1 & \"'!$B$2:$B$1501\")=$B167)*(INDIRECT(\"'\" & $L$1 & \"'!$E$2:$E$1501\")=$C167)*(INDIRECT(\"'\" & $L$1 & \"'!$n$2:$n$1501\")))","v":0},{"$f":"SUMPRODUCT((INDIRECT(\"'\" & $L$1 & \"'!$C$2:$C$1501\")=$A167)*(INDIRECT(\"'\" & $L$1 & \"'!$B$2:$B$1501\")=$B167)*(INDIRECT(\"'\" & $L$1 & \"'!$E$2:$E$1501\")=$C167)*(INDIRECT(\"'\" & $L$1 & \"'!$p$2:$p$1501\")))","v":0}]
["Adult Vaccinations","Public-Earned","Other","",0,0,0,{"$f":"SUMPRODUCT((INDIRECT(\"'\" & $L$1 & \"'!$C$2:$C$1501\")=$A168)*(INDIRECT(\"'\" & $L$1 & \"'!$B$2:$B$1501\")=$B168)*(INDIRECT(\"'\" & $L$1 & \"'!$E$2:$E$1501\")=$C168)*(INDIRECT(\"'\" & $L$1 & \"'!$K$2:$K$1501\")))","v":0},{"$f":"SUMPRODUCT((INDIRECT(\"'\" & $L$1 & \"'!$C$2:$C$1501\")=$A168)*(INDIRECT(\"'\" & $L$1 & \"'!$B$2:$B$1501\")=$B168)*(INDIRECT(\"'\" & $L$1 & \"'!$E$2:$E$1501\")=$C168)*(INDIRECT(\"'\" & $L$1 & \"'!$n$2:$n$1501\")))","v":0},{"$f":"SUMPRODUCT((INDIRECT(\"'\" & $L$1 & \"'!$C$2:$C$1501\")=$A168)*(INDIRECT(\"'\" & $L$1 & \"'!$B$2:$B$1501\")=$B168)*(INDIRECT(\"'\" & $L$1 & \"'!$E$2:$E$1501\")=$C168)*(INDIRECT(\"'\" & $L$1 & \"'!$p$2:$p$1501\")))","v":0}]
["Adult Vaccinations","Public-Earned","Subtotal",null,{"$f":"IF(SUM(E162:E168)=0, 0, SUM(E162:E168))","v":0},{"$f":"IF(SUM(F162:F168)=0, 0, SUM(F162:F168))","v":0},0,0,0,0]
["Adult Vaccinations","Public-Paid","Television",{"$f":"$N$1","v":""},{"$f":"SUMPRODUCT((INDIRECT(\"'\" & $L$1 & \"'!$C$2:$C$1501\")= $A170)*(INDIRECT(\"'\" & $L$1 & \"'!$B$2:$B$1501\")= $B170)*(INDIRECT(\"'\" & $L$1 & \"'!$E$2:$E$1501\")= $C170)*(INDIRECT(\"'\" & $L$1 & \"'!$H$2:$H$1501\")))","v":0},{"$f":"SUMPRODUCT((INDIRECT(\"'\" & $L$1 & \"'!$C$2:$C$1501\")= $A170)*(INDIRECT(\"'\" & $L$1 & \"'!$B$2:$B$1501\")=$B170)*(INDIRECT(\"'\" & $L$1 & \"'!$E$2:$E$1501\")= $C170)*(INDIRECT(\"'\" & $L$1 & \"'!$I$2:$I$1501\")))","v":0},{"$f":"SUMPRODUCT((INDIRECT(\"'\" & $L$1 & \"'!$C$2:$C$1501\")= $A170)*(INDIRECT(\"'\" & $L$1 & \"'!$B$2:$B$1501\")=$B170)*(INDIRECT(\"'\" & $L$1 & \"'!$E$2:$E$1501\")= $C170)*(INDIRECT(\"'\" & $L$1 & \"'!$j$2:$j$1501\")))","v":0},{"$f":"SUMPRODUCT((INDIRECT(\"'\" & $L$1 & \"'!$C$2:$C$1501\")=$A170)*(INDIRECT(\"'\" & $L$1 & \"'!$B$2:$B$1501\")=$B170)*(INDIRECT(\"'\" & $L$1 & \"'!$E$2:$E$1501\")=$C170)*(INDIRECT(\"'\" & $L$1 & \"'!$K$2:$K$1501\")))","v":0},{"$f":"SUMPRODUCT((INDIRECT(\"'\" & $L$1 & \"'!$C$2:$C$1501\")=$A170)*(INDIRECT(\"'\" & $L$1 & \"'!$B$2:$B$1501\")=$B170)*(INDIRECT(\"'\" & $L$1 & \"'!$E$2:$E$1501\")=$C170)*(INDIRECT(\"'\" & $L$1 & \"'!$n$2:$n$1501\")))","v":0},{"$f":"SUMPRODUCT((INDIRECT(\"'\" & $L$1 & \"'!$C$2:$C$1501\")=$A170)*(INDIRECT(\"'\" & $L$1 & \"'!$B$2:$B$1501\")=$B170)*(INDIRECT(\"'\" & $L$1 & \"'!$E$2:$E$1501\")=$C170)*(INDIRECT(\"'\" & $L$1 & \"'!$p$2:$p$1501\")))","v":0}]
["Adult Vaccinations","Public-Paid","Radio","",0,0,0,{"$f":"SUMPRODUCT((INDIRECT(\"'\" & $L$1 & \"'!$C$2:$C$1501\")=$A171)*(INDIRECT(\"'\" & $L$1 & \"'!$B$2:$B$1501\")=$B171)*(INDIRECT(\"'\" & $L$1 & \"'!$E$2:$E$1501\")=$C171)*(INDIRECT(\"'\" & $L$1 & \"'!$K$2:$K$1501\")))","v":0},{"$f":"SUMPRODUCT((INDIRECT(\"'\" & $L$1 & \"'!$C$2:$C$1501\")=$A171)*(INDIRECT(\"'\" & $L$1 & \"'!$B$2:$B$1501\")=$B171)*(INDIRECT(\"'\" & $L$1 & \"'!$E$2:$E$1501\")=$C171)*(INDIRECT(\"'\" & $L$1 & \"'!$n$2:$n$1501\")))","v":0},{"$f":"SUMPRODUCT((INDIRECT(\"'\" & $L$1 & \"'!$C$2:$C$1501\")=$A171)*(INDIRECT(\"'\" & $L$1 & \"'!$B$2:$B$1501\")=$B171)*(INDIRECT(\"'\" & $L$1 & \"'!$E$2:$E$1501\")=$C171)*(INDIRECT(\"'\" & $L$1 & \"'!$p$2:$p$1501\")))","v":0}]
["Adult Vaccinations","Public-Paid","Print","",0,0,0,{"$f":"SUMPRODUCT((INDIRECT(\"'\" & $L$1 & \"'!$C$2:$C$1501\")=$A172)*(INDIRECT(\"'\" & $L$1 & \"'!$B$2:$B$1501\")=$B172)*(INDIRECT(\"'\" & $L$1 & \"'!$E$2:$E$1501\")=$C172)*(INDIRECT(\"'\" & $L$1 & \"'!$K$2:$K$1501\")))","v":0},{"$f":"SUMPRODUCT((INDIRECT(\"'\" & $L$1 & \"'!$C$2:$C$1501\")=$A172)*(INDIRECT(\"'\" & $L$1 & \"'!$B$2:$B$1501\")=$B172)*(INDIRECT(\"'\" & $L$1 & \"'!$E$2:$E$1501\")=$C172)*(INDIRECT(\"'\" & $L$1 & \"'!$n$2:$n$1501\")))","v":0},{"$f":"SUMPRODUCT((INDIRECT(\"'\" & $L$1 & \"'!$C$2:$C$1501\")=$A172)*(INDIRECT(\"'\" & $L$1 & \"'!$B$2:$B$1501\")=$B172)*(INDIRECT(\"'\" & $L$1 & \"'!$E$2:$E$1501\")=$C172)*(INDIRECT(\"'\" & $L$1 & \"'!$p$2:$p$1501\")))","v":0}]
["Adult Vaccinations","Public-Paid","Social/Digital Media","",0,0,0,{"$f":"SUMPRODUCT((INDIRECT(\"'\" & $L$1 & \"'!$C$2:$C$1501\")=$A173)*(INDIRECT(\"'\" & $L$1 & \"'!$B$2:$B$1501\")=$B173)*(INDIRECT(\"'\" & $L$1 & \"'!$E$2:$E$1501\")=$C173)*(INDIRECT(\"'\" & $L$1 & \"'!$K$2:$K$1501\")))","v":0},{"$f":"SUMPRODUCT((INDIRECT(\"'\" & $L$1 & \"'!$C$2:$C$1501\")=$A173)*(INDIRECT(\"'\" & $L$1 & \"'!$B$2:$B$1501\")=$B173)*(INDIRECT(\"'\" & $L$1 & \"'!$E$2:$E$1501\")=$C173)*(INDIRECT(\"'\" & $L$1 & \"'!$n$2:$n$1501\")))","v":0},{"$f":"SUMPRODUCT((INDIRECT(\"'\" & $L$1 & \"'!$C$2:$C$1501\")=$A173)*(INDIRECT(\"'\" & $L$1 & \"'!$B$2:$B$1501\")=$B173)*(INDIRECT(\"'\" & $L$1 & \"'!$E$2:$E$1501\")=$C173)*(INDIRECT(\"'\" & $L$1 & \"'!$p$2:$p$1501\")))","v":0}]
["Adult Vaccinations","Public-Paid","Outdoor","",0,0,0,{"$f":"SUMPRODUCT((INDIRECT(\"'\" & $L$1 & \"'!$C$2:$C$1501\")=$A174)*(INDIRECT(\"'\" & $L$1 & \"'!$B$2:$B$1501\")=$B174)*(INDIRECT(\"'\" & $L$1 & \"'!$E$2:$E$1501\")=$C174)*(INDIRECT(\"'\" & $L$1 & \"'!$K$2:$K$1501\")))","v":0},{"$f":"SUMPRODUCT((INDIRECT(\"'\" & $L$1 & \"'!$C$2:$C$1501\")=$A174)*(INDIRECT(\"'\" & $L$1 & \"'!$B$2:$B$1501\")=$B174)*(INDIRECT(\"'\" & $L$1 & \"'!$E$2:$E$1501\")=$C174)*(INDIRECT(\"'\" & $L$1 & \"'!$n$2:$n$1501\")))","v":0},{"$f":"SUMPRODUCT((INDIRECT(\"'\" & $L$1 & \"'!$C$2:$C$1501\")=$A174)*(INDIRECT(\"'\" & $L$1 & \"'!$B$2:$B$1501\")=$B174)*(INDIRECT(\"'\" & $L$1 & \"'!$E$2:$E$1501\")=$C174)*(INDIRECT(\"'\" & $L$1 & \"'!$p$2:$p$1501\")))","v":0}]
["Adult Vaccinations","Public-Paid","Email/Print Newsletter","",0,0,0,{"$f":"SUMPRODUCT((INDIRECT(\"'\" & $L$1 & \"'!$C$2:$C$1501\")=$A175)*(INDIRECT(\"'\" & $L$1 & \"'!$B$2:$B$1501\")=$B175)*(INDIRECT(\"'\" & $L$1 & \"'!$E$2:$E$1501\")=$C175)*(INDIRECT(\"'\" & $L$1 & \"'!$K$2:$K$1501\")))","v":0},{"$f":"SUMPRODUCT((INDIRECT(\"'\" & $L$1 & \"'!$C$2:$C$1501\")=$A175)*(INDIRECT(\"'\" & $L$1 & \"'!$B$2:$B$1501\")=$B175)*(INDIRECT(\"'\" & $L$1 & \"'!$E$2:$E$1501\")=$C175)*(INDIRECT(\"'\" & $L$1 & \"'!$n$2:$n$1501\")))","v":0},{"$f":"SUMPRODUCT((INDIRECT(\"'\" & $L$1 & \"'!$C$2:$C$1501\")=$A175)*(INDIRECT(\"'\" & $L$1 & \"'!$B$2:$B$1501\")=$B175)*(INDIRECT(\"'\" & $L$1 & \"'!$E$2:$E$1501\")=$C175)*(INDIRECT(\"'\" & $L$1 & \"'!$p$2:$p$1501\")))","v":0}]
["Adult Vaccinations","Public-Paid","Other","",0,0,0,{"$f":"SUMPRODUCT((INDIRECT(\"'\" & $L$1 & \"'!$C$2:$C$1501\")=$A176)*(INDIRECT(\"'\" & $L$1 & \"'!$B$2:$B$1501\")=$B176)*(INDIRECT(\"'\" & $L$1 & \"'!$E$2:$E$1501\")=$C176)*(INDIRECT(\"'\" & $L$1 & \"'!$K$2:$K$1501\")))","v":0},{"$f":"SUMPRODUCT((INDIRECT(\"'\" & $L$1 & \"'!$C$2:$C$1501\")=$A176)*(INDIRECT(\"'\" & $L$1 & \"'!$B$2:$B$1501\")=$B176)*(INDIRECT(\"'\" & $L$1 & \"'!$E$2:$E$1501\")=$C176)*(INDIRECT(\"'\" & $L$1 & \"'!$n$2:$n$1501\")))","v":0},{"$f":"SUMPRODUCT((INDIRECT(\"'\" & $L$1 & \"'!$C$2:$C$1501\")=$A176)*(INDIRECT(\"'\" & $L$1 & \"'!$B$2:$B$1501\")=$B176)*(INDIRECT(\"'\" & $L$1 & \"'!$E$2:$E$1501\")=$C176)*(INDIRECT(\"'\" & $L$1 & \"'!$p$2:$p$1501\")))","v":0}]
["Adult Vaccinations","Public-Paid","Subtotal",null,{"$f":"IF(SUM(E170:E176)=0, 0, SUM(E170:E176))","v":0},{"$f":"IF(SUM(F170:F176)=0, 0, SUM(F170:F176))","v":0},0,0,0,0]
["Adult Vaccinations","Partner","Television",{"$f":"$N$1","v":""},{"$f":"SUMPRODUCT((INDIRECT(\"'\" & $L$1 & \"'!$C$2:$C$1501\")= $A178)*(INDIRECT(\"'\" & $L$1 & \"'!$B$2:$B$1501\")= $B178)*(INDIRECT(\"'\" & $L$1 & \"'!$E$2:$E$1501\")= $C178)*(INDIRECT(\"'\" & $L$1 & \"'!$H$2:$H$1501\")))","v":0},{"$f":"SUMPRODUCT((INDIRECT(\"'\" & $L$1 & \"'!$C$2:$C$1501\")= $A178)*(INDIRECT(\"'\" & $L$1 & \"'!$B$2:$B$1501\")=$B178)*(INDIRECT(\"'\" & $L$1 & \"'!$E$2:$E$1501\")= $C178)*(INDIRECT(\"'\" & $L$1 & \"'!$I$2:$I$1501\")))","v":0},{"$f":"SUMPRODUCT((INDIRECT(\"'\" & $L$1 & \"'!$C$2:$C$1501\")= $A178)*(INDIRECT(\"'\" & $L$1 & \"'!$B$2:$B$1501\")=$B178)*(INDIRECT(\"'\" & $L$1 & \"'!$E$2:$E$1501\")= $C178)*(INDIRECT(\"'\" & $L$1 & \"'!$j$2:$j$1501\")))","v":0},{"$f":"SUMPRODUCT((INDIRECT(\"'\" & $L$1 & \"'!$C$2:$C$1501\")=$A178)*(INDIRECT(\"'\" & $L$1 & \"'!$B$2:$B$1501\")=$B178)*(INDIRECT(\"'\" & $L$1 & \"'!$E$2:$E$1501\")=$C178)*(INDIRECT(\"'\" & $L$1 & \"'!$K$2:$K$1501\")))","v":0},{"$f":"SUMPRODUCT((INDIRECT(\"'\" & $L$1 & \"'!$C$2:$C$1501\")=$A178)*(INDIRECT(\"'\" & $L$1 & \"'!$B$2:$B$1501\")=$B178)*(INDIRECT(\"'\" & $L$1 & \"'!$E$2:$E$1501\")=$C178)*(INDIRECT(\"'\" & $L$1 & \"'!$n$2:$n$1501\")))","v":0},{"$f":"SUMPRODUCT((INDIRECT(\"'\" & $L$1 & \"'!$C$2:$C$1501\")=$A178)*(INDIRECT(\"'\" & $L$1 & \"'!$B$2:$B$1501\")=$B178)*(INDIRECT(\"'\" & $L$1 & \"'!$E$2:$E$1501\")=$C178)*(INDIRECT(\"'\" & $L$1 & \"'!$p$2:$p$1501\")))","v":0}]
["Adult Vaccinations","Partner","Radio","",0,0,0,{"$f":"SUMPRODUCT((INDIRECT(\"'\" & $L$1 & \"'!$C$2:$C$1501\")=$A179)*(INDIRECT(\"'\" & $L$1 & \"'!$B$2:$B$1501\")=$B179)*(INDIRECT(\"'\" & $L$1 & \"'!$E$2:$E$1501\")=$C179)*(INDIRECT(\"'\" & $L$1 & \"'!$K$2:$K$1501\")))","v":0},{"$f":"SUMPRODUCT((INDIRECT(\"'\" & $L$1 & \"'!$C$2:$C$1501\")=$A179)*(INDIRECT(\"'\" & $L$1 & \"'!$B$2:$B$1501\")=$B179)*(INDIRECT(\"'\" & $L$1 & \"'!$E$2:$E$1501\")=$C179)*(INDIRECT(\"'\" & $L$1 & \"'!$n$2:$n$1501\")))","v":0},{"$f":"SUMPRODUCT((INDIRECT(\"'\" & $L$1 & \"'!$C$2:$C$1501\")=$A179)*(INDIRECT(\"'\" & $L$1 & \"'!$B$2:$B$1501\")=$B179)*(INDIRECT(\"'\" & $L$1 & \"'!$E$2:$E$1501\")=$C179)*(INDIRECT(\"'\" & $L$1 & \"'!$p$2:$p$1501\")))","v":0}]
["Adult Vaccinations","Partner","Print","",0,0,0,{"$f":"SUMPRODUCT((INDIRECT(\"'\" & $L$1 & \"'!$C$2:$C$1501\")=$A180)*(INDIRECT(\"'\" & $L$1 & \"'!$B$2:$B$1501\")=$B180)*(INDIRECT(\"'\" & $L$1 & \"'!$E$2:$E$1501\")=$C180)*(INDIRECT(\"'\" & $L$1 & \"'!$K$2:$K$1501\")))","v":0},{"$f":"SUMPRODUCT((INDIRECT(\"'\" & $L$1 & \"'!$C$2:$C$1501\")=$A180)*(INDIRECT(\"'\" & $L$1 & \"'!$B$2:$B$1501\")=$B180)*(INDIRECT(\"'\" & $L$1 & \"'!$E$2:$E$1501\")=$C180)*(INDIRECT(\"'\" & $L$1 & \"'!$n$2:$n$1501\")))","v":0},{"$f":"SUMPRODUCT((INDIRECT(\"'\" & $L$1 & \"'!$C$2:$C$1501\")=$A180)*(INDIRECT(\"'\" & $L$1 & \"'!$B$2:$B$1501\")=$B180)*(INDIRECT(\"'\" & $L$1 & \"'!$E$2:$E$1501\")=$C180)*(INDIRECT(\"'\" & $L$1 & \"'!$p$2:$p$1501\")))","v":0}]
["Adult Vaccinations","Partner","Social/Digital Media","",0,0,0,{"$f":"SUMPRODUCT((INDIRECT(\"'\" & $L$1 & \"'!$C$2:$C$1501\")=$A181)*(INDIRECT(\"'\" & $L$1 & \"'!$B$2:$B$1501\")=$B181)*(INDIRECT(\"'\" & $L$1 & \"'!$E$2:$E$1501\")=$C181)*(INDIRECT(\"'\" & $L$1 & \"'!$K$2:$K$1501\")))","v":0},{"$f":"SUMPRODUCT((INDIRECT(\"'\" & $L$1 & \"'!$C$2:$C$1501\")=$A181)*(INDIRECT(\"'\" & $L$1 & \"'!$B$2:$B$1501\")=$B181)*(INDIRECT(\"'\" & $L$1 & \"'!$E$2:$E$1501\")=$C181)*(INDIRECT(\"'\" & $L$1 & \"'!$n$2:$n$1501\")))","v":0},{"$f":"SUMPRODUCT((INDIRECT(\"'\" & $L$1 & \"'!$C$2:$C$1501\")=$A181)*(INDIRECT(\"'\" & $L$1 & \"'!$B$2:$B$1501\")=$B181)*(INDIRECT(\"'\" & $L$1 & \"'!$E$2:$E$1501\")=$C181)*(INDIRECT(\"'\" & $L$1 & \"'!$p$2:$p$1501\")))","v":0}]
["Adult Vaccinations","Partner","Outdoor","",0,0,0,{"$f":"SUMPRODUCT((INDIRECT(\"'\" & $L$1 & \"'!$C$2:$C$1501\")=$A182)*(INDIRECT(\"'\" & $L$1 & \"'!$B$2:$B$1501\")=$B182)*(INDIRECT(\"'\" & $L$1 & \"'!$E$2:$E$1501\")=$C182)*(INDIRECT(\"'\" & $L$1 & \"'!$K$2:$K$1501\")))","v":0},{"$f":"SUMPRODUCT((INDIRECT(\"'\" & $L$1 & \"'!$C$2:$C$1501\")=$A182)*(INDIRECT(\"'\" & $L$1 & \"'!$B$2:$B$1501\")=$B182)*(INDIRECT(\"'\" & $L$1 & \"'!$E$2:$E$1501\")=$C182)*(INDIRECT(\"'\" & $L$1 & \"'!$n$2:$n$1501\")))","v":0},{"$f":"SUMPRODUCT((INDIRECT(\"'\" & $L$1 & \"'!$C$2:$C$1501\")=$A182)*(INDIRECT(\"'\" & $L$1 & \"'!$B$2:$B$1501\")=$B182)*(INDIRECT(\"'\" & $L$1 & \"'!$E$2:$E$1501\")=$C182)*(INDIRECT(\"'\" & $L$1 & \"'!$p$2:$p$1501\")))","v":0}]
["Adult Vaccinations","Partner","Email/Print Newsletter","",0,0,0,{"$f":"SUMPRODUCT((INDIRECT(\"'\" & $L$1 & \"'!$C$2:$C$1501\")=$A183)*(INDIRECT(\"'\" & $L$1 & \"'!$B$2:$B$1501\")=$B183)*(INDIRECT(\"'\" & $L$1 & \"'!$E$2:$E$1501\")=$C183)*(INDIRECT(\"'\" & $L$1 & \"'!$K$2:$K$1501\")))","v":0},{"$f":"SUMPRODUCT((INDIRECT(\"'\" & $L$1 & \"'!$C$2:$C$1501\")=$A183)*(INDIRECT(\"'\" & $L$1 & \"'!$B$2:$B$1501\")=$B183)*(INDIRECT(\"'\" & $L$1 & \"'!$E$2:$E$1501\")=$C183)*(INDIRECT(\"'\" & $L$1 & \"'!$n$2:$n$1501\")))","v":0},{"$f":"SUMPRODUCT((INDIRECT(\"'\" & $L$1 & \"'!$C$2:$C$1501\")=$A183)*(INDIRECT(\"'\" & $L$1 & \"'!$B$2:$B$1501\")=$B183)*(INDIRECT(\"'\" & $L$1 & \"'!$E$2:$E$1501\")=$C183)*(INDIRECT(\"'\" & $L$1 & \"'!$p$2:$p$1501\")))","v":0}]
["Adult Vaccinations","Partner","Other","",0,0,0,{"$f":"SUMPRODUCT((INDIRECT(\"'\" & $L$1 & \"'!$C$2:$C$1501\")=$A184)*(INDIRECT(\"'\" & $L$1 & \"'!$B$2:$B$1501\")=$B184)*(INDIRECT(\"'\" & $L$1 & \"'!$E$2:$E$1501\")=$C184)*(INDIRECT(\"'\" & $L$1 & \"'!$K$2:$K$1501\")))","v":0},{"$f":"SUMPRODUCT((INDIRECT(\"'\" & $L$1 & \"'!$C$2:$C$1501\")=$A184)*(INDIRECT(\"'\" & $L$1 & \"'!$B$2:$B$1501\")=$B184)*(INDIRECT(\"'\" & $L$1 & \"'!$E$2:$E$1501\")=$C184)*(INDIRECT(\"'\" & $L$1 & \"'!$n$2:$n$1501\")))","v":0},{"$f":"SUMPRODUCT((INDIRECT(\"'\" & $L$1 & \"'!$C$2:$C$1501\")=$A184)*(INDIRECT(\"'\" & $L$1 & \"'!$B$2:$B$1501\")=$B184)*(INDIRECT(\"'\" & $L$1 & \"'!$E$2:$E$1501\")=$C184)*(INDIRECT(\"'\" & $L$1 & \"'!$p$2:$p$1501\")))","v":0}]
["Adult Vaccinations","Partner","Subtotal",null,{"$f":"IF(SUM(E178:E184)=0, 0, SUM(E178:E184))","v":0},{"$f":"IF(SUM(F178:F184)=0, 0, SUM(F178:F184))","v":0},0,0,0,0]
["Adult Vaccinations",{"$f":"$P$1","v":"Sub-Recipients"},"Television"]
["Adult Vaccinations",null,"Radio"]
["Adult Vaccinations",null,"Print"]
["Adult Vaccinations",null,"Social/New Media"]
["Adult Vaccinations",null,"Outdoor"]
["Adult Vaccinations",null,"Other"]
["Adult Vaccinations",null,"Subtotal"]
["Adult Vaccinations","TOTAL",null,null,{"$f":"SUMPRODUCT(($C162:$C192=$C$25)*(E162:E192))","v":0},{"$f":"SUMPRODUCT(($C162:$C192=$C$25)*(F162:F192))","v":0},0,0,0,0]
[{"$f":"\"Total \" & $Q$1","v":"Total Public-Earned"},"Public-Earned","Subtotal",null,{"$f":"SUMPRODUCT(($B$2:$B$185=$B194)*($C$2:$C$185=$C194)*(E$2:E$185))","v":0},{"$f":"SUMPRODUCT(($B$2:$B$185=$B194)*($C$2:$C$185=$C194)*(F$2:F$185))","v":0},{"$f":"SUMPRODUCT(($B$2:$B$185=$B194)*($C$2:$C$185=$C194)*(G$2:G$185))","v":0},{"$f":"SUMPRODUCT(($B$2:$B$185=$B194)*($C$2:$C$185=$C194)*(H$2:H$185))","v":0},{"$f":"SUMPRODUCT(($B$2:$B$185=$B194)*($C$2:$C$185=$C194)*(I$2:I$185))","v":0},{"$f":"SUMPRODUCT(($B$2:$B$185=$B194)*($C$2:$C$185=$C194)*(J$2:J$185))","v":0}]
[{"$f":"\"Total \" & $R$1","v":"Total Public-Paid"},"Public-Paid","Subtotal",null,{"$f":"SUMPRODUCT(($B$2:$B$185=$B195)*($C$2:$C$185=$C195)*(E$2:E$185))","v":0},{"$f":"SUMPRODUCT(($B$2:$B$185=$B195)*($C$2:$C$185=$C195)*(F$2:F$185))","v":0},{"$f":"SUMPRODUCT(($B$2:$B$185=$B195)*($C$2:$C$185=$C195)*(G$2:G$185))","v":0},{"$f":"SUMPRODUCT(($B$2:$B$185=$B195)*($C$2:$C$185=$C195)*(H$2:H$185))","v":0},{"$f":"SUMPRODUCT(($B$2:$B$185=$B195)*($C$2:$C$185=$C195)*(I$2:I$185))","v":0},{"$f":"SUMPRODUCT(($B$2:$B$185=$B195)*($C$2:$C$185=$C195)*(J$2:J$185))","v":0}]
[{"$f":"\"Total \" & $O$1","v":"Total Partner"},"Partner","Subtotal",null,{"$f":"SUMPRODUCT(($B$2:$B$185=$B196)*($C$2:$C$185=$C196)*(E$2:E$185))","v":0},{"$f":"SUMPRODUCT(($B$2:$B$185=$B196)*($C$2:$C$185=$C196)*(F$2:F$185))","v":0},{"$f":"SUMPRODUCT(($B$2:$B$185=$B196)*($C$2:$C$185=$C196)*(G$2:G$185))","v":0},{"$f":"SUMPRODUCT(($B$2:$B$185=$B196)*($C$2:$C$185=$C196)*(H$2:H$185))","v":0},{"$f":"SUMPRODUCT(($B$2:$B$185=$B196)*($C$2:$C$185=$C196)*(I$2:I$185))","v":0},{"$f":"SUMPRODUCT(($B$2:$B$185=$B196)*($C$2:$C$185=$C196)*(J$2:J$185))","v":0}]
["Total","TOTAL",null,null,{"$f":"SUMPRODUCT(($B$2:$B$193=$B$197)*(E$2:E$193))","v":0},{"$f":"SUMPRODUCT(($B$2:$B$193=$B$197)*(F$2:F$193))","v":0},{"$f":"SUMPRODUCT(($B$2:$B$193=$B$197)*(G$2:G$193))","v":0},{"$f":"SUMPRODUCT(($B$2:$B$193=$B$197)*(H$2:H$193))","v":0},{"$f":"SUMPRODUCT(($B$2:$B$193=$B$197)*(I$2:I$193))","v":0},{"$f":"SUMPRODUCT(($B$2:$B$193=$B$197)*(J$2:J$193))","v":0}]
[]
["Recipient Messages",null,null,"Partner Messages"]
["Public-Earned",{"$f":"SUMPRODUCT((INDIRECT(\"'\" & $L$1 & \"'!$B$2:$B$5001\")= A200)*(INDIRECT(\"'\" & $L$1 & \"'!$a$2:$a$5001\")=\"Recipient\")*(INDIRECT(\"'\" & $L$1 & \"'!$q$2:$q$5001\")=\"N\")) + SUMPRODUCT((INDIRECT(\"'\" & $L$1 & \"'!$B$2:$B$5001\")= A200)*(INDIRECT(\"'\" & $L$1 & \"'!$a$2:$a$5001\")=\"Recipient\")*(INDIRECT(\"'\" & $L$1 & \"'!$q$2:$q$5001\")=\"Y\")*(INDIRECT(\"'\" & $L$1 & \"'!$g$2:$g$5001\")))","v":0},null,"Public-Earned",{"$f":"SUMPRODUCT((INDIRECT(\"'\" & $L$1 & \"'!$B$2:$B$5001\")= D200)*(INDIRECT(\"'\" & $L$1 & \"'!$a$2:$a$5001\")=\"Partner\")*(INDIRECT(\"'\" & $L$1 & \"'!$q$2:$q$5001\")=\"N\")) + SUMPRODUCT((INDIRECT(\"'\" & $L$1 & \"'!$B$2:$B$5001\")= D200)*(INDIRECT(\"'\" & $L$1 & \"'!$a$2:$a$5001\")=\"Partner\")*(INDIRECT(\"'\" & $L$1 & \"'!$q$2:$q$5001\")=\"Y\")*(INDIRECT(\"'\" & $L$1 & \"'!$g$2:$g$5001\")))","v":0}]
["Public-Paid",{"$f":"SUMPRODUCT((INDIRECT(\"'\" & $L$1 & \"'!$B$2:$B$5001\")= A201)*(INDIRECT(\"'\" & $L$1 & \"'!$a$2:$a$5001\")=\"Recipient\")*(INDIRECT(\"'\" & $L$1 & \"'!$q$2:$q$5001\")=\"N\")) + SUMPRODUCT((INDIRECT(\"'\" & $L$1 & \"'!$B$2:$B$5001\")= A201)*(INDIRECT(\"'\" & $L$1 & \"'!$a$2:$a$5001\")=\"Recipient\")*(INDIRECT(\"'\" & $L$1 & \"'!$q$2:$q$5001\")=\"Y\")*(INDIRECT(\"'\" & $L$1 & \"'!$g$2:$g$5001\")))","v":0},null,"Public-Paid",{"$f":"SUMPRODUCT((INDIRECT(\"'\" & $L$1 & \"'!$B$2:$B$5001\")= D201)*(INDIRECT(\"'\" & $L$1 & \"'!$a$2:$a$5001\")=\"Partner\")*(INDIRECT(\"'\" & $L$1 & \"'!$q$2:$q$5001\")=\"N\")) + SUMPRODUCT((INDIRECT(\"'\" & $L$1 & \"'!$B$2:$B$5001\")= D201)*(INDIRECT(\"'\" & $L$1 & \"'!$a$2:$a$5001\")=\"Partner\")*(INDIRECT(\"'\" & $L$1 & \"'!$q$2:$q$5001\")=\"Y\")*(INDIRECT(\"'\" & $L$1 & \"'!$g$2:$g$5001\")))","v":0}]
["Recipient to Public",{"$f":"SUM(B200:B201)","v":0}]
["Recipient to Partner",{"$f":"SUMPRODUCT((INDIRECT(\"'\" & $L$1 & \"'!$B$2:$B$5001\")= \"Partner\")*(INDIRECT(\"'\" & $L$1 & \"'!$a$2:$a$5001\")=\"Recipient\")*(INDIRECT(\"'\" & $L$1 & \"'!$q$2:$q$5001\")=\"N\")) + SUMPRODUCT((INDIRECT(\"'\" & $L$1 & \"'!$B$2:$B$5001\")= \"Partner\")*(INDIRECT(\"'\" & $L$1 & \"'!$a$2:$a$5001\")=\"Recipient\")*(INDIRECT(\"'\" & $L$1 & \"'!$q$2:$q$5001\")=\"Y\")*(INDIRECT(\"'\" & $L$1 & \"'!$g$2:$g$5001\")))","v":0}]
[]
["Total Recipient Messages",{"$f":"SUM(B202, B203:B204)","v":0},null,"Total Partner Messages",{"$f":"SUM(E200:E201)","v":0}]
[]
["Total",{"$f":"SUM(E205,H205,B205)","v":0}]

{"sheet":"LookupData","index":4,"n_rows":8,"n_cols":23,"rows_kept":8,"cut":false,"hidden":true,"merged":[]}
[null,"Type",null,"Strategic Direction",null,"Media Type",null,"pl_time_periods",null,"Awardee / Partner",null,"Awardee",null,"Partner",null,"Partner_2",null,"Tabs"," to ","Group",null,0,"StartYear"]
[null,"Partner",null,"Nutrition",null,"Television",null,"<Select Time Period>",null,"Recipient",null,"Public-Earned",null,"Public-Earned",null,"Public-Earned",null,null,null,"Y",null,null,2017]
[null,"Public-Earned",null,"Physical Activity",null,"Radio",null,"9/30/2014 to 9/29/2015",null,"Partner",null,"Public-Paid",null,"Public-Paid",null,"Public-Paid",null,null,null,"N"]
[null,"Public-Paid",null,"Early Care And Education",null,"Print",null,"9/30/2015 to 9/29/2016",null,null,null,"Partner",null,null,null,"Sub-Recipients"]
[null,null,null,"Breastfeeding",null,"Social/Digital Media",null,"9/30/2016 to 9/29/2017"]
[null,null,null,"Family Healthy Weight Programs",null,"Outdoor"]
[null,null,null,"Adult Vaccinations",null,"Email/Print Newsletter"]
[null,null,null,null,null,"Other"]

{"sheet":"PicklistData","index":5,"n_rows":96,"n_cols":30,"rows_kept":96,"cut":false,"hidden":true,"merged":[]}
[]
[null,"pl_directon",null,"pl_pops",null,"pl_pri_pops",null,"pl_quarters",null,"pl_FOA",null,null,"pl_awardee_pich",null,null,"pl_awardee_reach",null,null,"pl_awardee_national orgs",null,"pl_settings",null,"pl_months",null,"pl_years",null,"pl_prepositions",null,null,"pl_all_awardee"]
[null,"Increase",null,"Population Wide",null,"African American/Black",null,"Oct - Dec 2014 (FY14 Q1)",null,"<Select FOA>",null,"PICH","<Select Awardee>",null,"REACH 2014","<Select Awardee>",null,"select","<Select Awardee>",null,"<Select Setting>",null,"January",null,2014,null,"about",null,"PICH/REACH/National Org","<Select Awardee>"]
[null,"Decrease",null,"Priority Population",null,"American Indian/Alaska Native",null,"Jan - Mar 2015 (FY14 Q2)",null,"PICH",null,"PICH","Albemarle Regional Health Services",null,"REACH 2014","AltaMed Health Services Corporation",null,"National Orgs ","American Heart Association",null,"--Health Care Systems--",null,"Feburary",null,2015,null,"above",null,"PICH","PICH - Albemarle Regional Health Services"]
[null,null,null,null,null,"Asian American",null,"Apr - Jun 2015 (FY14 Q3)",null,"REACH 2014",null,"PICH","Boston Public Health Commission",null,"REACH 2014","Asian Media Access",null,"National Orgs ","American Planning Association",null,"Hospitals",null,"March",null,2016,null,"across",null,"PICH","PICH - Boston Public Health Commission"]
[null,null,null,null,null,"Hispanic/Latino",null,"Jul - Sep 2015 (FY14 Q4)",null,null,null,"PICH","Broward Regional Health Planning Council, Inc.",null,"REACH 2014","Asian Services In Action, Inc.",null,"National Orgs ","Assoc of State & Terr Directors of Hlth Promo and PH Education (ASTDHPPHE)",null,"Primary Care Providers",null,"April",null,2017,null,"after",null,"PICH","PICH - Broward Regional Health Planning Council, Inc."]
[null,null,null,null,null,"Native Hawaiian/ Other Pacific Islander",null,"Oct - Dec 2015 (FY15 Q1)",null,null,null,"PICH","Cherokee Nation Health Service Group",null,"REACH 2014","Boat People SOS-California",null,"National Orgs ","National WIC Association",null,"Mental Illness Providers",null,"May",null,null,null,"among",null,"PICH","PICH - Cherokee Nation Health Service Group"]
[null,null,null,null,null,null,null,"Jan - Mar 2016 (FY15 Q2)",null,null,null,"PICH","Cheshire Medical Center",null,"REACH 2014","Boston Public Health Commission",null,"National Orgs ","Society for Public Health Education",null,"Substance Abuse Facilities",null,"June",null,null,null,"around",null,"PICH","PICH - Cheshire Medical Center"]
[null,null,null,null,null,null,null,"Apr - Jun 2016 (FY15 Q3)",null,null,null,"PICH","Community Action Partnership of Orange County",null,"REACH 2014","Bronx Community Health Network, Inc.",null,null,null,null,"Health Insurance Companies",null,"July",null,null,null,"at",null,"PICH","PICH - Community Action Partnership of Orange County"]
[null,null,null,null,null,null,null,"Jul - Sep 2016 (FY15 Q4)",null,null,null,"PICH","Cook County Department of Public Health",null,"REACH 2014","California Center for Public Health Advocacy",null,null,null,null,"Pharmacies",null,"August",null,null,null,"before",null,"PICH","PICH - Cook County Department of Public Health"]
[null,null,null,null,null,null,null,"Oct - Dec 2016 (FY16 Q1)",null,null,null,"PICH","County Of Santa Clara Public Health Department",null,"REACH 2014","Central Maine Community Health Corp.",null,null,null,null,"Dental Offices",null,"September",null,null,null,"behind",null,"PICH","PICH - County Of Santa Clara Public Health Department"]
[null,null,null,null,null,null,null,"Jan - Mar 2017 (FY16 Q2)",null,null,null,"PICH","Cumberland Cape Atlantic YMCA",null,"REACH 2014","City of Pasadena",null,null,null,null,"--Education--",null,"October",null,null,null,"below",null,"PICH","PICH - Cumberland Cape Atlantic YMCA"]
[null,null,null,null,null,null,null,"Apr - Jun 2017 (FY16 Q3)",null,null,null,"PICH","Eastern Maine Healthcare Systems (EMHS)",null,"REACH 2014","Coeur d'Alene Tribe (Benewah Medical Center)",null,null,null,null,"Outside Of School Care Providers ",null,"November",null,null,null,"beneath",null,"PICH","PICH - Eastern Maine Healthcare Systems (EMHS)"]
[null,null,null,null,null,null,null,"Jul - Sep 2017 (FY16 Q4)",null,null,null,"PICH","Fort Defiance Indian Hospital Board, Inc.",null,"REACH 2014","Colorado Black Health Collaborative, Inc.",null,null,null,null,"K-12 Schools",null,"December",null,null,null,"beside",null,"PICH","PICH - Fort Defiance Indian Hospital Board, Inc."]
[null,null,null,null,null,null,null,null,null,null,null,"PICH","Fresno County Department of Public Health",null,"REACH 2014","Community Coalition for Substance Abuse Prevention and Treatment",null,null,null,null,"Colleges/Universities",null,null,null,null,null,"between",null,"PICH","PICH - Fresno County Department of Public Health"]
[null,null,null,null,null,null,null,null,null,null,null,"PICH","Fulton County",null,"REACH 2014","Community Health Improvement Partners",null,null,null,null,"Trade Schools",null,null,null,null,null,"by",null,"PICH","PICH - Fulton County"]
[null,null,null,null,null,null,null,null,null,null,null,"PICH","Fund for Public Health in New York, Inc.",null,"REACH 2014","Creighton University",null,null,null,null,"--Housing--",null,null,null,null,null,"down",null,"PICH","PICH - Fund for Public Health in New York, Inc."]
[null,null,null,null,null,null,null,null,null,null,null,"PICH","Great Plains Tribal Chairmen’s Health Board",null,"REACH 2014","Cuyahoga County District Board of Health",null,null,null,null,"Single Family Homes",null,null,null,null,null,"during",null,"PICH","PICH - Great Plains Tribal Chairmen’s Health Board"]
[null,null,null,null,null,null,null,null,null,null,null,"PICH","Heart of Florida Health Center",null,"REACH 2014","DeKalb County Board of Health",null,null,null,null,"Multi-Unit Housing Units",null,null,null,null,null,"except",null,"PICH","PICH - Heart of Florida Health Center"]
[null,null,null,null,null,null,null,null,null,null,null,"PICH","Hospital Council of Northwest Ohio",null,"REACH 2014","Greenwood Leflore Hospital",null,null,null,null,"Foster Care Providers",null,null,null,null,null,"for",null,"PICH","PICH - Hospital Council of Northwest Ohio"]
[null,null,null,null,null,null,null,null,null,null,null,"PICH","Lawrence-Douglas County Health Department",null,"REACH 2014","Inter-Tribal Council of Michigan, Inc.",null,null,null,null,"Hotels/Motels",null,null,null,null,null,"from",null,"PICH","PICH - Lawrence-Douglas County Health Department"]
[null,null,null,null,null,null,null,null,null,null,null,"PICH","Los Angeles County Office of Education",null,"REACH 2014","Kent County Health Department",null,null,null,null,"Prisons",null,null,null,null,null,"in",null,"PICH","PICH - Los Angeles County Office of Education"]
[null,null,null,null,null,null,null,null,null,null,null,"PICH","Maine General Medical Center",null,"REACH 2014","Kokua Kalihi Valley Comprehensive Family Services",null,null,null,null,"Juvenile Detention Centers",null,null,null,null,null,"instead of",null,"PICH","PICH - Maine General Medical Center"]
[null,null,null,null,null,null,null,null,null,null,null,"PICH","Merced County Department of Public Health",null,"REACH 2014","Leadership Council for Healthy Communities",null,null,null,null,"Group Homes",null,null,null,null,null,"into",null,"PICH","PICH - Merced County Department of Public Health"]
[null,null,null,null,null,null,null,null,null,null,null,"PICH","Miami-Dade County",null,"REACH 2014","Mandela MarketPlace, Inc.",null,null,null,null,"--Government--",null,null,null,null,null,"like",null,"PICH","PICH - Miami-Dade County"]
[null,null,null,null,null,null,null,null,null,null,null,"PICH","My Brother's Keeper, Inc.",null,"REACH 2014","Meharry Medical College",null,null,null,null,"Military Facilities",null,null,null,null,null,"of",null,"PICH","PICH - My Brother's Keeper, Inc."]
[null,null,null,null,null,null,null,null,null,null,null,"PICH","Nemours Alfred I. duPont Hospital for Children",null,"REACH 2014","Montgomery Area Community Wellness Coalition",null,null,null,null,"Veteran Facilities",null,null,null,null,null,"off",null,"PICH","PICH - Nemours Alfred I. duPont Hospital for Children"]
[null,null,null,null,null,null,null,null,null,null,null,"PICH","North Coast Opportunities",null,"REACH 2014","Morehouse School of Medicine, Inc",null,null,null,null,"Government Agencies",null,null,null,null,null,"on",null,"PICH","PICH - North Coast Opportunities"]
[null,null,null,null,null,null,null,null,null,null,null,"PICH","Partnership for a Healthy Lincoln",null,"REACH 2014","Multnomah County Health Department",null,null,null,null,"--Community--",null,null,null,null,null,"over",null,"PICH","PICH - Partnership for a Healthy Lincoln"]
[null,null,null,null,null,null,null,null,null,null,null,"PICH","Pawnee Nation of Oklahoma",null,"REACH 2014","New York University School of Medicine",null,null,null,null,"Faith Based Organizations",null,null,null,null,null,"since",null,"PICH","PICH - Pawnee Nation of Oklahoma"]
[null,null,null,null,null,null,null,null,null,null,null,"PICH","Pinellas County",null,"REACH 2014","Oakland University",null,null,null,null,"Non-Profit Organizations ",null,null,null,null,null,"through",null,"PICH","PICH - Pinellas County"]
[null,null,null,null,null,null,null,null,null,null,null,"PICH","Sault Ste Marie Tribe of Chippewa Indians",null,"REACH 2014","Old Colony Y",null,null,null,null,"Jurisdictions ",null,null,null,null,null,"to",null,"PICH","PICH - Sault Ste Marie Tribe of Chippewa Indians"]
[null,null,null,null,null,null,null,null,null,null,null,"PICH","Schenectady County",null,"REACH 2014","Operation Samahan, Inc.",null,null,null,null,"Recreation Areas ",null,null,null,null,null,"toward",null,"PICH","PICH - Schenectady County"]
[null,null,null,null,null,null,null,null,null,null,null,"PICH","Seattle-King County Department of Public Health",null,"REACH 2014","Partners In Health",null,null,null,null,"Gardens",null,null,null,null,null,"under",null,"PICH","PICH - Seattle-King County Department of Public Health"]
[null,null,null,null,null,null,null,null,null,null,null,"PICH","Solano County Public Health Services, County of Solano",null,"REACH 2014","Presbyterian Healthcare Services",null,null,null,null,"Worksites",null,null,null,null,null,"up",null,"PICH","PICH - Solano County Public Health Services, County of Solano"]
[null,null,null,null,null,null,null,null,null,null,null,"PICH","Southern Nevada Health District",null,"REACH 2014","Project Concern International",null,null,null,null,"Farms",null,null,null,null,null,"with",null,"PICH","PICH - Southern Nevada Health District"]
[null,null,null,null,null,null,null,null,null,null,null,"PICH","Tanner Medical Center, Inc.",null,"REACH 2014","Public Health Authority of Cabarrus County",null,null,null,null,"Entertainment Venues ",null,null,null,null,null,"without",null,"PICH","PICH - Tanner Medical Center, Inc."]
[null,null,null,null,null,null,null,null,null,null,null,"PICH","The Lima Family YMCA",null,"REACH 2014","Public Health Institute",null,null,null,null,"--Retail Environments--",null,null,null,null,null,"other (specify)",null,"PICH","PICH - The Lima Family YMCA"]
[null,null,null,null,null,null,null,null,null,null,null,"PICH","Toiyabe Indian Health Project, Inc.",null,"REACH 2014","Regents of the University of California, Los Angeles",null,null,null,null,"Farmer’s Markets",null,null,null,null,null,null,null,"PICH","PICH - Toiyabe Indian Health Project, Inc."]
[null,null,null,null,null,null,null,null,null,null,null,"PICH","Trinity Medical Center",null,"REACH 2014","San Francisco Department of Public Health",null,null,null,null,"Grocery Stores ",null,null,null,null,null,null,null,"PICH","PICH - Trinity Medical Center"]
[null,null,null,null,null,null,null,null,null,null,null,"PICH","Woodbury County",null,"REACH 2014","Temple University",null,null,null,null,"Restaurants/Bars",null,null,null,null,null,null,null,"PICH","PICH - Woodbury County"]
[null,null,null,null,null,null,null,null,null,null,null,"PICH","YMCA of Greenville",null,"REACH 2014","The Balm In Gilead, Inc.",null,null,null,null,"Mobile Vending Carts",null,null,null,null,null,null,null,"PICH","PICH - YMCA of Greenville"]
[null,null,null,null,null,null,null,null,null,null,null,null,null,null,"REACH 2014","The George Washington University",null,null,null,null,"Food Trucks",null,null,null,null,null,null,null,"REACH 2014","REACH 2014 - AltaMed Health Services Corporation"]
[null,null,null,null,null,null,null,null,null,null,null,null,null,null,"REACH 2014","The Institute for Family Health",null,null,null,null,"Concessions Stands",null,null,null,null,null,null,null,"REACH 2014","REACH 2014 - Asian Media Access"]
[null,null,null,null,null,null,null,null,null,null,null,null,null,null,"REACH 2014","The Regents of the University of California, San Diego",null,null,null,null,"Farm Stands",null,null,null,null,null,null,null,"REACH 2014","REACH 2014 - Asian Services In Action, Inc."]
[null,null,null,null,null,null,null,null,null,null,null,null,null,null,"REACH 2014","The Stapleton Foundation for Sustainable Urban Communities",null,null,null,null,"Other (Specify)",null,null,null,null,null,null,null,"REACH 2014","REACH 2014 - Boat People SOS-California"]
[null,null,null,null,null,null,null,null,null,null,null,null,null,null,"REACH 2014","The University of Alabama at Birmingham",null,null,null,null,null,null,null,null,null,null,null,null,"REACH 2014","REACH 2014 - Boston Public Health Commission"]
[null,null,null,null,null,null,null,null,null,null,null,null,null,null,"REACH 2014","Toiyabe Indian Health Project, Inc.",null,null,null,null,null,null,null,null,null,null,null,null,"REACH 2014","REACH 2014 - Bronx Community Health Network, Inc."]
[null,null,null,null,null,null,null,null,null,null,null,null,null,null,"REACH 2014","University of Arkansas for Medical Sciences",null,null,null,null,null,null,null,null,null,null,null,null,"REACH 2014","REACH 2014 - California Center for Public Health Advocacy"]
[null,null,null,null,null,null,null,null,null,null,null,null,null,null,"REACH 2014","University of Hawaii",null,null,null,null,null,null,null,null,null,null,null,null,"REACH 2014","REACH 2014 - Central Maine Community Health Corp."]
[null,null,null,null,null,null,null,null,null,null,null,null,null,null,"REACH 2014","University of Kansas Center for Research, Inc.",null,null,null,null,null,null,null,null,null,null,null,null,"REACH 2014","REACH 2014 - City of Pasadena"]
[null,null,null,null,null,null,null,null,null,null,null,null,null,null,"REACH 2014","YMCA of Greater Cleveland",null,null,null,null,null,null,null,null,null,null,null,null,"REACH 2014","REACH 2014 - Coeur d'Alene Tribe (Benewah Medical Center)"]
[null,null,null,null,null,null,null,null,null,null,null,null,null,null,null,null,null,null,null,null,null,null,null,null,null,null,null,null,"REACH 2014","REACH 2014 - Colorado Black Health Collaborative, Inc."]
[null,null,null,null,null,null,null,null,null,null,null,null,null,null,null,null,null,null,null,null,null,null,null,null,null,null,null,null,"REACH 2014","REACH 2014 - Community Coalition for Substance Abuse Prevention and Treatment"]
[null,null,null,null,null,null,null,null,null,null,null,null,null,null,null,null,null,null,null,null,null,null,null,null,null,null,null,null,"REACH 2014","REACH 2014 - Community Health Improvement Partners"]
[null,null,null,null,null,null,null,null,null,null,null,null,null,null,null,null,null,null,null,null,null,null,null,null,null,null,null,null,"REACH 2014","REACH 2014 - Creighton University"]
[null,null,null,null,null,null,null,null,null,null,null,null,null,null,null,null,null,null,null,null,null,null,null,null,null,null,null,null,"REACH 2014","REACH 2014 - Cuyahoga County District Board of Health"]
[null,null,null,null,null,null,null,null,null,null,null,null,null,null,null,null,null,null,null,null,null,null,null,null,null,null,null,null,"REACH 2014","REACH 2014 - DeKalb County Board of Health"]
[null,null,null,null,null,null,null,null,null,null,null,null,null,null,null,null,null,null,null,null,null,null,null,null,null,null,null,null,"REACH 2014","REACH 2014 - Greenwood Leflore Hospital"]
[null,null,null,null,null,null,null,null,null,null,null,null,null,null,null,null,null,null,null,null,null,null,null,null,null,null,null,null,"REACH 2014","REACH 2014 - Inter-Tribal Council of Michigan, Inc."]
[null,null,null,null,null,null,null,null,null,null,null,null,null,null,null,null,null,null,null,null,null,null,null,null,null,null,null,null,"REACH 2014","REACH 2014 - Kent County Health Department"]
[null,null,null,null,null,null,null,null,null,null,null,null,null,null,null,null,null,null,null,null,null,null,null,null,null,null,null,null,"REACH 2014","REACH 2014 - Kokua Kalihi Valley Comprehensive Family Services"]
[null,null,null,null,null,null,null,null,null,null,null,null,null,null,null,null,null,null,null,null,null,null,null,null,null,null,null,null,"REACH 2014","REACH 2014 - Leadership Council for Healthy Communities"]
[null,null,null,null,null,null,null,null,null,null,null,null,null,null,null,null,null,null,null,null,null,null,null,null,null,null,null,null,"REACH 2014","REACH 2014 - Mandela MarketPlace, Inc."]
[null,null,null,null,null,null,null,null,null,null,null,null,null,null,null,null,null,null,null,null,null,null,null,null,null,null,null,null,"REACH 2014","REACH 2014 - Meharry Medical College"]
[null,null,null,null,null,null,null,null,null,null,null,null,null,null,null,null,null,null,null,null,null,null,null,null,null,null,null,null,"REACH 2014","REACH 2014 - Montgomery Area Community Wellness Coalition"]
[null,null,null,null,null,null,null,null,null,null,null,null,null,null,null,null,null,null,null,null,null,null,null,null,null,null,null,null,"REACH 2014","REACH 2014 - Morehouse School of Medicine, Inc"]
[null,null,null,null,null,null,null,null,null,null,null,null,null,null,null,null,null,null,null,null,null,null,null,null,null,null,null,null,"REACH 2014","REACH 2014 - Multnomah County Health Department"]
[null,null,null,null,null,null,null,null,null,null,null,null,null,null,null,null,null,null,null,null,null,null,null,null,null,null,null,null,"REACH 2014","REACH 2014 - New York University School of Medicine"]
[null,null,null,null,null,null,null,null,null,null,null,null,null,null,null,null,null,null,null,null,null,null,null,null,null,null,null,null,"REACH 2014","REACH 2014 - Oakland University"]
[null,null,null,null,null,null,null,null,null,null,null,null,null,null,null,null,null,null,null,null,null,null,null,null,null,null,null,null,"REACH 2014","REACH 2014 - Old Colony Y"]
[null,null,null,null,null,null,null,null,null,null,null,null,null,null,null,null,null,null,null,null,null,null,null,null,null,null,null,null,"REACH 2014","REACH 2014 - Operation Samahan, Inc."]
[null,null,null,null,null,null,null,null,null,null,null,null,null,null,null,null,null,null,null,null,null,null,null,null,null,null,null,null,"REACH 2014","REACH 2014 - Partners In Health"]
[null,null,null,null,null,null,null,null,null,null,null,null,null,null,null,null,null,null,null,null,null,null,null,null,null,null,null,null,"REACH 2014","REACH 2014 - Presbyterian Healthcare Services"]
[null,null,null,null,null,null,null,null,null,null,null,null,null,null,null,null,null,null,null,null,null,null,null,null,null,null,null,null,"REACH 2014","REACH 2014 - Project Concern International"]
[null,null,null,null,null,null,null,null,null,null,null,null,null,null,null,null,null,null,null,null,null,null,null,null,null,null,null,null,"REACH 2014","REACH 2014 - Public Health Authority of Cabarrus County"]
[null,null,null,null,null,null,null,null,null,null,null,null,null,null,null,null,null,null,null,null,null,null,null,null,null,null,null,null,"REACH 2014","REACH 2014 - Public Health Institute"]
[null,null,null,null,null,null,null,null,null,null,null,null,null,null,null,null,null,null,null,null,null,null,null,null,null,null,null,null,"REACH 2014","REACH 2014 - Regents of the University of California, Los Angeles"]
[null,null,null,null,null,null,null,null,null,null,null,null,null,null,null,null,null,null,null,null,null,null,null,null,null,null,null,null,"REACH 2014","REACH 2014 - San Francisco Department of Public Health"]
[null,null,null,null,null,null,null,null,null,null,null,null,null,null,null,null,null,null,null,null,null,null,null,null,null,null,null,null,"REACH 2014","REACH 2014 - Temple University"]
[null,null,null,null,null,null,null,null,null,null,null,null,null,null,null,null,null,null,null,null,null,null,null,null,null,null,null,null,"REACH 2014","REACH 2014 - The Balm In Gilead, Inc."]
[null,null,null,null,null,null,null,null,null,null,null,null,null,null,null,null,null,null,null,null,null,null,null,null,null,null,null,null,"REACH 2014","REACH 2014 - The George Washington University"]
[null,null,null,null,null,null,null,null,null,null,null,null,null,null,null,null,null,null,null,null,null,null,null,null,null,null,null,null,"REACH 2014","REACH 2014 - The Institute for Family Health"]
[null,null,null,null,null,null,null,null,null,null,null,null,null,null,null,null,null,null,null,null,null,null,null,null,null,null,null,null,"REACH 2014","REACH 2014 - The Regents of the University of California, San Diego"]
[null,null,null,null,null,null,null,null,null,null,null,null,null,null,null,null,null,null,null,null,null,null,null,null,null,null,null,null,"REACH 2014","REACH 2014 - The Stapleton Foundation for Sustainable Urban Communities"]
[null,null,null,null,null,null,null,null,null,null,null,null,null,null,null,null,null,null,null,null,null,null,null,null,null,null,null,null,"REACH 2014","REACH 2014 - The University of Alabama at Birmingham"]
[null,null,null,null,null,null,null,null,null,null,null,null,null,null,null,null,null,null,null,null,null,null,null,null,null,null,null,null,"REACH 2014","REACH 2014 - Toiyabe Indian Health Project, Inc."]
[null,null,null,null,null,null,null,null,null,null,null,null,null,null,null,null,null,null,null,null,null,null,null,null,null,null,null,null,"REACH 2014","REACH 2014 - University of Arkansas for Medical Sciences"]
[null,null,null,null,null,null,null,null,null,null,null,null,null,null,null,null,null,null,null,null,null,null,null,null,null,null,null,null,"REACH 2014","REACH 2014 - University of Hawaii"]
[null,null,null,null,null,null,null,null,null,null,null,null,null,null,null,null,null,null,null,null,null,null,null,null,null,null,null,null,"REACH 2014","REACH 2014 - University of Kansas Center for Research, Inc."]
[null,null,null,null,null,null,null,null,null,null,null,null,null,null,null,null,null,null,null,null,null,null,null,null,null,null,null,null,"REACH 2014","REACH 2014 - YMCA of Greater Cleveland"]
[null,null,null,null,null,null,null,null,null,null,null,null,null,null,null,null,null,null,null,null,null,null,null,null,null,null,null,null,"National Orgs ","National Orgs - American Heart Association"]
[null,null,null,null,null,null,null,null,null,null,null,null,null,null,null,null,null,null,null,null,null,null,null,null,null,null,null,null,"National Orgs ","National Orgs - American Planning Association"]
[null,null,null,null,null,null,null,null,null,null,null,null,null,null,null,null,null,null,null,null,null,null,null,null,null,null,null,null,"National Orgs ","National Orgs - Assoc of State & Terr Directors of Hlth Promo and PH Education (ASTDHPPHE)"]
[null,null,null,null,null,null,null,null,null,null,null,null,null,null,null,null,null,null,null,null,null,null,null,null,null,null,null,null,"National Orgs ","National Orgs - National WIC Association"]
[null,null,null,null,null,null,null,null,null,null,null,null,null,null,null,null,null,null,null,null,null,null,null,null,null,null,null,null,"National Orgs ","National Orgs - Society for Public Health Education"]

{"sheet":"Embedded WORD","index":6,"n_rows":0,"n_cols":0,"rows_kept":0,"cut":false,"hidden":true,"merged":[]}